Workbook

Sheet Disclaimer
D3: NETL Coal Baseline Lifecycle Model
B5: Disclaimer
C6: 1 | D6: Neither the U.S. Department of Energy (DOE) National Energy Technology Laboratory (NETL) nor any person acting on behalf of these organizations:
D7: A. Makes any warranty or representation, express or implied, with respect to the accuracy, completeness, or usefulness of the information contained in this document, or that the use of any information, apparatus, method, or process disclosed in this document may not infringe on privately owned rights; or
D8: B. Assumes any liability with this report as to its use, or damages resulting from the use of any information, apparatus, method, or process disclosed in this document.
C10: 2 | D10: Reference herein to any specific commerical product, process, or service by trade name, trademark, manufacturer, or otherwise, does not necessarily constitute or imply its endorsement, recommendation, or favoring by NETL. The views and opinions of the authors expressed herein do not necessarily state or reflect those of NETL
B12: Contact Information
B14: Matthew Jamieson Senior Life Cycle Analyst Strategic Systems Analysis & Engineering (412) 386-7610 matthew.jamieson@netl.doe.gov

Sheet Model Instructions
A1: Model Instructions

Sheet User Input
A1: Scenario Parameters
A2: The parameters below are a mix of auto-generated values based on the scenario selection and user input values. Some parameters offer the user a choice to rely on default values or enter custom values. Sections that may require user input are highlighted by orange boxes. Instructions for each section are provided in the grey boxes to the left of each section. To view all 55 Basin-NERC Region scenarios, and their default parameters, navigate to the Scenarios tab.
A5: Select Basin and NERC Region from the dropdown menus. | B5: Select Basin | C5: Select NERC Region | D5: Selected Transportation Scenario
B6: Northern Appalachia | C6: RFC | D6: =CONCATENATE(B6,C6) -> Northern Appalachia RFC
A9: Transportation parameters are auto-populated based on Basin/NERC selection. User input will override the parameters and must be deleted to return to default values. Entering "0" in the user input parameters will not return values to default. | B9: Default Transportation | D9: User Input Transportation
B10: Transportation Mode | C10: Miles | D10: Transportation Mode | E10: Miles
B11: Belt | C11: =IF($C$53="Valid Scenario",VLOOKUP($D$6,Transportation!$B$3:$G$37,2,FALSE),Transportation!C37) -> 0.1668315819 | D11: Belt
B12: Truck | C12: =IF($C$53="Valid Scenario",VLOOKUP($D$6,Transportation!$B$3:$G$37,3,FALSE),Transportation!D37) -> 7.542097031 | D12: Truck
B13: Barge | C13: =IF($C$53="Valid Scenario",VLOOKUP($D$6,Transportation!$B$3:$G$37,4,FALSE),Transportation!E37) -> 75.14958068 | D13: Barge
B14: Ocean Vessel/Lake Vessel | C14: =IF($C$53="Valid Scenario",VLOOKUP($D$6,Transportation!$B$3:$G$37,5,FALSE),Transportation!F37) -> 1.691337393 | D14: Ocean/Lake Vessel
B15: Train | C15: =IF($C$53="Valid Scenario",VLOOKUP($D$6,Transportation!$B$3:$G$37,6,FALSE),Transportation!G37) -> 78.66021175 | D15: Train
A17: FERC electrictiy providers are auto-populated based on Basin selection. | B17: FERC Electricity Providers | AE17: Suggested Grid Mixes Per Basin
B18: FERC Region | C18: Percent of Mix | AE18: FERC Region | AF18: U.S. Average | AG18: Central Appalachia | AH18: Central Interior | AI18: Gulf Lignite | AJ18: Illinois Basin | AK18: Lignite | AL18: Northern Appalachia | AM18: Powder River Basin | AN18: Rocky Mountain | AO18: Southern Appalachia | AP18: West/North West
B19: ERCOT | C19: =_xlfn.XLOOKUP($B$6,$AF$18:$AP$18,AF19:AP19) -> 0 | AE19: ERCOT | AF19: =1/7 -> 0.1428571429 | AG19: 0 | AH19: 0 | AI19: 1 | AJ19: 0 | AK19: 0 | AL19: 0 | AM19: 0 | AN19: 0 | AO19: 0 | AP19: 0
B20: MISO | C20: 0 | AE20: MISO | AF20: =1/7 -> 0.1428571429 | AG20: 0 | AH20: 0.5 | AI20: 0 | AJ20: 1 | AK20: 0.5 | AL20: 0 | AM20: 0 | AN20: 0 | AO20: 0 | AP20: 0
B21: Northwest | C21: 0 | AE21: Northwest | AF21: 0.1428571429 | AG21: 0 | AH21: 0 | AI21: 0 | AJ21: 0 | AK21: 0 | AL21: 0 | AM21: 1 | AN21: 0.5 | AO21: 0 | AP21: 1
B22: PJM | C22: 1 | AE22: PJM | AF22: 0.1428571429 | AG22: 1 | AH22: 0 | AI22: 0 | AJ22: 0 | AK22: 0 | AL22: 1 | AM22: 0 | AN22: 0 | AO22: 0 | AP22: 0
B23: Southeast | C23: 0 | AE23: Southeast | AF23: 0.1428571429 | AG23: 0 | AH23: 0 | AI23: 0 | AJ23: 0 | AK23: 0 | AL23: 0 | AM23: 0 | AN23: 0 | AO23: 1 | AP23: 0
B24: Southwest | C24: 0 | AE24: Southwest | AF24: 0.1428571429 | AG24: 0 | AH24: 0 | AI24: 0 | AJ24: 0 | AK24: 0 | AL24: 0 | AM24: 0 | AN24: 0.5 | AO24: 0 | AP24: 0
B25: SPP | C25: 0 | AE25: SPP | AF25: 0.1428571429 | AG25: 0 | AH25: 0.5 | AI25: 0 | AJ25: 0 | AK25: 0.5 | AL25: 0 | AM25: 0 | AN25: 0 | AO25: 0 | AP25: 0
B26: Mix Total | C26: =SUM(C19:C25) -> 1
B27: Validity | C27: =IF(C26=1,"Valid Mix","Invalid Mix") -> Valid Mix
AE28: FERC Region | AF28: ERCOT | AG28: MISO | AH28: Northwest | AI28: PJM | AJ28: Southeast | AK28: Southwest | AL28: SPP
AE29: U.S. Average | AF29: =1/7 -> 0.1428571429 | AG29: 0.1428571429 | AH29: 0.1428571429 | AI29: 0.1428571429 | AJ29: 0.1428571429 | AK29: 0.1428571429 | AL29: 0.1428571429
A30: Mine type requires user input. | B30: User Input Mine Type Mix | AE30: Central Appalachia | AF30: 0 | AG30: 0 | AH30: 0 | AI30: 1 | AJ30: 0 | AK30: 0 | AL30: 0
B31: Mine Type | C31: Percent of Mix | AE31: Central Interior | AF31: 0 | AG31: 0.5 | AH31: 0 | AI31: 0 | AJ31: 0 | AK31: 0 | AL31: 0.5
B32: Underground Extraction | C32: 0 | AE32: Gulf Lignite | AF32: 1 | AG32: 0 | AH32: 0 | AI32: 0 | AJ32: 0 | AK32: 0 | AL32: 0
B33: Surface Extraction | C33: 1 | AE33: Illinois Basin | AF33: 0 | AG33: 1 | AH33: 0 | AI33: 0 | AJ33: 0 | AK33: 0 | AL33: 0
B34: Mix Total | C34: =SUM(C32:C33) -> 1 | AE34: Lignite | AF34: 0 | AG34: 0.5 | AH34: 0 | AI34: 0 | AJ34: 0 | AK34: 0 | AL34: 0.5
B35: Validity | C35: =IF(C34=1,"Valid Mix","Invalid Mix") -> Valid Mix | AE35: Northern Appalachia | AF35: 0 | AG35: 0 | AH35: 0 | AI35: 1 | AJ35: 0 | AK35: 0 | AL35: 0
AE36: Powder River Basin | AF36: 0 | AG36: 0 | AH36: 1 | AI36: 0 | AJ36: 0 | AK36: 0 | AL36: 0
AE37: Rocky Mountain | AF37: 0 | AG37: 0 | AH37: 0.5 | AI37: 0 | AJ37: 0 | AK37: 0.5 | AL37: 0
A38: Coal type requires user input. | B38: User Input Coal Type Mix | AE38: Southern Appalachia | AF38: 0 | AG38: 0 | AH38: 0 | AI38: 0 | AJ38: 1 | AK38: 0 | AL38: 0
B39: Coal Type | C39: Percent of Mix | AE39: West/North West | AF39: 0 | AG39: 0 | AH39: 1 | AI39: 0 | AJ39: 0 | AK39: 0 | AL39: 0
B40: Lignite Coal | C40: 0
B41: Subbituminous Coal | C41: 1
B42: Bituminous Coal | C42: 0
B43: Mix Total | C43: =SUM(C40:C42) -> 1
B44: Validity | C44: =IF(C43=1,"Valid Mix","Invalid Mix") -> Valid Mix
A46: Coal cleaning is auto-populated based on Basin selection. User input will override and must be cleared to return to the default value. | B46: Coal Cleaning
B47: Value represents the percent of coal cleaned
B48: Default Percent | C48: User Input Percent | D48: Validity
B49: 0 | D49: =IF(OR(B49>0.000000001,B49<1,B49=Parameters!D66),"Valid","Inalid") -> Valid
A51: The full scenario ID is tested to determine whether selected scenario exists. If the selected scenario does not exist, the model will default to the U.S average. | B51: Scenario Validity
B52: Scenario ID | C52: Validity
B53: =VLOOKUP(B6,Scenarios!$U$3:$V$13,2,FALSE)&"-"&IF(C40=1,"L",IF(C41=1,"S","B"))&"-"&IF(C32=1,"U","S")&"-"&RIGHT(C6,LEN(C6)-1) -> NA-S-S-RFC | C53: =IF(ISNA(VLOOKUP(D6,D116:D150,1,FALSE)), "Invalid Scenario, default to U.S. Average Transport", "Valid Scenario") -> Valid Scenario
A55: See "Model Instructions" tab before running the model
A57: Before running a simulation, select the IPCC GWP Method from the dropdown menu. Impact factors for each method can be found on the TRACI IF Tab. | C57: Select GWP Method
C58: AR6 100-yr
A59: When running an individual scenario, the above user inputs will be used for the selected scenario. When running all scenarios, the user inputs will be used for transportation and coal cleaning, and the default parameters will be used for the remaining parameters for each Basin-NERC scenario.
B101: Basins | D101: Nerc Regions | F101: GWP Methods
B102: Central Appalachia | C102: 2 | D102: ASCC | F102: AR4 20-yr
B103: Central Interior | C103: 4 | D103: ERCOT | F103: AR4 100-yr
B104: Gulf Lignite | C104: 10 | D104: FRCC | F104: AR5 20-yr
B105: Illinois Basin | C105: 3 | D105: HCC | F105: AR5 20-yr (CCF)
B106: Lignite | C106: 11 | D106: MRO | F106: AR5 100-yr
B107: Northern Appalachia | C107: 5 | D107: NPCC | F107: AR5 100-yr (CCF)
B108: Powder River Basin | C108: 9 | D108: RFC | F108: AR6 20-yr
B109: Rocky Mountain | C109: 7 | D109: SERC | F109: AR6 100-yr
B110: Southern Appalachia | C110: 6 | D110: SPP
B111: U.S. Average | C111: 1 | D111: U.S. Average
B112: West/North West | C112: 8 | D112: WECC
B114: Viable Transportation Scenarios
B116: West/North West | C116: ASCC | D116: =CONCATENATE(B116,C116) -> West/North West ASCC
B117: Gulf Lignite | C117: ERCOT | D117: Gulf Lignite ERCOT
B118: Powder River Basin | C118: ERCOT | D118: Powder River Basin ERCOT
B119: Central Appalachia | C119: FRCC | D119: Central Appalachia FRCC
B120: Rocky Mountain | C120: FRCC | D120: Rocky Mountain FRCC
B121: Northern Appalachia | C121: FRCC | D121: Northern Appalachia FRCC
B122: Illinois Basin | C122: FRCC | D122: Illinois Basin FRCC
B123: Central Appalachia | C123: MRO | D123: Central Appalachia MRO
B124: Rocky Mountain | C124: MRO | D124: Rocky Mountain MRO
B125: Powder River Basin | C125: MRO | D125: Powder River Basin MRO
B126: Northern Appalachia | C126: MRO | D126: Northern Appalachia MRO
B127: Lignite | C127: MRO | D127: Lignite MRO
B128: Illinois Basin | C128: MRO | D128: Illinois Basin MRO
B129: Central Appalachia | C129: NPCC | D129: Central Appalachia NPCC
B130: Northern Appalachia | C130: NPCC | D130: Northern Appalachia NPCC
B131: Central Appalachia | C131: RFC | D131: Central Appalachia RFC
B132: Rocky Mountain | C132: RFC | D132: Rocky Mountain RFC
B133: Powder River Basin | C133: RFC | D133: Powder River Basin RFC
B134: Northern Appalachia | C134: RFC | D134: Northern Appalachia RFC
B135: Illinois Basin | C135: RFC | D135: Illinois Basin RFC
B136: Central Appalachia | C136: SERC | D136: Central Appalachia SERC
B137: Southern Appalachia | C137: SERC | D137: Southern Appalachia SERC
B138: Rocky Mountain | C138: SERC | D138: Rocky Mountain SERC
B139: Powder River Basin | C139: SERC | D139: Powder River Basin SERC
B140: Northern Appalachia | C140: SERC | D140: Northern Appalachia SERC
B141: Illinois Basin | C141: SERC | D141: Illinois Basin SERC
B142: Gulf Lignite | C142: SERC | D142: Gulf Lignite SERC
B143: Central Interior | C143: SPP | D143: Central Interior SPP
B144: Powder River Basin | C144: SPP | D144: Powder River Basin SPP
B145: Illinois Basin | C145: SPP | D145: Illinois Basin SPP
B146: Gulf Lignite | C146: SPP | D146: Gulf Lignite SPP
B147: Powder River Basin | C147: WECC | D147: Powder River Basin WECC
B148: West/North West | C148: WECC | D148: West/North West WECC
B149: Rocky Mountain | C149: WECC | D149: Rocky Mountain WECC
B150: U.S. Average | C150: U.S. Average | D150: U.S. Average U.S. Average

Sheet Upstream
C2: Emissions to Air | AP2: Emissions to Water | EC2: Tracked Inputs | KS2: Emissions to Air | LK2: Emissions to Water | NH2: Mean | NI2: Mean | NJ2: Mean | NK2: Mean | NL2: Mean | NM2: Mean | NN2: Mean | NO2: Min | NP2: Min | NQ2: Min | NR2: Min | NS2: Min | NT2: Min | NU2: Min | NV2: Max | NW2: Max | NX2: Max | NY2: Max | NZ2: Max | OA2: Max | OB2: Max | OC2: 0.05 | OD2: 0.05 | OE2: 0.05 | OF2: 0.05 | OG2: 0.05 | OH2: 0.05 | OI2: 0.05 | OJ2: 0.25 | OK2: 0.25 | OL2: 0.25 | OM2: 0.25 | ON2: 0.25 | OO2: 0.25 | OP2: 0.25 | OQ2: 0.5 | OR2: 0.5 | OS2: 0.5 | OT2: 0.5 | OU2: 0.5 | OV2: 0.5 | OW2: 0.5 | OX2: 0.75 | OY2: 0.75 | OZ2: 0.75 | PA2: 0.75 | PB2: 0.75 | PC2: 0.75 | PD2: 0.75 | PE2: 0.95 | PF2: 0.95 | PG2: 0.95 | PH2: 0.95 | PI2: 0.95 | PJ2: 0.95 | PK2: 0.95
B3: Process Name | C3: CH4 (kg) | D3: PM10 (kg) | E3: PM2.5 (kg) | F3: VOC (kg) | G3: PM>10 (kg) | H3: SO2 (kg) | I3: NOx (kg) | J3: CO2 (kg) | K3: N2O (kg) | L3: PM unspecified (kg) | M3: CO (kg) | N3: Mercury (kg) | O3: NH3 Ammonia (kg) | P3: HC [hydrocarbons unspecified] (kg) | Q3: NO (kg) | R3: NO2 (kg) | S3: BC [black carbon] (kg) | T3: OC [organic carbon] (kg) | U3: 1,3-Butadiene (kg) | V3: Acenaphthene (kg) | W3: Acetaldehyde (kg) | X3: Acrolein (kg) | Y3: Aldehyde (unspecified) (kg) | Z3: Anthracene (kg) | AA3: Benzene (kg) | AB3: Benzo{a}anthracene (kg) | AC3: Benzo{a}pyrene (kg) | AD3: Dibenz(a,h)anthracene (kg) | AE3: Fluoranthene (kg) | AF3: Fluorene (kg) | AG3: Formaldehyde (methanal) (kg) | AH3: Xylene (dimethyl benzene) (kg) | AI3: Naphthalene (kg) | AJ3: Phenanthrene (kg) | AK3: Polycyclic aromatic hydrocarbons (kg) | AL3: Propene (kg) | AM3: Pyrene (kg) | AN3: SOx (kg) | AO3: Toluene (kg) | AP3: TSS (kg) | AQ3: Iron (kg) | AR3: Alkalinity (kg CaCO3) | AS3: Acidity (kg) | AT3: Chloride (kg) | AU3: Sulfate (kg) | AV3: BOD (kg) | AW3: Nitrogen (kg) | AX3: Antimony (kg) | AY3: Arsenic (kg) | AZ3: Chromium (kg) | BA3: Lead (kg) | BB3: Silver (kg) | BC3: TDS (kg) | BD3: Nitrate (kg) | BE3: Phosphate (kg) | BF3: Fluoride (kg) | BG3: Barium (kg) | BH3: Cadmium (kg) | BI3: Cobalt (kg) | BJ3: Copper (kg) | BK3: Mercury (kg) | BL3: Manganese (kg) | BM3: Molybdenum (kg) | BN3: Nickel (kg) | BO3: Selenium (kg) | BP3: Tin (kg) | BQ3: Vanadium (kg) | BR3: Zinc (kg) | BS3: Beryllium (kg) | BT3: Scandium (kg) | BU3: Strontium (kg) | BV3: Titanium (kg) | BW3: Thallium (kg) | BX3: Tungsten (kg) | BY3: Silicon (kg) | BZ3: Calcium (kg) | CA3: Aluminum (kg) | CB3: Potassium (kg) | CC3: Magnesium (kg) | CD3: Sodium (kg) | CE3: Water Input Flows (fresh water) (kg) | CF3: Acidification Potential [kg SO2 eq.] | CG3: Eutrophication Potential [kg N eq.] | CH3: ="Global Warming Potential, "&'User Input'!C58&" IPCC [kg CO2 eq.]" -> Global Warming Potential, AR6 100-yr IPCC [kg CO2 eq.] | CI3: Ozone Depletion Potential [kg CFC 11 eq.] | CJ3: Particulate Matter Formation Potential [kg PM2.5 eq.] | CK3: Photochemical Smog Potential [kg O3 eq.] | CL3: Water Consumption (NETL) [kg] | CM3: ERCOT Upstream, Extraction, Underground (kWh) | CN3: ERCOT Upstream, Extraction, Surface (kWh) | CO3: ERCOT Upstream, Coal Cleaning (kWh) | CP3: ERCOT Upstream, Ventilation (kWh) | CQ3: ERCOT Upstream, Transport, Conveyor (kWh) | CR3: ERCOT Upstream, Coal Handling, Underground (kWh) | CS3: MISO Upstream, Extraction, Underground (kWh) | CT3: MISO Upstream, Extraction, Surface (kWh) | CU3: MISO Upstream, Coal Cleaning (kWh) | CV3: MISO Upstream, Ventilation (kWh) | CW3: MISO Upstream, Transport, Conveyor (kWh) | CX3: MISO Upstream, Coal Handling, Underground (kWh) | CY3: Northwest Upstream, Extraction, Underground (kWh) | CZ3: Northwest Upstream, Extraction, Surface (kWh) | DA3: Northwest Upstream, Coal Cleaning (kWh) | DB3: Northwest Upstream, Ventilation (kWh) | DC3: Northwest Upstream, Transport, Conveyor (kWh) | DD3: Northwest Upstream, Coal Handling, Underground (kWh) | DE3: PJM Upstream, Extraction, Underground (kWh) | DF3: PJM Upstream, Extraction, Surface (kWh) | DG3: PJM Upstream, Coal Cleaning (kWh) | DH3: PJM Upstream, Ventilation (kWh) | DI3: PJM upstream, Transport, Conveyor (kWh) | DJ3: PJM Upstream, Coal Handling, Underground (kWh) | DK3: Southeast Upstream, Extraction, Underground (kWh) | DL3: Southeast Upstream, Extraction, Surface (kWh) | DM3: Southeast Upstream, Coal Cleaning (kWh) | DN3: Southeast Upstream, Ventilation (kWh) | DO3: Southeast Upstream, Transport, Conveyor (kWh) | DP3: Southeast Upstream, Coal Handling, Underground (kWh) | DQ3: Southwest Upstream, Extraction, Underground (kWh) | DR3: Southwest Upstream, Extraction, Surface (kWh) | DS3: Southwest Upstream, Coal Cleaning (kWh) | DT3: Southwest Upstream, Ventilation (kWh) | DU3: Southwest Upstream, Transport, Conveyor (kWh) | DV3: Southwest Upstream, Coal Handling, Underground (kWh) | DW3: SPP Upstream, Extraction, Underground (kWh) | DX3: SPP Upstream, Extraction, Surface (kWh) | DY3: SPP Upstream, Coal Cleaning (kWh) | DZ3: SPP Upstream, Ventilation (kWh) | EA3: SPP Upstream, Transport, Conveyor (kWh) | EB3: SPP Upstream, Coal Handling, Underground (kWh) | EC3: Electricity, Extraction, Underground (kWh) | ED3: Electricity, Extraction, Surface (kWh) | EE3: Electricity, Coal Cleaning (kWh) | EF3: Electricity, Ventilation (kWh) | EG3: Electricity, Transport, Belt (kWh) | EH3: Electricity, Coal Handling, Underground (kWh) | EI3: Light fuel oil Upstream, Ocean Vessel (kg) | EJ3: Light fuel oil Upstream, Barge (kg) | EK3: Explosives Underground (kg) | EL3: Explosives Surface (kg) | EM3: Diesel Upstream, Extraction, Underground (kg) | EN3: Diesel Upstream, Extraction, Surface (kg) | EO3: Diesel Upstream, Transport, Truck (kg) | EP3: Diesel Upstream, Transport, Ocean Vessel (kg) | EQ3: Diesel Upstream, Transport, Barge (kg) | ER3: Diesel Upstream, Transport, Train (kg) | ES3: Diesel Upstream, Coal Handling, Underground (kg) | ET3: Diesel Upstream, Coal Handling, Surface (kg) | EU3: Coal, mine methane Undg, coal cleaning (kg) | EV3: Coal, mine methane surface, coal cleaning (kg) | EW3: Coal, Underground, water (kg) | EX3: Coal, Surface, Water (kg) | EY3: Coal, Ventilation (kg) | EZ3: Underground coal mine construction (pcs) | FA3: Coal Preparation Facility construction (pcs) | FB3: I6 Commissioning (pcs) | FC3: Coal_In (coal handled) (kg) | FD3: Coal Mine tailings, (kg) | FE3: Coal, underground, extracted (kg) | FF3: Coal, Surface, Extracted (kg) | FG3: Conveyor Belt Construction (pieces) | FH3: Coal, Cleaned (kg) | FI3: Coal_not_cleaned (kg) | FJ3: Conveyor output/Truck input (kg) | FK3: Truck Construction (pieces) | FL3: Truck output/ocean vessel input (kg) | FM3: Ocean Vessel Construction (pieces) | FN3: Barge Construction (pieces) | FO3: Ocean Vessel output/barge input | FP3: Barge output/Train input (kg) | FQ3: Train Construction (pieces) | FR3: Surface Coal Mine Construction (pcs) | FS3: Surface Coal Mine Commissioning/decommissioning (pcs) | FT3: Coal, Handled, Underground (kg) | FU3: Coal, Handled, Surface (kg) | FV3: Diesel Comb, Extraction, Underground (kg) | FW3: Diesel Comb, Extraction, Surface (kg) | FX3: Diesel Comb, Transport, Truck (kg) | FY3: Diesel Comb, Transport, Ocean Vessel (kg) | FZ3: Diesel Comb, Transport, Barge (kg) | GA3: Diesel Comb, Transport, Train (kg) | GB3: Diesel Comb, Handling, Underground (kg) | GC3: Diesel Comb, Handling, Surface (kg) | GD3: LFO Comb, Transport, Ocean Vessel (kg) | GE3: LFO Comb, Transport, Barge (kg) | GF3: Methane, Captured, Underground (kg) | GG3: Coal, mine methane Undg, coal cleaning (kg) | GH3: Methane, Captured, Surface (kg) | GI3: Coal, mine methane surface, coal cleaning (kg) | GJ3: Coal, Ventilation (kg) | GK3: Coal, underground, extracted (kg) | GL3: Coal, Underground, water (kg) | GM3: Coal, Surface, Extracted (kg) | GN3: Coal, Surface, Water (kg) | GO3: Coal, Cleaned (kg) | GP3: Coal Mine tailings, (kg) | GQ3: Light fuel oil Upstream, Ocean Vessel (kg) | GR3: Light fuel oil Upstream, Barge (kg) | GS3: Explosives Underground (kg) | GT3: Explosives Surface (kg) | GU3: Underground coal mine construction (pcs) | GV3: Coal Preparation Facility construction (pcs) | GW3: I6 Commissioning (pcs) | GX3: Coal_In (coal handled) (kg) | GY3: Coal_not_cleaned (kg) | GZ3: Diesel Upstream, Extraction, Underground (kg) | HA3: Diesel Upstream, Extraction, Surface (kg) | HB3: Diesel Upstream, Transport, Truck (kg) | HC3: Diesel Upstream, Transport, Ocean Vessel (kg) | HD3: Diesel Upstream, Transport, Barge (kg) | HE3: Diesel Upstream, Transport, Train (kg) | HF3: Diesel Upstream, Coal Handling, Underground (kg) | HG3: Diesel Upstream, Coal Handling, Surface (kg) | HH3: Electricity, Extraction, Underground (kWh) | HI3: Electricity, Extraction, Surface (kWh) | HJ3: Electricity, Coal Cleaning (kWh) | HK3: Electricity, Ventilation (kWh) | HL3: Electricity, Transport, Belt (kWh) | HM3: Electricity, Coal Handling, Underground (kWh) | HN3: ERCOT Upstream, Extraction, Underground (kWh) | HO3: ERCOT Upstream, Extraction, Surface (kWh) | HP3: ERCOT Upstream, Coal Cleaning (kWh) | HQ3: ERCOT Upstream, Ventilation (kWh) | HR3: ERCOT Upstream, Transport, Conveyor (kWh) | HS3: ERCOT Upstream, Coal Handling, Underground (kWh) | HT3: MISO Upstream, Extraction, Underground (kWh) | HU3: MISO Upstream, Extraction, Surface (kWh) | HV3: MISO Upstream, Coal Cleaning (kWh) | HW3: MISO Upstream, Ventilation (kWh) | HX3: MISO Upstream, Transport, Conveyor (kWh) | HY3: MISO Upstream, Coal Handling, Underground (kWh) | HZ3: Northwest Upstream, Extraction, Underground (kWh) | IA3: Northwest Upstream, Extraction, Surface (kWh) | IB3: Northwest Upstream, Coal Cleaning (kWh) | IC3: Northwest Upstream, Ventilation (kWh) | ID3: Northwest Upstream, Transport, Conveyor (kWh) | IE3: Northwest Upstream, Coal Handling, Underground (kWh) | IF3: PJM Upstream, Extraction, Underground (kWh) | IG3: PJM Upstream, Extraction, Surface (kWh) | IH3: PJM Upstream, Coal Cleaning (kWh) | II3: PJM Upstream, Ventilation (kWh) | IJ3: PJM upstream, Transport, Conveyor (kWh) | IK3: PJM Upstream, Coal Handling, Underground (kWh) | IL3: Southeast Upstream, Extraction, Underground (kWh) | IM3: Southeast Upstream, Extraction, Surface (kWh) | IN3: Southeast Upstream, Coal Cleaning (kWh) | IO3: Southeast Upstream, Ventilation (kWh) | IP3: Southeast Upstream, Transport, Conveyor (kWh) | IQ3: Southeast Upstream, Coal Handling, Underground (kWh) | IR3: Southwest Upstream, Extraction, Underground (kWh) | IS3: Southwest Upstream, Extraction, Surface (kWh) | IT3: Southwest Upstream, Coal Cleaning (kWh) | IU3: Southwest Upstream, Ventilation (kWh) | IV3: Southwest Upstream, Transport, Conveyor (kWh) | IW3: Southwest Upstream, Coal Handling, Underground (kWh) | IX3: SPP Upstream, Extraction, Underground (kWh) | IY3: SPP Upstream, Extraction, Surface (kWh) | IZ3: SPP Upstream, Coal Cleaning (kWh) | JA3: SPP Upstream, Ventilation (kWh) | JB3: SPP Upstream, Transport, Conveyor (kWh) | JC3: SPP Upstream, Coal Handling, Underground (kWh) | JD3: Conveyor Belt Construction (pieces) | JE3: Conveyor output/Truck input (kg) | JF3: Truck Construction (pieces) | JG3: Truck output/ocean vessel input (kg) | JH3: Ocean Vessel Construction (pieces) | JI3: Ocean vessel output/barge input (kg) | JJ3: Barge Construction (pieces) | JK3: Barge output/train input (kg) | JL3: Train Construction (pieces) | JM3: Delivered Coal (kg) (final product) | JN3: Surface Coal Mine Construction (pcs) | JO3: Surface Coal Mine Commissioning/decommissioning (pcs) | JP3: Coal, Handled, Underground (kg) | JQ3: Coal, Handled, Surface (kg) | JR3: Diesel Comb, Extraction, Underground (kg) | JS3: Diesel Comb, Extraction, Surface (kg) | JT3: Diesel Comb, Transport, Truck (kg) | JU3: Diesel Comb, Transport, Ocean Vessel (kg) | JV3: Diesel Comb, Transport, Barge (kg) | JW3: Diesel Comb, Transport, Train (kg) | JX3: Diesel Comb, Handling, Underground (kg) | JY3: Diesel Comb, Handling, Surface (kg) | JZ3: LFO Comb, Transport, Ocean Vessel (kg) | KA3: LFO Comb, Transport, Barge (kg) | KD3: Intermediate Flows | KE3: units | KF3: description | KI3: Process | KJ3: Aggregated Process | KP3: Emissions Weighted Results | KS3: CH4 (kg) | KT3: PM10 (kg) | KU3: PM2.5 (kg) | KV3: VOC (kg) | KW3: PM>10 (kg) | KX3: SO2 (kg) | KY3: NOx (kg) | KZ3: CO2 (kg) | LA3: N2O (kg) | LB3: PM unspecified (kg) | LC3: CO (kg) | LD3: Mercury (kg) | LE3: NH3 Ammonia (kg) | LF3: HC [hydrocarbons unspecified] (kg) | LG3: NO (kg) | LH3: NO2 (kg) | LI3: BC [black carbon] (kg) | LJ3: OC [organic carbon] (kg) | LK3: TSS (kg) | LL3: Iron (kg) | LM3: Alkalinity (kg CaCO3) | LN3: Acidity (kg) | LO3: Chloride (kg) | LP3: Sulfate (kg) | LQ3: BOD (kg) | LR3: Nitrogen (kg) | LS3: Antimony (kg) | LT3: Arsenic (kg) | LU3: Chromium (kg) | LV3: Lead (kg) | LW3: Silver (kg) | LX3: TDS (kg) | LY3: Nitrate (kg) | LZ3: Phosphate (kg) | MA3: Fluoride (kg) | MB3: Barium (kg) | MC3: Cadmium (kg) | MD3: Cobalt (kg) | ME3: Copper (kg) | MF3: Mercury (kg) | MG3: Manganese (kg) | MH3: Molybdenum (kg) | MI3: Nickel (kg) | MJ3: Selenium (kg) | MK3: Tin (kg) | ML3: Vanadium (kg) | MM3: Zinc (kg) | MN3: Beryllium (kg) | MO3: Scandium (kg) | MP3: Strontium (kg) | MQ3: Titanium (kg) | MR3: Thallium (kg) | MS3: Tungsten (kg) | MT3: Silicon (kg) | MU3: Calcium (kg) | MV3: Aluminum (kg) | MW3: Potassium (kg) | MX3: Magnesium (kg) | MY3: Sodium (kg) | MZ3: Acidification Potential [kg SO2 eq.] | NA3: Eutrophication Potential [kg N eq.] | NB3: ="Global Warming Potential, "&'User Input'!$C$58&" IPCC [kg CO2 eq.]" -> Global Warming Potential, AR6 100-yr IPCC [kg CO2 eq.] | NC3: Ozone Depletion Potential [kg CFC 11 eq.] | ND3: Particulate Matter Formation Potential [kg PM2.5 eq.] | NE3: Photochemical Smog Potential [kg O3 eq.] | NF3: Water Consumption (NETL) [kg] | NH3: Acidification Potential [kg SO2 eq.] | NI3: Eutrophication Potential [kg N eq.] | NJ3: ="Global Warming Potential, "&'User Input'!$C$58&" IPCC [kg CO2 eq.]" -> Global Warming Potential, AR6 100-yr IPCC [kg CO2 eq.] | NK3: Ozone Depletion Potential [kg CFC 11 eq.] | NL3: Particulate Matter Formation Potential [kg PM2.5 eq.] | NM3: Photochemical Smog Potential [kg O3 eq.] | NN3: Water Consumption (NETL) [kg] | NO3: Acidification Potential [kg SO2 eq.] | NP3: Eutrophication Potential [kg N eq.] | NQ3: ="Global Warming Potential, "&'User Input'!$C$58&" IPCC [kg CO2 eq.]" -> Global Warming Potential, AR6 100-yr IPCC [kg CO2 eq.] | NR3: Ozone Depletion Potential [kg CFC 11 eq.] | NS3: Particulate Matter Formation Potential [kg PM2.5 eq.] | NT3: Photochemical Smog Potential [kg O3 eq.] | NU3: Water Consumption (NETL) [kg] | NV3: Acidification Potential [kg SO2 eq.] | NW3: Eutrophication Potential [kg N eq.] | NX3: ="Global Warming Potential, "&'User Input'!$C$58&" IPCC [kg CO2 eq.]" -> Global Warming Potential, AR6 100-yr IPCC [kg CO2 eq.] | NY3: Ozone Depletion Potential [kg CFC 11 eq.] | NZ3: Particulate Matter Formation Potential [kg PM2.5 eq.] | OA3: Photochemical Smog Potential [kg O3 eq.] | OB3: Water Consumption (NETL) [kg] | OC3: Acidification Potential [kg SO2 eq.] | OD3: Eutrophication Potential [kg N eq.] | OE3: ="Global Warming Potential, "&'User Input'!$C$58&" IPCC [kg CO2 eq.]" -> Global Warming Potential, AR6 100-yr IPCC [kg CO2 eq.] | OF3: Ozone Depletion Potential [kg CFC 11 eq.] | OG3: Particulate Matter Formation Potential [kg PM2.5 eq.] | OH3: Photochemical Smog Potential [kg O3 eq.] | OI3: Water Consumption (NETL) [kg] | OJ3: Acidification Potential [kg SO2 eq.] | OK3: Eutrophication Potential [kg N eq.] | OL3: ="Global Warming Potential, "&'User Input'!$C$58&" IPCC [kg CO2 eq.]" -> Global Warming Potential, AR6 100-yr IPCC [kg CO2 eq.] | OM3: Ozone Depletion Potential [kg CFC 11 eq.] | ON3: Particulate Matter Formation Potential [kg PM2.5 eq.] | OO3: Photochemical Smog Potential [kg O3 eq.] | OP3: Water Consumption (NETL) [kg] | OQ3: Acidification Potential [kg SO2 eq.] | OR3: Eutrophication Potential [kg N eq.] | OS3: ="Global Warming Potential, "&'User Input'!$C$58&" IPCC [kg CO2 eq.]" -> Global Warming Potential, AR6 100-yr IPCC [kg CO2 eq.] | OT3: Ozone Depletion Potential [kg CFC 11 eq.] | OU3: Particulate Matter Formation Potential [kg PM2.5 eq.] | OV3: Photochemical Smog Potential [kg O3 eq.] | OW3: Water Consumption (NETL) [kg] | OX3: Acidification Potential [kg SO2 eq.] | OY3: Eutrophication Potential [kg N eq.] | OZ3: ="Global Warming Potential, "&'User Input'!$C$58&" IPCC [kg CO2 eq.]" -> Global Warming Potential, AR6 100-yr IPCC [kg CO2 eq.] | PA3: Ozone Depletion Potential [kg CFC 11 eq.] | PB3: Particulate Matter Formation Potential [kg PM2.5 eq.] | PC3: Photochemical Smog Potential [kg O3 eq.] | PD3: Water Consumption (NETL) [kg] | PE3: Acidification Potential [kg SO2 eq.] | PF3: Eutrophication Potential [kg N eq.] | PG3: ="Global Warming Potential, "&'User Input'!$C$58&" IPCC [kg CO2 eq.]" -> Global Warming Potential, AR6 100-yr IPCC [kg CO2 eq.] | PH3: Ozone Depletion Potential [kg CFC 11 eq.] | PI3: Particulate Matter Formation Potential [kg PM2.5 eq.] | PJ3: Photochemical Smog Potential [kg O3 eq.] | PK3: Water Consumption (NETL) [kg]
B4: Coal Mine Methane Surface | C4: ='Surface Coal Mine Methane'!$I$36 -> 0.0018912847 | CF4: =SUMPRODUCT($C4:$CD4, 'TRACI IF'!$C$3:$CD$3) -> 0 | CG4: =SUMPRODUCT($C4:$CD4, 'TRACI IF'!$C$4:$CD$4) -> 0 | CH4: =SUMPRODUCT($C4:$CD4, 'TRACI IF'!$C$5:$CD$5) -> 0.05636028406 | CI4: =SUMPRODUCT($C4:$CD4, 'TRACI IF'!$C$7:$CD$7) -> 0 | CJ4: =SUMPRODUCT($C4:$CD4, 'TRACI IF'!$C$6:$CD$6) -> 0 | CK4: =SUMPRODUCT($C4:$CD4, 'TRACI IF'!$C$8:$CD$8) -> 2.723449968e-05 | CL4: =SUMPRODUCT($C4:$CD4, 'TRACI IF'!$C$9:$CD$9) -> 0 | GI4: ='Surface Coal Mine Methane'!I35 -> 1 | KD4: =KD10*EV10+KD11*EV11 -> 1 | KE4: kg | KF4: methane coal | KI4: Coal Mine Methane Surface | KJ4: =INDEX(Mapping!$A$2:$A$98,MATCH(B4,Mapping!$C$2:$C$98,0)) -> Coal Mine Methane Surface | KS4: =C4*$KD4 -> 0.0018912847 | KT4: =D4*$KD4 -> 0 | KU4: =E4*$KD4 -> 0 | KV4: =F4*$KD4 -> 0 | KW4: =G4*$KD4 -> 0 | KX4: =H4*$KD4 -> 0 | KY4: =I4*$KD4 -> 0 | KZ4: =J4*$KD4 -> 0 | LA4: =K4*$KD4 -> 0 | LB4: =L4*$KD4 -> 0 | LC4: =M4*$KD4 -> 0 | LD4: =N4*$KD4 -> 0 | LE4: =O4*$KD4 -> 0 | LF4: =P4*$KD4 -> 0 | LG4: =Q4*$KD4 -> 0 | LH4: =R4*$KD4 -> 0 | LI4: =S4*$KD4 -> 0 | LJ4: =T4*$KD4 -> 0 | LK4: =AP4*$KD4 -> 0 | LL4: =AQ4*$KD4 -> 0 | LM4: =AR4*$KD4 -> 0 | LN4: =AS4*$KD4 -> 0 | LO4: =AT4*$KD4 -> 0 | LP4: =AU4*$KD4 -> 0 | LQ4: =AV4*$KD4 -> 0 | LR4: =AW4*$KD4 -> 0 | LS4: =AX4*$KD4 -> 0 | LT4: =AY4*$KD4 -> 0 | LU4: =AZ4*$KD4 -> 0 | LV4: =BA4*$KD4 -> 0 | LW4: =BB4*$KD4 -> 0 | LX4: =BC4*$KD4 -> 0 | LY4: =BD4*$KD4 -> 0 | LZ4: =BE4*$KD4 -> 0 | MA4: =BF4*$KD4 -> 0 | MB4: =BG4*$KD4 -> 0 | MC4: =BH4*$KD4 -> 0 | MD4: =BI4*$KD4 -> 0 | ME4: =BJ4*$KD4 -> 0 | MF4: =BK4*$KD4 -> 0 | MG4: =BL4*$KD4 -> 0 | MH4: =BM4*$KD4 -> 0 | MI4: =BN4*$KD4 -> 0 | MJ4: =BO4*$KD4 -> 0 | MK4: =BP4*$KD4 -> 0 | ML4: =BQ4*$KD4 -> 0 | MM4: =BR4*$KD4 -> 0 | MN4: =BS4*$KD4 -> 0 | MO4: =BT4*$KD4 -> 0 | MP4: =BU4*$KD4 -> 0 | MQ4: =BV4*$KD4 -> 0 | MR4: =BW4*$KD4 -> 0 | MS4: =BX4*$KD4 -> 0 | MT4: =BY4*$KD4 -> 0 | MU4: =BZ4*$KD4 -> 0 | MV4: =CA4*$KD4 -> 0 | MW4: =CB4*$KD4 -> 0 | MX4: =CC4*$KD4 -> 0 | MY4: =CD4*$KD4 -> 0 | MZ4: =CF4*$KD4+DistOutput() -> 0 | NA4: =CG4*$KD4+DistOutput() -> 0 | NB4: =CH4*$KD4+DistOutput() -> 0.05636028406 | NC4: =CI4*$KD4+DistOutput() -> 0 | ND4: =CJ4*$KD4+DistOutput() -> 0 | NE4: =CK4*$KD4+DistOutput() -> 2.723449968e-05 | NF4: =CL4*$KD4+DistOutput() -> 0 | NH4: =DistAvg($MZ4) -> 0 | NI4: =DistAvg($NA4) -> 0 | NJ4: =DistAvg($NB4) -> 0 | NK4: =DistAvg($NC4) -> 0 | NL4: =DistAvg($ND4) -> 0 | NM4: =DistAvg($NE4) -> 0 | NN4: =DistAvg($NF4) -> 0 | NO4: =DistMin(MZ4) -> 0 | NP4: =DistMin(NA4) -> 0 | NQ4: =DistMin($NB4) -> 0 | NR4: =DistMin(NC4) -> 0 | NS4: =DistMin(ND4) -> 0 | NT4: =DistMin(NE4) -> 0 | NU4: =DistMin(NF4) -> 0 | NV4: =DistMax(MZ4) -> 0 | NW4: =DistMax(NA4) -> 0 | NX4: =DistMax(NB4) -> 0 | NY4: =DistMax(NC4) -> 0 | NZ4: =DistMax(ND4) -> 0 | OA4: =DistMax(NE4) -> 0 | OB4: =DistMax(NF4) -> 0 | OC4: =DistPercentileInc(MZ4,OC$2) -> 0 | OD4: =DistPercentileInc(NA4,OD$2) -> 0 | OE4: =DistPercentileInc(NB4,OE$2) -> 0 | OF4: =DistPercentileInc(NC4,OF$2) -> 0 | OG4: =DistPercentileInc(ND4,OG$2) -> 0 | OH4: =DistPercentileInc(NE4,OH$2) -> 0 | OI4: =DistPercentileInc(NF4,OI$2) -> 0 | OJ4: =DistPercentileInc(MZ4,OJ$2) -> 0 | OK4: =DistPercentileInc(NA4,OK$2) -> 0 | OL4: =DistPercentileInc(NB4,OL$2) -> 0 | OM4: =DistPercentileInc(NC4,OM$2) -> 0 | ON4: =DistPercentileInc(ND4,ON$2) -> 0 | OO4: =DistPercentileInc(NE4,OO$2) -> 0 | OP4: =DistPercentileInc(NF4,OP$2) -> 0 | OQ4: =DistPercentileInc(MZ4,OQ$2) -> 0 | OR4: =DistPercentileInc(NA4,OR$2) -> 0 | OS4: =DistPercentileInc(NB4,OS$2) -> 0 | OT4: =DistPercentileInc(NC4,OT$2) -> 0 | OU4: =DistPercentileInc(ND4,OU$2) -> 0 | OV4: =DistPercentileInc(NE4,OV$2) -> 0 | OW4: =DistPercentileInc(NF4,OW$2) -> 0 | OX4: =DistPercentileInc(MZ4,OX$2) -> 0 | OY4: =DistPercentileInc(NA4,OY$2) -> 0 | OZ4: =DistPercentileInc(NB4,OZ$2) -> 0 | PA4: =DistPercentileInc(NC4,PA$2) -> 0 | PB4: =DistPercentileInc(ND4,PB$2) -> 0 | PC4: =DistPercentileInc(NE4,PC$2) -> 0 | PD4: =DistPercentileInc(NF4,PD$2) -> 0 | PE4: =DistPercentileInc(MZ4,PE$2) -> 0 | PF4: =DistPercentileInc(NA4,PF$2) -> 0 | PG4: =DistPercentileInc(NB4,PG$2) -> 0 | PH4: =DistPercentileInc(NC4,PH$2) -> 0 | PI4: =DistPercentileInc(ND4,PI$2) -> 0 | PJ4: =DistPercentileInc(NE4,PJ$2) -> 0 | PK4: =DistPercentileInc(NF4,PK$2) -> 0
B5: Coal Mine Methane Underground | C5: ='Undg Coal Mine Methane'!$I$39 -> -4.414334005 | J5: ='Undg Coal Mine Methane'!I38 -> 0.0009438296706 | CF5: =SUMPRODUCT($C5:$CD5, 'TRACI IF'!$C$3:$CD$3) -> 0 | CG5: =SUMPRODUCT($C5:$CD5, 'TRACI IF'!$C$4:$CD$4) -> 0 | CH5: =SUMPRODUCT($C5:$CD5, 'TRACI IF'!$C$5:$CD$5) -> -131.5462095 | CI5: =SUMPRODUCT($C5:$CD5, 'TRACI IF'!$C$7:$CD$7) -> 0 | CJ5: =SUMPRODUCT($C5:$CD5, 'TRACI IF'!$C$6:$CD$6) -> 0 | CK5: =SUMPRODUCT($C5:$CD5, 'TRACI IF'!$C$8:$CD$8) -> -0.06356640968 | CL5: =SUMPRODUCT($C5:$CD5, 'TRACI IF'!$C$9:$CD$9) -> 0 | GF5: ='Undg Coal Mine Methane'!$I$40 -> -7.581106325 | GG5: ='Undg Coal Mine Methane'!$I$37 -> 1 | KD5: =KD10*EU10+KD11*EU11 -> 0 | KE5: kg | KF5: methane coal | KI5: Coal Mine Methane Underground | KJ5: =INDEX(Mapping!$A$2:$A$98,MATCH(B5,Mapping!$C$2:$C$98,0)) -> Coal Mine Methane Underground | KS5: 0 | KT5: 0 | KU5: 0 | KV5: 0 | KW5: 0 | KX5: 0 | KY5: 0 | KZ5: 0 | LA5: 0 | LB5: 0 | LC5: 0 | LD5: 0 | LE5: 0 | LF5: 0 | LG5: 0 | LH5: 0 | LI5: 0 | LJ5: 0 | LK5: 0 | LL5: 0 | LM5: 0 | LN5: 0 | LO5: 0 | LP5: 0 | LQ5: 0 | LR5: 0 | LS5: 0 | LT5: 0 | LU5: 0 | LV5: 0 | LW5: 0 | LX5: 0 | LY5: 0 | LZ5: 0 | MA5: 0 | MB5: 0 | MC5: 0 | MD5: 0 | ME5: 0 | MF5: 0 | MG5: 0 | MH5: 0 | MI5: 0 | MJ5: 0 | MK5: 0 | ML5: 0 | MM5: 0 | MN5: 0 | MO5: 0 | MP5: 0 | MQ5: 0 | MR5: 0 | MS5: 0 | MT5: 0 | MU5: 0 | MV5: 0 | MW5: 0 | MX5: 0 | MY5: 0 | MZ5: =CF5*$KD5+DistOutput() -> 0 | NA5: =CG5*$KD5+DistOutput() -> 0 | NB5: =CH5*$KD5+DistOutput() -> 0 | NC5: =CI5*$KD5+DistOutput() -> 0 | ND5: =CJ5*$KD5+DistOutput() -> 0 | NE5: =CK5*$KD5+DistOutput() -> 0 | NF5: =CL5*$KD5+DistOutput() -> 0 | NH5: =DistAvg($MZ5) -> 0 | NI5: =DistAvg($NA5) -> 0 | NJ5: =DistAvg($NB5) -> 0 | NK5: =DistAvg($NC5) -> 0 | NL5: =DistAvg($ND5) -> 0 | NM5: =DistAvg($NE5) -> 0 | NN5: =DistAvg($NF5) -> 0 | NO5: =DistMin(MZ5) -> 0 | NP5: =DistMin(NA5) -> 0 | NQ5: =DistMin(NB5) -> 0 | NR5: =DistMin(NC5) -> 0 | NS5: =DistMin(ND5) -> 0 | NT5: =DistMin(NE5) -> 0 | NU5: =DistMin(NF5) -> 0 | NV5: =DistMax(MZ5) -> 0 | NW5: =DistMax(NA5) -> 0 | NX5: =DistMax(NB5) -> 0 | NY5: =DistMax(NC5) -> 0 | NZ5: =DistMax(ND5) -> 0 | OA5: =DistMax(NE5) -> 0 | OB5: =DistMax(NF5) -> 0 | OC5: =DistPercentileInc(MZ5,OC$2) -> 0 | OD5: =DistPercentileInc(NA5,OD$2) -> 0 | OE5: =DistPercentileInc(NB5,OE$2) -> 0 | OF5: =DistPercentileInc(NC5,OF$2) -> 0 | OG5: =DistPercentileInc(ND5,OG$2) -> 0 | OH5: =DistPercentileInc(NE5,OH$2) -> 0 | OI5: =DistPercentileInc(NF5,OI$2) -> 0 | OJ5: =DistPercentileInc(MZ5,OJ$2) -> 0 | OK5: =DistPercentileInc(NA5,OK$2) -> 0 | OL5: =DistPercentileInc(NB5,OL$2) -> 0 | OM5: =DistPercentileInc(NC5,OM$2) -> 0 | ON5: =DistPercentileInc(ND5,ON$2) -> 0 | OO5: =DistPercentileInc(NE5,OO$2) -> 0 | OP5: =DistPercentileInc(NF5,OP$2) -> 0 | OQ5: =DistPercentileInc(MZ5,OQ$2) -> 0 | OR5: =DistPercentileInc(NA5,OR$2) -> 0 | OS5: =DistPercentileInc(NB5,OS$2) -> 0 | OT5: =DistPercentileInc(NC5,OT$2) -> 0 | OU5: =DistPercentileInc(ND5,OU$2) -> 0 | OV5: =DistPercentileInc(NE5,OV$2) -> 0 | OW5: =DistPercentileInc(NF5,OW$2) -> 0 | OX5: =DistPercentileInc(MZ5,OX$2) -> 0 | OY5: =DistPercentileInc(NA5,OY$2) -> 0 | OZ5: =DistPercentileInc(NB5,OZ$2) -> 0 | PA5: =DistPercentileInc(NC5,PA$2) -> 0 | PB5: =DistPercentileInc(ND5,PB$2) -> 0 | PC5: =DistPercentileInc(NE5,PC$2) -> 0 | PD5: =DistPercentileInc(NF5,PD$2) -> 0 | PE5: =DistPercentileInc(MZ5,PE$2) -> 0 | PF5: =DistPercentileInc(NA5,PF$2) -> 0 | PG5: =DistPercentileInc(NB5,PG$2) -> 0 | PH5: =DistPercentileInc(NC5,PH$2) -> 0 | PI5: =DistPercentileInc(ND5,PI$2) -> 0 | PJ5: =DistPercentileInc(NE5,PJ$2) -> 0 | PK5: =DistPercentileInc(NF5,PK$2) -> 0
B6: Extraction Underground | D6: ='Extraction Underground'!I50 -> 2.919508957e-11 | E6: ='Extraction Underground'!I51 -> 1.11547879e-11 | F6: ='Extraction Underground'!I52 -> 3.086299767e-05 | CF6: =SUMPRODUCT($C6:$CD6, 'TRACI IF'!$C$3:$CD$3) -> 0 | CG6: =SUMPRODUCT($C6:$CD6, 'TRACI IF'!$C$4:$CD$4) -> 0 | CH6: =SUMPRODUCT($C6:$CD6, 'TRACI IF'!$C$5:$CD$5) -> 0 | CI6: =SUMPRODUCT($C6:$CD6, 'TRACI IF'!$C$7:$CD$7) -> 0 | CJ6: =SUMPRODUCT($C6:$CD6, 'TRACI IF'!$C$6:$CD$6) -> 4.034987748e-11 | CK6: =SUMPRODUCT($C6:$CD6, 'TRACI IF'!$C$8:$CD$8) -> 0.0001111067916 | CL6: =SUMPRODUCT($C6:$CD6, 'TRACI IF'!$C$9:$CD$9) -> 0 | EC6: ='Extraction Underground'!$I$35 -> 0.01824262417 | EK6: =SUM('Extraction Underground'!$I$36:$I$37) -> 0.001555555556 | EW6: ='Extraction Underground'!I43 -> 1 | EY6: ='Extraction Underground'!I40 -> 1 | EZ6: ='Extraction Underground'!I41 -> 1 | FB6: ='Extraction Underground'!I42 -> 1 | FV6: ='Extraction Underground'!I38 -> 0.0004337619399 | GK6: ='Extraction Underground'!$I$49 -> 1 | KD6: =KD36*FE36 -> 0 | KE6: kg | KF6: extracted coal | KI6: Extraction Underground | KJ6: =INDEX(Mapping!$A$2:$A$98,MATCH(B6,Mapping!$C$2:$C$98,0)) -> Extraction Underground | KS6: 0 | KT6: 0 | KU6: 0 | KV6: 0 | KW6: 0 | KX6: 0 | KY6: 0 | KZ6: 0 | LA6: 0 | LB6: 0 | LC6: 0 | LD6: 0 | LE6: 0 | LF6: 0 | LG6: 0 | LH6: 0 | LI6: 0 | LJ6: 0 | LK6: 0 | LL6: 0 | LM6: 0 | LN6: 0 | LO6: 0 | LP6: 0 | LQ6: 0 | LR6: 0 | LS6: 0 | LT6: 0 | LU6: 0 | LV6: 0 | LW6: 0 | LX6: 0 | LY6: 0 | LZ6: 0 | MA6: 0 | MB6: 0 | MC6: 0 | MD6: 0 | ME6: 0 | MF6: 0 | MG6: 0 | MH6: 0 | MI6: 0 | MJ6: 0 | MK6: 0 | ML6: 0 | MM6: 0 | MN6: 0 | MO6: 0 | MP6: 0 | MQ6: 0 | MR6: 0 | MS6: 0 | MT6: 0 | MU6: 0 | MV6: 0 | MW6: 0 | MX6: 0 | MY6: 0 | MZ6: =CF6*$KD6+DistOutput() -> 0 | NA6: =CG6*$KD6+DistOutput() -> 0 | NB6: =CH6*$KD6+DistOutput() -> 0 | NC6: =CI6*$KD6+DistOutput() -> 0 | ND6: =CJ6*$KD6+DistOutput() -> 0 | NE6: =CK6*$KD6+DistOutput() -> 0 | NF6: =CL6*$KD6+DistOutput() -> 0 | NH6: =DistAvg($MZ6) -> 0 | NI6: =DistAvg($NA6) -> 0 | NJ6: =DistAvg($NB6) -> 0 | NK6: =DistAvg($NC6) -> 0 | NL6: =DistAvg($ND6) -> 0 | NM6: =DistAvg($NE6) -> 0 | NN6: =DistAvg($NF6) -> 0 | NO6: =DistMin(MZ6) -> 0 | NP6: =DistMin(NA6) -> 0 | NQ6: =DistMin(NB6) -> 0 | NR6: =DistMin(NC6) -> 0 | NS6: =DistMin(ND6) -> 0 | NT6: =DistMin(NE6) -> 0 | NU6: =DistMin(NF6) -> 0 | NV6: =DistMax(MZ6) -> 0 | NW6: =DistMax(NA6) -> 0 | NX6: =DistMax(NB6) -> 0 | NY6: =DistMax(NC6) -> 0 | NZ6: =DistMax(ND6) -> 0 | OA6: =DistMax(NE6) -> 0 | OB6: =DistMax(NF6) -> 0 | OC6: =DistPercentileInc(MZ6,OC$2) -> 0 | OD6: =DistPercentileInc(NA6,OD$2) -> 0 | OE6: =DistPercentileInc(NB6,OE$2) -> 0 | OF6: =DistPercentileInc(NC6,OF$2) -> 0 | OG6: =DistPercentileInc(ND6,OG$2) -> 0 | OH6: =DistPercentileInc(NE6,OH$2) -> 0 | OI6: =DistPercentileInc(NF6,OI$2) -> 0 | OJ6: =DistPercentileInc(MZ6,OJ$2) -> 0 | OK6: =DistPercentileInc(NA6,OK$2) -> 0 | OL6: =DistPercentileInc(NB6,OL$2) -> 0 | OM6: =DistPercentileInc(NC6,OM$2) -> 0 | ON6: =DistPercentileInc(ND6,ON$2) -> 0 | OO6: =DistPercentileInc(NE6,OO$2) -> 0 | OP6: =DistPercentileInc(NF6,OP$2) -> 0 | OQ6: =DistPercentileInc(MZ6,OQ$2) -> 0 | OR6: =DistPercentileInc(NA6,OR$2) -> 0 | OS6: =DistPercentileInc(NB6,OS$2) -> 0 | OT6: =DistPercentileInc(NC6,OT$2) -> 0 | OU6: =DistPercentileInc(ND6,OU$2) -> 0 | OV6: =DistPercentileInc(NE6,OV$2) -> 0 | OW6: =DistPercentileInc(NF6,OW$2) -> 0 | OX6: =DistPercentileInc(MZ6,OX$2) -> 0 | OY6: =DistPercentileInc(NA6,OY$2) -> 0 | OZ6: =DistPercentileInc(NB6,OZ$2) -> 0 | PA6: =DistPercentileInc(NC6,PA$2) -> 0 | PB6: =DistPercentileInc(ND6,PB$2) -> 0 | PC6: =DistPercentileInc(NE6,PC$2) -> 0 | PD6: =DistPercentileInc(NF6,PD$2) -> 0 | PE6: =DistPercentileInc(MZ6,PE$2) -> 0 | PF6: =DistPercentileInc(NA6,PF$2) -> 0 | PG6: =DistPercentileInc(NB6,PG$2) -> 0 | PH6: =DistPercentileInc(NC6,PH$2) -> 0 | PI6: =DistPercentileInc(ND6,PI$2) -> 0 | PJ6: =DistPercentileInc(NE6,PJ$2) -> 0 | PK6: =DistPercentileInc(NF6,PK$2) -> 0
B7: Extraction Surface Mine | D7: ='Extraction Surface Mine'!I75 -> 7.258253764e-05 | E7: ='Extraction Surface Mine'!I74 -> 7.591570182e-06 | F7: ='Extraction Surface Mine'!I76 -> 1.796436738e-07 | I7: ='Extraction Surface Mine'!I77 -> 9.580111111e-06 | CF7: =SUMPRODUCT($C7:$CD7, 'TRACI IF'!$C$3:$CD$3) -> 6.706077778e-06 | CG7: =SUMPRODUCT($C7:$CD7, 'TRACI IF'!$C$4:$CD$4) -> 4.243989222e-07 | CH7: =SUMPRODUCT($C7:$CD7, 'TRACI IF'!$C$5:$CD$5) -> 0 | CI7: =SUMPRODUCT($C7:$CD7, 'TRACI IF'!$C$7:$CD$7) -> 0 | CJ7: =SUMPRODUCT($C7:$CD7, 'TRACI IF'!$C$6:$CD$6) -> 8.024327622e-05 | CK7: =SUMPRODUCT($C7:$CD7, 'TRACI IF'!$C$8:$CD$8) -> 0.0002382334728 | CL7: =SUMPRODUCT($C7:$CD7, 'TRACI IF'!$C$9:$CD$9) -> 0 | ED7: ='Extraction Surface Mine'!$I$60 -> 0.009362108236 | EL7: =SUM('Extraction Surface Mine'!$I$58:$I$59) -> 0.001306666667 | EX7: ='Extraction Surface Mine'!I67 -> 1 | FR7: ='Extraction Surface Mine'!I65 -> 1 | FS7: ='Extraction Surface Mine'!I66 -> 1 | FW7: ='Extraction Surface Mine'!I63 -> 0.0009420909526 | GM7: ='Extraction Surface Mine'!$I$73 -> 1 | KD7: =KD37*FF37 -> 1 | KE7: kg | KF7: extracted coal | KI7: Extraction Surface Mine | KJ7: =INDEX(Mapping!$A$2:$A$98,MATCH(B7,Mapping!$C$2:$C$98,0)) -> Extraction Surface Mine | KS7: 0 | KT7: 7.258253764e-05 | KU7: 7.591570182e-06 | KV7: 1.796436738e-07 | KW7: 0 | KX7: 0 | KY7: 9.580111111e-06 | KZ7: 0 | LA7: 0 | LB7: 0 | LC7: 0 | LD7: 0 | LE7: 0 | LF7: 0 | LG7: 0 | LH7: 0 | LI7: 0 | LJ7: 0 | LK7: 0 | LL7: 0 | LM7: 0 | LN7: 0 | LO7: 0 | LP7: 0 | LQ7: 0 | LR7: 0 | LS7: 0 | LT7: 0 | LU7: 0 | LV7: 0 | LW7: 0 | LX7: 0 | LY7: 0 | LZ7: 0 | MA7: 0 | MB7: 0 | MC7: 0 | MD7: 0 | ME7: 0 | MF7: 0 | MG7: 0 | MH7: 0 | MI7: 0 | MJ7: 0 | MK7: 0 | ML7: 0 | MM7: 0 | MN7: 0 | MO7: 0 | MP7: 0 | MQ7: 0 | MR7: 0 | MS7: 0 | MT7: 0 | MU7: 0 | MV7: 0 | MW7: 0 | MX7: 0 | MY7: 0 | MZ7: =CF7*$KD7+DistOutput() -> 6.706077778e-06 | NA7: =CG7*$KD7+DistOutput() -> 4.243989222e-07 | NB7: =CH7*$KD7+DistOutput() -> 0 | NC7: =CI7*$KD7+DistOutput() -> 0 | ND7: =CJ7*$KD7+DistOutput() -> 8.024327622e-05 | NE7: =CK7*$KD7+DistOutput() -> 0.0002382334728 | NF7: =CL7*$KD7+DistOutput() -> 0 | NH7: =DistAvg($MZ7) -> 0 | NI7: =DistAvg($NA7) -> 0 | NJ7: =DistAvg($NB7) -> 0 | NK7: =DistAvg($NC7) -> 0 | NL7: =DistAvg($ND7) -> 0 | NM7: =DistAvg($NE7) -> 0 | NN7: =DistAvg($NF7) -> 0 | NO7: =DistMin(MZ7) -> 0 | NP7: =DistMin(NA7) -> 0 | NQ7: =DistMin(NB7) -> 0 | NR7: =DistMin(NC7) -> 0 | NS7: =DistMin(ND7) -> 0 | NT7: =DistMin(NE7) -> 0 | NU7: =DistMin(NF7) -> 0 | NV7: =DistMax(MZ7) -> 0 | NW7: =DistMax(NA7) -> 0 | NX7: =DistMax(NB7) -> 0 | NY7: =DistMax(NC7) -> 0 | NZ7: =DistMax(ND7) -> 0 | OA7: =DistMax(NE7) -> 0 | OB7: =DistMax(NF7) -> 0 | OC7: =DistPercentileInc(MZ7,OC$2) -> 0 | OD7: =DistPercentileInc(NA7,OD$2) -> 0 | OE7: =DistPercentileInc(NB7,OE$2) -> 0 | OF7: =DistPercentileInc(NC7,OF$2) -> 0 | OG7: =DistPercentileInc(ND7,OG$2) -> 0 | OH7: =DistPercentileInc(NE7,OH$2) -> 0 | OI7: =DistPercentileInc(NF7,OI$2) -> 0 | OJ7: =DistPercentileInc(MZ7,OJ$2) -> 0 | OK7: =DistPercentileInc(NA7,OK$2) -> 0 | OL7: =DistPercentileInc(NB7,OL$2) -> 0 | OM7: =DistPercentileInc(NC7,OM$2) -> 0 | ON7: =DistPercentileInc(ND7,ON$2) -> 0 | OO7: =DistPercentileInc(NE7,OO$2) -> 0 | OP7: =DistPercentileInc(NF7,OP$2) -> 0 | OQ7: =DistPercentileInc(MZ7,OQ$2) -> 0 | OR7: =DistPercentileInc(NA7,OR$2) -> 0 | OS7: =DistPercentileInc(NB7,OS$2) -> 0 | OT7: =DistPercentileInc(NC7,OT$2) -> 0 | OU7: =DistPercentileInc(ND7,OU$2) -> 0 | OV7: =DistPercentileInc(NE7,OV$2) -> 0 | OW7: =DistPercentileInc(NF7,OW$2) -> 0 | OX7: =DistPercentileInc(MZ7,OX$2) -> 0 | OY7: =DistPercentileInc(NA7,OY$2) -> 0 | OZ7: =DistPercentileInc(NB7,OZ$2) -> 0 | PA7: =DistPercentileInc(NC7,PA$2) -> 0 | PB7: =DistPercentileInc(ND7,PB$2) -> 0 | PC7: =DistPercentileInc(NE7,PC$2) -> 0 | PD7: =DistPercentileInc(NF7,PD$2) -> 0 | PE7: =DistPercentileInc(MZ7,PE$2) -> 0 | PF7: =DistPercentileInc(NA7,PF$2) -> 0 | PG7: =DistPercentileInc(NB7,PG$2) -> 0 | PH7: =DistPercentileInc(NC7,PH$2) -> 0 | PI7: =DistPercentileInc(ND7,PI$2) -> 0 | PJ7: =DistPercentileInc(NE7,PJ$2) -> 0 | PK7: =DistPercentileInc(NF7,PK$2) -> 0
B8: Underground Coal Mine Water | AP8: ='Underground Coal Mine Water'!I50 -> 2.508650338e-06 | AQ8: ='Underground Coal Mine Water'!I51 -> 1.879091143e-07 | AR8: ='Underground Coal Mine Water'!I52 -> 0 | AS8: ='Underground Coal Mine Water'!I53 -> 0 | AT8: ='Underground Coal Mine Water'!I54 -> 0 | AU8: ='Underground Coal Mine Water'!I55 -> 0.0001549049051 | AV8: ='Underground Coal Mine Water'!I56 -> 0 | AW8: ='Underground Coal Mine Water'!I57 -> 0 | CE8: =SUM('Underground Coal Mine Water'!I40,'Underground Coal Mine Water'!I42) -> 2.250481788 | CF8: =SUMPRODUCT($C8:$CD8, 'TRACI IF'!$C$3:$CD$3) -> 0 | CG8: =SUMPRODUCT($C8:$CD8, 'TRACI IF'!$C$4:$CD$4) -> 0 | CH8: =SUMPRODUCT($C8:$CD8, 'TRACI IF'!$C$5:$CD$5) -> 0 | CI8: =SUMPRODUCT($C8:$CD8, 'TRACI IF'!$C$7:$CD$7) -> 0 | CJ8: =SUMPRODUCT($C8:$CD8, 'TRACI IF'!$C$6:$CD$6) -> 0 | CK8: =SUMPRODUCT($C8:$CD8, 'TRACI IF'!$C$8:$CD$8) -> 0 | CL8: =SUMPRODUCT($C8:$CD8, 'TRACI IF'!$C$9:$CD$9)+CE8 -> 2.250481788 | GL8: ='Underground Coal Mine Water'!$I$48 -> 1 | KD8: =KD6*EW6 -> 0 | KE8: kg | KF8: water coal | KI8: Underground Coal Mine Water | KJ8: =INDEX(Mapping!$A$2:$A$98,MATCH(B8,Mapping!$C$2:$C$98,0)) -> Underground Coal Mine Water | KS8: 0 | KT8: 0 | KU8: 0 | KV8: 0 | KW8: 0 | KX8: 0 | KY8: 0 | KZ8: 0 | LA8: 0 | LB8: 0 | LC8: 0 | LD8: 0 | LE8: 0 | LF8: 0 | LG8: 0 | LH8: 0 | LI8: 0 | LJ8: 0 | LK8: 0 | LL8: 0 | LM8: 0 | LN8: 0 | LO8: 0 | LP8: 0 | LQ8: 0 | LR8: 0 | LS8: 0 | LT8: 0 | LU8: 0 | LV8: 0 | LW8: 0 | LX8: 0 | LY8: 0 | LZ8: 0 | MA8: 0 | MB8: 0 | MC8: 0 | MD8: 0 | ME8: 0 | MF8: 0 | MG8: 0 | MH8: 0 | MI8: 0 | MJ8: 0 | MK8: 0 | ML8: 0 | MM8: 0 | MN8: 0 | MO8: 0 | MP8: 0 | MQ8: 0 | MR8: 0 | MS8: 0 | MT8: 0 | MU8: 0 | MV8: 0 | MW8: 0 | MX8: 0 | MY8: 0 | MZ8: =CF8*$KD8+DistOutput() -> 0 | NA8: =CG8*$KD8+DistOutput() -> 0 | NB8: =CH8*$KD8+DistOutput() -> 0 | NC8: =CI8*$KD8+DistOutput() -> 0 | ND8: =CJ8*$KD8+DistOutput() -> 0 | NE8: =CK8*$KD8+DistOutput() -> 0 | NF8: =CL8*$KD8+DistOutput() -> 0 | NH8: =DistAvg($MZ8) -> 0 | NI8: =DistAvg($NA8) -> 0 | NJ8: =DistAvg($NB8) -> 0 | NK8: =DistAvg($NC8) -> 0 | NL8: =DistAvg($ND8) -> 0 | NM8: =DistAvg($NE8) -> 0 | NN8: =DistAvg($NF8) -> 0 | NO8: =DistMin(MZ8) -> 0 | NP8: =DistMin(NA8) -> 0 | NQ8: =DistMin(NB8) -> 0 | NR8: =DistMin(NC8) -> 0 | NS8: =DistMin(ND8) -> 0 | NT8: =DistMin(NE8) -> 0 | NU8: =DistMin(NF8) -> 0 | NV8: =DistMax(MZ8) -> 0 | NW8: =DistMax(NA8) -> 0 | NX8: =DistMax(NB8) -> 0 | NY8: =DistMax(NC8) -> 0 | NZ8: =DistMax(ND8) -> 0 | OA8: =DistMax(NE8) -> 0 | OB8: =DistMax(NF8) -> 0 | OC8: =DistPercentileInc(MZ8,OC$2) -> 0 | OD8: =DistPercentileInc(NA8,OD$2) -> 0 | OE8: =DistPercentileInc(NB8,OE$2) -> 0 | OF8: =DistPercentileInc(NC8,OF$2) -> 0 | OG8: =DistPercentileInc(ND8,OG$2) -> 0 | OH8: =DistPercentileInc(NE8,OH$2) -> 0 | OI8: =DistPercentileInc(NF8,OI$2) -> 0 | OJ8: =DistPercentileInc(MZ8,OJ$2) -> 0 | OK8: =DistPercentileInc(NA8,OK$2) -> 0 | OL8: =DistPercentileInc(NB8,OL$2) -> 0 | OM8: =DistPercentileInc(NC8,OM$2) -> 0 | ON8: =DistPercentileInc(ND8,ON$2) -> 0 | OO8: =DistPercentileInc(NE8,OO$2) -> 0 | OP8: =DistPercentileInc(NF8,OP$2) -> 0 | OQ8: =DistPercentileInc(MZ8,OQ$2) -> 0 | OR8: =DistPercentileInc(NA8,OR$2) -> 0 | OS8: =DistPercentileInc(NB8,OS$2) -> 0 | OT8: =DistPercentileInc(NC8,OT$2) -> 0 | OU8: =DistPercentileInc(ND8,OU$2) -> 0 | OV8: =DistPercentileInc(NE8,OV$2) -> 0 | OW8: =DistPercentileInc(NF8,OW$2) -> 0 | OX8: =DistPercentileInc(MZ8,OX$2) -> 0 | OY8: =DistPercentileInc(NA8,OY$2) -> 0 | OZ8: =DistPercentileInc(NB8,OZ$2) -> 0 | PA8: =DistPercentileInc(NC8,PA$2) -> 0 | PB8: =DistPercentileInc(ND8,PB$2) -> 0 | PC8: =DistPercentileInc(NE8,PC$2) -> 0 | PD8: =DistPercentileInc(NF8,PD$2) -> 0 | PE8: =DistPercentileInc(MZ8,PE$2) -> 0 | PF8: =DistPercentileInc(NA8,PF$2) -> 0 | PG8: =DistPercentileInc(NB8,PG$2) -> 0 | PH8: =DistPercentileInc(NC8,PH$2) -> 0 | PI8: =DistPercentileInc(ND8,PI$2) -> 0 | PJ8: =DistPercentileInc(NE8,PJ$2) -> 0 | PK8: =DistPercentileInc(NF8,PK$2) -> 0
B9: Surface Coal Mine Water | AP9: ='Surface Coal Mine Water'!I65 -> 0.02868883261 | AQ9: ='Surface Coal Mine Water'!I62 -> 0.0009042582725 | AS9: ='Surface Coal Mine Water'!I56 -> 0.02172209131 | AT9: ='Surface Coal Mine Water'!I60 -> 0.00821935658 | AU9: ='Surface Coal Mine Water'!I67 -> 0.9888851958 | AV9: ='Surface Coal Mine Water'!I59 -> 0 | AW9: ='Surface Coal Mine Water'!I68 -> 0 | AX9: ='Surface Coal Mine Water'!I57 -> 0 | AY9: ='Surface Coal Mine Water'!I58 -> 0 | AZ9: ='Surface Coal Mine Water'!I61 -> 0 | BA9: ='Surface Coal Mine Water'!I63 -> 8.104547484e-06 | BB9: ='Surface Coal Mine Water'!I64 -> 0 | BC9: ='Surface Coal Mine Water'!I66 -> 2.199051896 | CE9: =SUM('Surface Coal Mine Water'!I45,'Surface Coal Mine Water'!I47) -> 2.284075588 | CF9: =SUMPRODUCT($C9:$CD9, 'TRACI IF'!$C$3:$CD$3) -> 0 | CG9: =SUMPRODUCT($C9:$CD9, 'TRACI IF'!$C$4:$CD$4) -> 0 | CH9: =SUMPRODUCT($C9:$CD9, 'TRACI IF'!$C$5:$CD$5) -> 0 | CI9: =SUMPRODUCT($C9:$CD9, 'TRACI IF'!$C$7:$CD$7) -> 0 | CJ9: =SUMPRODUCT($C9:$CD9, 'TRACI IF'!$C$6:$CD$6) -> 0 | CK9: =SUMPRODUCT($C9:$CD9, 'TRACI IF'!$C$8:$CD$8) -> 0 | CL9: =SUMPRODUCT($C9:$CD9, 'TRACI IF'!$C$9:$CD$9)+CE9 -> 2.284075588 | GN9: ='Surface Coal Mine Water'!I54 -> 1 | KD9: =KD7*EX7 -> 1 | KE9: kg | KF9: water coal | KI9: Surface Coal Mine Water | KJ9: =INDEX(Mapping!$A$2:$A$98,MATCH(B9,Mapping!$C$2:$C$98,0)) -> Surface Coal Mine Water | KS9: 0 | KT9: 0 | KU9: 0 | KV9: 0 | KW9: 0 | KX9: 0 | KY9: 0 | KZ9: 0 | LA9: 0 | LB9: 0 | LC9: 0 | LD9: 0 | LE9: 0 | LF9: 0 | LG9: 0 | LH9: 0 | LI9: 0 | LJ9: 0 | LK9: 0.02868883261 | LL9: 0.0009042582725 | LM9: 0 | LN9: 0.02172209131 | LO9: 0.00821935658 | LP9: 0.9888851958 | LQ9: 0 | LR9: 0 | LS9: 0 | LT9: 0 | LU9: 0 | LV9: 8.104547484e-06 | LW9: 0 | LX9: 2.199051896 | LY9: 0 | LZ9: 0 | MA9: 0 | MB9: 0 | MC9: 0 | MD9: 0 | ME9: 0 | MF9: 0 | MG9: 0 | MH9: 0 | MI9: 0 | MJ9: 0 | MK9: 0 | ML9: 0 | MM9: 0 | MN9: 0 | MO9: 0 | MP9: 0 | MQ9: 0 | MR9: 0 | MS9: 0 | MT9: 0 | MU9: 0 | MV9: 0 | MW9: 0 | MX9: 0 | MY9: 0 | MZ9: =CF9*$KD9+DistOutput() -> 0 | NA9: =CG9*$KD9+DistOutput() -> 0 | NB9: =CH9*$KD9+DistOutput() -> 0 | NC9: =CI9*$KD9+DistOutput() -> 0 | ND9: =CJ9*$KD9+DistOutput() -> 0 | NE9: =CK9*$KD9+DistOutput() -> 0 | NF9: =CL9*$KD9+DistOutput() -> 2.284075588 | NH9: =DistAvg($MZ9) -> 0 | NI9: =DistAvg($NA9) -> 0 | NJ9: =DistAvg($NB9) -> 0 | NK9: =DistAvg($NC9) -> 0 | NL9: =DistAvg($ND9) -> 0 | NM9: =DistAvg($NE9) -> 0 | NN9: =DistAvg($NF9) -> 0 | NO9: =DistMin(MZ9) -> 0 | NP9: =DistMin(NA9) -> 0 | NQ9: =DistMin(NB9) -> 0 | NR9: =DistMin(NC9) -> 0 | NS9: =DistMin(ND9) -> 0 | NT9: =DistMin(NE9) -> 0 | NU9: =DistMin(NF9) -> 0 | NV9: =DistMax(MZ9) -> 0 | NW9: =DistMax(NA9) -> 0 | NX9: =DistMax(NB9) -> 0 | NY9: =DistMax(NC9) -> 0 | NZ9: =DistMax(ND9) -> 0 | OA9: =DistMax(NE9) -> 0 | OB9: =DistMax(NF9) -> 0 | OC9: =DistPercentileInc(MZ9,OC$2) -> 0 | OD9: =DistPercentileInc(NA9,OD$2) -> 0 | OE9: =DistPercentileInc(NB9,OE$2) -> 0 | OF9: =DistPercentileInc(NC9,OF$2) -> 0 | OG9: =DistPercentileInc(ND9,OG$2) -> 0 | OH9: =DistPercentileInc(NE9,OH$2) -> 0 | OI9: =DistPercentileInc(NF9,OI$2) -> 0 | OJ9: =DistPercentileInc(MZ9,OJ$2) -> 0 | OK9: =DistPercentileInc(NA9,OK$2) -> 0 | OL9: =DistPercentileInc(NB9,OL$2) -> 0 | OM9: =DistPercentileInc(NC9,OM$2) -> 0 | ON9: =DistPercentileInc(ND9,ON$2) -> 0 | OO9: =DistPercentileInc(NE9,OO$2) -> 0 | OP9: =DistPercentileInc(NF9,OP$2) -> 0 | OQ9: =DistPercentileInc(MZ9,OQ$2) -> 0 | OR9: =DistPercentileInc(NA9,OR$2) -> 0 | OS9: =DistPercentileInc(NB9,OS$2) -> 0 | OT9: =DistPercentileInc(NC9,OT$2) -> 0 | OU9: =DistPercentileInc(ND9,OU$2) -> 0 | OV9: =DistPercentileInc(NE9,OV$2) -> 0 | OW9: =DistPercentileInc(NF9,OW$2) -> 0 | OX9: =DistPercentileInc(MZ9,OX$2) -> 0 | OY9: =DistPercentileInc(NA9,OY$2) -> 0 | OZ9: =DistPercentileInc(NB9,OZ$2) -> 0 | PA9: =DistPercentileInc(NC9,PA$2) -> 0 | PB9: =DistPercentileInc(ND9,PB$2) -> 0 | PC9: =DistPercentileInc(NE9,PC$2) -> 0 | PD9: =DistPercentileInc(NF9,PD$2) -> 0 | PE9: =DistPercentileInc(MZ9,PE$2) -> 0 | PF9: =DistPercentileInc(NA9,PF$2) -> 0 | PG9: =DistPercentileInc(NB9,PG$2) -> 0 | PH9: =DistPercentileInc(NC9,PH$2) -> 0 | PI9: =DistPercentileInc(ND9,PI$2) -> 0 | PJ9: =DistPercentileInc(NE9,PJ$2) -> 0 | PK9: =DistPercentileInc(NF9,PK$2) -> 0
B10: Coal Cleaning | D10: ='Coal Cleaning'!I66 -> 0.0001069662506 | E10: ='Coal Cleaning'!I65 -> 0.000369519775 | F10: ='Coal Cleaning'!I67 -> 9.495215311e-06 | G10: ='Coal Cleaning'!I64 -> 0.0006375917854 | H10: ='Coal Cleaning'!I68 -> 7.131100478e-05 | I10: ='Coal Cleaning'!I69 -> 1.550239234e-05 | J10: ='Coal Cleaning'!I70 -> 0.002906698565 | CF10: =SUMPRODUCT($C10:$CD10, 'TRACI IF'!$C$3:$CD$3) -> 8.216267943e-05 | CG10: =SUMPRODUCT($C10:$CD10, 'TRACI IF'!$C$4:$CD$4) -> 6.867559809e-07 | CH10: =SUMPRODUCT($C10:$CD10, 'TRACI IF'!$C$5:$CD$5) -> 0.002906698565 | CI10: =SUMPRODUCT($C10:$CD10, 'TRACI IF'!$C$7:$CD$7) -> 0 | CJ10: =SUMPRODUCT($C10:$CD10, 'TRACI IF'!$C$6:$CD$6) -> 0.0006263259823 | CK10: =SUMPRODUCT($C10:$CD10, 'TRACI IF'!$C$8:$CD$8) -> 0.0004186421053 | CL10: =SUMPRODUCT($C10:$CD10, 'TRACI IF'!$C$9:$CD$9) -> 0 | EE10: ='Coal Cleaning'!$I$51 -> 0.001038590636 | EU10: ='Coal Cleaning'!I55 -> 0 | EV10: ='Coal Cleaning'!I54 -> 1 | FA10: ='Coal Cleaning'!I53 -> 1 | FC10: ='Coal Cleaning'!I52 -> 1.435406699 | GO10: ='Coal Cleaning'!I61 -> 1 | GP10: =SUM('Coal Cleaning'!I62,'Coal Cleaning'!I63) -> 0.4354066986 | KD10: =KD21*FH21 -> 0 | KE10: kg | KF10: coal cleaned | KI10: Coal Cleaning | KJ10: =INDEX(Mapping!$A$2:$A$98,MATCH(B10,Mapping!$C$2:$C$98,0)) -> Coal Cleaning | KS10: 0 | KT10: 0 | KU10: 0 | KV10: 0 | KW10: 0 | KX10: 0 | KY10: 0 | KZ10: 0 | LA10: 0 | LB10: 0 | LC10: 0 | LD10: 0 | LE10: 0 | LF10: 0 | LG10: 0 | LH10: 0 | LI10: 0 | LJ10: 0 | LK10: 0 | LL10: 0 | LM10: 0 | LN10: 0 | LO10: 0 | LP10: 0 | LQ10: 0 | LR10: 0 | LS10: 0 | LT10: 0 | LU10: 0 | LV10: 0 | LW10: 0 | LX10: 0 | LY10: 0 | LZ10: 0 | MA10: 0 | MB10: 0 | MC10: 0 | MD10: 0 | ME10: 0 | MF10: 0 | MG10: 0 | MH10: 0 | MI10: 0 | MJ10: 0 | MK10: 0 | ML10: 0 | MM10: 0 | MN10: 0 | MO10: 0 | MP10: 0 | MQ10: 0 | MR10: 0 | MS10: 0 | MT10: 0 | MU10: 0 | MV10: 0 | MW10: 0 | MX10: 0 | MY10: 0 | MZ10: =CF10*$KD10+DistOutput() -> 0 | NA10: =CG10*$KD10+DistOutput() -> 0 | NB10: =CH10*$KD10+DistOutput() -> 0 | NC10: =CI10*$KD10+DistOutput() -> 0 | ND10: =CJ10*$KD10+DistOutput() -> 0 | NE10: =CK10*$KD10+DistOutput() -> 0 | NF10: =CL10*$KD10+DistOutput() -> 0 | NH10: =DistAvg($MZ10) -> 0 | NI10: =DistAvg($NA10) -> 0 | NJ10: =DistAvg($NB10) -> 0 | NK10: =DistAvg($NC10) -> 0 | NL10: =DistAvg($ND10) -> 0 | NM10: =DistAvg($NE10) -> 0 | NN10: =DistAvg($NF10) -> 0 | NO10: =DistMin(MZ10) -> 0 | NP10: =DistMin(NA10) -> 0 | NQ10: =DistMin(NB10) -> 0 | NR10: =DistMin(NC10) -> 0 | NS10: =DistMin(ND10) -> 0 | NT10: =DistMin(NE10) -> 0 | NU10: =DistMin(NF10) -> 0 | NV10: =DistMax(MZ10) -> 0 | NW10: =DistMax(NA10) -> 0 | NX10: =DistMax(NB10) -> 0 | NY10: =DistMax(NC10) -> 0 | NZ10: =DistMax(ND10) -> 0 | OA10: =DistMax(NE10) -> 0 | OB10: =DistMax(NF10) -> 0 | OC10: =DistPercentileInc(MZ10,OC$2) -> 0 | OD10: =DistPercentileInc(NA10,OD$2) -> 0 | OE10: =DistPercentileInc(NB10,OE$2) -> 0 | OF10: =DistPercentileInc(NC10,OF$2) -> 0 | OG10: =DistPercentileInc(ND10,OG$2) -> 0 | OH10: =DistPercentileInc(NE10,OH$2) -> 0 | OI10: =DistPercentileInc(NF10,OI$2) -> 0 | OJ10: =DistPercentileInc(MZ10,OJ$2) -> 0 | OK10: =DistPercentileInc(NA10,OK$2) -> 0 | OL10: =DistPercentileInc(NB10,OL$2) -> 0 | OM10: =DistPercentileInc(NC10,OM$2) -> 0 | ON10: =DistPercentileInc(ND10,ON$2) -> 0 | OO10: =DistPercentileInc(NE10,OO$2) -> 0 | OP10: =DistPercentileInc(NF10,OP$2) -> 0 | OQ10: =DistPercentileInc(MZ10,OQ$2) -> 0 | OR10: =DistPercentileInc(NA10,OR$2) -> 0 | OS10: =DistPercentileInc(NB10,OS$2) -> 0 | OT10: =DistPercentileInc(NC10,OT$2) -> 0 | OU10: =DistPercentileInc(ND10,OU$2) -> 0 | OV10: =DistPercentileInc(NE10,OV$2) -> 0 | OW10: =DistPercentileInc(NF10,OW$2) -> 0 | OX10: =DistPercentileInc(MZ10,OX$2) -> 0 | OY10: =DistPercentileInc(NA10,OY$2) -> 0 | OZ10: =DistPercentileInc(NB10,OZ$2) -> 0 | PA10: =DistPercentileInc(NC10,PA$2) -> 0 | PB10: =DistPercentileInc(ND10,PB$2) -> 0 | PC10: =DistPercentileInc(NE10,PC$2) -> 0 | PD10: =DistPercentileInc(NF10,PD$2) -> 0 | PE10: =DistPercentileInc(MZ10,PE$2) -> 0 | PF10: =DistPercentileInc(NA10,PF$2) -> 0 | PG10: =DistPercentileInc(NB10,PG$2) -> 0 | PH10: =DistPercentileInc(NC10,PH$2) -> 0 | PI10: =DistPercentileInc(ND10,PI$2) -> 0 | PJ10: =DistPercentileInc(NE10,PJ$2) -> 0 | PK10: =DistPercentileInc(NF10,PK$2) -> 0
B11: Coal not cleaned | CF11: =SUMPRODUCT($C11:$CD11, 'TRACI IF'!$C$3:$CD$3) -> 0 | CG11: =SUMPRODUCT($C11:$CD11, 'TRACI IF'!$C$4:$CD$4) -> 0 | CH11: =SUMPRODUCT($C11:$CD11, 'TRACI IF'!$C$5:$CD$5) -> 0 | CI11: =SUMPRODUCT($C11:$CD11, 'TRACI IF'!$C$7:$CD$7) -> 0 | CJ11: =SUMPRODUCT($C11:$CD11, 'TRACI IF'!$C$6:$CD$6) -> 0 | CK11: =SUMPRODUCT($C11:$CD11, 'TRACI IF'!$C$8:$CD$8) -> 0 | CL11: =SUMPRODUCT($C11:$CD11, 'TRACI IF'!$C$9:$CD$9) -> 0 | EU11: ='Coal Cleaning'!I55 -> 0 | EV11: ='Coal Cleaning'!I54 -> 1 | FC11: 1 | KD11: =KD21*FI21 -> 1 | KE11: kg | KF11: coal not cleaned | KI11: Coal Not Cleaned | KJ11: Coal Not Cleaned | KS11: 0 | KT11: 0 | KU11: 0 | KV11: 0 | KW11: 0 | KX11: 0 | KY11: 0 | KZ11: 0 | LA11: 0 | LB11: 0 | LC11: 0 | LD11: 0 | LE11: 0 | LF11: 0 | LG11: 0 | LH11: 0 | LI11: 0 | LJ11: 0 | LK11: 0 | LL11: 0 | LM11: 0 | LN11: 0 | LO11: 0 | LP11: 0 | LQ11: 0 | LR11: 0 | LS11: 0 | LT11: 0 | LU11: 0 | LV11: 0 | LW11: 0 | LX11: 0 | LY11: 0 | LZ11: 0 | MA11: 0 | MB11: 0 | MC11: 0 | MD11: 0 | ME11: 0 | MF11: 0 | MG11: 0 | MH11: 0 | MI11: 0 | MJ11: 0 | MK11: 0 | ML11: 0 | MM11: 0 | MN11: 0 | MO11: 0 | MP11: 0 | MQ11: 0 | MR11: 0 | MS11: 0 | MT11: 0 | MU11: 0 | MV11: 0 | MW11: 0 | MX11: 0 | MY11: 0 | MZ11: =CF11*$KD11+DistOutput() -> 0 | NA11: =CG11*$KD11+DistOutput() -> 0 | NB11: =CH11*$KD11+DistOutput() -> 0 | NC11: =CI11*$KD11+DistOutput() -> 0 | ND11: =CJ11*$KD11+DistOutput() -> 0 | NE11: =CK11*$KD11+DistOutput() -> 0 | NF11: =CL11*$KD11+DistOutput() -> 0
B12: Ventilation | CF12: =SUMPRODUCT($C12:$CD12, 'TRACI IF'!$C$3:$CD$3) -> 0 | CG12: =SUMPRODUCT($C12:$CD12, 'TRACI IF'!$C$4:$CD$4) -> 0 | CH12: =SUMPRODUCT($C12:$CD12, 'TRACI IF'!$C$5:$CD$5) -> 0 | CI12: =SUMPRODUCT($C12:$CD12, 'TRACI IF'!$C$7:$CD$7) -> 0 | CJ12: =SUMPRODUCT($C12:$CD12, 'TRACI IF'!$C$6:$CD$6) -> 0 | CK12: =SUMPRODUCT($C12:$CD12, 'TRACI IF'!$C$8:$CD$8) -> 0 | CL12: =SUMPRODUCT($C12:$CD12, 'TRACI IF'!$C$9:$CD$9) -> 0 | EF12: =Ventilation!$I$29 -> 0.04264333333 | GJ12: =Ventilation!E35 -> 1 | KD12: =KD6*EY6 -> 0 | KE12: kg | KF12: ventilated coal | KI12: Ventilation | KJ12: =INDEX(Mapping!$A$2:$A$98,MATCH(B12,Mapping!$C$2:$C$98,0)) -> Ventilation | KS12: 0 | KT12: 0 | KU12: 0 | KV12: 0 | KW12: 0 | KX12: 0 | KY12: 0 | KZ12: 0 | LA12: 0 | LB12: 0 | LC12: 0 | LD12: 0 | LE12: 0 | LF12: 0 | LG12: 0 | LH12: 0 | LI12: 0 | LJ12: 0 | LK12: 0 | LL12: 0 | LM12: 0 | LN12: 0 | LO12: 0 | LP12: 0 | LQ12: 0 | LR12: 0 | LS12: 0 | LT12: 0 | LU12: 0 | LV12: 0 | LW12: 0 | LX12: 0 | LY12: 0 | LZ12: 0 | MA12: 0 | MB12: 0 | MC12: 0 | MD12: 0 | ME12: 0 | MF12: 0 | MG12: 0 | MH12: 0 | MI12: 0 | MJ12: 0 | MK12: 0 | ML12: 0 | MM12: 0 | MN12: 0 | MO12: 0 | MP12: 0 | MQ12: 0 | MR12: 0 | MS12: 0 | MT12: 0 | MU12: 0 | MV12: 0 | MW12: 0 | MX12: 0 | MY12: 0 | MZ12: =CF12*$KD12+DistOutput() -> 0 | NA12: =CG12*$KD12+DistOutput() -> 0 | NB12: =CH12*$KD12+DistOutput() -> 0 | NC12: =CI12*$KD12+DistOutput() -> 0 | ND12: =CJ12*$KD12+DistOutput() -> 0 | NE12: =CK12*$KD12+DistOutput() -> 0 | NF12: =CL12*$KD12+DistOutput() -> 0 | NH12: =DistAvg($MZ12) -> 0 | NI12: =DistAvg($NA12) -> 0 | NJ12: =DistAvg($NB12) -> 0 | NK12: =DistAvg($NC12) -> 0 | NL12: =DistAvg($ND12) -> 0 | NM12: =DistAvg($NE12) -> 0 | NN12: =DistAvg($NF12) -> 0 | NO12: =DistMin(MZ12) -> 0 | NP12: =DistMin(NA12) -> 0 | NQ12: =DistMin(NB12) -> 0 | NR12: =DistMin(NC12) -> 0 | NS12: =DistMin(ND12) -> 0 | NT12: =DistMin(NE12) -> 0 | NU12: =DistMin(NF12) -> 0 | NV12: =DistMax(MZ12) -> 0 | NW12: =DistMax(NA12) -> 0 | NX12: =DistMax(NB12) -> 0 | NY12: =DistMax(NC12) -> 0 | NZ12: =DistMax(ND12) -> 0 | OA12: =DistMax(NE12) -> 0 | OB12: =DistMax(NF12) -> 0 | OC12: =DistPercentileInc(MZ12,OC$2) -> 0 | OD12: =DistPercentileInc(NA12,OD$2) -> 0 | OE12: =DistPercentileInc(NB12,OE$2) -> 0 | OF12: =DistPercentileInc(NC12,OF$2) -> 0 | OG12: =DistPercentileInc(ND12,OG$2) -> 0 | OH12: =DistPercentileInc(NE12,OH$2) -> 0 | OI12: =DistPercentileInc(NF12,OI$2) -> 0 | OJ12: =DistPercentileInc(MZ12,OJ$2) -> 0 | OK12: =DistPercentileInc(NA12,OK$2) -> 0 | OL12: =DistPercentileInc(NB12,OL$2) -> 0 | OM12: =DistPercentileInc(NC12,OM$2) -> 0 | ON12: =DistPercentileInc(ND12,ON$2) -> 0 | OO12: =DistPercentileInc(NE12,OO$2) -> 0 | OP12: =DistPercentileInc(NF12,OP$2) -> 0 | OQ12: =DistPercentileInc(MZ12,OQ$2) -> 0 | OR12: =DistPercentileInc(NA12,OR$2) -> 0 | OS12: =DistPercentileInc(NB12,OS$2) -> 0 | OT12: =DistPercentileInc(NC12,OT$2) -> 0 | OU12: =DistPercentileInc(ND12,OU$2) -> 0 | OV12: =DistPercentileInc(NE12,OV$2) -> 0 | OW12: =DistPercentileInc(NF12,OW$2) -> 0 | OX12: =DistPercentileInc(MZ12,OX$2) -> 0 | OY12: =DistPercentileInc(NA12,OY$2) -> 0 | OZ12: =DistPercentileInc(NB12,OZ$2) -> 0 | PA12: =DistPercentileInc(NC12,PA$2) -> 0 | PB12: =DistPercentileInc(ND12,PB$2) -> 0 | PC12: =DistPercentileInc(NE12,PC$2) -> 0 | PD12: =DistPercentileInc(NF12,PD$2) -> 0 | PE12: =DistPercentileInc(MZ12,PE$2) -> 0 | PF12: =DistPercentileInc(NA12,PF$2) -> 0 | PG12: =DistPercentileInc(NB12,PG$2) -> 0 | PH12: =DistPercentileInc(NC12,PH$2) -> 0 | PI12: =DistPercentileInc(ND12,PI$2) -> 0 | PJ12: =DistPercentileInc(NE12,PJ$2) -> 0 | PK12: =DistPercentileInc(NF12,PK$2) -> 0
B13: Coal Mine Tailings Disposal | AQ13: ='Mine Tailings Disposal'!I207 -> 2.49533361e-06 | AT13: ='Mine Tailings Disposal'!I181 -> 0.00014758425 | AU13: ='Mine Tailings Disposal'!I178 -> 0.0006351115361 | AX13: ='Mine Tailings Disposal'!I195 -> 2.2066506e-09 | AY13: ='Mine Tailings Disposal'!I184 -> 8.9011098e-09 | AZ13: ='Mine Tailings Disposal'!I188 -> 8.6719248e-09 | BA13: ='Mine Tailings Disposal'!I194 -> 1.48117068e-09 | BB13: ='Mine Tailings Disposal'!I183 -> 2.4216786e-09 | BD13: ='Mine Tailings Disposal'!I179 -> 1.303103791e-05 | BE13: ='Mine Tailings Disposal'!I180 -> 1.109448191e-07 | BF13: ='Mine Tailings Disposal'!I182 -> 6.16869e-07 | BG13: ='Mine Tailings Disposal'!I185 -> 8.3026944e-08 | BH13: ='Mine Tailings Disposal'!I186 -> 1.8365787e-08 | BI13: ='Mine Tailings Disposal'!I187 -> 3.7681281e-08 | BJ13: ='Mine Tailings Disposal'!I189 -> 1.85050404e-08 | BK13: ='Mine Tailings Disposal'!I190 -> 5.821794e-10 | BL13: ='Mine Tailings Disposal'!I191 -> 3.67690752e-06 | BM13: ='Mine Tailings Disposal'!I192 -> 2.246805e-08 | BN13: ='Mine Tailings Disposal'!I193 -> 1.7578539e-07 | BO13: ='Mine Tailings Disposal'!I196 -> 8.2794096e-09 | BP13: ='Mine Tailings Disposal'!I197 -> 1.66165263e-07 | BQ13: ='Mine Tailings Disposal'!I198 -> 2.39860764e-09 | BR13: ='Mine Tailings Disposal'!I199 -> 3.68032005e-07 | BS13: ='Mine Tailings Disposal'!I200 -> 1.32633072e-08 | BT13: ='Mine Tailings Disposal'!I201 -> 2.84467392e-09 | BU13: ='Mine Tailings Disposal'!I202 -> 6.139584e-07 | BV13: ='Mine Tailings Disposal'!I203 -> 5.4642654e-09 | BW13: ='Mine Tailings Disposal'!I204 -> 1.24502994e-10 | BX13: ='Mine Tailings Disposal'!I205 -> 2.58489e-10 | BY13: ='Mine Tailings Disposal'!I206 -> 1.420254e-06 | BZ13: ='Mine Tailings Disposal'!I208 -> 8.6218209e-05 | CA13: ='Mine Tailings Disposal'!I209 -> 6.662205e-07 | CB13: ='Mine Tailings Disposal'!I210 -> 0.00129991851 | CC13: ='Mine Tailings Disposal'!I211 -> 4.18206888e-05 | CD13: ='Mine Tailings Disposal'!I212 -> 0.000107904555 | CF13: =SUMPRODUCT($C13:$CD13, 'TRACI IF'!$C$3:$CD$3) -> 0 | CG13: =SUMPRODUCT($C13:$CD13, 'TRACI IF'!$C$4:$CD$4) -> 3.352404655e-06 | CH13: =SUMPRODUCT($C13:$CD13, 'TRACI IF'!$C$5:$CD$5) -> 0 | CI13: =SUMPRODUCT($C13:$CD13, 'TRACI IF'!$C$7:$CD$7) -> 0 | CJ13: =SUMPRODUCT($C13:$CD13, 'TRACI IF'!$C$6:$CD$6) -> 0 | CK13: =SUMPRODUCT($C13:$CD13, 'TRACI IF'!$C$8:$CD$8) -> 0 | CL13: =SUMPRODUCT($C13:$CD13, 'TRACI IF'!$C$9:$CD$9) -> 0 | FD13: ='Mine Tailings Disposal'!I172 -> 1 | KD13: =KD10*GP10*FD13 -> 0 | KE13: kg | KF13: mine tailings | KI13: Coal Mine Tailings Disposal | KJ13: =INDEX(Mapping!$A$2:$A$98,MATCH(B13,Mapping!$C$2:$C$98,0)) -> Coal Mine Tailings Disposal | KS13: 0 | KT13: 0 | KU13: 0 | KV13: 0 | KW13: 0 | KX13: 0 | KY13: 0 | KZ13: 0 | LA13: 0 | LB13: 0 | LC13: 0 | LD13: 0 | LE13: 0 | LF13: 0 | LG13: 0 | LH13: 0 | LI13: 0 | LJ13: 0 | LK13: 0 | LL13: 0 | LM13: 0 | LN13: 0 | LO13: 0 | LP13: 0 | LQ13: 0 | LR13: 0 | LS13: 0 | LT13: 0 | LU13: 0 | LV13: 0 | LW13: 0 | LX13: 0 | LY13: 0 | LZ13: 0 | MA13: 0 | MB13: 0 | MC13: 0 | MD13: 0 | ME13: 0 | MF13: 0 | MG13: 0 | MH13: 0 | MI13: 0 | MJ13: 0 | MK13: 0 | ML13: 0 | MM13: 0 | MN13: 0 | MO13: 0 | MP13: 0 | MQ13: 0 | MR13: 0 | MS13: 0 | MT13: 0 | MU13: 0 | MV13: 0 | MW13: 0 | MX13: 0 | MY13: 0 | MZ13: =CF13*$KD13+DistOutput() -> 0 | NA13: =CG13*$KD13+DistOutput() -> 0 | NB13: =CH13*$KD13+DistOutput() -> 0 | NC13: =CI13*$KD13+DistOutput() -> 0 | ND13: =CJ13*$KD13+DistOutput() -> 0 | NE13: =CK13*$KD13+DistOutput() -> 0 | NF13: =CL13*$KD13+DistOutput() -> 0 | NH13: =DistAvg($MZ13) -> 0 | NI13: =DistAvg($NA13) -> 0 | NJ13: =DistAvg($NB13) -> 0 | NK13: =DistAvg($NC13) -> 0 | NL13: =DistAvg($ND13) -> 0 | NM13: =DistAvg($NE13) -> 0 | NN13: =DistAvg($NF13) -> 0 | NO13: =DistMin(MZ13) -> 0 | NP13: =DistMin(NA13) -> 0 | NQ13: =DistMin(NB13) -> 0 | NR13: =DistMin(NC13) -> 0 | NS13: =DistMin(ND13) -> 0 | NT13: =DistMin(NE13) -> 0 | NU13: =DistMin(NF13) -> 0 | NV13: =DistMax(MZ13) -> 0 | NW13: =DistMax(NA13) -> 0 | NX13: =DistMax(NB13) -> 0 | NY13: =DistMax(NC13) -> 0 | NZ13: =DistMax(ND13) -> 0 | OA13: =DistMax(NE13) -> 0 | OB13: =DistMax(NF13) -> 0 | OC13: =DistPercentileInc(MZ13,OC$2) -> 0 | OD13: =DistPercentileInc(NA13,OD$2) -> 0 | OE13: =DistPercentileInc(NB13,OE$2) -> 0 | OF13: =DistPercentileInc(NC13,OF$2) -> 0 | OG13: =DistPercentileInc(ND13,OG$2) -> 0 | OH13: =DistPercentileInc(NE13,OH$2) -> 0 | OI13: =DistPercentileInc(NF13,OI$2) -> 0 | OJ13: =DistPercentileInc(MZ13,OJ$2) -> 0 | OK13: =DistPercentileInc(NA13,OK$2) -> 0 | OL13: =DistPercentileInc(NB13,OL$2) -> 0 | OM13: =DistPercentileInc(NC13,OM$2) -> 0 | ON13: =DistPercentileInc(ND13,ON$2) -> 0 | OO13: =DistPercentileInc(NE13,OO$2) -> 0 | OP13: =DistPercentileInc(NF13,OP$2) -> 0 | OQ13: =DistPercentileInc(MZ13,OQ$2) -> 0 | OR13: =DistPercentileInc(NA13,OR$2) -> 0 | OS13: =DistPercentileInc(NB13,OS$2) -> 0 | OT13: =DistPercentileInc(NC13,OT$2) -> 0 | OU13: =DistPercentileInc(ND13,OU$2) -> 0 | OV13: =DistPercentileInc(NE13,OV$2) -> 0 | OW13: =DistPercentileInc(NF13,OW$2) -> 0 | OX13: =DistPercentileInc(MZ13,OX$2) -> 0 | OY13: =DistPercentileInc(NA13,OY$2) -> 0 | OZ13: =DistPercentileInc(NB13,OZ$2) -> 0 | PA13: =DistPercentileInc(NC13,PA$2) -> 0 | PB13: =DistPercentileInc(ND13,PB$2) -> 0 | PC13: =DistPercentileInc(NE13,PC$2) -> 0 | PD13: =DistPercentileInc(NF13,PD$2) -> 0 | PE13: =DistPercentileInc(MZ13,PE$2) -> 0 | PF13: =DistPercentileInc(NA13,PF$2) -> 0 | PG13: =DistPercentileInc(NB13,PG$2) -> 0 | PH13: =DistPercentileInc(NC13,PH$2) -> 0 | PI13: =DistPercentileInc(ND13,PI$2) -> 0 | PJ13: =DistPercentileInc(NE13,PJ$2) -> 0 | PK13: =DistPercentileInc(NF13,PK$2) -> 0
B14: Coal Mix Input | CF14: =SUMPRODUCT($C14:$CD14, 'TRACI IF'!$C$3:$CD$3) -> 0 | CG14: =SUMPRODUCT($C14:$CD14, 'TRACI IF'!$C$4:$CD$4) -> 0 | CH14: =SUMPRODUCT($C14:$CD14, 'TRACI IF'!$C$5:$CD$5) -> 0 | CI14: =SUMPRODUCT($C14:$CD14, 'TRACI IF'!$C$7:$CD$7) -> 0 | CJ14: =SUMPRODUCT($C14:$CD14, 'TRACI IF'!$C$6:$CD$6) -> 0 | CK14: =SUMPRODUCT($C14:$CD14, 'TRACI IF'!$C$8:$CD$8) -> 0 | CL14: =SUMPRODUCT($C14:$CD14, 'TRACI IF'!$C$9:$CD$9) -> 0 | FT14: ='User Input'!C32 -> 0 | FU14: ='User Input'!C33 -> 1 | GX14: ='User Input'!$C$34*'User Input'!$B$49 -> 0 | GY14: ='User Input'!$C$34*(1-'User Input'!$B$49) -> 1 | KD14: =KD10*FC10+KD11*FC11 -> 1 | KE14: kg | KF14: mixed handled coal | KI14: Coal Mix Input | KJ14: =INDEX(Mapping!$A$2:$A$98,MATCH(B14,Mapping!$C$2:$C$98,0)) -> Coal Mix Input | KS14: 0 | KT14: 0 | KU14: 0 | KV14: 0 | KW14: 0 | KX14: 0 | KY14: 0 | KZ14: 0 | LA14: 0 | LB14: 0 | LC14: 0 | LD14: 0 | LE14: 0 | LF14: 0 | LG14: 0 | LH14: 0 | LI14: 0 | LJ14: 0 | LK14: 0 | LL14: 0 | LM14: 0 | LN14: 0 | LO14: 0 | LP14: 0 | LQ14: 0 | LR14: 0 | LS14: 0 | LT14: 0 | LU14: 0 | LV14: 0 | LW14: 0 | LX14: 0 | LY14: 0 | LZ14: 0 | MA14: 0 | MB14: 0 | MC14: 0 | MD14: 0 | ME14: 0 | MF14: 0 | MG14: 0 | MH14: 0 | MI14: 0 | MJ14: 0 | MK14: 0 | ML14: 0 | MM14: 0 | MN14: 0 | MO14: 0 | MP14: 0 | MQ14: 0 | MR14: 0 | MS14: 0 | MT14: 0 | MU14: 0 | MV14: 0 | MW14: 0 | MX14: 0 | MY14: 0 | MZ14: =CF14*$KD14+DistOutput() -> 0 | NA14: =CG14*$KD14+DistOutput() -> 0 | NB14: =CH14*$KD14+DistOutput() -> 0 | NC14: =CI14*$KD14+DistOutput() -> 0 | ND14: =CJ14*$KD14+DistOutput() -> 0 | NE14: =CK14*$KD14+DistOutput() -> 0 | NF14: =CL14*$KD14+DistOutput() -> 0 | NH14: =DistAvg($MZ14) -> 0 | NI14: =DistAvg($NA14) -> 0 | NJ14: =DistAvg($NB14) -> 0 | NK14: =DistAvg($NC14) -> 0 | NL14: =DistAvg($ND14) -> 0 | NM14: =DistAvg($NE14) -> 0 | NN14: =DistAvg($NF14) -> 0 | NO14: =DistMin(MZ14) -> 0 | NP14: =DistMin(NA14) -> 0 | NQ14: =DistMin(NB14) -> 0 | NR14: =DistMin(NC14) -> 0 | NS14: =DistMin(ND14) -> 0 | NT14: =DistMin(NE14) -> 0 | NU14: =DistMin(NF14) -> 0 | NV14: =DistMax(MZ14) -> 0 | NW14: =DistMax(NA14) -> 0 | NX14: =DistMax(NB14) -> 0 | NY14: =DistMax(NC14) -> 0 | NZ14: =DistMax(ND14) -> 0 | OA14: =DistMax(NE14) -> 0 | OB14: =DistMax(NF14) -> 0 | OC14: =DistPercentileInc(MZ14,OC$2) -> 0 | OD14: =DistPercentileInc(NA14,OD$2) -> 0 | OE14: =DistPercentileInc(NB14,OE$2) -> 0 | OF14: =DistPercentileInc(NC14,OF$2) -> 0 | OG14: =DistPercentileInc(ND14,OG$2) -> 0 | OH14: =DistPercentileInc(NE14,OH$2) -> 0 | OI14: =DistPercentileInc(NF14,OI$2) -> 0 | OJ14: =DistPercentileInc(MZ14,OJ$2) -> 0 | OK14: =DistPercentileInc(NA14,OK$2) -> 0 | OL14: =DistPercentileInc(NB14,OL$2) -> 0 | OM14: =DistPercentileInc(NC14,OM$2) -> 0 | ON14: =DistPercentileInc(ND14,ON$2) -> 0 | OO14: =DistPercentileInc(NE14,OO$2) -> 0 | OP14: =DistPercentileInc(NF14,OP$2) -> 0 | OQ14: =DistPercentileInc(MZ14,OQ$2) -> 0 | OR14: =DistPercentileInc(NA14,OR$2) -> 0 | OS14: =DistPercentileInc(NB14,OS$2) -> 0 | OT14: =DistPercentileInc(NC14,OT$2) -> 0 | OU14: =DistPercentileInc(ND14,OU$2) -> 0 | OV14: =DistPercentileInc(NE14,OV$2) -> 0 | OW14: =DistPercentileInc(NF14,OW$2) -> 0 | OX14: =DistPercentileInc(MZ14,OX$2) -> 0 | OY14: =DistPercentileInc(NA14,OY$2) -> 0 | OZ14: =DistPercentileInc(NB14,OZ$2) -> 0 | PA14: =DistPercentileInc(NC14,PA$2) -> 0 | PB14: =DistPercentileInc(ND14,PB$2) -> 0 | PC14: =DistPercentileInc(NE14,PC$2) -> 0 | PD14: =DistPercentileInc(NF14,PD$2) -> 0 | PE14: =DistPercentileInc(MZ14,PE$2) -> 0 | PF14: =DistPercentileInc(NA14,PF$2) -> 0 | PG14: =DistPercentileInc(NB14,PG$2) -> 0 | PH14: =DistPercentileInc(NC14,PH$2) -> 0 | PI14: =DistPercentileInc(ND14,PI$2) -> 0 | PJ14: =DistPercentileInc(NE14,PJ$2) -> 0 | PK14: =DistPercentileInc(NF14,PK$2) -> 0
B15: Electricity Mix- Underground Extraction | CF15: =SUMPRODUCT($C15:$CD15, 'TRACI IF'!$C$3:$CD$3) -> 0 | CG15: =SUMPRODUCT($C15:$CD15, 'TRACI IF'!$C$4:$CD$4) -> 0 | CH15: =SUMPRODUCT($C15:$CD15, 'TRACI IF'!$C$5:$CD$5) -> 0 | CI15: =SUMPRODUCT($C15:$CD15, 'TRACI IF'!$C$7:$CD$7) -> 0 | CJ15: =SUMPRODUCT($C15:$CD15, 'TRACI IF'!$C$6:$CD$6) -> 0 | CK15: =SUMPRODUCT($C15:$CD15, 'TRACI IF'!$C$8:$CD$8) -> 0 | CL15: =SUMPRODUCT($C15:$CD15, 'TRACI IF'!$C$9:$CD$9) -> 0 | CM15: ='User Input'!$C$19 -> 0 | CS15: ='User Input'!$C$20 -> 0 | CY15: ='User Input'!$C$21 -> 0 | DE15: ='User Input'!$C$22 -> 1 | DK15: ='User Input'!$C$23 -> 0 | DQ15: ='User Input'!$C$24 -> 0 | DW15: ='User Input'!$C$25 -> 0 | HH15: ='User Input'!$C$26 -> 1 | KD15: =KD6*EC6 -> 0 | KE15: kWh | KF15: electricity | KI15: Electricity Mix- Underground Extraction | KJ15: =INDEX(Mapping!$A$2:$A$98,MATCH(B15,Mapping!$C$2:$C$98,0)) -> Extraction Underground | KS15: 0 | KT15: 0 | KU15: 0 | KV15: 0 | KW15: 0 | KX15: 0 | KY15: 0 | KZ15: 0 | LA15: 0 | LB15: 0 | LC15: 0 | LD15: 0 | LE15: 0 | LF15: 0 | LG15: 0 | LH15: 0 | LI15: 0 | LJ15: 0 | LK15: 0 | LL15: 0 | LM15: 0 | LN15: 0 | LO15: 0 | LP15: 0 | LQ15: 0 | LR15: 0 | LS15: 0 | LT15: 0 | LU15: 0 | LV15: 0 | LW15: 0 | LX15: 0 | LY15: 0 | LZ15: 0 | MA15: 0 | MB15: 0 | MC15: 0 | MD15: 0 | ME15: 0 | MF15: 0 | MG15: 0 | MH15: 0 | MI15: 0 | MJ15: 0 | MK15: 0 | ML15: 0 | MM15: 0 | MN15: 0 | MO15: 0 | MP15: 0 | MQ15: 0 | MR15: 0 | MS15: 0 | MT15: 0 | MU15: 0 | MV15: 0 | MW15: 0 | MX15: 0 | MY15: 0 | MZ15: =CF15*$KD15+DistOutput() -> 0 | NA15: =CG15*$KD15+DistOutput() -> 0 | NB15: =CH15*$KD15+DistOutput() -> 0 | NC15: =CI15*$KD15+DistOutput() -> 0 | ND15: =CJ15*$KD15+DistOutput() -> 0 | NE15: =CK15*$KD15+DistOutput() -> 0 | NF15: =CL15*$KD15+DistOutput() -> 0 | NH15: =DistAvg($MZ15) -> 0 | NI15: =DistAvg($NA15) -> 0 | NJ15: =DistAvg($NB15) -> 0 | NK15: =DistAvg($NC15) -> 0 | NL15: =DistAvg($ND15) -> 0 | NM15: =DistAvg($NE15) -> 0 | NN15: =DistAvg($NF15) -> 0 | NO15: =DistMin(MZ15) -> 0 | NP15: =DistMin(NA15) -> 0 | NQ15: =DistMin(NB15) -> 0 | NR15: =DistMin(NC15) -> 0 | NS15: =DistMin(ND15) -> 0 | NT15: =DistMin(NE15) -> 0 | NU15: =DistMin(NF15) -> 0 | NV15: =DistMax(MZ15) -> 0 | NW15: =DistMax(NA15) -> 0 | NX15: =DistMax(NB15) -> 0 | NY15: =DistMax(NC15) -> 0 | NZ15: =DistMax(ND15) -> 0 | OA15: =DistMax(NE15) -> 0 | OB15: =DistMax(NF15) -> 0 | OC15: =DistPercentileInc(MZ15,OC$2) -> 0 | OD15: =DistPercentileInc(NA15,OD$2) -> 0 | OE15: =DistPercentileInc(NB15,OE$2) -> 0 | OF15: =DistPercentileInc(NC15,OF$2) -> 0 | OG15: =DistPercentileInc(ND15,OG$2) -> 0 | OH15: =DistPercentileInc(NE15,OH$2) -> 0 | OI15: =DistPercentileInc(NF15,OI$2) -> 0 | OJ15: =DistPercentileInc(MZ15,OJ$2) -> 0 | OK15: =DistPercentileInc(NA15,OK$2) -> 0 | OL15: =DistPercentileInc(NB15,OL$2) -> 0 | OM15: =DistPercentileInc(NC15,OM$2) -> 0 | ON15: =DistPercentileInc(ND15,ON$2) -> 0 | OO15: =DistPercentileInc(NE15,OO$2) -> 0 | OP15: =DistPercentileInc(NF15,OP$2) -> 0 | OQ15: =DistPercentileInc(MZ15,OQ$2) -> 0 | OR15: =DistPercentileInc(NA15,OR$2) -> 0 | OS15: =DistPercentileInc(NB15,OS$2) -> 0 | OT15: =DistPercentileInc(NC15,OT$2) -> 0 | OU15: =DistPercentileInc(ND15,OU$2) -> 0 | OV15: =DistPercentileInc(NE15,OV$2) -> 0 | OW15: =DistPercentileInc(NF15,OW$2) -> 0 | OX15: =DistPercentileInc(MZ15,OX$2) -> 0 | OY15: =DistPercentileInc(NA15,OY$2) -> 0 | OZ15: =DistPercentileInc(NB15,OZ$2) -> 0 | PA15: =DistPercentileInc(NC15,PA$2) -> 0 | PB15: =DistPercentileInc(ND15,PB$2) -> 0 | PC15: =DistPercentileInc(NE15,PC$2) -> 0 | PD15: =DistPercentileInc(NF15,PD$2) -> 0 | PE15: =DistPercentileInc(MZ15,PE$2) -> 0 | PF15: =DistPercentileInc(NA15,PF$2) -> 0 | PG15: =DistPercentileInc(NB15,PG$2) -> 0 | PH15: =DistPercentileInc(NC15,PH$2) -> 0 | PI15: =DistPercentileInc(ND15,PI$2) -> 0 | PJ15: =DistPercentileInc(NE15,PJ$2) -> 0 | PK15: =DistPercentileInc(NF15,PK$2) -> 0
B16: Electricity Mix- Surface Extraction | CF16: =SUMPRODUCT($C16:$CD16, 'TRACI IF'!$C$3:$CD$3) -> 0 | CG16: =SUMPRODUCT($C16:$CD16, 'TRACI IF'!$C$4:$CD$4) -> 0 | CH16: =SUMPRODUCT($C16:$CD16, 'TRACI IF'!$C$5:$CD$5) -> 0 | CI16: =SUMPRODUCT($C16:$CD16, 'TRACI IF'!$C$7:$CD$7) -> 0 | CJ16: =SUMPRODUCT($C16:$CD16, 'TRACI IF'!$C$6:$CD$6) -> 0 | CK16: =SUMPRODUCT($C16:$CD16, 'TRACI IF'!$C$8:$CD$8) -> 0 | CL16: =SUMPRODUCT($C16:$CD16, 'TRACI IF'!$C$9:$CD$9) -> 0 | CN16: ='User Input'!$C$19 -> 0 | CT16: ='User Input'!$C$20 -> 0 | CZ16: ='User Input'!$C$21 -> 0 | DF16: ='User Input'!$C$22 -> 1 | DL16: ='User Input'!$C$23 -> 0 | DR16: ='User Input'!$C$24 -> 0 | DX16: ='User Input'!$C$25 -> 0 | HI16: ='User Input'!$C$26 -> 1 | KD16: =ED7*KD7 -> 0.009362108236 | KE16: kWh | KF16: electricity | KI16: Electricity Mix- Surface Extraction | KJ16: =INDEX(Mapping!$A$2:$A$98,MATCH(B16,Mapping!$C$2:$C$98,0)) -> Extraction Surface Mine | KS16: 0 | KT16: 0 | KU16: 0 | KV16: 0 | KW16: 0 | KX16: 0 | KY16: 0 | KZ16: 0 | LA16: 0 | LB16: 0 | LC16: 0 | LD16: 0 | LE16: 0 | LF16: 0 | LG16: 0 | LH16: 0 | LI16: 0 | LJ16: 0 | LK16: 0 | LL16: 0 | LM16: 0 | LN16: 0 | LO16: 0 | LP16: 0 | LQ16: 0 | LR16: 0 | LS16: 0 | LT16: 0 | LU16: 0 | LV16: 0 | LW16: 0 | LX16: 0 | LY16: 0 | LZ16: 0 | MA16: 0 | MB16: 0 | MC16: 0 | MD16: 0 | ME16: 0 | MF16: 0 | MG16: 0 | MH16: 0 | MI16: 0 | MJ16: 0 | MK16: 0 | ML16: 0 | MM16: 0 | MN16: 0 | MO16: 0 | MP16: 0 | MQ16: 0 | MR16: 0 | MS16: 0 | MT16: 0 | MU16: 0 | MV16: 0 | MW16: 0 | MX16: 0 | MY16: 0 | MZ16: =CF16*$KD16+DistOutput() -> 0 | NA16: =CG16*$KD16+DistOutput() -> 0 | NB16: =CH16*$KD16+DistOutput() -> 0 | NC16: =CI16*$KD16+DistOutput() -> 0 | ND16: =CJ16*$KD16+DistOutput() -> 0 | NE16: =CK16*$KD16+DistOutput() -> 0 | NF16: =CL16*$KD16+DistOutput() -> 0 | NH16: =DistAvg($MZ16) -> 0 | NI16: =DistAvg($NA16) -> 0 | NJ16: =DistAvg($NB16) -> 0 | NK16: =DistAvg($NC16) -> 0 | NL16: =DistAvg($ND16) -> 0 | NM16: =DistAvg($NE16) -> 0 | NN16: =DistAvg($NF16) -> 0 | NO16: =DistMin(MZ16) -> 0 | NP16: =DistMin(NA16) -> 0 | NQ16: =DistMin(NB16) -> 0 | NR16: =DistMin(NC16) -> 0 | NS16: =DistMin(ND16) -> 0 | NT16: =DistMin(NE16) -> 0 | NU16: =DistMin(NF16) -> 0 | NV16: =DistMax(MZ16) -> 0 | NW16: =DistMax(NA16) -> 0 | NX16: =DistMax(NB16) -> 0 | NY16: =DistMax(NC16) -> 0 | NZ16: =DistMax(ND16) -> 0 | OA16: =DistMax(NE16) -> 0 | OB16: =DistMax(NF16) -> 0 | OC16: =DistPercentileInc(MZ16,OC$2) -> 0 | OD16: =DistPercentileInc(NA16,OD$2) -> 0 | OE16: =DistPercentileInc(NB16,OE$2) -> 0 | OF16: =DistPercentileInc(NC16,OF$2) -> 0 | OG16: =DistPercentileInc(ND16,OG$2) -> 0 | OH16: =DistPercentileInc(NE16,OH$2) -> 0 | OI16: =DistPercentileInc(NF16,OI$2) -> 0 | OJ16: =DistPercentileInc(MZ16,OJ$2) -> 0 | OK16: =DistPercentileInc(NA16,OK$2) -> 0 | OL16: =DistPercentileInc(NB16,OL$2) -> 0 | OM16: =DistPercentileInc(NC16,OM$2) -> 0 | ON16: =DistPercentileInc(ND16,ON$2) -> 0 | OO16: =DistPercentileInc(NE16,OO$2) -> 0 | OP16: =DistPercentileInc(NF16,OP$2) -> 0 | OQ16: =DistPercentileInc(MZ16,OQ$2) -> 0 | OR16: =DistPercentileInc(NA16,OR$2) -> 0 | OS16: =DistPercentileInc(NB16,OS$2) -> 0 | OT16: =DistPercentileInc(NC16,OT$2) -> 0 | OU16: =DistPercentileInc(ND16,OU$2) -> 0 | OV16: =DistPercentileInc(NE16,OV$2) -> 0 | OW16: =DistPercentileInc(NF16,OW$2) -> 0 | OX16: =DistPercentileInc(MZ16,OX$2) -> 0 | OY16: =DistPercentileInc(NA16,OY$2) -> 0 | OZ16: =DistPercentileInc(NB16,OZ$2) -> 0 | PA16: =DistPercentileInc(NC16,PA$2) -> 0 | PB16: =DistPercentileInc(ND16,PB$2) -> 0 | PC16: =DistPercentileInc(NE16,PC$2) -> 0 | PD16: =DistPercentileInc(NF16,PD$2) -> 0 | PE16: =DistPercentileInc(MZ16,PE$2) -> 0 | PF16: =DistPercentileInc(NA16,PF$2) -> 0 | PG16: =DistPercentileInc(NB16,PG$2) -> 0 | PH16: =DistPercentileInc(NC16,PH$2) -> 0 | PI16: =DistPercentileInc(ND16,PI$2) -> 0 | PJ16: =DistPercentileInc(NE16,PJ$2) -> 0 | PK16: =DistPercentileInc(NF16,PK$2) -> 0
B17: Electricity Mix - Coal Cleaning | CF17: =SUMPRODUCT($C17:$CD17, 'TRACI IF'!$C$3:$CD$3) -> 0 | CG17: =SUMPRODUCT($C17:$CD17, 'TRACI IF'!$C$4:$CD$4) -> 0 | CH17: =SUMPRODUCT($C17:$CD17, 'TRACI IF'!$C$5:$CD$5) -> 0 | CI17: =SUMPRODUCT($C17:$CD17, 'TRACI IF'!$C$7:$CD$7) -> 0 | CJ17: =SUMPRODUCT($C17:$CD17, 'TRACI IF'!$C$6:$CD$6) -> 0 | CK17: =SUMPRODUCT($C17:$CD17, 'TRACI IF'!$C$8:$CD$8) -> 0 | CL17: =SUMPRODUCT($C17:$CD17, 'TRACI IF'!$C$9:$CD$9) -> 0 | CO17: ='User Input'!$C$19 -> 0 | CU17: ='User Input'!$C$20 -> 0 | DA17: ='User Input'!$C$21 -> 0 | DG17: ='User Input'!$C$22 -> 1 | DM17: ='User Input'!$C$23 -> 0 | DS17: ='User Input'!$C$24 -> 0 | DY17: ='User Input'!$C$25 -> 0 | HJ17: ='User Input'!$C$26 -> 1 | KD17: =KD10*EE10 -> 0 | KE17: kWh | KF17: electricity | KI17: Electricity Mix - Coal Cleaning | KJ17: =INDEX(Mapping!$A$2:$A$98,MATCH(B17,Mapping!$C$2:$C$98,0)) -> Coal Cleaning | KS17: 0 | KT17: 0 | KU17: 0 | KV17: 0 | KW17: 0 | KX17: 0 | KY17: 0 | KZ17: 0 | LA17: 0 | LB17: 0 | LC17: 0 | LD17: 0 | LE17: 0 | LF17: 0 | LG17: 0 | LH17: 0 | LI17: 0 | LJ17: 0 | LK17: 0 | LL17: 0 | LM17: 0 | LN17: 0 | LO17: 0 | LP17: 0 | LQ17: 0 | LR17: 0 | LS17: 0 | LT17: 0 | LU17: 0 | LV17: 0 | LW17: 0 | LX17: 0 | LY17: 0 | LZ17: 0 | MA17: 0 | MB17: 0 | MC17: 0 | MD17: 0 | ME17: 0 | MF17: 0 | MG17: 0 | MH17: 0 | MI17: 0 | MJ17: 0 | MK17: 0 | ML17: 0 | MM17: 0 | MN17: 0 | MO17: 0 | MP17: 0 | MQ17: 0 | MR17: 0 | MS17: 0 | MT17: 0 | MU17: 0 | MV17: 0 | MW17: 0 | MX17: 0 | MY17: 0 | MZ17: =CF17*$KD17+DistOutput() -> 0 | NA17: =CG17*$KD17+DistOutput() -> 0 | NB17: =CH17*$KD17+DistOutput() -> 0 | NC17: =CI17*$KD17+DistOutput() -> 0 | ND17: =CJ17*$KD17+DistOutput() -> 0 | NE17: =CK17*$KD17+DistOutput() -> 0 | NF17: =CL17*$KD17+DistOutput() -> 0 | NH17: =DistAvg($MZ17) -> 0 | NI17: =DistAvg($NA17) -> 0 | NJ17: =DistAvg($NB17) -> 0 | NK17: =DistAvg($NC17) -> 0 | NL17: =DistAvg($ND17) -> 0 | NM17: =DistAvg($NE17) -> 0 | NN17: =DistAvg($NF17) -> 0 | NO17: =DistMin(MZ17) -> 0 | NP17: =DistMin(NA17) -> 0 | NQ17: =DistMin(NB17) -> 0 | NR17: =DistMin(NC17) -> 0 | NS17: =DistMin(ND17) -> 0 | NT17: =DistMin(NE17) -> 0 | NU17: =DistMin(NF17) -> 0 | NV17: =DistMax(MZ17) -> 0 | NW17: =DistMax(NA17) -> 0 | NX17: =DistMax(NB17) -> 0 | NY17: =DistMax(NC17) -> 0 | NZ17: =DistMax(ND17) -> 0 | OA17: =DistMax(NE17) -> 0 | OB17: =DistMax(NF17) -> 0 | OC17: =DistPercentileInc(MZ17,OC$2) -> 0 | OD17: =DistPercentileInc(NA17,OD$2) -> 0 | OE17: =DistPercentileInc(NB17,OE$2) -> 0 | OF17: =DistPercentileInc(NC17,OF$2) -> 0 | OG17: =DistPercentileInc(ND17,OG$2) -> 0 | OH17: =DistPercentileInc(NE17,OH$2) -> 0 | OI17: =DistPercentileInc(NF17,OI$2) -> 0 | OJ17: =DistPercentileInc(MZ17,OJ$2) -> 0 | OK17: =DistPercentileInc(NA17,OK$2) -> 0 | OL17: =DistPercentileInc(NB17,OL$2) -> 0 | OM17: =DistPercentileInc(NC17,OM$2) -> 0 | ON17: =DistPercentileInc(ND17,ON$2) -> 0 | OO17: =DistPercentileInc(NE17,OO$2) -> 0 | OP17: =DistPercentileInc(NF17,OP$2) -> 0 | OQ17: =DistPercentileInc(MZ17,OQ$2) -> 0 | OR17: =DistPercentileInc(NA17,OR$2) -> 0 | OS17: =DistPercentileInc(NB17,OS$2) -> 0 | OT17: =DistPercentileInc(NC17,OT$2) -> 0 | OU17: =DistPercentileInc(ND17,OU$2) -> 0 | OV17: =DistPercentileInc(NE17,OV$2) -> 0 | OW17: =DistPercentileInc(NF17,OW$2) -> 0 | OX17: =DistPercentileInc(MZ17,OX$2) -> 0 | OY17: =DistPercentileInc(NA17,OY$2) -> 0 | OZ17: =DistPercentileInc(NB17,OZ$2) -> 0 | PA17: =DistPercentileInc(NC17,PA$2) -> 0 | PB17: =DistPercentileInc(ND17,PB$2) -> 0 | PC17: =DistPercentileInc(NE17,PC$2) -> 0 | PD17: =DistPercentileInc(NF17,PD$2) -> 0 | PE17: =DistPercentileInc(MZ17,PE$2) -> 0 | PF17: =DistPercentileInc(NA17,PF$2) -> 0 | PG17: =DistPercentileInc(NB17,PG$2) -> 0 | PH17: =DistPercentileInc(NC17,PH$2) -> 0 | PI17: =DistPercentileInc(ND17,PI$2) -> 0 | PJ17: =DistPercentileInc(NE17,PJ$2) -> 0 | PK17: =DistPercentileInc(NF17,PK$2) -> 0
B18: Electricity Mix - Ventilation | CF18: =SUMPRODUCT($C18:$CD18, 'TRACI IF'!$C$3:$CD$3) -> 0 | CG18: =SUMPRODUCT($C18:$CD18, 'TRACI IF'!$C$4:$CD$4) -> 0 | CH18: =SUMPRODUCT($C18:$CD18, 'TRACI IF'!$C$5:$CD$5) -> 0 | CI18: =SUMPRODUCT($C18:$CD18, 'TRACI IF'!$C$7:$CD$7) -> 0 | CJ18: =SUMPRODUCT($C18:$CD18, 'TRACI IF'!$C$6:$CD$6) -> 0 | CK18: =SUMPRODUCT($C18:$CD18, 'TRACI IF'!$C$8:$CD$8) -> 0 | CL18: =SUMPRODUCT($C18:$CD18, 'TRACI IF'!$C$9:$CD$9) -> 0 | CP18: ='User Input'!$C$19 -> 0 | CV18: ='User Input'!$C$20 -> 0 | DB18: ='User Input'!$C$21 -> 0 | DH18: ='User Input'!$C$22 -> 1 | DN18: ='User Input'!$C$23 -> 0 | DT18: ='User Input'!$C$24 -> 0 | DZ18: ='User Input'!$C$25 -> 0 | HK18: ='User Input'!$C$26 -> 1 | KD18: =KD12*EF12 -> 0 | KE18: kWh | KF18: electricity | KI18: Electricity Mix - Ventilation | KJ18: =INDEX(Mapping!$A$2:$A$98,MATCH(B18,Mapping!$C$2:$C$98,0)) -> Ventilation | KS18: 0 | KT18: 0 | KU18: 0 | KV18: 0 | KW18: 0 | KX18: 0 | KY18: 0 | KZ18: 0 | LA18: 0 | LB18: 0 | LC18: 0 | LD18: 0 | LE18: 0 | LF18: 0 | LG18: 0 | LH18: 0 | LI18: 0 | LJ18: 0 | LK18: 0 | LL18: 0 | LM18: 0 | LN18: 0 | LO18: 0 | LP18: 0 | LQ18: 0 | LR18: 0 | LS18: 0 | LT18: 0 | LU18: 0 | LV18: 0 | LW18: 0 | LX18: 0 | LY18: 0 | LZ18: 0 | MA18: 0 | MB18: 0 | MC18: 0 | MD18: 0 | ME18: 0 | MF18: 0 | MG18: 0 | MH18: 0 | MI18: 0 | MJ18: 0 | MK18: 0 | ML18: 0 | MM18: 0 | MN18: 0 | MO18: 0 | MP18: 0 | MQ18: 0 | MR18: 0 | MS18: 0 | MT18: 0 | MU18: 0 | MV18: 0 | MW18: 0 | MX18: 0 | MY18: 0 | MZ18: =CF18*$KD18+DistOutput() -> 0 | NA18: =CG18*$KD18+DistOutput() -> 0 | NB18: =CH18*$KD18+DistOutput() -> 0 | NC18: =CI18*$KD18+DistOutput() -> 0 | ND18: =CJ18*$KD18+DistOutput() -> 0 | NE18: =CK18*$KD18+DistOutput() -> 0 | NF18: =CL18*$KD18+DistOutput() -> 0 | NH18: =DistAvg($MZ18) -> 0 | NI18: =DistAvg($NA18) -> 0 | NJ18: =DistAvg($NB18) -> 0 | NK18: =DistAvg($NC18) -> 0 | NL18: =DistAvg($ND18) -> 0 | NM18: =DistAvg($NE18) -> 0 | NN18: =DistAvg($NF18) -> 0 | NO18: =DistMin(MZ18) -> 0 | NP18: =DistMin(NA18) -> 0 | NQ18: =DistMin(NB18) -> 0 | NR18: =DistMin(NC18) -> 0 | NS18: =DistMin(ND18) -> 0 | NT18: =DistMin(NE18) -> 0 | NU18: =DistMin(NF18) -> 0 | NV18: =DistMax(MZ18) -> 0 | NW18: =DistMax(NA18) -> 0 | NX18: =DistMax(NB18) -> 0 | NY18: =DistMax(NC18) -> 0 | NZ18: =DistMax(ND18) -> 0 | OA18: =DistMax(NE18) -> 0 | OB18: =DistMax(NF18) -> 0 | OC18: =DistPercentileInc(MZ18,OC$2) -> 0 | OD18: =DistPercentileInc(NA18,OD$2) -> 0 | OE18: =DistPercentileInc(NB18,OE$2) -> 0 | OF18: =DistPercentileInc(NC18,OF$2) -> 0 | OG18: =DistPercentileInc(ND18,OG$2) -> 0 | OH18: =DistPercentileInc(NE18,OH$2) -> 0 | OI18: =DistPercentileInc(NF18,OI$2) -> 0 | OJ18: =DistPercentileInc(MZ18,OJ$2) -> 0 | OK18: =DistPercentileInc(NA18,OK$2) -> 0 | OL18: =DistPercentileInc(NB18,OL$2) -> 0 | OM18: =DistPercentileInc(NC18,OM$2) -> 0 | ON18: =DistPercentileInc(ND18,ON$2) -> 0 | OO18: =DistPercentileInc(NE18,OO$2) -> 0 | OP18: =DistPercentileInc(NF18,OP$2) -> 0 | OQ18: =DistPercentileInc(MZ18,OQ$2) -> 0 | OR18: =DistPercentileInc(NA18,OR$2) -> 0 | OS18: =DistPercentileInc(NB18,OS$2) -> 0 | OT18: =DistPercentileInc(NC18,OT$2) -> 0 | OU18: =DistPercentileInc(ND18,OU$2) -> 0 | OV18: =DistPercentileInc(NE18,OV$2) -> 0 | OW18: =DistPercentileInc(NF18,OW$2) -> 0 | OX18: =DistPercentileInc(MZ18,OX$2) -> 0 | OY18: =DistPercentileInc(NA18,OY$2) -> 0 | OZ18: =DistPercentileInc(NB18,OZ$2) -> 0 | PA18: =DistPercentileInc(NC18,PA$2) -> 0 | PB18: =DistPercentileInc(ND18,PB$2) -> 0 | PC18: =DistPercentileInc(NE18,PC$2) -> 0 | PD18: =DistPercentileInc(NF18,PD$2) -> 0 | PE18: =DistPercentileInc(MZ18,PE$2) -> 0 | PF18: =DistPercentileInc(NA18,PF$2) -> 0 | PG18: =DistPercentileInc(NB18,PG$2) -> 0 | PH18: =DistPercentileInc(NC18,PH$2) -> 0 | PI18: =DistPercentileInc(ND18,PI$2) -> 0 | PJ18: =DistPercentileInc(NE18,PJ$2) -> 0 | PK18: =DistPercentileInc(NF18,PK$2) -> 0
B19: Electricity Mix - Conveyor Belt | CF19: =SUMPRODUCT($C19:$CD19, 'TRACI IF'!$C$3:$CD$3) -> 0 | CG19: =SUMPRODUCT($C19:$CD19, 'TRACI IF'!$C$4:$CD$4) -> 0 | CH19: =SUMPRODUCT($C19:$CD19, 'TRACI IF'!$C$5:$CD$5) -> 0 | CI19: =SUMPRODUCT($C19:$CD19, 'TRACI IF'!$C$7:$CD$7) -> 0 | CJ19: =SUMPRODUCT($C19:$CD19, 'TRACI IF'!$C$6:$CD$6) -> 0 | CK19: =SUMPRODUCT($C19:$CD19, 'TRACI IF'!$C$8:$CD$8) -> 0 | CL19: =SUMPRODUCT($C19:$CD19, 'TRACI IF'!$C$9:$CD$9) -> 0 | CQ19: ='User Input'!$C$19 -> 0 | CW19: ='User Input'!$C$20 -> 0 | DC19: ='User Input'!$C$21 -> 0 | DI19: ='User Input'!$C$22 -> 1 | DO19: ='User Input'!$C$23 -> 0 | DU19: ='User Input'!$C$24 -> 0 | EA19: ='User Input'!$C$25 -> 0 | HL19: ='User Input'!$C$26 -> 1 | KD19: =KD21*EG21 -> 0.005981861657 | KE19: kWh | KF19: electricity | KI19: Electricity Mix - Conveyor Belt | KJ19: =INDEX(Mapping!$A$2:$A$98,MATCH(B19,Mapping!$C$2:$C$98,0)) -> Conveyor Belt Transport | KS19: 0 | KT19: 0 | KU19: 0 | KV19: 0 | KW19: 0 | KX19: 0 | KY19: 0 | KZ19: 0 | LA19: 0 | LB19: 0 | LC19: 0 | LD19: 0 | LE19: 0 | LF19: 0 | LG19: 0 | LH19: 0 | LI19: 0 | LJ19: 0 | LK19: 0 | LL19: 0 | LM19: 0 | LN19: 0 | LO19: 0 | LP19: 0 | LQ19: 0 | LR19: 0 | LS19: 0 | LT19: 0 | LU19: 0 | LV19: 0 | LW19: 0 | LX19: 0 | LY19: 0 | LZ19: 0 | MA19: 0 | MB19: 0 | MC19: 0 | MD19: 0 | ME19: 0 | MF19: 0 | MG19: 0 | MH19: 0 | MI19: 0 | MJ19: 0 | MK19: 0 | ML19: 0 | MM19: 0 | MN19: 0 | MO19: 0 | MP19: 0 | MQ19: 0 | MR19: 0 | MS19: 0 | MT19: 0 | MU19: 0 | MV19: 0 | MW19: 0 | MX19: 0 | MY19: 0 | MZ19: =CF19*$KD19+DistOutput() -> 0 | NA19: =CG19*$KD19+DistOutput() -> 0 | NB19: =CH19*$KD19+DistOutput() -> 0 | NC19: =CI19*$KD19+DistOutput() -> 0 | ND19: =CJ19*$KD19+DistOutput() -> 0 | NE19: =CK19*$KD19+DistOutput() -> 0 | NF19: =CL19*$KD19+DistOutput() -> 0 | NH19: =DistAvg($MZ19) -> 0 | NI19: =DistAvg($NA19) -> 0 | NJ19: =DistAvg($NB19) -> 0 | NK19: =DistAvg($NC19) -> 0 | NL19: =DistAvg($ND19) -> 0 | NM19: =DistAvg($NE19) -> 0 | NN19: =DistAvg($NF19) -> 0 | NO19: =DistMin(MZ19) -> 0 | NP19: =DistMin(NA19) -> 0 | NQ19: =DistMin(NB19) -> 0 | NR19: =DistMin(NC19) -> 0 | NS19: =DistMin(ND19) -> 0 | NT19: =DistMin(NE19) -> 0 | NU19: =DistMin(NF19) -> 0 | NV19: =DistMax(MZ19) -> 0 | NW19: =DistMax(NA19) -> 0 | NX19: =DistMax(NB19) -> 0 | NY19: =DistMax(NC19) -> 0 | NZ19: =DistMax(ND19) -> 0 | OA19: =DistMax(NE19) -> 0 | OB19: =DistMax(NF19) -> 0 | OC19: =DistPercentileInc(MZ19,OC$2) -> 0 | OD19: =DistPercentileInc(NA19,OD$2) -> 0 | OE19: =DistPercentileInc(NB19,OE$2) -> 0 | OF19: =DistPercentileInc(NC19,OF$2) -> 0 | OG19: =DistPercentileInc(ND19,OG$2) -> 0 | OH19: =DistPercentileInc(NE19,OH$2) -> 0 | OI19: =DistPercentileInc(NF19,OI$2) -> 0 | OJ19: =DistPercentileInc(MZ19,OJ$2) -> 0 | OK19: =DistPercentileInc(NA19,OK$2) -> 0 | OL19: =DistPercentileInc(NB19,OL$2) -> 0 | OM19: =DistPercentileInc(NC19,OM$2) -> 0 | ON19: =DistPercentileInc(ND19,ON$2) -> 0 | OO19: =DistPercentileInc(NE19,OO$2) -> 0 | OP19: =DistPercentileInc(NF19,OP$2) -> 0 | OQ19: =DistPercentileInc(MZ19,OQ$2) -> 0 | OR19: =DistPercentileInc(NA19,OR$2) -> 0 | OS19: =DistPercentileInc(NB19,OS$2) -> 0 | OT19: =DistPercentileInc(NC19,OT$2) -> 0 | OU19: =DistPercentileInc(ND19,OU$2) -> 0 | OV19: =DistPercentileInc(NE19,OV$2) -> 0 | OW19: =DistPercentileInc(NF19,OW$2) -> 0 | OX19: =DistPercentileInc(MZ19,OX$2) -> 0 | OY19: =DistPercentileInc(NA19,OY$2) -> 0 | OZ19: =DistPercentileInc(NB19,OZ$2) -> 0 | PA19: =DistPercentileInc(NC19,PA$2) -> 0 | PB19: =DistPercentileInc(ND19,PB$2) -> 0 | PC19: =DistPercentileInc(NE19,PC$2) -> 0 | PD19: =DistPercentileInc(NF19,PD$2) -> 0 | PE19: =DistPercentileInc(MZ19,PE$2) -> 0 | PF19: =DistPercentileInc(NA19,PF$2) -> 0 | PG19: =DistPercentileInc(NB19,PG$2) -> 0 | PH19: =DistPercentileInc(NC19,PH$2) -> 0 | PI19: =DistPercentileInc(ND19,PI$2) -> 0 | PJ19: =DistPercentileInc(NE19,PJ$2) -> 0 | PK19: =DistPercentileInc(NF19,PK$2) -> 0
B20: Electricity Mix - Underground Coal Handling | CF20: =SUMPRODUCT($C20:$CD20, 'TRACI IF'!$C$3:$CD$3) -> 0 | CG20: =SUMPRODUCT($C20:$CD20, 'TRACI IF'!$C$4:$CD$4) -> 0 | CH20: =SUMPRODUCT($C20:$CD20, 'TRACI IF'!$C$5:$CD$5) -> 0 | CI20: =SUMPRODUCT($C20:$CD20, 'TRACI IF'!$C$7:$CD$7) -> 0 | CJ20: =SUMPRODUCT($C20:$CD20, 'TRACI IF'!$C$6:$CD$6) -> 0 | CK20: =SUMPRODUCT($C20:$CD20, 'TRACI IF'!$C$8:$CD$8) -> 0 | CL20: =SUMPRODUCT($C20:$CD20, 'TRACI IF'!$C$9:$CD$9) -> 0 | CR20: ='User Input'!$C$19 -> 0 | CX20: ='User Input'!$C$20 -> 0 | DD20: ='User Input'!$C$21 -> 0 | DJ20: ='User Input'!$C$22 -> 1 | DP20: ='User Input'!$C$23 -> 0 | DV20: ='User Input'!$C$24 -> 0 | EB20: ='User Input'!$C$25 -> 0 | HM20: ='User Input'!$C$26 -> 1 | KD20: =KD36*EH36 -> 0 | KE20: kWh | KF20: electricity | KI20: Electricity Mix - Underground Coal Handling | KJ20: =INDEX(Mapping!$A$2:$A$98,MATCH(B20,Mapping!$C$2:$C$98,0)) -> Coal Handling - Underground | KS20: 0 | KT20: 0 | KU20: 0 | KV20: 0 | KW20: 0 | KX20: 0 | KY20: 0 | KZ20: 0 | LA20: 0 | LB20: 0 | LC20: 0 | LD20: 0 | LE20: 0 | LF20: 0 | LG20: 0 | LH20: 0 | LI20: 0 | LJ20: 0 | LK20: 0 | LL20: 0 | LM20: 0 | LN20: 0 | LO20: 0 | LP20: 0 | LQ20: 0 | LR20: 0 | LS20: 0 | LT20: 0 | LU20: 0 | LV20: 0 | LW20: 0 | LX20: 0 | LY20: 0 | LZ20: 0 | MA20: 0 | MB20: 0 | MC20: 0 | MD20: 0 | ME20: 0 | MF20: 0 | MG20: 0 | MH20: 0 | MI20: 0 | MJ20: 0 | MK20: 0 | ML20: 0 | MM20: 0 | MN20: 0 | MO20: 0 | MP20: 0 | MQ20: 0 | MR20: 0 | MS20: 0 | MT20: 0 | MU20: 0 | MV20: 0 | MW20: 0 | MX20: 0 | MY20: 0 | MZ20: =CF20*$KD20+DistOutput() -> 0 | NA20: =CG20*$KD20+DistOutput() -> 0 | NB20: =CH20*$KD20+DistOutput() -> 0 | NC20: =CI20*$KD20+DistOutput() -> 0 | ND20: =CJ20*$KD20+DistOutput() -> 0 | NE20: =CK20*$KD20+DistOutput() -> 0 | NF20: =CL20*$KD20+DistOutput() -> 0 | NH20: =DistAvg($MZ20) -> 0 | NI20: =DistAvg($NA20) -> 0 | NJ20: =DistAvg($NB20) -> 0 | NK20: =DistAvg($NC20) -> 0 | NL20: =DistAvg($ND20) -> 0 | NM20: =DistAvg($NE20) -> 0 | NN20: =DistAvg($NF20) -> 0 | NO20: =DistMin(MZ20) -> 0 | NP20: =DistMin(NA20) -> 0 | NQ20: =DistMin(NB20) -> 0 | NR20: =DistMin(NC20) -> 0 | NS20: =DistMin(ND20) -> 0 | NT20: =DistMin(NE20) -> 0 | NU20: =DistMin(NF20) -> 0 | NV20: =DistMax(MZ20) -> 0 | NW20: =DistMax(NA20) -> 0 | NX20: =DistMax(NB20) -> 0 | NY20: =DistMax(NC20) -> 0 | NZ20: =DistMax(ND20) -> 0 | OA20: =DistMax(NE20) -> 0 | OB20: =DistMax(NF20) -> 0 | OC20: =DistPercentileInc(MZ20,OC$2) -> 0 | OD20: =DistPercentileInc(NA20,OD$2) -> 0 | OE20: =DistPercentileInc(NB20,OE$2) -> 0 | OF20: =DistPercentileInc(NC20,OF$2) -> 0 | OG20: =DistPercentileInc(ND20,OG$2) -> 0 | OH20: =DistPercentileInc(NE20,OH$2) -> 0 | OI20: =DistPercentileInc(NF20,OI$2) -> 0 | OJ20: =DistPercentileInc(MZ20,OJ$2) -> 0 | OK20: =DistPercentileInc(NA20,OK$2) -> 0 | OL20: =DistPercentileInc(NB20,OL$2) -> 0 | OM20: =DistPercentileInc(NC20,OM$2) -> 0 | ON20: =DistPercentileInc(ND20,ON$2) -> 0 | OO20: =DistPercentileInc(NE20,OO$2) -> 0 | OP20: =DistPercentileInc(NF20,OP$2) -> 0 | OQ20: =DistPercentileInc(MZ20,OQ$2) -> 0 | OR20: =DistPercentileInc(NA20,OR$2) -> 0 | OS20: =DistPercentileInc(NB20,OS$2) -> 0 | OT20: =DistPercentileInc(NC20,OT$2) -> 0 | OU20: =DistPercentileInc(ND20,OU$2) -> 0 | OV20: =DistPercentileInc(NE20,OV$2) -> 0 | OW20: =DistPercentileInc(NF20,OW$2) -> 0 | OX20: =DistPercentileInc(MZ20,OX$2) -> 0 | OY20: =DistPercentileInc(NA20,OY$2) -> 0 | OZ20: =DistPercentileInc(NB20,OZ$2) -> 0 | PA20: =DistPercentileInc(NC20,PA$2) -> 0 | PB20: =DistPercentileInc(ND20,PB$2) -> 0 | PC20: =DistPercentileInc(NE20,PC$2) -> 0 | PD20: =DistPercentileInc(NF20,PD$2) -> 0 | PE20: =DistPercentileInc(MZ20,PE$2) -> 0 | PF20: =DistPercentileInc(NA20,PF$2) -> 0 | PG20: =DistPercentileInc(NB20,PG$2) -> 0 | PH20: =DistPercentileInc(NC20,PH$2) -> 0 | PI20: =DistPercentileInc(ND20,PI$2) -> 0 | PJ20: =DistPercentileInc(NE20,PJ$2) -> 0 | PK20: =DistPercentileInc(NF20,PK$2) -> 0
B21: Conveyor Belt Transport | CF21: =SUMPRODUCT($C21:$CD21, 'TRACI IF'!$C$3:$CD$3) -> 0 | CG21: =SUMPRODUCT($C21:$CD21, 'TRACI IF'!$C$4:$CD$4) -> 0 | CH21: =SUMPRODUCT($C21:$CD21, 'TRACI IF'!$C$5:$CD$5) -> 0 | CI21: =SUMPRODUCT($C21:$CD21, 'TRACI IF'!$C$7:$CD$7) -> 0 | CJ21: =SUMPRODUCT($C21:$CD21, 'TRACI IF'!$C$6:$CD$6) -> 0 | CK21: =SUMPRODUCT($C21:$CD21, 'TRACI IF'!$C$8:$CD$8) -> 0 | CL21: =SUMPRODUCT($C21:$CD21, 'TRACI IF'!$C$9:$CD$9) -> 0 | EG21: ='Conveyor Transport'!$C$1 -> 0.005981861657 | FG21: ='Conveyor Transport'!C7 -> 0 | FH21: ='Conveyor Transport'!C4 -> 0 | FI21: ='Conveyor Transport'!C5 -> 1 | JE21: ='Conveyor Transport'!C6 -> 1 | KD21: =KD22*FJ22 -> 1 | KE21: kg | KF21: truck in/conveyor out | KI21: Conveyor Belt Transport | KJ21: =INDEX(Mapping!$A$2:$A$98,MATCH(B21,Mapping!$C$2:$C$98,0)) -> Conveyor Belt Transport | KS21: 0 | KT21: 0 | KU21: 0 | KV21: 0 | KW21: 0 | KX21: 0 | KY21: 0 | KZ21: 0 | LA21: 0 | LB21: 0 | LC21: 0 | LD21: 0 | LE21: 0 | LF21: 0 | LG21: 0 | LH21: 0 | LI21: 0 | LJ21: 0 | LK21: 0 | LL21: 0 | LM21: 0 | LN21: 0 | LO21: 0 | LP21: 0 | LQ21: 0 | LR21: 0 | LS21: 0 | LT21: 0 | LU21: 0 | LV21: 0 | LW21: 0 | LX21: 0 | LY21: 0 | LZ21: 0 | MA21: 0 | MB21: 0 | MC21: 0 | MD21: 0 | ME21: 0 | MF21: 0 | MG21: 0 | MH21: 0 | MI21: 0 | MJ21: 0 | MK21: 0 | ML21: 0 | MM21: 0 | MN21: 0 | MO21: 0 | MP21: 0 | MQ21: 0 | MR21: 0 | MS21: 0 | MT21: 0 | MU21: 0 | MV21: 0 | MW21: 0 | MX21: 0 | MY21: 0 | MZ21: =CF21*$KD21+DistOutput() -> 0 | NA21: =CG21*$KD21+DistOutput() -> 0 | NB21: =CH21*$KD21+DistOutput() -> 0 | NC21: =CI21*$KD21+DistOutput() -> 0 | ND21: =CJ21*$KD21+DistOutput() -> 0 | NE21: =CK21*$KD21+DistOutput() -> 0 | NF21: =CL21*$KD21+DistOutput() -> 0 | NH21: =DistAvg($MZ21) -> 0 | NI21: =DistAvg($NA21) -> 0 | NJ21: =DistAvg($NB21) -> 0 | NK21: =DistAvg($NC21) -> 0 | NL21: =DistAvg($ND21) -> 0 | NM21: =DistAvg($NE21) -> 0 | NN21: =DistAvg($NF21) -> 0 | NO21: =DistMin(MZ21) -> 0 | NP21: =DistMin(NA21) -> 0 | NQ21: =DistMin(NB21) -> 0 | NR21: =DistMin(NC21) -> 0 | NS21: =DistMin(ND21) -> 0 | NT21: =DistMin(NE21) -> 0 | NU21: =DistMin(NF21) -> 0 | NV21: =DistMax(MZ21) -> 0 | NW21: =DistMax(NA21) -> 0 | NX21: =DistMax(NB21) -> 0 | NY21: =DistMax(NC21) -> 0 | NZ21: =DistMax(ND21) -> 0 | OA21: =DistMax(NE21) -> 0 | OB21: =DistMax(NF21) -> 0 | OC21: =DistPercentileInc(MZ21,OC$2) -> 0 | OD21: =DistPercentileInc(NA21,OD$2) -> 0 | OE21: =DistPercentileInc(NB21,OE$2) -> 0 | OF21: =DistPercentileInc(NC21,OF$2) -> 0 | OG21: =DistPercentileInc(ND21,OG$2) -> 0 | OH21: =DistPercentileInc(NE21,OH$2) -> 0 | OI21: =DistPercentileInc(NF21,OI$2) -> 0 | OJ21: =DistPercentileInc(MZ21,OJ$2) -> 0 | OK21: =DistPercentileInc(NA21,OK$2) -> 0 | OL21: =DistPercentileInc(NB21,OL$2) -> 0 | OM21: =DistPercentileInc(NC21,OM$2) -> 0 | ON21: =DistPercentileInc(ND21,ON$2) -> 0 | OO21: =DistPercentileInc(NE21,OO$2) -> 0 | OP21: =DistPercentileInc(NF21,OP$2) -> 0 | OQ21: =DistPercentileInc(MZ21,OQ$2) -> 0 | OR21: =DistPercentileInc(NA21,OR$2) -> 0 | OS21: =DistPercentileInc(NB21,OS$2) -> 0 | OT21: =DistPercentileInc(NC21,OT$2) -> 0 | OU21: =DistPercentileInc(ND21,OU$2) -> 0 | OV21: =DistPercentileInc(NE21,OV$2) -> 0 | OW21: =DistPercentileInc(NF21,OW$2) -> 0 | OX21: =DistPercentileInc(MZ21,OX$2) -> 0 | OY21: =DistPercentileInc(NA21,OY$2) -> 0 | OZ21: =DistPercentileInc(NB21,OZ$2) -> 0 | PA21: =DistPercentileInc(NC21,PA$2) -> 0 | PB21: =DistPercentileInc(ND21,PB$2) -> 0 | PC21: =DistPercentileInc(NE21,PC$2) -> 0 | PD21: =DistPercentileInc(NF21,PD$2) -> 0 | PE21: =DistPercentileInc(MZ21,PE$2) -> 0 | PF21: =DistPercentileInc(NA21,PF$2) -> 0 | PG21: =DistPercentileInc(NB21,PG$2) -> 0 | PH21: =DistPercentileInc(NC21,PH$2) -> 0 | PI21: =DistPercentileInc(ND21,PI$2) -> 0 | PJ21: =DistPercentileInc(NE21,PJ$2) -> 0 | PK21: =DistPercentileInc(NF21,PK$2) -> 0
B22: Truck Transport | C22: ='Truck Transport'!I67 -> 1.824988809e-08 | F22: ='Truck Transport'!I65 -> 3.946538299e-07 | H22: ='Truck Transport'!I69 -> 6.436005533e-09 | I22: ='Truck Transport'!I71 -> 6.697708928e-08 | J22: ='Truck Transport'!I66 -> 0.0009119986103 | K22: ='Truck Transport'!I68 -> 2.345110619e-08 | L22: ='Truck Transport'!I70 -> 3.348854464e-09 | M22: ='Truck Transport'!I72 -> 2.094630905e-06 | N22: ='Truck Transport'!I73 -> 4.954959516e-20 | O22: ='Truck Transport'!I74 -> 4.133788741e-08 | CF22: =SUMPRODUCT($C22:$CD22, 'TRACI IF'!$C$3:$CD$3) -> 1.310351964e-07 | CG22: =SUMPRODUCT($C22:$CD22, 'TRACI IF'!$C$4:$CD$4) -> 7.886293657e-09 | CH22: =SUMPRODUCT($C22:$CD22, 'TRACI IF'!$C$5:$CD$5) -> 0.000918944609 | CI22: =SUMPRODUCT($C22:$CD22, 'TRACI IF'!$C$7:$CD$7) -> 0 | CJ22: =SUMPRODUCT($C22:$CD22, 'TRACI IF'!$C$6:$CD$6) -> 5.143279033e-09 | CK22: =SUMPRODUCT($C22:$CD22, 'TRACI IF'!$C$8:$CD$8) -> 3.198509878e-06 | CL22: =SUMPRODUCT($C22:$CD22, 'TRACI IF'!$C$9:$CD$9) -> 0 | FJ22: ='Truck Transport'!I56 -> 1 | FK22: ='Truck Transport'!I58 -> 0 | FX22: ='Truck Transport'!I57 -> 0.000316851857 | JG22: ='Truck Transport'!I64 -> 1 | KD22: =KD23*FL23 -> 1 | KE22: kg | KF22: ocean in/truck out coal | KI22: Truck Transport | KJ22: =INDEX(Mapping!$A$2:$A$98,MATCH(B22,Mapping!$C$2:$C$98,0)) -> Truck Transport | KS22: 1.824988809e-08 | KT22: 0 | KU22: 0 | KV22: 3.946538299e-07 | KW22: 0 | KX22: 6.436005533e-09 | KY22: 6.697708928e-08 | KZ22: 0.0009119986103 | LA22: 2.345110619e-08 | LB22: 3.348854464e-09 | LC22: 2.094630905e-06 | LD22: 4.954959516e-20 | LE22: 4.133788741e-08 | LF22: 0 | LG22: 0 | LH22: 0 | LI22: 0 | LJ22: 0 | LK22: 0 | LL22: 0 | LM22: 0 | LN22: 0 | LO22: 0 | LP22: 0 | LQ22: 0 | LR22: 0 | LS22: 0 | LT22: 0 | LU22: 0 | LV22: 0 | LW22: 0 | LX22: 0 | LY22: 0 | LZ22: 0 | MA22: 0 | MB22: 0 | MC22: 0 | MD22: 0 | ME22: 0 | MF22: 0 | MG22: 0 | MH22: 0 | MI22: 0 | MJ22: 0 | MK22: 0 | ML22: 0 | MM22: 0 | MN22: 0 | MO22: 0 | MP22: 0 | MQ22: 0 | MR22: 0 | MS22: 0 | MT22: 0 | MU22: 0 | MV22: 0 | MW22: 0 | MX22: 0 | MY22: 0 | MZ22: =CF22*$KD22+DistOutput() -> 1.310351964e-07 | NA22: =CG22*$KD22+DistOutput() -> 7.886293657e-09 | NB22: =CH22*$KD22+DistOutput() -> 0.000918944609 | NC22: =CI22*$KD22+DistOutput() -> 0 | ND22: =CJ22*$KD22+DistOutput() -> 5.143279033e-09 | NE22: =CK22*$KD22+DistOutput() -> 3.198509878e-06 | NF22: =CL22*$KD22+DistOutput() -> 0 | NH22: =DistAvg($MZ22) -> 0 | NI22: =DistAvg($NA22) -> 0 | NJ22: =DistAvg($NB22) -> 0 | NK22: =DistAvg($NC22) -> 0 | NL22: =DistAvg($ND22) -> 0 | NM22: =DistAvg($NE22) -> 0 | NN22: =DistAvg($NF22) -> 0 | NO22: =DistMin(MZ22) -> 0 | NP22: =DistMin(NA22) -> 0 | NQ22: =DistMin(NB22) -> 0 | NR22: =DistMin(NC22) -> 0 | NS22: =DistMin(ND22) -> 0 | NT22: =DistMin(NE22) -> 0 | NU22: =DistMin(NF22) -> 0 | NV22: =DistMax(MZ22) -> 0 | NW22: =DistMax(NA22) -> 0 | NX22: =DistMax(NB22) -> 0 | NY22: =DistMax(NC22) -> 0 | NZ22: =DistMax(ND22) -> 0 | OA22: =DistMax(NE22) -> 0 | OB22: =DistMax(NF22) -> 0 | OC22: =DistPercentileInc(MZ22,OC$2) -> 0 | OD22: =DistPercentileInc(NA22,OD$2) -> 0 | OE22: =DistPercentileInc(NB22,OE$2) -> 0 | OF22: =DistPercentileInc(NC22,OF$2) -> 0 | OG22: =DistPercentileInc(ND22,OG$2) -> 0 | OH22: =DistPercentileInc(NE22,OH$2) -> 0 | OI22: =DistPercentileInc(NF22,OI$2) -> 0 | OJ22: =DistPercentileInc(MZ22,OJ$2) -> 0 | OK22: =DistPercentileInc(NA22,OK$2) -> 0 | OL22: =DistPercentileInc(NB22,OL$2) -> 0 | OM22: =DistPercentileInc(NC22,OM$2) -> 0 | ON22: =DistPercentileInc(ND22,ON$2) -> 0 | OO22: =DistPercentileInc(NE22,OO$2) -> 0 | OP22: =DistPercentileInc(NF22,OP$2) -> 0 | OQ22: =DistPercentileInc(MZ22,OQ$2) -> 0 | OR22: =DistPercentileInc(NA22,OR$2) -> 0 | OS22: =DistPercentileInc(NB22,OS$2) -> 0 | OT22: =DistPercentileInc(NC22,OT$2) -> 0 | OU22: =DistPercentileInc(ND22,OU$2) -> 0 | OV22: =DistPercentileInc(NE22,OV$2) -> 0 | OW22: =DistPercentileInc(NF22,OW$2) -> 0 | OX22: =DistPercentileInc(MZ22,OX$2) -> 0 | OY22: =DistPercentileInc(NA22,OY$2) -> 0 | OZ22: =DistPercentileInc(NB22,OZ$2) -> 0 | PA22: =DistPercentileInc(NC22,PA$2) -> 0 | PB22: =DistPercentileInc(ND22,PB$2) -> 0 | PC22: =DistPercentileInc(NE22,PC$2) -> 0 | PD22: =DistPercentileInc(NF22,PD$2) -> 0 | PE22: =DistPercentileInc(MZ22,PE$2) -> 0 | PF22: =DistPercentileInc(NA22,PF$2) -> 0 | PG22: =DistPercentileInc(NB22,PG$2) -> 0 | PH22: =DistPercentileInc(NC22,PH$2) -> 0 | PI22: =DistPercentileInc(ND22,PI$2) -> 0 | PJ22: =DistPercentileInc(NE22,PJ$2) -> 0 | PK22: =DistPercentileInc(NF22,PK$2) -> 0
B23: Ocean Vessel Transport | CF23: =SUMPRODUCT($C23:$CD23, 'TRACI IF'!$C$3:$CD$3) -> 0 | CG23: =SUMPRODUCT($C23:$CD23, 'TRACI IF'!$C$4:$CD$4) -> 0 | CH23: =SUMPRODUCT($C23:$CD23, 'TRACI IF'!$C$5:$CD$5) -> 0 | CI23: =SUMPRODUCT($C23:$CD23, 'TRACI IF'!$C$7:$CD$7) -> 0 | CJ23: =SUMPRODUCT($C23:$CD23, 'TRACI IF'!$C$6:$CD$6) -> 0 | CK23: =SUMPRODUCT($C23:$CD23, 'TRACI IF'!$C$8:$CD$8) -> 0 | CL23: =SUMPRODUCT($C23:$CD23, 'TRACI IF'!$C$9:$CD$9) -> 0 | FL23: ='Ocean Vessel Trans'!I42 -> 1 | FM23: ='Ocean Vessel Trans'!I43 -> 0 | FY23: ='Ocean Vessel Trans'!I40 -> 2.027327011e-06 | GD23: ='Ocean Vessel Trans'!I41 -> 4.709209409e-06 | JI23: ='Ocean Vessel Trans'!I49 -> 1 | KD23: =KD24*FO24 -> 1 | KE23: kg | KF23: barge in/ocean out coal | KI23: Ocean Vessel Transport | KJ23: =INDEX(Mapping!$A$2:$A$98,MATCH(B23,Mapping!$C$2:$C$98,0)) -> Ocean Vessel Transport | KS23: 0 | KT23: 0 | KU23: 0 | KV23: 0 | KW23: 0 | KX23: 0 | KY23: 0 | KZ23: 0 | LA23: 0 | LB23: 0 | LC23: 0 | LD23: 0 | LE23: 0 | LF23: 0 | LG23: 0 | LH23: 0 | LI23: 0 | LJ23: 0 | LK23: 0 | LL23: 0 | LM23: 0 | LN23: 0 | LO23: 0 | LP23: 0 | LQ23: 0 | LR23: 0 | LS23: 0 | LT23: 0 | LU23: 0 | LV23: 0 | LW23: 0 | LX23: 0 | LY23: 0 | LZ23: 0 | MA23: 0 | MB23: 0 | MC23: 0 | MD23: 0 | ME23: 0 | MF23: 0 | MG23: 0 | MH23: 0 | MI23: 0 | MJ23: 0 | MK23: 0 | ML23: 0 | MM23: 0 | MN23: 0 | MO23: 0 | MP23: 0 | MQ23: 0 | MR23: 0 | MS23: 0 | MT23: 0 | MU23: 0 | MV23: 0 | MW23: 0 | MX23: 0 | MY23: 0 | MZ23: =CF23*$KD23+DistOutput() -> 0 | NA23: =CG23*$KD23+DistOutput() -> 0 | NB23: =CH23*$KD23+DistOutput() -> 0 | NC23: =CI23*$KD23+DistOutput() -> 0 | ND23: =CJ23*$KD23+DistOutput() -> 0 | NE23: =CK23*$KD23+DistOutput() -> 0 | NF23: =CL23*$KD23+DistOutput() -> 0 | NH23: =DistAvg($MZ23) -> 0 | NI23: =DistAvg($NA23) -> 0 | NJ23: =DistAvg($NB23) -> 0 | NK23: =DistAvg($NC23) -> 0 | NL23: =DistAvg($ND23) -> 0 | NM23: =DistAvg($NE23) -> 0 | NN23: =DistAvg($NF23) -> 0 | NO23: =DistMin(MZ23) -> 0 | NP23: =DistMin(NA23) -> 0 | NQ23: =DistMin(NB23) -> 0 | NR23: =DistMin(NC23) -> 0 | NS23: =DistMin(ND23) -> 0 | NT23: =DistMin(NE23) -> 0 | NU23: =DistMin(NF23) -> 0 | NV23: =DistMax(MZ23) -> 0 | NW23: =DistMax(NA23) -> 0 | NX23: =DistMax(NB23) -> 0 | NY23: =DistMax(NC23) -> 0 | NZ23: =DistMax(ND23) -> 0 | OA23: =DistMax(NE23) -> 0 | OB23: =DistMax(NF23) -> 0 | OC23: =DistPercentileInc(MZ23,OC$2) -> 0 | OD23: =DistPercentileInc(NA23,OD$2) -> 0 | OE23: =DistPercentileInc(NB23,OE$2) -> 0 | OF23: =DistPercentileInc(NC23,OF$2) -> 0 | OG23: =DistPercentileInc(ND23,OG$2) -> 0 | OH23: =DistPercentileInc(NE23,OH$2) -> 0 | OI23: =DistPercentileInc(NF23,OI$2) -> 0 | OJ23: =DistPercentileInc(MZ23,OJ$2) -> 0 | OK23: =DistPercentileInc(NA23,OK$2) -> 0 | OL23: =DistPercentileInc(NB23,OL$2) -> 0 | OM23: =DistPercentileInc(NC23,OM$2) -> 0 | ON23: =DistPercentileInc(ND23,ON$2) -> 0 | OO23: =DistPercentileInc(NE23,OO$2) -> 0 | OP23: =DistPercentileInc(NF23,OP$2) -> 0 | OQ23: =DistPercentileInc(MZ23,OQ$2) -> 0 | OR23: =DistPercentileInc(NA23,OR$2) -> 0 | OS23: =DistPercentileInc(NB23,OS$2) -> 0 | OT23: =DistPercentileInc(NC23,OT$2) -> 0 | OU23: =DistPercentileInc(ND23,OU$2) -> 0 | OV23: =DistPercentileInc(NE23,OV$2) -> 0 | OW23: =DistPercentileInc(NF23,OW$2) -> 0 | OX23: =DistPercentileInc(MZ23,OX$2) -> 0 | OY23: =DistPercentileInc(NA23,OY$2) -> 0 | OZ23: =DistPercentileInc(NB23,OZ$2) -> 0 | PA23: =DistPercentileInc(NC23,PA$2) -> 0 | PB23: =DistPercentileInc(ND23,PB$2) -> 0 | PC23: =DistPercentileInc(NE23,PC$2) -> 0 | PD23: =DistPercentileInc(NF23,PD$2) -> 0 | PE23: =DistPercentileInc(MZ23,PE$2) -> 0 | PF23: =DistPercentileInc(NA23,PF$2) -> 0 | PG23: =DistPercentileInc(NB23,PG$2) -> 0 | PH23: =DistPercentileInc(NC23,PH$2) -> 0 | PI23: =DistPercentileInc(ND23,PI$2) -> 0 | PJ23: =DistPercentileInc(NE23,PJ$2) -> 0 | PK23: =DistPercentileInc(NF23,PK$2) -> 0
B24: Barge Transport | CF24: =SUMPRODUCT($C24:$CD24, 'TRACI IF'!$C$3:$CD$3) -> 0 | CG24: =SUMPRODUCT($C24:$CD24, 'TRACI IF'!$C$4:$CD$4) -> 0 | CH24: =SUMPRODUCT($C24:$CD24, 'TRACI IF'!$C$5:$CD$5) -> 0 | CI24: =SUMPRODUCT($C24:$CD24, 'TRACI IF'!$C$7:$CD$7) -> 0 | CJ24: =SUMPRODUCT($C24:$CD24, 'TRACI IF'!$C$6:$CD$6) -> 0 | CK24: =SUMPRODUCT($C24:$CD24, 'TRACI IF'!$C$8:$CD$8) -> 0 | CL24: =SUMPRODUCT($C24:$CD24, 'TRACI IF'!$C$9:$CD$9) -> 0 | FN24: ='Barge Transport'!I42 -> 0 | FO24: ='Barge Transport'!I41 -> 1 | FZ24: ='Barge Transport'!I39 -> 0.0001516143939 | GE24: ='Barge Transport'!I40 -> 0.0003521799525 | JK24: ='Barge Transport'!I48 -> 1 | KD24: =KD25*FP25 -> 1 | KE24: kg | KF24: train in/barge out coal | KI24: Barge Transport | KJ24: =INDEX(Mapping!$A$2:$A$98,MATCH(B24,Mapping!$C$2:$C$98,0)) -> Barge Transport | KS24: 0 | KT24: 0 | KU24: 0 | KV24: 0 | KW24: 0 | KX24: 0 | KY24: 0 | KZ24: 0 | LA24: 0 | LB24: 0 | LC24: 0 | LD24: 0 | LE24: 0 | LF24: 0 | LG24: 0 | LH24: 0 | LI24: 0 | LJ24: 0 | LK24: 0 | LL24: 0 | LM24: 0 | LN24: 0 | LO24: 0 | LP24: 0 | LQ24: 0 | LR24: 0 | LS24: 0 | LT24: 0 | LU24: 0 | LV24: 0 | LW24: 0 | LX24: 0 | LY24: 0 | LZ24: 0 | MA24: 0 | MB24: 0 | MC24: 0 | MD24: 0 | ME24: 0 | MF24: 0 | MG24: 0 | MH24: 0 | MI24: 0 | MJ24: 0 | MK24: 0 | ML24: 0 | MM24: 0 | MN24: 0 | MO24: 0 | MP24: 0 | MQ24: 0 | MR24: 0 | MS24: 0 | MT24: 0 | MU24: 0 | MV24: 0 | MW24: 0 | MX24: 0 | MY24: 0 | MZ24: =CF24*$KD24+DistOutput() -> 0 | NA24: =CG24*$KD24+DistOutput() -> 0 | NB24: =CH24*$KD24+DistOutput() -> 0 | NC24: =CI24*$KD24+DistOutput() -> 0 | ND24: =CJ24*$KD24+DistOutput() -> 0 | NE24: =CK24*$KD24+DistOutput() -> 0 | NF24: =CL24*$KD24+DistOutput() -> 0 | NH24: =DistAvg($MZ24) -> 0 | NI24: =DistAvg($NA24) -> 0 | NJ24: =DistAvg($NB24) -> 0 | NK24: =DistAvg($NC24) -> 0 | NL24: =DistAvg($ND24) -> 0 | NM24: =DistAvg($NE24) -> 0 | NN24: =DistAvg($NF24) -> 0 | NO24: =DistMin(MZ24) -> 0 | NP24: =DistMin(NA24) -> 0 | NQ24: =DistMin(NB24) -> 0 | NR24: =DistMin(NC24) -> 0 | NS24: =DistMin(ND24) -> 0 | NT24: =DistMin(NE24) -> 0 | NU24: =DistMin(NF24) -> 0 | NV24: =DistMax(MZ24) -> 0 | NW24: =DistMax(NA24) -> 0 | NX24: =DistMax(NB24) -> 0 | NY24: =DistMax(NC24) -> 0 | NZ24: =DistMax(ND24) -> 0 | OA24: =DistMax(NE24) -> 0 | OB24: =DistMax(NF24) -> 0 | OC24: =DistPercentileInc(MZ24,OC$2) -> 0 | OD24: =DistPercentileInc(NA24,OD$2) -> 0 | OE24: =DistPercentileInc(NB24,OE$2) -> 0 | OF24: =DistPercentileInc(NC24,OF$2) -> 0 | OG24: =DistPercentileInc(ND24,OG$2) -> 0 | OH24: =DistPercentileInc(NE24,OH$2) -> 0 | OI24: =DistPercentileInc(NF24,OI$2) -> 0 | OJ24: =DistPercentileInc(MZ24,OJ$2) -> 0 | OK24: =DistPercentileInc(NA24,OK$2) -> 0 | OL24: =DistPercentileInc(NB24,OL$2) -> 0 | OM24: =DistPercentileInc(NC24,OM$2) -> 0 | ON24: =DistPercentileInc(ND24,ON$2) -> 0 | OO24: =DistPercentileInc(NE24,OO$2) -> 0 | OP24: =DistPercentileInc(NF24,OP$2) -> 0 | OQ24: =DistPercentileInc(MZ24,OQ$2) -> 0 | OR24: =DistPercentileInc(NA24,OR$2) -> 0 | OS24: =DistPercentileInc(NB24,OS$2) -> 0 | OT24: =DistPercentileInc(NC24,OT$2) -> 0 | OU24: =DistPercentileInc(ND24,OU$2) -> 0 | OV24: =DistPercentileInc(NE24,OV$2) -> 0 | OW24: =DistPercentileInc(NF24,OW$2) -> 0 | OX24: =DistPercentileInc(MZ24,OX$2) -> 0 | OY24: =DistPercentileInc(NA24,OY$2) -> 0 | OZ24: =DistPercentileInc(NB24,OZ$2) -> 0 | PA24: =DistPercentileInc(NC24,PA$2) -> 0 | PB24: =DistPercentileInc(ND24,PB$2) -> 0 | PC24: =DistPercentileInc(NE24,PC$2) -> 0 | PD24: =DistPercentileInc(NF24,PD$2) -> 0 | PE24: =DistPercentileInc(MZ24,PE$2) -> 0 | PF24: =DistPercentileInc(NA24,PF$2) -> 0 | PG24: =DistPercentileInc(NB24,PG$2) -> 0 | PH24: =DistPercentileInc(NC24,PH$2) -> 0 | PI24: =DistPercentileInc(ND24,PI$2) -> 0 | PJ24: =DistPercentileInc(NE24,PJ$2) -> 0 | PK24: =DistPercentileInc(NF24,PK$2) -> 0
B25: Train Transport | C25: ='Train Transport'!I66 -> 0 | F25: ='Train Transport'!I71 -> 0 | H25: ='Train Transport'!I68 -> 0 | I25: ='Train Transport'!I69 -> 0 | J25: ='Train Transport'!I65 -> 0 | K25: ='Train Transport'!I67 -> 0 | L25: ='Train Transport'!I70 -> 1.547828465e-05 | M25: ='Train Transport'!I72 -> 0 | N25: ='Train Transport'!I73 -> 0 | O25: ='Train Transport'!I74 -> 0 | CF25: =SUMPRODUCT($C25:$CD25, 'TRACI IF'!$C$3:$CD$3) -> 0 | CG25: =SUMPRODUCT($C25:$CD25, 'TRACI IF'!$C$4:$CD$4) -> 0 | CH25: =SUMPRODUCT($C25:$CD25, 'TRACI IF'!$C$5:$CD$5) -> 0 | CI25: =SUMPRODUCT($C25:$CD25, 'TRACI IF'!$C$7:$CD$7) -> 0 | CJ25: =SUMPRODUCT($C25:$CD25, 'TRACI IF'!$C$6:$CD$6) -> 3.5290489e-06 | CK25: =SUMPRODUCT($C25:$CD25, 'TRACI IF'!$C$8:$CD$8) -> 0 | CL25: =SUMPRODUCT($C25:$CD25, 'TRACI IF'!$C$9:$CD$9) -> 0 | FP25: ='Train Transport'!I56 -> 1 | FQ25: ='Train Transport'!I57 -> 0 | GA25: ='Train Transport'!I55 -> 0.0006481940174 | JM25: ='Train Transport'!I63 -> 1 | KD25: 1 | KE25: kg | KF25: coal, delivered | KI25: Train Transport | KJ25: =INDEX(Mapping!$A$2:$A$98,MATCH(B25,Mapping!$C$2:$C$98,0)) -> Train Transport | KS25: 0 | KT25: 0 | KU25: 0 | KV25: 0 | KW25: 0 | KX25: 0 | KY25: 0 | KZ25: 0 | LA25: 0 | LB25: 1.547828465e-05 | LC25: 0 | LD25: 0 | LE25: 0 | LF25: 0 | LG25: 0 | LH25: 0 | LI25: 0 | LJ25: 0 | LK25: 0 | LL25: 0 | LM25: 0 | LN25: 0 | LO25: 0 | LP25: 0 | LQ25: 0 | LR25: 0 | LS25: 0 | LT25: 0 | LU25: 0 | LV25: 0 | LW25: 0 | LX25: 0 | LY25: 0 | LZ25: 0 | MA25: 0 | MB25: 0 | MC25: 0 | MD25: 0 | ME25: 0 | MF25: 0 | MG25: 0 | MH25: 0 | MI25: 0 | MJ25: 0 | MK25: 0 | ML25: 0 | MM25: 0 | MN25: 0 | MO25: 0 | MP25: 0 | MQ25: 0 | MR25: 0 | MS25: 0 | MT25: 0 | MU25: 0 | MV25: 0 | MW25: 0 | MX25: 0 | MY25: 0 | MZ25: =CF25*$KD25+DistOutput() -> 0 | NA25: =CG25*$KD25+DistOutput() -> 0 | NB25: =CH25*$KD25+DistOutput() -> 0 | NC25: =CI25*$KD25+DistOutput() -> 0 | ND25: =CJ25*$KD25+DistOutput() -> 3.5290489e-06 | NE25: =CK25*$KD25+DistOutput() -> 0 | NF25: =CL25*$KD25+DistOutput() -> 0 | NH25: =DistAvg($MZ25) -> 0 | NI25: =DistAvg($NA25) -> 0 | NJ25: =DistAvg($NB25) -> 0 | NK25: =DistAvg($NC25) -> 0 | NL25: =DistAvg($ND25) -> 0 | NM25: =DistAvg($NE25) -> 0 | NN25: =DistAvg($NF25) -> 0 | NO25: =DistMin(MZ25) -> 0 | NP25: =DistMin(NA25) -> 0 | NQ25: =DistMin(NB25) -> 0 | NR25: =DistMin(NC25) -> 0 | NS25: =DistMin(ND25) -> 0 | NT25: =DistMin(NE25) -> 0 | NU25: =DistMin(NF25) -> 0 | NV25: =DistMax(MZ25) -> 0 | NW25: =DistMax(NA25) -> 0 | NX25: =DistMax(NB25) -> 0 | NY25: =DistMax(NC25) -> 0 | NZ25: =DistMax(ND25) -> 0 | OA25: =DistMax(NE25) -> 0 | OB25: =DistMax(NF25) -> 0 | OC25: =DistPercentileInc(MZ25,OC$2) -> 0 | OD25: =DistPercentileInc(NA25,OD$2) -> 0 | OE25: =DistPercentileInc(NB25,OE$2) -> 0 | OF25: =DistPercentileInc(NC25,OF$2) -> 0 | OG25: =DistPercentileInc(ND25,OG$2) -> 0 | OH25: =DistPercentileInc(NE25,OH$2) -> 0 | OI25: =DistPercentileInc(NF25,OI$2) -> 0 | OJ25: =DistPercentileInc(MZ25,OJ$2) -> 0 | OK25: =DistPercentileInc(NA25,OK$2) -> 0 | OL25: =DistPercentileInc(NB25,OL$2) -> 0 | OM25: =DistPercentileInc(NC25,OM$2) -> 0 | ON25: =DistPercentileInc(ND25,ON$2) -> 0 | OO25: =DistPercentileInc(NE25,OO$2) -> 0 | OP25: =DistPercentileInc(NF25,OP$2) -> 0 | OQ25: =DistPercentileInc(MZ25,OQ$2) -> 0 | OR25: =DistPercentileInc(NA25,OR$2) -> 0 | OS25: =DistPercentileInc(NB25,OS$2) -> 0 | OT25: =DistPercentileInc(NC25,OT$2) -> 0 | OU25: =DistPercentileInc(ND25,OU$2) -> 0 | OV25: =DistPercentileInc(NE25,OV$2) -> 0 | OW25: =DistPercentileInc(NF25,OW$2) -> 0 | OX25: =DistPercentileInc(MZ25,OX$2) -> 0 | OY25: =DistPercentileInc(NA25,OY$2) -> 0 | OZ25: =DistPercentileInc(NB25,OZ$2) -> 0 | PA25: =DistPercentileInc(NC25,PA$2) -> 0 | PB25: =DistPercentileInc(ND25,PB$2) -> 0 | PC25: =DistPercentileInc(NE25,PC$2) -> 0 | PD25: =DistPercentileInc(NF25,PD$2) -> 0 | PE25: =DistPercentileInc(MZ25,PE$2) -> 0 | PF25: =DistPercentileInc(NA25,PF$2) -> 0 | PG25: =DistPercentileInc(NB25,PG$2) -> 0 | PH25: =DistPercentileInc(NC25,PH$2) -> 0 | PI25: =DistPercentileInc(ND25,PI$2) -> 0 | PJ25: =DistPercentileInc(NE25,PJ$2) -> 0 | PK25: =DistPercentileInc(NF25,PK$2) -> 0
B26: Diesel Comb, Extraction, Underground | C26: ='Diesel Combustion'!$I$110 -> 0.0001284606951 | D26: ='Diesel Combustion'!$I$136 -> 0 | E26: ='Diesel Combustion'!$I$137 -> 0.00604005762 | F26: ='Diesel Combustion'!$I$150 -> 0 | G26: ='Diesel Combustion'!$I$135 -> 0.779167433 | H26: ='Diesel Combustion'!$I$144 -> 0 | I26: ='Diesel Combustion'!$I$133 -> 0 | J26: ='Diesel Combustion'!$I$115 -> 3.198984628 | K26: ='Diesel Combustion'!$I$127 -> 2.506550149e-05 | M26: ='Diesel Combustion'!$I$114 -> 0.01847547037 | N26: ='Diesel Combustion'!$I$126 -> 5.568506769e-09 | O26: ='Diesel Combustion'!$I$129 -> 0 | P26: ='Diesel Combustion'!$I$121 -> 0 | Q26: ='Diesel Combustion'!$I$131 -> 0.08194543069 | R26: ='Diesel Combustion'!$I$132 -> 0.003894447021 | S26: ='Diesel Combustion'!$I$138 -> 0.004650844368 | T26: ='Diesel Combustion'!$I$139 -> 0.0009301688735 | U26: ='Diesel Combustion'!$I$94 -> 7.223908914e-07 | V26: ='Diesel Combustion'!$I$95 -> 2.623516792e-08 | W26: ='Diesel Combustion'!$I$97 -> 1.417068577e-05 | X26: ='Diesel Combustion'!$I$98 -> 1.708981009e-06 | Y26: ='Diesel Combustion'!$I$99 -> 0.001293282926 | Z26: ='Diesel Combustion'!$I$100 -> 3.454912959e-08 | AA26: ='Diesel Combustion'!$I$102 -> 1.723761385e-05 | AB26: ='Diesel Combustion'!I$103 -> 3.103879022e-08 | AC26: ='Diesel Combustion'!$I$104 -> 3.473388429e-09 | AD26: ='Diesel Combustion'!$I$116 -> 1.077119922e-08 | AE26: ='Diesel Combustion'!$I$118 -> 1.405983295e-07 | AF26: ='Diesel Combustion'!$I$119 -> 5.394837348e-07 | AG26: ='Diesel Combustion'!$I$120 -> 2.180105503e-05 | AH26: ='Diesel Combustion'!$I$123 -> 5.265509055e-06 | AI26: ='Diesel Combustion'!$I$128 -> 1.566719887e-06 | AJ26: ='Diesel Combustion'!$I$134 -> 5.431788288e-07 | AK26: ='Diesel Combustion'!$I$140 -> 3.103879022e-06 | AL26: ='Diesel Combustion'!$I$141 -> 4.766671355e-05 | AM26: ='Diesel Combustion'!$I$142 -> 8.831274836e-08 | AN26: ='Diesel Combustion'!$I$146 -> 0.005642124412 | AO26: ='Diesel Combustion'!$I$149 -> 7.556467381e-06 | CF26: =SUMPRODUCT($C26:$CD26, 'TRACI IF'!$C$3:$CD$3) -> 0.09604984817 | CG26: =SUMPRODUCT($C26:$CD26, 'TRACI IF'!$C$4:$CD$4) -> 0.005793980548 | CH26: =SUMPRODUCT($C26:$CD26, 'TRACI IF'!$C$5:$CD$5) -> 3.209655638 | CI26: =SUMPRODUCT($C26:$CD26, 'TRACI IF'!$C$7:$CD$7) -> 0 | CJ26: =SUMPRODUCT($C26:$CD26, 'TRACI IF'!$C$6:$CD$6) -> 0.1837249275 | CK26: =SUMPRODUCT($C26:$CD26, 'TRACI IF'!$C$8:$CD$8) -> 2.105442102 | CL26: =SUMPRODUCT($C26:$CD26, 'TRACI IF'!$C$9:$CD$9) -> 0 | EM26: ='Diesel Combustion'!$I$87 -> 1 | JR26: ='Diesel Combustion'!$I$93 -> 1 | KD26: =KD6*FV6 -> 0 | KE26: kg | KF26: diesel, combusted | KI26: Diesel Comb, Extraction, Underground | KJ26: =INDEX(Mapping!$A$2:$A$98,MATCH(B26,Mapping!$C$2:$C$98,0)) -> Extraction Underground | KS26: 0 | KT26: 0 | KU26: 0 | KV26: 0 | KW26: 0 | KX26: 0 | KY26: 0 | KZ26: 0 | LA26: 0 | LB26: 0 | LC26: 0 | LD26: 0 | LE26: 0 | LF26: 0 | LG26: 0 | LH26: 0 | LI26: 0 | LJ26: 0 | LK26: 0 | LL26: 0 | LM26: 0 | LN26: 0 | LO26: 0 | LP26: 0 | LQ26: 0 | LR26: 0 | LS26: 0 | LT26: 0 | LU26: 0 | LV26: 0 | LW26: 0 | LX26: 0 | LY26: 0 | LZ26: 0 | MA26: 0 | MB26: 0 | MC26: 0 | MD26: 0 | ME26: 0 | MF26: 0 | MG26: 0 | MH26: 0 | MI26: 0 | MJ26: 0 | MK26: 0 | ML26: 0 | MM26: 0 | MN26: 0 | MO26: 0 | MP26: 0 | MQ26: 0 | MR26: 0 | MS26: 0 | MT26: 0 | MU26: 0 | MV26: 0 | MW26: 0 | MX26: 0 | MY26: 0 | MZ26: =CF26*$KD26+DistOutput() -> 0 | NA26: =CG26*$KD26+DistOutput() -> 0 | NB26: =CH26*$KD26+DistOutput() -> 0 | NC26: =CI26*$KD26+DistOutput() -> 0 | ND26: =CJ26*$KD26+DistOutput() -> 0 | NE26: =CK26*$KD26+DistOutput() -> 0 | NF26: =CL26*$KD26+DistOutput() -> 0 | NH26: =DistAvg($MZ26) -> 0 | NI26: =DistAvg($NA26) -> 0 | NJ26: =DistAvg($NB26) -> 0 | NK26: =DistAvg($NC26) -> 0 | NL26: =DistAvg($ND26) -> 0 | NM26: =DistAvg($NE26) -> 0 | NN26: =DistAvg($NF26) -> 0 | NO26: =DistMin(MZ26) -> 0 | NP26: =DistMin(NA26) -> 0 | NQ26: =DistMin(NB26) -> 0 | NR26: =DistMin(NC26) -> 0 | NS26: =DistMin(ND26) -> 0 | NT26: =DistMin(NE26) -> 0 | NU26: =DistMin(NF26) -> 0 | NV26: =DistMax(MZ26) -> 0 | NW26: =DistMax(NA26) -> 0 | NX26: =DistMax(NB26) -> 0 | NY26: =DistMax(NC26) -> 0 | NZ26: =DistMax(ND26) -> 0 | OA26: =DistMax(NE26) -> 0 | OB26: =DistMax(NF26) -> 0 | OC26: =DistPercentileInc(MZ26,OC$2) -> 0 | OD26: =DistPercentileInc(NA26,OD$2) -> 0 | OE26: =DistPercentileInc(NB26,OE$2) -> 0 | OF26: =DistPercentileInc(NC26,OF$2) -> 0 | OG26: =DistPercentileInc(ND26,OG$2) -> 0 | OH26: =DistPercentileInc(NE26,OH$2) -> 0 | OI26: =DistPercentileInc(NF26,OI$2) -> 0 | OJ26: =DistPercentileInc(MZ26,OJ$2) -> 0 | OK26: =DistPercentileInc(NA26,OK$2) -> 0 | OL26: =DistPercentileInc(NB26,OL$2) -> 0 | OM26: =DistPercentileInc(NC26,OM$2) -> 0 | ON26: =DistPercentileInc(ND26,ON$2) -> 0 | OO26: =DistPercentileInc(NE26,OO$2) -> 0 | OP26: =DistPercentileInc(NF26,OP$2) -> 0 | OQ26: =DistPercentileInc(MZ26,OQ$2) -> 0 | OR26: =DistPercentileInc(NA26,OR$2) -> 0 | OS26: =DistPercentileInc(NB26,OS$2) -> 0 | OT26: =DistPercentileInc(NC26,OT$2) -> 0 | OU26: =DistPercentileInc(ND26,OU$2) -> 0 | OV26: =DistPercentileInc(NE26,OV$2) -> 0 | OW26: =DistPercentileInc(NF26,OW$2) -> 0 | OX26: =DistPercentileInc(MZ26,OX$2) -> 0 | OY26: =DistPercentileInc(NA26,OY$2) -> 0 | OZ26: =DistPercentileInc(NB26,OZ$2) -> 0 | PA26: =DistPercentileInc(NC26,PA$2) -> 0 | PB26: =DistPercentileInc(ND26,PB$2) -> 0 | PC26: =DistPercentileInc(NE26,PC$2) -> 0 | PD26: =DistPercentileInc(NF26,PD$2) -> 0 | PE26: =DistPercentileInc(MZ26,PE$2) -> 0 | PF26: =DistPercentileInc(NA26,PF$2) -> 0 | PG26: =DistPercentileInc(NB26,PG$2) -> 0 | PH26: =DistPercentileInc(NC26,PH$2) -> 0 | PI26: =DistPercentileInc(ND26,PI$2) -> 0 | PJ26: =DistPercentileInc(NE26,PJ$2) -> 0 | PK26: =DistPercentileInc(NF26,PK$2) -> 0
B27: Diesel Comb, Extraction, Surface | C27: ='Diesel Combustion'!$I$110 -> 0.0001284606951 | D27: ='Diesel Combustion'!$I$136 -> 0 | E27: ='Diesel Combustion'!$I$137 -> 0.00604005762 | F27: ='Diesel Combustion'!$I$150 -> 0 | G27: ='Diesel Combustion'!$I$135 -> 0.779167433 | H27: ='Diesel Combustion'!$I$144 -> 0 | I27: ='Diesel Combustion'!$I$133 -> 0 | J27: ='Diesel Combustion'!$I$115 -> 3.198984628 | K27: ='Diesel Combustion'!$I$127 -> 2.506550149e-05 | M27: ='Diesel Combustion'!$I$114 -> 0.01847547037 | N27: ='Diesel Combustion'!$I$126 -> 5.568506769e-09 | O27: ='Diesel Combustion'!$I$129 -> 0 | P27: ='Diesel Combustion'!$I$121 -> 0 | Q27: ='Diesel Combustion'!$I$131 -> 0.08194543069 | R27: ='Diesel Combustion'!$I$132 -> 0.003894447021 | S27: ='Diesel Combustion'!$I$138 -> 0.004650844368 | T27: ='Diesel Combustion'!$I$139 -> 0.0009301688735 | U27: ='Diesel Combustion'!$I$94 -> 7.223908914e-07 | V27: ='Diesel Combustion'!$I$95 -> 2.623516792e-08 | W27: ='Diesel Combustion'!$I$97 -> 1.417068577e-05 | X27: ='Diesel Combustion'!$I$98 -> 1.708981009e-06 | Y27: ='Diesel Combustion'!$I$99 -> 0.001293282926 | Z27: ='Diesel Combustion'!$I$100 -> 3.454912959e-08 | AA27: ='Diesel Combustion'!$I$102 -> 1.723761385e-05 | AB27: ='Diesel Combustion'!I$103 -> 3.103879022e-08 | AC27: ='Diesel Combustion'!$I$104 -> 3.473388429e-09 | AD27: ='Diesel Combustion'!$I$116 -> 1.077119922e-08 | AE27: ='Diesel Combustion'!$I$118 -> 1.405983295e-07 | AF27: ='Diesel Combustion'!$I$119 -> 5.394837348e-07 | AG27: ='Diesel Combustion'!$I$120 -> 2.180105503e-05 | AH27: ='Diesel Combustion'!$I$123 -> 5.265509055e-06 | AI27: ='Diesel Combustion'!$I$128 -> 1.566719887e-06 | AJ27: ='Diesel Combustion'!$I$134 -> 5.431788288e-07 | AK27: ='Diesel Combustion'!$I$140 -> 3.103879022e-06 | AL27: ='Diesel Combustion'!$I$141 -> 4.766671355e-05 | AM27: ='Diesel Combustion'!$I$142 -> 8.831274836e-08 | AN27: ='Diesel Combustion'!$I$146 -> 0.005642124412 | AO27: ='Diesel Combustion'!$I$149 -> 7.556467381e-06 | CF27: =SUMPRODUCT($C27:$CD27, 'TRACI IF'!$C$3:$CD$3) -> 0.09604984817 | CG27: =SUMPRODUCT($C27:$CD27, 'TRACI IF'!$C$4:$CD$4) -> 0.005793980548 | CH27: =SUMPRODUCT($C27:$CD27, 'TRACI IF'!$C$5:$CD$5) -> 3.209655638 | CI27: =SUMPRODUCT($C27:$CD27, 'TRACI IF'!$C$7:$CD$7) -> 0 | CJ27: =SUMPRODUCT($C27:$CD27, 'TRACI IF'!$C$6:$CD$6) -> 0.1837249275 | CK27: =SUMPRODUCT($C27:$CD27, 'TRACI IF'!$C$8:$CD$8) -> 2.105442102 | CL27: =SUMPRODUCT($C27:$CD27, 'TRACI IF'!$C$9:$CD$9) -> 0 | EN27: ='Diesel Combustion'!$I$87 -> 1 | JS27: ='Diesel Combustion'!$I$93 -> 1 | KD27: =KD7*FW7 -> 0.0009420909526 | KE27: kg | KF27: diesel, combusted | KI27: Diesel Comb, Extraction, Surface | KJ27: =INDEX(Mapping!$A$2:$A$98,MATCH(B27,Mapping!$C$2:$C$98,0)) -> Extraction Surface Mine | KS27: 1.210216587e-07 | KT27: 0 | KU27: 5.690283638e-06 | KV27: 0 | KW27: 0.0007340465892 | KX27: 0 | KY27: 0 | KZ27: 0.003013734475 | LA27: 2.361398218e-08 | LB27: 0 | LC27: 1.740557348e-05 | LD27: 5.246039847e-12 | LE27: 0 | LF27: 0 | LG27: 7.720004886e-05 | LH27: 3.668923304e-06 | LI27: 4.381518401e-06 | LJ27: 8.763036802e-07 | LK27: 0 | LL27: 0 | LM27: 0 | LN27: 0 | LO27: 0 | LP27: 0 | LQ27: 0 | LR27: 0 | LS27: 0 | LT27: 0 | LU27: 0 | LV27: 0 | LW27: 0 | LX27: 0 | LY27: 0 | LZ27: 0 | MA27: 0 | MB27: 0 | MC27: 0 | MD27: 0 | ME27: 0 | MF27: 0 | MG27: 0 | MH27: 0 | MI27: 0 | MJ27: 0 | MK27: 0 | ML27: 0 | MM27: 0 | MN27: 0 | MO27: 0 | MP27: 0 | MQ27: 0 | MR27: 0 | MS27: 0 | MT27: 0 | MU27: 0 | MV27: 0 | MW27: 0 | MX27: 0 | MY27: 0 | MZ27: =CF27*$KD27+DistOutput() -> 9.048769296e-05 | NA27: =CG27*$KD27+DistOutput() -> 5.458456654e-06 | NB27: =CH27*$KD27+DistOutput() -> 0.003023787538 | NC27: =CI27*$KD27+DistOutput() -> 0 | ND27: =CJ27*$KD27+DistOutput() -> 0.000173085592 | NE27: =CK27*$KD27+DistOutput() -> 0.001983517956 | NF27: =CL27*$KD27+DistOutput() -> 0 | NH27: =DistAvg($MZ27) -> 0 | NI27: =DistAvg($NA27) -> 0 | NJ27: =DistAvg($NB27) -> 0 | NK27: =DistAvg($NC27) -> 0 | NL27: =DistAvg($ND27) -> 0 | NM27: =DistAvg($NE27) -> 0 | NN27: =DistAvg($NF27) -> 0 | NO27: =DistMin(MZ27) -> 0 | NP27: =DistMin(NA27) -> 0 | NQ27: =DistMin(NB27) -> 0 | NR27: =DistMin(NC27) -> 0 | NS27: =DistMin(ND27) -> 0 | NT27: =DistMin(NE27) -> 0 | NU27: =DistMin(NF27) -> 0 | NV27: =DistMax(MZ27) -> 0 | NW27: =DistMax(NA27) -> 0 | NX27: =DistMax(NB27) -> 0 | NY27: =DistMax(NC27) -> 0 | NZ27: =DistMax(ND27) -> 0 | OA27: =DistMax(NE27) -> 0 | OB27: =DistMax(NF27) -> 0 | OC27: =DistPercentileInc(MZ27,OC$2) -> 0 | OD27: =DistPercentileInc(NA27,OD$2) -> 0 | OE27: =DistPercentileInc(NB27,OE$2) -> 0 | OF27: =DistPercentileInc(NC27,OF$2) -> 0 | OG27: =DistPercentileInc(ND27,OG$2) -> 0 | OH27: =DistPercentileInc(NE27,OH$2) -> 0 | OI27: =DistPercentileInc(NF27,OI$2) -> 0 | OJ27: =DistPercentileInc(MZ27,OJ$2) -> 0 | OK27: =DistPercentileInc(NA27,OK$2) -> 0 | OL27: =DistPercentileInc(NB27,OL$2) -> 0 | OM27: =DistPercentileInc(NC27,OM$2) -> 0 | ON27: =DistPercentileInc(ND27,ON$2) -> 0 | OO27: =DistPercentileInc(NE27,OO$2) -> 0 | OP27: =DistPercentileInc(NF27,OP$2) -> 0 | OQ27: =DistPercentileInc(MZ27,OQ$2) -> 0 | OR27: =DistPercentileInc(NA27,OR$2) -> 0 | OS27: =DistPercentileInc(NB27,OS$2) -> 0 | OT27: =DistPercentileInc(NC27,OT$2) -> 0 | OU27: =DistPercentileInc(ND27,OU$2) -> 0 | OV27: =DistPercentileInc(NE27,OV$2) -> 0 | OW27: =DistPercentileInc(NF27,OW$2) -> 0 | OX27: =DistPercentileInc(MZ27,OX$2) -> 0 | OY27: =DistPercentileInc(NA27,OY$2) -> 0 | OZ27: =DistPercentileInc(NB27,OZ$2) -> 0 | PA27: =DistPercentileInc(NC27,PA$2) -> 0 | PB27: =DistPercentileInc(ND27,PB$2) -> 0 | PC27: =DistPercentileInc(NE27,PC$2) -> 0 | PD27: =DistPercentileInc(NF27,PD$2) -> 0 | PE27: =DistPercentileInc(MZ27,PE$2) -> 0 | PF27: =DistPercentileInc(NA27,PF$2) -> 0 | PG27: =DistPercentileInc(NB27,PG$2) -> 0 | PH27: =DistPercentileInc(NC27,PH$2) -> 0 | PI27: =DistPercentileInc(ND27,PI$2) -> 0 | PJ27: =DistPercentileInc(NE27,PJ$2) -> 0 | PK27: =DistPercentileInc(NF27,PK$2) -> 0
B28: Diesel Comb, Transport, Truck | C28: ='Diesel Combustion'!$I$110 -> 0.0001284606951 | D28: ='Diesel Combustion'!$I$136 -> 0 | E28: ='Diesel Combustion'!$I$137 -> 0.00604005762 | F28: ='Diesel Combustion'!$I$150 -> 0 | G28: ='Diesel Combustion'!$I$135 -> 0.779167433 | H28: ='Diesel Combustion'!$I$144 -> 0 | I28: ='Diesel Combustion'!$I$133 -> 0 | J28: ='Diesel Combustion'!$I$115 -> 3.198984628 | K28: ='Diesel Combustion'!$I$127 -> 2.506550149e-05 | M28: ='Diesel Combustion'!$I$114 -> 0.01847547037 | N28: ='Diesel Combustion'!$I$126 -> 5.568506769e-09 | O28: ='Diesel Combustion'!$I$129 -> 0 | P28: ='Diesel Combustion'!$I$121 -> 0 | Q28: ='Diesel Combustion'!$I$131 -> 0.08194543069 | R28: ='Diesel Combustion'!$I$132 -> 0.003894447021 | S28: ='Diesel Combustion'!$I$138 -> 0.004650844368 | T28: ='Diesel Combustion'!$I$139 -> 0.0009301688735 | U28: ='Diesel Combustion'!$I$94 -> 7.223908914e-07 | V28: ='Diesel Combustion'!$I$95 -> 2.623516792e-08 | W28: ='Diesel Combustion'!$I$97 -> 1.417068577e-05 | X28: ='Diesel Combustion'!$I$98 -> 1.708981009e-06 | Y28: ='Diesel Combustion'!$I$99 -> 0.001293282926 | Z28: ='Diesel Combustion'!$I$100 -> 3.454912959e-08 | AA28: ='Diesel Combustion'!$I$102 -> 1.723761385e-05 | AB28: ='Diesel Combustion'!I$103 -> 3.103879022e-08 | AC28: ='Diesel Combustion'!$I$104 -> 3.473388429e-09 | AD28: ='Diesel Combustion'!$I$116 -> 1.077119922e-08 | AE28: ='Diesel Combustion'!$I$118 -> 1.405983295e-07 | AF28: ='Diesel Combustion'!$I$119 -> 5.394837348e-07 | AG28: ='Diesel Combustion'!$I$120 -> 2.180105503e-05 | AH28: ='Diesel Combustion'!$I$123 -> 5.265509055e-06 | AI28: ='Diesel Combustion'!$I$128 -> 1.566719887e-06 | AJ28: ='Diesel Combustion'!$I$134 -> 5.431788288e-07 | AK28: ='Diesel Combustion'!$I$140 -> 3.103879022e-06 | AL28: ='Diesel Combustion'!$I$141 -> 4.766671355e-05 | AM28: ='Diesel Combustion'!$I$142 -> 8.831274836e-08 | AN28: ='Diesel Combustion'!$I$146 -> 0.005642124412 | AO28: ='Diesel Combustion'!$I$149 -> 7.556467381e-06 | CF28: =SUMPRODUCT($C28:$CD28, 'TRACI IF'!$C$3:$CD$3) -> 0.09604984817 | CG28: =SUMPRODUCT($C28:$CD28, 'TRACI IF'!$C$4:$CD$4) -> 0.005793980548 | CH28: =SUMPRODUCT($C28:$CD28, 'TRACI IF'!$C$5:$CD$5) -> 3.209655638 | CI28: =SUMPRODUCT($C28:$CD28, 'TRACI IF'!$C$7:$CD$7) -> 0 | CJ28: =SUMPRODUCT($C28:$CD28, 'TRACI IF'!$C$6:$CD$6) -> 0.1837249275 | CK28: =SUMPRODUCT($C28:$CD28, 'TRACI IF'!$C$8:$CD$8) -> 2.105442102 | CL28: =SUMPRODUCT($C28:$CD28, 'TRACI IF'!$C$9:$CD$9) -> 0 | EO28: ='Diesel Combustion'!$I$87 -> 1 | JT28: ='Diesel Combustion'!$I$93 -> 1 | KD28: =KD22*FX22 -> 0.000316851857 | KE28: kg | KF28: diesel, combusted | KI28: Diesel Comb, Transport, Truck | KJ28: =INDEX(Mapping!$A$2:$A$98,MATCH(B28,Mapping!$C$2:$C$98,0)) -> Truck Transport | KS28: 4.070300981e-08 | KT28: 0 | KU28: 1.913803473e-06 | KV28: 0 | KW28: 0.0002468806481 | KX28: 0 | KY28: 0 | KZ28: 0.00101360422 | LA28: 7.942050694e-09 | LB28: 0 | LC28: 5.853987095e-06 | LD28: 1.76439171e-12 | LE28: 0 | LF28: 0 | LG28: 2.596456189e-05 | LH28: 1.23396277e-06 | LI28: 1.473628674e-06 | LJ28: 2.947257349e-07 | LK28: 0 | LL28: 0 | LM28: 0 | LN28: 0 | LO28: 0 | LP28: 0 | LQ28: 0 | LR28: 0 | LS28: 0 | LT28: 0 | LU28: 0 | LV28: 0 | LW28: 0 | LX28: 0 | LY28: 0 | LZ28: 0 | MA28: 0 | MB28: 0 | MC28: 0 | MD28: 0 | ME28: 0 | MF28: 0 | MG28: 0 | MH28: 0 | MI28: 0 | MJ28: 0 | MK28: 0 | ML28: 0 | MM28: 0 | MN28: 0 | MO28: 0 | MP28: 0 | MQ28: 0 | MR28: 0 | MS28: 0 | MT28: 0 | MU28: 0 | MV28: 0 | MW28: 0 | MX28: 0 | MY28: 0 | MZ28: =CF28*$KD28+DistOutput() -> 3.043357275e-05 | NA28: =CG28*$KD28+DistOutput() -> 1.835833496e-06 | NB28: =CH28*$KD28+DistOutput() -> 0.001016985349 | NC28: =CI28*$KD28+DistOutput() -> 0 | ND28: =CJ28*$KD28+DistOutput() -> 5.821358446e-05 | NE28: =CK28*$KD28+DistOutput() -> 0.0006671132398 | NF28: =CL28*$KD28+DistOutput() -> 0 | NH28: =DistAvg($MZ28) -> 0 | NI28: =DistAvg($NA28) -> 0 | NJ28: =DistAvg($NB28) -> 0 | NK28: =DistAvg($NC28) -> 0 | NL28: =DistAvg($ND28) -> 0 | NM28: =DistAvg($NE28) -> 0 | NN28: =DistAvg($NF28) -> 0 | NO28: =DistMin(MZ28) -> 0 | NP28: =DistMin(NA28) -> 0 | NQ28: =DistMin(NB28) -> 0 | NR28: =DistMin(NC28) -> 0 | NS28: =DistMin(ND28) -> 0 | NT28: =DistMin(NE28) -> 0 | NU28: =DistMin(NF28) -> 0 | NV28: =DistMax(MZ28) -> 0 | NW28: =DistMax(NA28) -> 0 | NX28: =DistMax(NB28) -> 0 | NY28: =DistMax(NC28) -> 0 | NZ28: =DistMax(ND28) -> 0 | OA28: =DistMax(NE28) -> 0 | OB28: =DistMax(NF28) -> 0 | OC28: =DistPercentileInc(MZ28,OC$2) -> 0 | OD28: =DistPercentileInc(NA28,OD$2) -> 0 | OE28: =DistPercentileInc(NB28,OE$2) -> 0 | OF28: =DistPercentileInc(NC28,OF$2) -> 0 | OG28: =DistPercentileInc(ND28,OG$2) -> 0 | OH28: =DistPercentileInc(NE28,OH$2) -> 0 | OI28: =DistPercentileInc(NF28,OI$2) -> 0 | OJ28: =DistPercentileInc(MZ28,OJ$2) -> 0 | OK28: =DistPercentileInc(NA28,OK$2) -> 0 | OL28: =DistPercentileInc(NB28,OL$2) -> 0 | OM28: =DistPercentileInc(NC28,OM$2) -> 0 | ON28: =DistPercentileInc(ND28,ON$2) -> 0 | OO28: =DistPercentileInc(NE28,OO$2) -> 0 | OP28: =DistPercentileInc(NF28,OP$2) -> 0 | OQ28: =DistPercentileInc(MZ28,OQ$2) -> 0 | OR28: =DistPercentileInc(NA28,OR$2) -> 0 | OS28: =DistPercentileInc(NB28,OS$2) -> 0 | OT28: =DistPercentileInc(NC28,OT$2) -> 0 | OU28: =DistPercentileInc(ND28,OU$2) -> 0 | OV28: =DistPercentileInc(NE28,OV$2) -> 0 | OW28: =DistPercentileInc(NF28,OW$2) -> 0 | OX28: =DistPercentileInc(MZ28,OX$2) -> 0 | OY28: =DistPercentileInc(NA28,OY$2) -> 0 | OZ28: =DistPercentileInc(NB28,OZ$2) -> 0 | PA28: =DistPercentileInc(NC28,PA$2) -> 0 | PB28: =DistPercentileInc(ND28,PB$2) -> 0 | PC28: =DistPercentileInc(NE28,PC$2) -> 0 | PD28: =DistPercentileInc(NF28,PD$2) -> 0 | PE28: =DistPercentileInc(MZ28,PE$2) -> 0 | PF28: =DistPercentileInc(NA28,PF$2) -> 0 | PG28: =DistPercentileInc(NB28,PG$2) -> 0 | PH28: =DistPercentileInc(NC28,PH$2) -> 0 | PI28: =DistPercentileInc(ND28,PI$2) -> 0 | PJ28: =DistPercentileInc(NE28,PJ$2) -> 0 | PK28: =DistPercentileInc(NF28,PK$2) -> 0
B29: Diesel Comb, Transport, Ocean Vessel | C29: ='Diesel Combustion'!$I$110 -> 0.0001284606951 | D29: ='Diesel Combustion'!$I$136 -> 0 | E29: ='Diesel Combustion'!$I$137 -> 0.00604005762 | F29: ='Diesel Combustion'!$I$150 -> 0 | G29: ='Diesel Combustion'!$I$135 -> 0.779167433 | H29: ='Diesel Combustion'!$I$144 -> 0 | I29: ='Diesel Combustion'!$I$133 -> 0 | J29: ='Diesel Combustion'!$I$115 -> 3.198984628 | K29: ='Diesel Combustion'!$I$127 -> 2.506550149e-05 | M29: ='Diesel Combustion'!$I$114 -> 0.01847547037 | N29: ='Diesel Combustion'!$I$126 -> 5.568506769e-09 | O29: ='Diesel Combustion'!$I$129 -> 0 | P29: ='Diesel Combustion'!$I$121 -> 0 | Q29: ='Diesel Combustion'!$I$131 -> 0.08194543069 | R29: ='Diesel Combustion'!$I$132 -> 0.003894447021 | S29: ='Diesel Combustion'!$I$138 -> 0.004650844368 | T29: ='Diesel Combustion'!$I$139 -> 0.0009301688735 | U29: ='Diesel Combustion'!$I$94 -> 7.223908914e-07 | V29: ='Diesel Combustion'!$I$95 -> 2.623516792e-08 | W29: ='Diesel Combustion'!$I$97 -> 1.417068577e-05 | X29: ='Diesel Combustion'!$I$98 -> 1.708981009e-06 | Y29: ='Diesel Combustion'!$I$99 -> 0.001293282926 | Z29: ='Diesel Combustion'!$I$100 -> 3.454912959e-08 | AA29: ='Diesel Combustion'!$I$102 -> 1.723761385e-05 | AB29: ='Diesel Combustion'!I$103 -> 3.103879022e-08 | AC29: ='Diesel Combustion'!$I$104 -> 3.473388429e-09 | AD29: ='Diesel Combustion'!$I$116 -> 1.077119922e-08 | AE29: ='Diesel Combustion'!$I$118 -> 1.405983295e-07 | AF29: ='Diesel Combustion'!$I$119 -> 5.394837348e-07 | AG29: ='Diesel Combustion'!$I$120 -> 2.180105503e-05 | AH29: ='Diesel Combustion'!$I$123 -> 5.265509055e-06 | AI29: ='Diesel Combustion'!$I$128 -> 1.566719887e-06 | AJ29: ='Diesel Combustion'!$I$134 -> 5.431788288e-07 | AK29: ='Diesel Combustion'!$I$140 -> 3.103879022e-06 | AL29: ='Diesel Combustion'!$I$141 -> 4.766671355e-05 | AM29: ='Diesel Combustion'!$I$142 -> 8.831274836e-08 | AN29: ='Diesel Combustion'!$I$146 -> 0.005642124412 | AO29: ='Diesel Combustion'!$I$149 -> 7.556467381e-06 | CF29: =SUMPRODUCT($C29:$CD29, 'TRACI IF'!$C$3:$CD$3) -> 0.09604984817 | CG29: =SUMPRODUCT($C29:$CD29, 'TRACI IF'!$C$4:$CD$4) -> 0.005793980548 | CH29: =SUMPRODUCT($C29:$CD29, 'TRACI IF'!$C$5:$CD$5) -> 3.209655638 | CI29: =SUMPRODUCT($C29:$CD29, 'TRACI IF'!$C$7:$CD$7) -> 0 | CJ29: =SUMPRODUCT($C29:$CD29, 'TRACI IF'!$C$6:$CD$6) -> 0.1837249275 | CK29: =SUMPRODUCT($C29:$CD29, 'TRACI IF'!$C$8:$CD$8) -> 2.105442102 | CL29: =SUMPRODUCT($C29:$CD29, 'TRACI IF'!$C$9:$CD$9) -> 0 | EP29: ='Diesel Combustion'!$I$87 -> 1 | JU29: ='Diesel Combustion'!$I$93 -> 1 | KD29: =KD23*FY23 -> 2.027327011e-06 | KE29: kg | KF29: diesel, combusted | KI29: Diesel Comb, Transport, Ocean Vessel | KJ29: =INDEX(Mapping!$A$2:$A$98,MATCH(B29,Mapping!$C$2:$C$98,0)) -> Ocean Vessel Transport | KS29: 2.604318371e-10 | KT29: 0 | KU29: 1.224517196e-08 | KV29: 0 | KW29: 1.579627183e-06 | KX29: 0 | KY29: 0 | KZ29: 6.485387944e-06 | LA29: 5.081596822e-11 | LB29: 0 | LC29: 3.745582012e-08 | LD29: 1.128918418e-14 | LE29: 0 | LF29: 0 | LG29: 1.661301851e-07 | LH29: 7.895317639e-09 | LI29: 9.428782411e-09 | LJ29: 1.885756482e-09 | LK29: 0 | LL29: 0 | LM29: 0 | LN29: 0 | LO29: 0 | LP29: 0 | LQ29: 0 | LR29: 0 | LS29: 0 | LT29: 0 | LU29: 0 | LV29: 0 | LW29: 0 | LX29: 0 | LY29: 0 | LZ29: 0 | MA29: 0 | MB29: 0 | MC29: 0 | MD29: 0 | ME29: 0 | MF29: 0 | MG29: 0 | MH29: 0 | MI29: 0 | MJ29: 0 | MK29: 0 | ML29: 0 | MM29: 0 | MN29: 0 | MO29: 0 | MP29: 0 | MQ29: 0 | MR29: 0 | MS29: 0 | MT29: 0 | MU29: 0 | MV29: 0 | MW29: 0 | MX29: 0 | MY29: 0 | MZ29: =CF29*$KD29+DistOutput() -> 1.947244516e-07 | NA29: =CG29*$KD29+DistOutput() -> 1.174629327e-08 | NB29: =CH29*$KD29+DistOutput() -> 6.507021572e-06 | NC29: =CI29*$KD29+DistOutput() -> 0 | ND29: =CJ29*$KD29+DistOutput() -> 3.724705082e-07 | NE29: =CK29*$KD29+DistOutput() -> 4.268419644e-06 | NF29: =CL29*$KD29+DistOutput() -> 0 | NH29: =DistAvg($MZ29) -> 0 | NI29: =DistAvg($NA29) -> 0 | NJ29: =DistAvg($NB29) -> 0 | NK29: =DistAvg($NC29) -> 0 | NL29: =DistAvg($ND29) -> 0 | NM29: =DistAvg($NE29) -> 0 | NN29: =DistAvg($NF29) -> 0 | NO29: =DistMin(MZ29) -> 0 | NP29: =DistMin(NA29) -> 0 | NQ29: =DistMin(NB29) -> 0 | NR29: =DistMin(NC29) -> 0 | NS29: =DistMin(ND29) -> 0 | NT29: =DistMin(NE29) -> 0 | NU29: =DistMin(NF29) -> 0 | NV29: =DistMax(MZ29) -> 0 | NW29: =DistMax(NA29) -> 0 | NX29: =DistMax(NB29) -> 0 | NY29: =DistMax(NC29) -> 0 | NZ29: =DistMax(ND29) -> 0 | OA29: =DistMax(NE29) -> 0 | OB29: =DistMax(NF29) -> 0 | OC29: =DistPercentileInc(MZ29,OC$2) -> 0 | OD29: =DistPercentileInc(NA29,OD$2) -> 0 | OE29: =DistPercentileInc(NB29,OE$2) -> 0 | OF29: =DistPercentileInc(NC29,OF$2) -> 0 | OG29: =DistPercentileInc(ND29,OG$2) -> 0 | OH29: =DistPercentileInc(NE29,OH$2) -> 0 | OI29: =DistPercentileInc(NF29,OI$2) -> 0 | OJ29: =DistPercentileInc(MZ29,OJ$2) -> 0 | OK29: =DistPercentileInc(NA29,OK$2) -> 0 | OL29: =DistPercentileInc(NB29,OL$2) -> 0 | OM29: =DistPercentileInc(NC29,OM$2) -> 0 | ON29: =DistPercentileInc(ND29,ON$2) -> 0 | OO29: =DistPercentileInc(NE29,OO$2) -> 0 | OP29: =DistPercentileInc(NF29,OP$2) -> 0 | OQ29: =DistPercentileInc(MZ29,OQ$2) -> 0 | OR29: =DistPercentileInc(NA29,OR$2) -> 0 | OS29: =DistPercentileInc(NB29,OS$2) -> 0 | OT29: =DistPercentileInc(NC29,OT$2) -> 0 | OU29: =DistPercentileInc(ND29,OU$2) -> 0 | OV29: =DistPercentileInc(NE29,OV$2) -> 0 | OW29: =DistPercentileInc(NF29,OW$2) -> 0 | OX29: =DistPercentileInc(MZ29,OX$2) -> 0 | OY29: =DistPercentileInc(NA29,OY$2) -> 0 | OZ29: =DistPercentileInc(NB29,OZ$2) -> 0 | PA29: =DistPercentileInc(NC29,PA$2) -> 0 | PB29: =DistPercentileInc(ND29,PB$2) -> 0 | PC29: =DistPercentileInc(NE29,PC$2) -> 0 | PD29: =DistPercentileInc(NF29,PD$2) -> 0 | PE29: =DistPercentileInc(MZ29,PE$2) -> 0 | PF29: =DistPercentileInc(NA29,PF$2) -> 0 | PG29: =DistPercentileInc(NB29,PG$2) -> 0 | PH29: =DistPercentileInc(NC29,PH$2) -> 0 | PI29: =DistPercentileInc(ND29,PI$2) -> 0 | PJ29: =DistPercentileInc(NE29,PJ$2) -> 0 | PK29: =DistPercentileInc(NF29,PK$2) -> 0
B30: Diesel Comb, Transport, Barge | C30: ='Diesel Combustion'!$I$110 -> 0.0001284606951 | D30: ='Diesel Combustion'!$I$136 -> 0 | E30: ='Diesel Combustion'!$I$137 -> 0.00604005762 | F30: ='Diesel Combustion'!$I$150 -> 0 | G30: ='Diesel Combustion'!$I$135 -> 0.779167433 | H30: ='Diesel Combustion'!$I$144 -> 0 | I30: ='Diesel Combustion'!$I$133 -> 0 | J30: ='Diesel Combustion'!$I$115 -> 3.198984628 | K30: ='Diesel Combustion'!$I$127 -> 2.506550149e-05 | M30: ='Diesel Combustion'!$I$114 -> 0.01847547037 | N30: ='Diesel Combustion'!$I$126 -> 5.568506769e-09 | O30: ='Diesel Combustion'!$I$129 -> 0 | P30: ='Diesel Combustion'!$I$121 -> 0 | Q30: ='Diesel Combustion'!$I$131 -> 0.08194543069 | R30: ='Diesel Combustion'!$I$132 -> 0.003894447021 | S30: ='Diesel Combustion'!$I$138 -> 0.004650844368 | T30: ='Diesel Combustion'!$I$139 -> 0.0009301688735 | U30: ='Diesel Combustion'!$I$94 -> 7.223908914e-07 | V30: ='Diesel Combustion'!$I$95 -> 2.623516792e-08 | W30: ='Diesel Combustion'!$I$97 -> 1.417068577e-05 | X30: ='Diesel Combustion'!$I$98 -> 1.708981009e-06 | Y30: ='Diesel Combustion'!$I$99 -> 0.001293282926 | Z30: ='Diesel Combustion'!$I$100 -> 3.454912959e-08 | AA30: ='Diesel Combustion'!$I$102 -> 1.723761385e-05 | AB30: ='Diesel Combustion'!I$103 -> 3.103879022e-08 | AC30: ='Diesel Combustion'!$I$104 -> 3.473388429e-09 | AD30: ='Diesel Combustion'!$I$116 -> 1.077119922e-08 | AE30: ='Diesel Combustion'!$I$118 -> 1.405983295e-07 | AF30: ='Diesel Combustion'!$I$119 -> 5.394837348e-07 | AG30: ='Diesel Combustion'!$I$120 -> 2.180105503e-05 | AH30: ='Diesel Combustion'!$I$123 -> 5.265509055e-06 | AI30: ='Diesel Combustion'!$I$128 -> 1.566719887e-06 | AJ30: ='Diesel Combustion'!$I$134 -> 5.431788288e-07 | AK30: ='Diesel Combustion'!$I$140 -> 3.103879022e-06 | AL30: ='Diesel Combustion'!$I$141 -> 4.766671355e-05 | AM30: ='Diesel Combustion'!$I$142 -> 8.831274836e-08 | AN30: ='Diesel Combustion'!$I$146 -> 0.005642124412 | AO30: ='Diesel Combustion'!$I$149 -> 7.556467381e-06 | CF30: =SUMPRODUCT($C30:$CD30, 'TRACI IF'!$C$3:$CD$3) -> 0.09604984817 | CG30: =SUMPRODUCT($C30:$CD30, 'TRACI IF'!$C$4:$CD$4) -> 0.005793980548 | CH30: =SUMPRODUCT($C30:$CD30, 'TRACI IF'!$C$5:$CD$5) -> 3.209655638 | CI30: =SUMPRODUCT($C30:$CD30, 'TRACI IF'!$C$7:$CD$7) -> 0 | CJ30: =SUMPRODUCT($C30:$CD30, 'TRACI IF'!$C$6:$CD$6) -> 0.1837249275 | CK30: =SUMPRODUCT($C30:$CD30, 'TRACI IF'!$C$8:$CD$8) -> 2.105442102 | CL30: =SUMPRODUCT($C30:$CD30, 'TRACI IF'!$C$9:$CD$9) -> 0 | EQ30: ='Diesel Combustion'!$I$87 -> 1 | JV30: ='Diesel Combustion'!$I$93 -> 1 | KD30: =KD24*FZ24 -> 0.0001516143939 | KE30: kg | KF30: diesel, combusted | KI30: Diesel Comb, Transport, Barge | KJ30: =INDEX(Mapping!$A$2:$A$98,MATCH(B30,Mapping!$C$2:$C$98,0)) -> Barge Transport | KS30: 1.947649044e-08 | KT30: 0 | KU30: 9.157596755e-07 | KV30: 0 | KW30: 0.0001181329981 | KX30: 0 | KY30: 0 | KZ30: 0.0004850121156 | LA30: 3.800290818e-09 | LB30: 0 | LC30: 2.801147243e-06 | LD30: 8.44265779e-13 | LE30: 0 | LF30: 0 | LG30: 1.242410681e-05 | LH30: 5.904542248e-07 | LI30: 7.051349502e-07 | LJ30: 1.4102699e-07 | LK30: 0 | LL30: 0 | LM30: 0 | LN30: 0 | LO30: 0 | LP30: 0 | LQ30: 0 | LR30: 0 | LS30: 0 | LT30: 0 | LU30: 0 | LV30: 0 | LW30: 0 | LX30: 0 | LY30: 0 | LZ30: 0 | MA30: 0 | MB30: 0 | MC30: 0 | MD30: 0 | ME30: 0 | MF30: 0 | MG30: 0 | MH30: 0 | MI30: 0 | MJ30: 0 | MK30: 0 | ML30: 0 | MM30: 0 | MN30: 0 | MO30: 0 | MP30: 0 | MQ30: 0 | MR30: 0 | MS30: 0 | MT30: 0 | MU30: 0 | MV30: 0 | MW30: 0 | MX30: 0 | MY30: 0 | MZ30: =CF30*$KD30+DistOutput() -> 1.456253952e-05 | NA30: =CG30*$KD30+DistOutput() -> 8.784508494e-07 | NB30: =CH30*$KD30+DistOutput() -> 0.0004866299944 | NC30: =CI30*$KD30+DistOutput() -> 0 | ND30: =CJ30*$KD30+DistOutput() -> 2.785534354e-05 | NE30: =CK30*$KD30+DistOutput() -> 0.0003192153283 | NF30: =CL30*$KD30+DistOutput() -> 0 | NH30: =DistAvg($MZ30) -> 0 | NI30: =DistAvg($NA30) -> 0 | NJ30: =DistAvg($NB30) -> 0 | NK30: =DistAvg($NC30) -> 0 | NL30: =DistAvg($ND30) -> 0 | NM30: =DistAvg($NE30) -> 0 | NN30: =DistAvg($NF30) -> 0 | NO30: =DistMin(MZ30) -> 0 | NP30: =DistMin(NA30) -> 0 | NQ30: =DistMin(NB30) -> 0 | NR30: =DistMin(NC30) -> 0 | NS30: =DistMin(ND30) -> 0 | NT30: =DistMin(NE30) -> 0 | NU30: =DistMin(NF30) -> 0 | NV30: =DistMax(MZ30) -> 0 | NW30: =DistMax(NA30) -> 0 | NX30: =DistMax(NB30) -> 0 | NY30: =DistMax(NC30) -> 0 | NZ30: =DistMax(ND30) -> 0 | OA30: =DistMax(NE30) -> 0 | OB30: =DistMax(NF30) -> 0 | OC30: =DistPercentileInc(MZ30,OC$2) -> 0 | OD30: =DistPercentileInc(NA30,OD$2) -> 0 | OE30: =DistPercentileInc(NB30,OE$2) -> 0 | OF30: =DistPercentileInc(NC30,OF$2) -> 0 | OG30: =DistPercentileInc(ND30,OG$2) -> 0 | OH30: =DistPercentileInc(NE30,OH$2) -> 0 | OI30: =DistPercentileInc(NF30,OI$2) -> 0 | OJ30: =DistPercentileInc(MZ30,OJ$2) -> 0 | OK30: =DistPercentileInc(NA30,OK$2) -> 0 | OL30: =DistPercentileInc(NB30,OL$2) -> 0 | OM30: =DistPercentileInc(NC30,OM$2) -> 0 | ON30: =DistPercentileInc(ND30,ON$2) -> 0 | OO30: =DistPercentileInc(NE30,OO$2) -> 0 | OP30: =DistPercentileInc(NF30,OP$2) -> 0 | OQ30: =DistPercentileInc(MZ30,OQ$2) -> 0 | OR30: =DistPercentileInc(NA30,OR$2) -> 0 | OS30: =DistPercentileInc(NB30,OS$2) -> 0 | OT30: =DistPercentileInc(NC30,OT$2) -> 0 | OU30: =DistPercentileInc(ND30,OU$2) -> 0 | OV30: =DistPercentileInc(NE30,OV$2) -> 0 | OW30: =DistPercentileInc(NF30,OW$2) -> 0 | OX30: =DistPercentileInc(MZ30,OX$2) -> 0 | OY30: =DistPercentileInc(NA30,OY$2) -> 0 | OZ30: =DistPercentileInc(NB30,OZ$2) -> 0 | PA30: =DistPercentileInc(NC30,PA$2) -> 0 | PB30: =DistPercentileInc(ND30,PB$2) -> 0 | PC30: =DistPercentileInc(NE30,PC$2) -> 0 | PD30: =DistPercentileInc(NF30,PD$2) -> 0 | PE30: =DistPercentileInc(MZ30,PE$2) -> 0 | PF30: =DistPercentileInc(NA30,PF$2) -> 0 | PG30: =DistPercentileInc(NB30,PG$2) -> 0 | PH30: =DistPercentileInc(NC30,PH$2) -> 0 | PI30: =DistPercentileInc(ND30,PI$2) -> 0 | PJ30: =DistPercentileInc(NE30,PJ$2) -> 0 | PK30: =DistPercentileInc(NF30,PK$2) -> 0
B31: Diesel Comb, Transport, Train | C31: ='Diesel Combustion'!$I$110 -> 0.0001284606951 | D31: ='Diesel Combustion'!$I$136 -> 0 | E31: ='Diesel Combustion'!$I$137 -> 0.00604005762 | F31: ='Diesel Combustion'!$I$150 -> 0 | G31: ='Diesel Combustion'!$I$135 -> 0.779167433 | H31: ='Diesel Combustion'!$I$144 -> 0 | I31: ='Diesel Combustion'!$I$133 -> 0 | J31: ='Diesel Combustion'!$I$115 -> 3.198984628 | K31: ='Diesel Combustion'!$I$127 -> 2.506550149e-05 | M31: ='Diesel Combustion'!$I$114 -> 0.01847547037 | N31: ='Diesel Combustion'!$I$126 -> 5.568506769e-09 | O31: ='Diesel Combustion'!$I$129 -> 0 | P31: ='Diesel Combustion'!$I$121 -> 0 | Q31: ='Diesel Combustion'!$I$131 -> 0.08194543069 | R31: ='Diesel Combustion'!$I$132 -> 0.003894447021 | S31: ='Diesel Combustion'!$I$138 -> 0.004650844368 | T31: ='Diesel Combustion'!$I$139 -> 0.0009301688735 | U31: ='Diesel Combustion'!$I$94 -> 7.223908914e-07 | V31: ='Diesel Combustion'!$I$95 -> 2.623516792e-08 | W31: ='Diesel Combustion'!$I$97 -> 1.417068577e-05 | X31: ='Diesel Combustion'!$I$98 -> 1.708981009e-06 | Y31: ='Diesel Combustion'!$I$99 -> 0.001293282926 | Z31: ='Diesel Combustion'!$I$100 -> 3.454912959e-08 | AA31: ='Diesel Combustion'!$I$102 -> 1.723761385e-05 | AB31: ='Diesel Combustion'!I$103 -> 3.103879022e-08 | AC31: ='Diesel Combustion'!$I$104 -> 3.473388429e-09 | AD31: ='Diesel Combustion'!$I$116 -> 1.077119922e-08 | AE31: ='Diesel Combustion'!$I$118 -> 1.405983295e-07 | AF31: ='Diesel Combustion'!$I$119 -> 5.394837348e-07 | AG31: ='Diesel Combustion'!$I$120 -> 2.180105503e-05 | AH31: ='Diesel Combustion'!$I$123 -> 5.265509055e-06 | AI31: ='Diesel Combustion'!$I$128 -> 1.566719887e-06 | AJ31: ='Diesel Combustion'!$I$134 -> 5.431788288e-07 | AK31: ='Diesel Combustion'!$I$140 -> 3.103879022e-06 | AL31: ='Diesel Combustion'!$I$141 -> 4.766671355e-05 | AM31: ='Diesel Combustion'!$I$142 -> 8.831274836e-08 | AN31: ='Diesel Combustion'!$I$146 -> 0.005642124412 | AO31: ='Diesel Combustion'!$I$149 -> 7.556467381e-06 | CF31: =SUMPRODUCT($C31:$CD31, 'TRACI IF'!$C$3:$CD$3) -> 0.09604984817 | CG31: =SUMPRODUCT($C31:$CD31, 'TRACI IF'!$C$4:$CD$4) -> 0.005793980548 | CH31: =SUMPRODUCT($C31:$CD31, 'TRACI IF'!$C$5:$CD$5) -> 3.209655638 | CI31: =SUMPRODUCT($C31:$CD31, 'TRACI IF'!$C$7:$CD$7) -> 0 | CJ31: =SUMPRODUCT($C31:$CD31, 'TRACI IF'!$C$6:$CD$6) -> 0.1837249275 | CK31: =SUMPRODUCT($C31:$CD31, 'TRACI IF'!$C$8:$CD$8) -> 2.105442102 | CL31: =SUMPRODUCT($C31:$CD31, 'TRACI IF'!$C$9:$CD$9) -> 0 | ER31: ='Diesel Combustion'!$I$87 -> 1 | JW31: ='Diesel Combustion'!$I$93 -> 1 | KD31: =GA25*KD25 -> 0.0006481940174 | KE31: kg | KF31: diesel, combusted | KI31: Diesel Comb, Transport, Train | KJ31: =INDEX(Mapping!$A$2:$A$98,MATCH(B31,Mapping!$C$2:$C$98,0)) -> Train Transport | KS31: 8.326745407e-08 | KT31: 0 | KU31: 3.915129215e-06 | KV31: 0 | KW31: 0.0005050516687 | KX31: 0 | KY31: 0 | KZ31: 0.002073562698 | LA31: 1.624730811e-08 | LB31: 0 | LC31: 1.197568936e-05 | LD31: 3.609472774e-12 | LE31: 0 | LF31: 0 | LG31: 5.311653793e-05 | LH31: 2.52435726e-06 | LI31: 3.014649495e-06 | LJ31: 6.02929899e-07 | LK31: 0 | LL31: 0 | LM31: 0 | LN31: 0 | LO31: 0 | LP31: 0 | LQ31: 0 | LR31: 0 | LS31: 0 | LT31: 0 | LU31: 0 | LV31: 0 | LW31: 0 | LX31: 0 | LY31: 0 | LZ31: 0 | MA31: 0 | MB31: 0 | MC31: 0 | MD31: 0 | ME31: 0 | MF31: 0 | MG31: 0 | MH31: 0 | MI31: 0 | MJ31: 0 | MK31: 0 | ML31: 0 | MM31: 0 | MN31: 0 | MO31: 0 | MP31: 0 | MQ31: 0 | MR31: 0 | MS31: 0 | MT31: 0 | MU31: 0 | MV31: 0 | MW31: 0 | MX31: 0 | MY31: 0 | MZ31: =CF31*$KD31+DistOutput() -> 6.225893696e-05 | NA31: =CG31*$KD31+DistOutput() -> 3.755623529e-06 | NB31: =CH31*$KD31+DistOutput() -> 0.002080479583 | NC31: =CI31*$KD31+DistOutput() -> 0 | ND31: =CJ31*$KD31+DistOutput() -> 0.0001190893989 | NE31: =CK31*$KD31+DistOutput() -> 0.001364734975 | NF31: =CL31*$KD31+DistOutput() -> 0 | NH31: =DistAvg($MZ31) -> 0 | NI31: =DistAvg($NA31) -> 0 | NJ31: =DistAvg($NB31) -> 0 | NK31: =DistAvg($NC31) -> 0 | NL31: =DistAvg($ND31) -> 0 | NM31: =DistAvg($NE31) -> 0 | NN31: =DistAvg($NF31) -> 0 | NO31: =DistMin(MZ31) -> 0 | NP31: =DistMin(NA31) -> 0 | NQ31: =DistMin(NB31) -> 0 | NR31: =DistMin(NC31) -> 0 | NS31: =DistMin(ND31) -> 0 | NT31: =DistMin(NE31) -> 0 | NU31: =DistMin(NF31) -> 0 | NV31: =DistMax(MZ31) -> 0 | NW31: =DistMax(NA31) -> 0 | NX31: =DistMax(NB31) -> 0 | NY31: =DistMax(NC31) -> 0 | NZ31: =DistMax(ND31) -> 0 | OA31: =DistMax(NE31) -> 0 | OB31: =DistMax(NF31) -> 0 | OC31: =DistPercentileInc(MZ31,OC$2) -> 0 | OD31: =DistPercentileInc(NA31,OD$2) -> 0 | OE31: =DistPercentileInc(NB31,OE$2) -> 0 | OF31: =DistPercentileInc(NC31,OF$2) -> 0 | OG31: =DistPercentileInc(ND31,OG$2) -> 0 | OH31: =DistPercentileInc(NE31,OH$2) -> 0 | OI31: =DistPercentileInc(NF31,OI$2) -> 0 | OJ31: =DistPercentileInc(MZ31,OJ$2) -> 0 | OK31: =DistPercentileInc(NA31,OK$2) -> 0 | OL31: =DistPercentileInc(NB31,OL$2) -> 0 | OM31: =DistPercentileInc(NC31,OM$2) -> 0 | ON31: =DistPercentileInc(ND31,ON$2) -> 0 | OO31: =DistPercentileInc(NE31,OO$2) -> 0 | OP31: =DistPercentileInc(NF31,OP$2) -> 0 | OQ31: =DistPercentileInc(MZ31,OQ$2) -> 0 | OR31: =DistPercentileInc(NA31,OR$2) -> 0 | OS31: =DistPercentileInc(NB31,OS$2) -> 0 | OT31: =DistPercentileInc(NC31,OT$2) -> 0 | OU31: =DistPercentileInc(ND31,OU$2) -> 0 | OV31: =DistPercentileInc(NE31,OV$2) -> 0 | OW31: =DistPercentileInc(NF31,OW$2) -> 0 | OX31: =DistPercentileInc(MZ31,OX$2) -> 0 | OY31: =DistPercentileInc(NA31,OY$2) -> 0 | OZ31: =DistPercentileInc(NB31,OZ$2) -> 0 | PA31: =DistPercentileInc(NC31,PA$2) -> 0 | PB31: =DistPercentileInc(ND31,PB$2) -> 0 | PC31: =DistPercentileInc(NE31,PC$2) -> 0 | PD31: =DistPercentileInc(NF31,PD$2) -> 0 | PE31: =DistPercentileInc(MZ31,PE$2) -> 0 | PF31: =DistPercentileInc(NA31,PF$2) -> 0 | PG31: =DistPercentileInc(NB31,PG$2) -> 0 | PH31: =DistPercentileInc(NC31,PH$2) -> 0 | PI31: =DistPercentileInc(ND31,PI$2) -> 0 | PJ31: =DistPercentileInc(NE31,PJ$2) -> 0 | PK31: =DistPercentileInc(NF31,PK$2) -> 0
B32: Diesel Comb, Handling, Underground | C32: ='Diesel Combustion'!$I$110 -> 0.0001284606951 | D32: ='Diesel Combustion'!$I$136 -> 0 | E32: ='Diesel Combustion'!$I$137 -> 0.00604005762 | F32: ='Diesel Combustion'!$I$150 -> 0 | G32: ='Diesel Combustion'!$I$135 -> 0.779167433 | H32: ='Diesel Combustion'!$I$144 -> 0 | I32: ='Diesel Combustion'!$I$133 -> 0 | J32: ='Diesel Combustion'!$I$115 -> 3.198984628 | K32: ='Diesel Combustion'!$I$127 -> 2.506550149e-05 | M32: ='Diesel Combustion'!$I$114 -> 0.01847547037 | N32: ='Diesel Combustion'!$I$126 -> 5.568506769e-09 | O32: ='Diesel Combustion'!$I$129 -> 0 | P32: ='Diesel Combustion'!$I$121 -> 0 | Q32: ='Diesel Combustion'!$I$131 -> 0.08194543069 | R32: ='Diesel Combustion'!$I$132 -> 0.003894447021 | S32: ='Diesel Combustion'!$I$138 -> 0.004650844368 | T32: ='Diesel Combustion'!$I$139 -> 0.0009301688735 | U32: ='Diesel Combustion'!$I$94 -> 7.223908914e-07 | V32: ='Diesel Combustion'!$I$95 -> 2.623516792e-08 | W32: ='Diesel Combustion'!$I$97 -> 1.417068577e-05 | X32: ='Diesel Combustion'!$I$98 -> 1.708981009e-06 | Y32: ='Diesel Combustion'!$I$99 -> 0.001293282926 | Z32: ='Diesel Combustion'!$I$100 -> 3.454912959e-08 | AA32: ='Diesel Combustion'!$I$102 -> 1.723761385e-05 | AB32: ='Diesel Combustion'!I$103 -> 3.103879022e-08 | AC32: ='Diesel Combustion'!$I$104 -> 3.473388429e-09 | AD32: ='Diesel Combustion'!$I$116 -> 1.077119922e-08 | AE32: ='Diesel Combustion'!$I$118 -> 1.405983295e-07 | AF32: ='Diesel Combustion'!$I$119 -> 5.394837348e-07 | AG32: ='Diesel Combustion'!$I$120 -> 2.180105503e-05 | AH32: ='Diesel Combustion'!$I$123 -> 5.265509055e-06 | AI32: ='Diesel Combustion'!$I$128 -> 1.566719887e-06 | AJ32: ='Diesel Combustion'!$I$134 -> 5.431788288e-07 | AK32: ='Diesel Combustion'!$I$140 -> 3.103879022e-06 | AL32: ='Diesel Combustion'!$I$141 -> 4.766671355e-05 | AM32: ='Diesel Combustion'!$I$142 -> 8.831274836e-08 | AN32: ='Diesel Combustion'!$I$146 -> 0.005642124412 | AO32: ='Diesel Combustion'!$I$149 -> 7.556467381e-06 | CF32: =SUMPRODUCT($C32:$CD32, 'TRACI IF'!$C$3:$CD$3) -> 0.09604984817 | CG32: =SUMPRODUCT($C32:$CD32, 'TRACI IF'!$C$4:$CD$4) -> 0.005793980548 | CH32: =SUMPRODUCT($C32:$CD32, 'TRACI IF'!$C$5:$CD$5) -> 3.209655638 | CI32: =SUMPRODUCT($C32:$CD32, 'TRACI IF'!$C$7:$CD$7) -> 0 | CJ32: =SUMPRODUCT($C32:$CD32, 'TRACI IF'!$C$6:$CD$6) -> 0.1837249275 | CK32: =SUMPRODUCT($C32:$CD32, 'TRACI IF'!$C$8:$CD$8) -> 2.105442102 | CL32: =SUMPRODUCT($C32:$CD32, 'TRACI IF'!$C$9:$CD$9) -> 0 | ES32: ='Diesel Combustion'!$I$87 -> 1 | JX32: ='Diesel Combustion'!$I$93 -> 1 | KD32: =KD36*GB36 -> 0 | KE32: kg | KF32: diesel, combusted | KI32: Diesel Comb, Handling, Underground | KJ32: =INDEX(Mapping!$A$2:$A$98,MATCH(B32,Mapping!$C$2:$C$98,0)) -> Coal Handling - Underground | KS32: 0 | KT32: 0 | KU32: 0 | KV32: 0 | KW32: 0 | KX32: 0 | KY32: 0 | KZ32: 0 | LA32: 0 | LB32: 0 | LC32: 0 | LD32: 0 | LE32: 0 | LF32: 0 | LG32: 0 | LH32: 0 | LI32: 0 | LJ32: 0 | LK32: 0 | LL32: 0 | LM32: 0 | LN32: 0 | LO32: 0 | LP32: 0 | LQ32: 0 | LR32: 0 | LS32: 0 | LT32: 0 | LU32: 0 | LV32: 0 | LW32: 0 | LX32: 0 | LY32: 0 | LZ32: 0 | MA32: 0 | MB32: 0 | MC32: 0 | MD32: 0 | ME32: 0 | MF32: 0 | MG32: 0 | MH32: 0 | MI32: 0 | MJ32: 0 | MK32: 0 | ML32: 0 | MM32: 0 | MN32: 0 | MO32: 0 | MP32: 0 | MQ32: 0 | MR32: 0 | MS32: 0 | MT32: 0 | MU32: 0 | MV32: 0 | MW32: 0 | MX32: 0 | MY32: 0 | MZ32: =CF32*$KD32+DistOutput() -> 0 | NA32: =CG32*$KD32+DistOutput() -> 0 | NB32: =CH32*$KD32+DistOutput() -> 0 | NC32: =CI32*$KD32+DistOutput() -> 0 | ND32: =CJ32*$KD32+DistOutput() -> 0 | NE32: =CK32*$KD32+DistOutput() -> 0 | NF32: =CL32*$KD32+DistOutput() -> 0 | NH32: =DistAvg($MZ32) -> 0 | NI32: =DistAvg($NA32) -> 0 | NJ32: =DistAvg($NB32) -> 0 | NK32: =DistAvg($NC32) -> 0 | NL32: =DistAvg($ND32) -> 0 | NM32: =DistAvg($NE32) -> 0 | NN32: =DistAvg($NF32) -> 0 | NO32: =DistMin(MZ32) -> 0 | NP32: =DistMin(NA32) -> 0 | NQ32: =DistMin(NB32) -> 0 | NR32: =DistMin(NC32) -> 0 | NS32: =DistMin(ND32) -> 0 | NT32: =DistMin(NE32) -> 0 | NU32: =DistMin(NF32) -> 0 | NV32: =DistMax(MZ32) -> 0 | NW32: =DistMax(NA32) -> 0 | NX32: =DistMax(NB32) -> 0 | NY32: =DistMax(NC32) -> 0 | NZ32: =DistMax(ND32) -> 0 | OA32: =DistMax(NE32) -> 0 | OB32: =DistMax(NF32) -> 0 | OC32: =DistPercentileInc(MZ32,OC$2) -> 0 | OD32: =DistPercentileInc(NA32,OD$2) -> 0 | OE32: =DistPercentileInc(NB32,OE$2) -> 0 | OF32: =DistPercentileInc(NC32,OF$2) -> 0 | OG32: =DistPercentileInc(ND32,OG$2) -> 0 | OH32: =DistPercentileInc(NE32,OH$2) -> 0 | OI32: =DistPercentileInc(NF32,OI$2) -> 0 | OJ32: =DistPercentileInc(MZ32,OJ$2) -> 0 | OK32: =DistPercentileInc(NA32,OK$2) -> 0 | OL32: =DistPercentileInc(NB32,OL$2) -> 0 | OM32: =DistPercentileInc(NC32,OM$2) -> 0 | ON32: =DistPercentileInc(ND32,ON$2) -> 0 | OO32: =DistPercentileInc(NE32,OO$2) -> 0 | OP32: =DistPercentileInc(NF32,OP$2) -> 0 | OQ32: =DistPercentileInc(MZ32,OQ$2) -> 0 | OR32: =DistPercentileInc(NA32,OR$2) -> 0 | OS32: =DistPercentileInc(NB32,OS$2) -> 0 | OT32: =DistPercentileInc(NC32,OT$2) -> 0 | OU32: =DistPercentileInc(ND32,OU$2) -> 0 | OV32: =DistPercentileInc(NE32,OV$2) -> 0 | OW32: =DistPercentileInc(NF32,OW$2) -> 0 | OX32: =DistPercentileInc(MZ32,OX$2) -> 0 | OY32: =DistPercentileInc(NA32,OY$2) -> 0 | OZ32: =DistPercentileInc(NB32,OZ$2) -> 0 | PA32: =DistPercentileInc(NC32,PA$2) -> 0 | PB32: =DistPercentileInc(ND32,PB$2) -> 0 | PC32: =DistPercentileInc(NE32,PC$2) -> 0 | PD32: =DistPercentileInc(NF32,PD$2) -> 0 | PE32: =DistPercentileInc(MZ32,PE$2) -> 0 | PF32: =DistPercentileInc(NA32,PF$2) -> 0 | PG32: =DistPercentileInc(NB32,PG$2) -> 0 | PH32: =DistPercentileInc(NC32,PH$2) -> 0 | PI32: =DistPercentileInc(ND32,PI$2) -> 0 | PJ32: =DistPercentileInc(NE32,PJ$2) -> 0 | PK32: =DistPercentileInc(NF32,PK$2) -> 0
B33: Diesel Comb, Handling, Surface | C33: ='Diesel Combustion'!$I$110 -> 0.0001284606951 | D33: ='Diesel Combustion'!$I$136 -> 0 | E33: ='Diesel Combustion'!$I$137 -> 0.00604005762 | F33: ='Diesel Combustion'!$I$150 -> 0 | G33: ='Diesel Combustion'!$I$135 -> 0.779167433 | H33: ='Diesel Combustion'!$I$144 -> 0 | I33: ='Diesel Combustion'!$I$133 -> 0 | J33: ='Diesel Combustion'!$I$115 -> 3.198984628 | K33: ='Diesel Combustion'!$I$127 -> 2.506550149e-05 | M33: ='Diesel Combustion'!$I$114 -> 0.01847547037 | N33: ='Diesel Combustion'!$I$126 -> 5.568506769e-09 | O33: ='Diesel Combustion'!$I$129 -> 0 | P33: ='Diesel Combustion'!$I$121 -> 0 | Q33: ='Diesel Combustion'!$I$131 -> 0.08194543069 | R33: ='Diesel Combustion'!$I$132 -> 0.003894447021 | S33: ='Diesel Combustion'!$I$138 -> 0.004650844368 | T33: ='Diesel Combustion'!$I$139 -> 0.0009301688735 | U33: ='Diesel Combustion'!$I$94 -> 7.223908914e-07 | V33: ='Diesel Combustion'!$I$95 -> 2.623516792e-08 | W33: ='Diesel Combustion'!$I$97 -> 1.417068577e-05 | X33: ='Diesel Combustion'!$I$98 -> 1.708981009e-06 | Y33: ='Diesel Combustion'!$I$99 -> 0.001293282926 | Z33: ='Diesel Combustion'!$I$100 -> 3.454912959e-08 | AA33: ='Diesel Combustion'!$I$102 -> 1.723761385e-05 | AB33: ='Diesel Combustion'!I$103 -> 3.103879022e-08 | AC33: ='Diesel Combustion'!$I$104 -> 3.473388429e-09 | AD33: ='Diesel Combustion'!$I$116 -> 1.077119922e-08 | AE33: ='Diesel Combustion'!$I$118 -> 1.405983295e-07 | AF33: ='Diesel Combustion'!$I$119 -> 5.394837348e-07 | AG33: ='Diesel Combustion'!$I$120 -> 2.180105503e-05 | AH33: ='Diesel Combustion'!$I$123 -> 5.265509055e-06 | AI33: ='Diesel Combustion'!$I$128 -> 1.566719887e-06 | AJ33: ='Diesel Combustion'!$I$134 -> 5.431788288e-07 | AK33: ='Diesel Combustion'!$I$140 -> 3.103879022e-06 | AL33: ='Diesel Combustion'!$I$141 -> 4.766671355e-05 | AM33: ='Diesel Combustion'!$I$142 -> 8.831274836e-08 | AN33: ='Diesel Combustion'!$I$146 -> 0.005642124412 | AO33: ='Diesel Combustion'!$I$149 -> 7.556467381e-06 | CF33: =SUMPRODUCT($C33:$CD33, 'TRACI IF'!$C$3:$CD$3) -> 0.09604984817 | CG33: =SUMPRODUCT($C33:$CD33, 'TRACI IF'!$C$4:$CD$4) -> 0.005793980548 | CH33: =SUMPRODUCT($C33:$CD33, 'TRACI IF'!$C$5:$CD$5) -> 3.209655638 | CI33: =SUMPRODUCT($C33:$CD33, 'TRACI IF'!$C$7:$CD$7) -> 0 | CJ33: =SUMPRODUCT($C33:$CD33, 'TRACI IF'!$C$6:$CD$6) -> 0.1837249275 | CK33: =SUMPRODUCT($C33:$CD33, 'TRACI IF'!$C$8:$CD$8) -> 2.105442102 | CL33: =SUMPRODUCT($C33:$CD33, 'TRACI IF'!$C$9:$CD$9) -> 0 | ET33: ='Diesel Combustion'!$I$87 -> 1 | JY33: ='Diesel Combustion'!$I$93 -> 1 | KD33: =KD37*GC37 -> 0.001428065974 | KE33: kg | KF33: diesel, combusted | KI33: Diesel Comb, Handling, Surface | KJ33: =INDEX(Mapping!$A$2:$A$98,MATCH(B33,Mapping!$C$2:$C$98,0)) -> Coal Handling - Surface | KS33: 1.834503478e-07 | KT33: 0 | KU33: 8.62560077e-06 | KV33: 0 | KW33: 0.001112702499 | KX33: 0 | KY33: 0 | KZ33: 0.004568361099 | LA33: 3.579518981e-08 | LB33: 0 | LC33: 2.638419059e-05 | LD33: 7.952195044e-12 | LE33: 0 | LF33: 0 | LG33: 0.0001170234813 | LH33: 5.561527279e-06 | LI33: 6.641712593e-06 | LJ33: 1.328342519e-06 | LK33: 0 | LL33: 0 | LM33: 0 | LN33: 0 | LO33: 0 | LP33: 0 | LQ33: 0 | LR33: 0 | LS33: 0 | LT33: 0 | LU33: 0 | LV33: 0 | LW33: 0 | LX33: 0 | LY33: 0 | LZ33: 0 | MA33: 0 | MB33: 0 | MC33: 0 | MD33: 0 | ME33: 0 | MF33: 0 | MG33: 0 | MH33: 0 | MI33: 0 | MJ33: 0 | MK33: 0 | ML33: 0 | MM33: 0 | MN33: 0 | MO33: 0 | MP33: 0 | MQ33: 0 | MR33: 0 | MS33: 0 | MT33: 0 | MU33: 0 | MV33: 0 | MW33: 0 | MX33: 0 | MY33: 0 | MZ33: =CF33*$KD33+DistOutput() -> 0.00013716552 | NA33: =CG33*$KD33+DistOutput() -> 8.274186477e-06 | NB33: =CH33*$KD33+DistOutput() -> 0.004583600006 | NC33: =CI33*$KD33+DistOutput() -> 0 | ND33: =CJ33*$KD33+DistOutput() -> 0.0002623713176 | NE33: =CK33*$KD33+DistOutput() -> 0.003006710227 | NF33: =CL33*$KD33+DistOutput() -> 0 | NH33: =DistAvg($MZ33) -> 0 | NI33: =DistAvg($NA33) -> 0 | NJ33: =DistAvg($NB33) -> 0 | NK33: =DistAvg($NC33) -> 0 | NL33: =DistAvg($ND33) -> 0 | NM33: =DistAvg($NE33) -> 0 | NN33: =DistAvg($NF33) -> 0 | NO33: =DistMin(MZ33) -> 0 | NP33: =DistMin(NA33) -> 0 | NQ33: =DistMin(NB33) -> 0 | NR33: =DistMin(NC33) -> 0 | NS33: =DistMin(ND33) -> 0 | NT33: =DistMin(NE33) -> 0 | NU33: =DistMin(NF33) -> 0 | NV33: =DistMax(MZ33) -> 0 | NW33: =DistMax(NA33) -> 0 | NX33: =DistMax(NB33) -> 0 | NY33: =DistMax(NC33) -> 0 | NZ33: =DistMax(ND33) -> 0 | OA33: =DistMax(NE33) -> 0 | OB33: =DistMax(NF33) -> 0 | OC33: =DistPercentileInc(MZ33,OC$2) -> 0 | OD33: =DistPercentileInc(NA33,OD$2) -> 0 | OE33: =DistPercentileInc(NB33,OE$2) -> 0 | OF33: =DistPercentileInc(NC33,OF$2) -> 0 | OG33: =DistPercentileInc(ND33,OG$2) -> 0 | OH33: =DistPercentileInc(NE33,OH$2) -> 0 | OI33: =DistPercentileInc(NF33,OI$2) -> 0 | OJ33: =DistPercentileInc(MZ33,OJ$2) -> 0 | OK33: =DistPercentileInc(NA33,OK$2) -> 0 | OL33: =DistPercentileInc(NB33,OL$2) -> 0 | OM33: =DistPercentileInc(NC33,OM$2) -> 0 | ON33: =DistPercentileInc(ND33,ON$2) -> 0 | OO33: =DistPercentileInc(NE33,OO$2) -> 0 | OP33: =DistPercentileInc(NF33,OP$2) -> 0 | OQ33: =DistPercentileInc(MZ33,OQ$2) -> 0 | OR33: =DistPercentileInc(NA33,OR$2) -> 0 | OS33: =DistPercentileInc(NB33,OS$2) -> 0 | OT33: =DistPercentileInc(NC33,OT$2) -> 0 | OU33: =DistPercentileInc(ND33,OU$2) -> 0 | OV33: =DistPercentileInc(NE33,OV$2) -> 0 | OW33: =DistPercentileInc(NF33,OW$2) -> 0 | OX33: =DistPercentileInc(MZ33,OX$2) -> 0 | OY33: =DistPercentileInc(NA33,OY$2) -> 0 | OZ33: =DistPercentileInc(NB33,OZ$2) -> 0 | PA33: =DistPercentileInc(NC33,PA$2) -> 0 | PB33: =DistPercentileInc(ND33,PB$2) -> 0 | PC33: =DistPercentileInc(NE33,PC$2) -> 0 | PD33: =DistPercentileInc(NF33,PD$2) -> 0 | PE33: =DistPercentileInc(MZ33,PE$2) -> 0 | PF33: =DistPercentileInc(NA33,PF$2) -> 0 | PG33: =DistPercentileInc(NB33,PG$2) -> 0 | PH33: =DistPercentileInc(NC33,PH$2) -> 0 | PI33: =DistPercentileInc(ND33,PI$2) -> 0 | PJ33: =DistPercentileInc(NE33,PJ$2) -> 0 | PK33: =DistPercentileInc(NF33,PK$2) -> 0
B34: LFO Comb, Transport, Ocean Vessel | C34: ='Diesel Combustion'!$I$110 -> 0.0001284606951 | D34: ='Diesel Combustion'!$I$136 -> 0 | E34: ='Diesel Combustion'!$I$137 -> 0.00604005762 | F34: ='Diesel Combustion'!$I$150 -> 0 | G34: ='Diesel Combustion'!$I$135 -> 0.779167433 | H34: ='Diesel Combustion'!$I$144 -> 0 | I34: ='Diesel Combustion'!$I$133 -> 0 | J34: ='Diesel Combustion'!$I$115 -> 3.198984628 | K34: ='Diesel Combustion'!$I$127 -> 2.506550149e-05 | M34: ='Diesel Combustion'!$I$114 -> 0.01847547037 | N34: ='Diesel Combustion'!$I$126 -> 5.568506769e-09 | O34: ='Diesel Combustion'!$I$129 -> 0 | P34: ='Diesel Combustion'!$I$121 -> 0 | Q34: ='Diesel Combustion'!$I$131 -> 0.08194543069 | R34: ='Diesel Combustion'!$I$132 -> 0.003894447021 | S34: ='Diesel Combustion'!$I$138 -> 0.004650844368 | T34: ='Diesel Combustion'!$I$139 -> 0.0009301688735 | U34: ='Diesel Combustion'!$I$94 -> 7.223908914e-07 | V34: ='Diesel Combustion'!$I$95 -> 2.623516792e-08 | W34: ='Diesel Combustion'!$I$97 -> 1.417068577e-05 | X34: ='Diesel Combustion'!$I$98 -> 1.708981009e-06 | Y34: ='Diesel Combustion'!$I$99 -> 0.001293282926 | Z34: ='Diesel Combustion'!$I$100 -> 3.454912959e-08 | AA34: ='Diesel Combustion'!$I$102 -> 1.723761385e-05 | AB34: ='Diesel Combustion'!I$103 -> 3.103879022e-08 | AC34: ='Diesel Combustion'!$I$104 -> 3.473388429e-09 | AD34: ='Diesel Combustion'!$I$116 -> 1.077119922e-08 | AE34: ='Diesel Combustion'!$I$118 -> 1.405983295e-07 | AF34: ='Diesel Combustion'!$I$119 -> 5.394837348e-07 | AG34: ='Diesel Combustion'!$I$120 -> 2.180105503e-05 | AH34: ='Diesel Combustion'!$I$123 -> 5.265509055e-06 | AI34: ='Diesel Combustion'!$I$128 -> 1.566719887e-06 | AJ34: ='Diesel Combustion'!$I$134 -> 5.431788288e-07 | AK34: ='Diesel Combustion'!$I$140 -> 3.103879022e-06 | AL34: ='Diesel Combustion'!$I$141 -> 4.766671355e-05 | AM34: ='Diesel Combustion'!$I$142 -> 8.831274836e-08 | AN34: ='Diesel Combustion'!$I$146 -> 0.005642124412 | AO34: ='Diesel Combustion'!$I$149 -> 7.556467381e-06 | CF34: =SUMPRODUCT($C34:$CD34, 'TRACI IF'!$C$3:$CD$3) -> 0.09604984817 | CG34: =SUMPRODUCT($C34:$CD34, 'TRACI IF'!$C$4:$CD$4) -> 0.005793980548 | CH34: =SUMPRODUCT($C34:$CD34, 'TRACI IF'!$C$5:$CD$5) -> 3.209655638 | CI34: =SUMPRODUCT($C34:$CD34, 'TRACI IF'!$C$7:$CD$7) -> 0 | CJ34: =SUMPRODUCT($C34:$CD34, 'TRACI IF'!$C$6:$CD$6) -> 0.1837249275 | CK34: =SUMPRODUCT($C34:$CD34, 'TRACI IF'!$C$8:$CD$8) -> 2.105442102 | CL34: =SUMPRODUCT($C34:$CD34, 'TRACI IF'!$C$9:$CD$9) -> 0 | EI34: ='Fuel Oil Upstream'!$A$16 -> 0 | JZ34: ='Diesel Combustion'!$I$93 -> 1 | KD34: =KD23*GD23 -> 4.709209409e-06 | KE34: kg | KF34: LFO, combusted | KI34: LFO Comb, Transport, Ocean Vessel | KJ34: =INDEX(Mapping!$A$2:$A$98,MATCH(B34,Mapping!$C$2:$C$98,0)) -> Ocean Vessel Transport | KS34: 6.049483143e-10 | KT34: 0 | KU34: 2.844389618e-08 | KV34: 0 | KW34: 3.669262607e-06 | KX34: 0 | KY34: 0 | KZ34: 1.506468851e-05 | LA34: 1.180386955e-10 | LB34: 0 | LC34: 8.70048589e-08 | LD34: 2.622326447e-14 | LE34: 0 | LF34: 0 | LG34: 3.858981932e-07 | LH34: 1.833976655e-08 | LI34: 2.190180006e-08 | LJ34: 4.380360011e-09 | LK34: 0 | LL34: 0 | LM34: 0 | LN34: 0 | LO34: 0 | LP34: 0 | LQ34: 0 | LR34: 0 | LS34: 0 | LT34: 0 | LU34: 0 | LV34: 0 | LW34: 0 | LX34: 0 | LY34: 0 | LZ34: 0 | MA34: 0 | MB34: 0 | MC34: 0 | MD34: 0 | ME34: 0 | MF34: 0 | MG34: 0 | MH34: 0 | MI34: 0 | MJ34: 0 | MK34: 0 | ML34: 0 | MM34: 0 | MN34: 0 | MO34: 0 | MP34: 0 | MQ34: 0 | MR34: 0 | MS34: 0 | MT34: 0 | MU34: 0 | MV34: 0 | MW34: 0 | MX34: 0 | MY34: 0 | MZ34: =CF34*$KD34+DistOutput() -> 4.523188487e-07 | NA34: =CG34*$KD34+DistOutput() -> 2.728506772e-08 | NB34: =CH34*$KD34+DistOutput() -> 1.511494053e-05 | NC34: =CI34*$KD34+DistOutput() -> 0 | ND34: =CJ34*$KD34+DistOutput() -> 8.651991574e-07 | NE34: =CK34*$KD34+DistOutput() -> 9.914967757e-06 | NF34: =CL34*$KD34+DistOutput() -> 0 | NH34: =DistAvg($MZ34) -> 0 | NI34: =DistAvg($NA34) -> 0 | NJ34: =DistAvg($NB34) -> 0 | NK34: =DistAvg($NC34) -> 0 | NL34: =DistAvg($ND34) -> 0 | NM34: =DistAvg($NE34) -> 0 | NN34: =DistAvg($NF34) -> 0 | NO34: =DistMin(MZ34) -> 0 | NP34: =DistMin(NA34) -> 0 | NQ34: =DistMin(NB34) -> 0 | NR34: =DistMin(NC34) -> 0 | NS34: =DistMin(ND34) -> 0 | NT34: =DistMin(NE34) -> 0 | NU34: =DistMin(NF34) -> 0 | NV34: =DistMax(MZ34) -> 0 | NW34: =DistMax(NA34) -> 0 | NX34: =DistMax(NB34) -> 0 | NY34: =DistMax(NC34) -> 0 | NZ34: =DistMax(ND34) -> 0 | OA34: =DistMax(NE34) -> 0 | OB34: =DistMax(NF34) -> 0 | OC34: =DistPercentileInc(MZ34,OC$2) -> 0 | OD34: =DistPercentileInc(NA34,OD$2) -> 0 | OE34: =DistPercentileInc(NB34,OE$2) -> 0 | OF34: =DistPercentileInc(NC34,OF$2) -> 0 | OG34: =DistPercentileInc(ND34,OG$2) -> 0 | OH34: =DistPercentileInc(NE34,OH$2) -> 0 | OI34: =DistPercentileInc(NF34,OI$2) -> 0 | OJ34: =DistPercentileInc(MZ34,OJ$2) -> 0 | OK34: =DistPercentileInc(NA34,OK$2) -> 0 | OL34: =DistPercentileInc(NB34,OL$2) -> 0 | OM34: =DistPercentileInc(NC34,OM$2) -> 0 | ON34: =DistPercentileInc(ND34,ON$2) -> 0 | OO34: =DistPercentileInc(NE34,OO$2) -> 0 | OP34: =DistPercentileInc(NF34,OP$2) -> 0 | OQ34: =DistPercentileInc(MZ34,OQ$2) -> 0 | OR34: =DistPercentileInc(NA34,OR$2) -> 0 | OS34: =DistPercentileInc(NB34,OS$2) -> 0 | OT34: =DistPercentileInc(NC34,OT$2) -> 0 | OU34: =DistPercentileInc(ND34,OU$2) -> 0 | OV34: =DistPercentileInc(NE34,OV$2) -> 0 | OW34: =DistPercentileInc(NF34,OW$2) -> 0 | OX34: =DistPercentileInc(MZ34,OX$2) -> 0 | OY34: =DistPercentileInc(NA34,OY$2) -> 0 | OZ34: =DistPercentileInc(NB34,OZ$2) -> 0 | PA34: =DistPercentileInc(NC34,PA$2) -> 0 | PB34: =DistPercentileInc(ND34,PB$2) -> 0 | PC34: =DistPercentileInc(NE34,PC$2) -> 0 | PD34: =DistPercentileInc(NF34,PD$2) -> 0 | PE34: =DistPercentileInc(MZ34,PE$2) -> 0 | PF34: =DistPercentileInc(NA34,PF$2) -> 0 | PG34: =DistPercentileInc(NB34,PG$2) -> 0 | PH34: =DistPercentileInc(NC34,PH$2) -> 0 | PI34: =DistPercentileInc(ND34,PI$2) -> 0 | PJ34: =DistPercentileInc(NE34,PJ$2) -> 0 | PK34: =DistPercentileInc(NF34,PK$2) -> 0
B35: LFO Comb, Transport, Barge | C35: ='Diesel Combustion'!$I$110 -> 0.0001284606951 | D35: ='Diesel Combustion'!$I$136 -> 0 | E35: ='Diesel Combustion'!$I$137 -> 0.00604005762 | F35: ='Diesel Combustion'!$I$150 -> 0 | G35: ='Diesel Combustion'!$I$135 -> 0.779167433 | H35: ='Diesel Combustion'!$I$144 -> 0 | I35: ='Diesel Combustion'!$I$133 -> 0 | J35: ='Diesel Combustion'!$I$115 -> 3.198984628 | K35: ='Diesel Combustion'!$I$127 -> 2.506550149e-05 | M35: ='Diesel Combustion'!$I$114 -> 0.01847547037 | N35: ='Diesel Combustion'!$I$126 -> 5.568506769e-09 | O35: ='Diesel Combustion'!$I$129 -> 0 | P35: ='Diesel Combustion'!$I$121 -> 0 | Q35: ='Diesel Combustion'!$I$131 -> 0.08194543069 | R35: ='Diesel Combustion'!$I$132 -> 0.003894447021 | S35: ='Diesel Combustion'!$I$138 -> 0.004650844368 | T35: ='Diesel Combustion'!$I$139 -> 0.0009301688735 | U35: ='Diesel Combustion'!$I$94 -> 7.223908914e-07 | V35: ='Diesel Combustion'!$I$95 -> 2.623516792e-08 | W35: ='Diesel Combustion'!$I$97 -> 1.417068577e-05 | X35: ='Diesel Combustion'!$I$98 -> 1.708981009e-06 | Y35: ='Diesel Combustion'!$I$99 -> 0.001293282926 | Z35: ='Diesel Combustion'!$I$100 -> 3.454912959e-08 | AA35: ='Diesel Combustion'!$I$102 -> 1.723761385e-05 | AB35: ='Diesel Combustion'!I$103 -> 3.103879022e-08 | AC35: ='Diesel Combustion'!$I$104 -> 3.473388429e-09 | AD35: ='Diesel Combustion'!$I$116 -> 1.077119922e-08 | AE35: ='Diesel Combustion'!$I$118 -> 1.405983295e-07 | AF35: ='Diesel Combustion'!$I$119 -> 5.394837348e-07 | AG35: ='Diesel Combustion'!$I$120 -> 2.180105503e-05 | AH35: ='Diesel Combustion'!$I$123 -> 5.265509055e-06 | AI35: ='Diesel Combustion'!$I$128 -> 1.566719887e-06 | AJ35: ='Diesel Combustion'!$I$134 -> 5.431788288e-07 | AK35: ='Diesel Combustion'!$I$140 -> 3.103879022e-06 | AL35: ='Diesel Combustion'!$I$141 -> 4.766671355e-05 | AM35: ='Diesel Combustion'!$I$142 -> 8.831274836e-08 | AN35: ='Diesel Combustion'!$I$146 -> 0.005642124412 | AO35: ='Diesel Combustion'!$I$149 -> 7.556467381e-06 | CF35: =SUMPRODUCT($C35:$CD35, 'TRACI IF'!$C$3:$CD$3) -> 0.09604984817 | CG35: =SUMPRODUCT($C35:$CD35, 'TRACI IF'!$C$4:$CD$4) -> 0.005793980548 | CH35: =SUMPRODUCT($C35:$CD35, 'TRACI IF'!$C$5:$CD$5) -> 3.209655638 | CI35: =SUMPRODUCT($C35:$CD35, 'TRACI IF'!$C$7:$CD$7) -> 0 | CJ35: =SUMPRODUCT($C35:$CD35, 'TRACI IF'!$C$6:$CD$6) -> 0.1837249275 | CK35: =SUMPRODUCT($C35:$CD35, 'TRACI IF'!$C$8:$CD$8) -> 2.105442102 | CL35: =SUMPRODUCT($C35:$CD35, 'TRACI IF'!$C$9:$CD$9) -> 0 | EJ35: ='Fuel Oil Upstream'!$A$16 -> 0 | KA35: ='Diesel Combustion'!$I$93 -> 1 | KD35: =KD24*GE24 -> 0.0003521799525 | KE35: kg | KF35: LFO, combusted | KI35: LFO Comb, Transport, Barge | KJ35: =INDEX(Mapping!$A$2:$A$98,MATCH(B35,Mapping!$C$2:$C$98,0)) -> Barge Transport | KS35: 4.524128152e-08 | KT35: 0 | KU35: 2.127187206e-06 | KV35: 0 | KW35: 0.0002744071496 | KX35: 0 | KY35: 0 | KZ35: 0.001126618254 | LA35: 8.827567126e-09 | LB35: 0 | LC35: 6.506690278e-06 | LD35: 1.96111645e-12 | LE35: 0 | LF35: 0 | LG35: 2.885953789e-05 | LH35: 1.371546167e-06 | LI35: 1.637934149e-06 | LJ35: 3.275868297e-07 | LK35: 0 | LL35: 0 | LM35: 0 | LN35: 0 | LO35: 0 | LP35: 0 | LQ35: 0 | LR35: 0 | LS35: 0 | LT35: 0 | LU35: 0 | LV35: 0 | LW35: 0 | LX35: 0 | LY35: 0 | LZ35: 0 | MA35: 0 | MB35: 0 | MC35: 0 | MD35: 0 | ME35: 0 | MF35: 0 | MG35: 0 | MH35: 0 | MI35: 0 | MJ35: 0 | MK35: 0 | ML35: 0 | MM35: 0 | MN35: 0 | MO35: 0 | MP35: 0 | MQ35: 0 | MR35: 0 | MS35: 0 | MT35: 0 | MU35: 0 | MV35: 0 | MW35: 0 | MX35: 0 | MY35: 0 | MZ35: =CF35*$KD35+DistOutput() -> 3.382683097e-05 | NA35: =CG35*$KD35+DistOutput() -> 2.040523795e-06 | NB35: =CH35*$KD35+DistOutput() -> 0.00113037637 | NC35: =CI35*$KD35+DistOutput() -> 0 | ND35: =CJ35*$KD35+DistOutput() -> 6.470423626e-05 | NE35: =CK35*$KD35+DistOutput() -> 0.0007414944995 | NF35: =CL35*$KD35+DistOutput() -> 0 | NH35: =DistAvg($MZ35) -> 0 | NI35: =DistAvg($NA35) -> 0 | NJ35: =DistAvg($NB35) -> 0 | NK35: =DistAvg($NC35) -> 0 | NL35: =DistAvg($ND35) -> 0 | NM35: =DistAvg($NE35) -> 0 | NN35: =DistAvg($NF35) -> 0 | NO35: =DistMin(MZ35) -> 0 | NP35: =DistMin(NA35) -> 0 | NQ35: =DistMin(NB35) -> 0 | NR35: =DistMin(NC35) -> 0 | NS35: =DistMin(ND35) -> 0 | NT35: =DistMin(NE35) -> 0 | NU35: =DistMin(NF35) -> 0 | NV35: =DistMax(MZ35) -> 0 | NW35: =DistMax(NA35) -> 0 | NX35: =DistMax(NB35) -> 0 | NY35: =DistMax(NC35) -> 0 | NZ35: =DistMax(ND35) -> 0 | OA35: =DistMax(NE35) -> 0 | OB35: =DistMax(NF35) -> 0 | OC35: =DistPercentileInc(MZ35,OC$2) -> 0 | OD35: =DistPercentileInc(NA35,OD$2) -> 0 | OE35: =DistPercentileInc(NB35,OE$2) -> 0 | OF35: =DistPercentileInc(NC35,OF$2) -> 0 | OG35: =DistPercentileInc(ND35,OG$2) -> 0 | OH35: =DistPercentileInc(NE35,OH$2) -> 0 | OI35: =DistPercentileInc(NF35,OI$2) -> 0 | OJ35: =DistPercentileInc(MZ35,OJ$2) -> 0 | OK35: =DistPercentileInc(NA35,OK$2) -> 0 | OL35: =DistPercentileInc(NB35,OL$2) -> 0 | OM35: =DistPercentileInc(NC35,OM$2) -> 0 | ON35: =DistPercentileInc(ND35,ON$2) -> 0 | OO35: =DistPercentileInc(NE35,OO$2) -> 0 | OP35: =DistPercentileInc(NF35,OP$2) -> 0 | OQ35: =DistPercentileInc(MZ35,OQ$2) -> 0 | OR35: =DistPercentileInc(NA35,OR$2) -> 0 | OS35: =DistPercentileInc(NB35,OS$2) -> 0 | OT35: =DistPercentileInc(NC35,OT$2) -> 0 | OU35: =DistPercentileInc(ND35,OU$2) -> 0 | OV35: =DistPercentileInc(NE35,OV$2) -> 0 | OW35: =DistPercentileInc(NF35,OW$2) -> 0 | OX35: =DistPercentileInc(MZ35,OX$2) -> 0 | OY35: =DistPercentileInc(NA35,OY$2) -> 0 | OZ35: =DistPercentileInc(NB35,OZ$2) -> 0 | PA35: =DistPercentileInc(NC35,PA$2) -> 0 | PB35: =DistPercentileInc(ND35,PB$2) -> 0 | PC35: =DistPercentileInc(NE35,PC$2) -> 0 | PD35: =DistPercentileInc(NF35,PD$2) -> 0 | PE35: =DistPercentileInc(MZ35,PE$2) -> 0 | PF35: =DistPercentileInc(NA35,PF$2) -> 0 | PG35: =DistPercentileInc(NB35,PG$2) -> 0 | PH35: =DistPercentileInc(NC35,PH$2) -> 0 | PI35: =DistPercentileInc(ND35,PI$2) -> 0 | PJ35: =DistPercentileInc(NE35,PJ$2) -> 0 | PK35: =DistPercentileInc(NF35,PK$2) -> 0
B36: Underground Coal Handling | CF36: =SUMPRODUCT($C36:$CD36, 'TRACI IF'!$C$3:$CD$3) -> 0 | CG36: =SUMPRODUCT($C36:$CD36, 'TRACI IF'!$C$4:$CD$4) -> 0 | CH36: =SUMPRODUCT($C36:$CD36, 'TRACI IF'!$C$5:$CD$5) -> 0 | CI36: =SUMPRODUCT($C36:$CD36, 'TRACI IF'!$C$7:$CD$7) -> 0 | CJ36: =SUMPRODUCT($C36:$CD36, 'TRACI IF'!$C$6:$CD$6) -> 0 | CK36: =SUMPRODUCT($C36:$CD36, 'TRACI IF'!$C$8:$CD$8) -> 0 | CL36: =SUMPRODUCT($C36:$CD36, 'TRACI IF'!$C$9:$CD$9) -> 0 | EH36: ='UndCoal Handling'!$I$32 -> 0.01969 | FE36: ='UndCoal Handling'!I30 -> 1 | GB36: ='UndCoal Handling'!I31 -> 0.00146 | JP36: ='UndCoal Handling'!$I$38 -> 1 | KD36: =KD14*FT14 -> 0 | KE36: kg | KF36: underground coal | KI36: Underground Coal Handling | KJ36: =INDEX(Mapping!$A$2:$A$98,MATCH(B36,Mapping!$C$2:$C$98,0)) -> Coal Handling - Underground | KS36: =C36*$KD36 -> 0 | KT36: =D36*$KD36 -> 0 | KU36: =E36*$KD36 -> 0 | KV36: =F36*$KD36 -> 0 | KW36: =G36*$KD36 -> 0 | KX36: =H36*$KD36 -> 0 | KY36: =I36*$KD36 -> 0 | KZ36: =J36*$KD36 -> 0 | LA36: =K36*$KD36 -> 0 | LB36: =L36*$KD36 -> 0 | LC36: =M36*$KD36 -> 0 | LD36: =N36*$KD36 -> 0 | LE36: =O36*$KD36 -> 0 | LF36: =P36*$KD36 -> 0 | LG36: =Q36*$KD36 -> 0 | LH36: =R36*$KD36 -> 0 | LI36: =S36*$KD36 -> 0 | LJ36: =T36*$KD36 -> 0 | LK36: =AP36*$KD36 -> 0 | LL36: =AQ36*$KD36 -> 0 | LM36: =AR36*$KD36 -> 0 | LN36: =AS36*$KD36 -> 0 | LO36: =AT36*$KD36 -> 0 | LP36: =AU36*$KD36 -> 0 | LQ36: =AV36*$KD36 -> 0 | LR36: =AW36*$KD36 -> 0 | LS36: =AX36*$KD36 -> 0 | LT36: =AY36*$KD36 -> 0 | LU36: =AZ36*$KD36 -> 0 | LV36: =BA36*$KD36 -> 0 | LW36: =BB36*$KD36 -> 0 | LX36: =BC36*$KD36 -> 0 | LY36: =BD36*$KD36 -> 0 | LZ36: =BE36*$KD36 -> 0 | MA36: =BF36*$KD36 -> 0 | MB36: =BG36*$KD36 -> 0 | MC36: =BH36*$KD36 -> 0 | MD36: =BI36*$KD36 -> 0 | ME36: =BJ36*$KD36 -> 0 | MF36: =BK36*$KD36 -> 0 | MG36: =BL36*$KD36 -> 0 | MH36: =BM36*$KD36 -> 0 | MI36: =BN36*$KD36 -> 0 | MJ36: =BO36*$KD36 -> 0 | MK36: =BP36*$KD36 -> 0 | ML36: =BQ36*$KD36 -> 0 | MM36: =BR36*$KD36 -> 0 | MN36: =BS36*$KD36 -> 0 | MO36: =BT36*$KD36 -> 0 | MP36: =BU36*$KD36 -> 0 | MQ36: =BV36*$KD36 -> 0 | MR36: =BW36*$KD36 -> 0 | MS36: =BX36*$KD36 -> 0 | MT36: =BY36*$KD36 -> 0 | MU36: =BZ36*$KD36 -> 0 | MV36: =CA36*$KD36 -> 0 | MW36: =CB36*$KD36 -> 0 | MX36: =CC36*$KD36 -> 0 | MY36: =CD36*$KD36 -> 0 | MZ36: =CF36*$KD36+DistOutput() -> 0 | NA36: =CG36*$KD36+DistOutput() -> 0 | NB36: =CH36*$KD36+DistOutput() -> 0 | NC36: =CI36*$KD36+DistOutput() -> 0 | ND36: =CJ36*$KD36+DistOutput() -> 0 | NE36: =CK36*$KD36+DistOutput() -> 0 | NF36: =CL36*$KD36+DistOutput() -> 0 | NH36: =DistAvg($MZ36) -> 0 | NI36: =DistAvg($NA36) -> 0 | NJ36: =DistAvg($NB36) -> 0 | NK36: =DistAvg($NC36) -> 0 | NL36: =DistAvg($ND36) -> 0 | NM36: =DistAvg($NE36) -> 0 | NN36: =DistAvg($NF36) -> 0 | NO36: =DistMin(MZ36) -> 0 | NP36: =DistMin(NA36) -> 0 | NQ36: =DistMin(NB36) -> 0 | NR36: =DistMin(NC36) -> 0 | NS36: =DistMin(ND36) -> 0 | NT36: =DistMin(NE36) -> 0 | NU36: =DistMin(NF36) -> 0 | NV36: =DistMax(MZ36) -> 0 | NW36: =DistMax(NA36) -> 0 | NX36: =DistMax(NB36) -> 0 | NY36: =DistMax(NC36) -> 0 | NZ36: =DistMax(ND36) -> 0 | OA36: =DistMax(NE36) -> 0 | OB36: =DistMax(NF36) -> 0 | OC36: =DistPercentileInc(MZ36,OC$2) -> 0 | OD36: =DistPercentileInc(NA36,OD$2) -> 0 | OE36: =DistPercentileInc(NB36,OE$2) -> 0 | OF36: =DistPercentileInc(NC36,OF$2) -> 0 | OG36: =DistPercentileInc(ND36,OG$2) -> 0 | OH36: =DistPercentileInc(NE36,OH$2) -> 0 | OI36: =DistPercentileInc(NF36,OI$2) -> 0 | OJ36: =DistPercentileInc(MZ36,OJ$2) -> 0 | OK36: =DistPercentileInc(NA36,OK$2) -> 0 | OL36: =DistPercentileInc(NB36,OL$2) -> 0 | OM36: =DistPercentileInc(NC36,OM$2) -> 0 | ON36: =DistPercentileInc(ND36,ON$2) -> 0 | OO36: =DistPercentileInc(NE36,OO$2) -> 0 | OP36: =DistPercentileInc(NF36,OP$2) -> 0 | OQ36: =DistPercentileInc(MZ36,OQ$2) -> 0 | OR36: =DistPercentileInc(NA36,OR$2) -> 0 | OS36: =DistPercentileInc(NB36,OS$2) -> 0 | OT36: =DistPercentileInc(NC36,OT$2) -> 0 | OU36: =DistPercentileInc(ND36,OU$2) -> 0 | OV36: =DistPercentileInc(NE36,OV$2) -> 0 | OW36: =DistPercentileInc(NF36,OW$2) -> 0 | OX36: =DistPercentileInc(MZ36,OX$2) -> 0 | OY36: =DistPercentileInc(NA36,OY$2) -> 0 | OZ36: =DistPercentileInc(NB36,OZ$2) -> 0 | PA36: =DistPercentileInc(NC36,PA$2) -> 0 | PB36: =DistPercentileInc(ND36,PB$2) -> 0 | PC36: =DistPercentileInc(NE36,PC$2) -> 0 | PD36: =DistPercentileInc(NF36,PD$2) -> 0 | PE36: =DistPercentileInc(MZ36,PE$2) -> 0 | PF36: =DistPercentileInc(NA36,PF$2) -> 0 | PG36: =DistPercentileInc(NB36,PG$2) -> 0 | PH36: =DistPercentileInc(NC36,PH$2) -> 0 | PI36: =DistPercentileInc(ND36,PI$2) -> 0 | PJ36: =DistPercentileInc(NE36,PJ$2) -> 0 | PK36: =DistPercentileInc(NF36,PK$2) -> 0
B37: Surface Coal Handling | CF37: =SUMPRODUCT($C37:$CD37, 'TRACI IF'!$C$3:$CD$3) -> 0 | CG37: =SUMPRODUCT($C37:$CD37, 'TRACI IF'!$C$4:$CD$4) -> 0 | CH37: =SUMPRODUCT($C37:$CD37, 'TRACI IF'!$C$5:$CD$5) -> 0 | CI37: =SUMPRODUCT($C37:$CD37, 'TRACI IF'!$C$7:$CD$7) -> 0 | CJ37: =SUMPRODUCT($C37:$CD37, 'TRACI IF'!$C$6:$CD$6) -> 0 | CK37: =SUMPRODUCT($C37:$CD37, 'TRACI IF'!$C$8:$CD$8) -> 0 | CL37: =SUMPRODUCT($C37:$CD37, 'TRACI IF'!$C$9:$CD$9) -> 0 | FF37: ='Surface Coal Handling'!$I$29 -> 1 | GC37: ='Surface Coal Handling'!I30 -> 0.001428065974 | JQ37: ='Surface Coal Handling'!$I$36 -> 1 | KD37: =KD14*FU14 -> 1 | KE37: kg | KF37: surface coal | KI37: Surface Coal Handling | KJ37: =INDEX(Mapping!$A$2:$A$98,MATCH(B37,Mapping!$C$2:$C$98,0)) -> Extraction Surface Mine | KS37: 0 | KT37: 0 | KU37: 0 | KV37: 0 | KW37: 0 | KX37: 0 | KY37: 0 | KZ37: 0 | LA37: 0 | LB37: 0 | LC37: 0 | LD37: 0 | LE37: 0 | LF37: 0 | LG37: 0 | LH37: 0 | LI37: 0 | LJ37: 0 | LK37: 0 | LL37: 0 | LM37: 0 | LN37: 0 | LO37: 0 | LP37: 0 | LQ37: 0 | LR37: 0 | LS37: 0 | LT37: 0 | LU37: 0 | LV37: 0 | LW37: 0 | LX37: 0 | LY37: 0 | LZ37: 0 | MA37: 0 | MB37: 0 | MC37: 0 | MD37: 0 | ME37: 0 | MF37: 0 | MG37: 0 | MH37: 0 | MI37: 0 | MJ37: 0 | MK37: 0 | ML37: 0 | MM37: 0 | MN37: 0 | MO37: 0 | MP37: 0 | MQ37: 0 | MR37: 0 | MS37: 0 | MT37: 0 | MU37: 0 | MV37: 0 | MW37: 0 | MX37: 0 | MY37: 0 | MZ37: =CF37*$KD37+DistOutput() -> 0 | NA37: =CG37*$KD37+DistOutput() -> 0 | NB37: =CH37*$KD37+DistOutput() -> 0 | NC37: =CI37*$KD37+DistOutput() -> 0 | ND37: =CJ37*$KD37+DistOutput() -> 0 | NE37: =CK37*$KD37+DistOutput() -> 0 | NF37: =CL37*$KD37+DistOutput() -> 0 | NH37: =DistAvg($MZ37) -> 0 | NI37: =DistAvg($NA37) -> 0 | NJ37: =DistAvg($NB37) -> 0 | NK37: =DistAvg($NC37) -> 0 | NL37: =DistAvg($ND37) -> 0 | NM37: =DistAvg($NE37) -> 0 | NN37: =DistAvg($NF37) -> 0 | NO37: =DistMin(MZ37) -> 0 | NP37: =DistMin(NA37) -> 0 | NQ37: =DistMin(NB37) -> 0 | NR37: =DistMin(NC37) -> 0 | NS37: =DistMin(ND37) -> 0 | NT37: =DistMin(NE37) -> 0 | NU37: =DistMin(NF37) -> 0 | NV37: =DistMax(MZ37) -> 0 | NW37: =DistMax(NA37) -> 0 | NX37: =DistMax(NB37) -> 0 | NY37: =DistMax(NC37) -> 0 | NZ37: =DistMax(ND37) -> 0 | OA37: =DistMax(NE37) -> 0 | OB37: =DistMax(NF37) -> 0 | OC37: =DistPercentileInc(MZ37,OC$2) -> 0 | OD37: =DistPercentileInc(NA37,OD$2) -> 0 | OE37: =DistPercentileInc(NB37,OE$2) -> 0 | OF37: =DistPercentileInc(NC37,OF$2) -> 0 | OG37: =DistPercentileInc(ND37,OG$2) -> 0 | OH37: =DistPercentileInc(NE37,OH$2) -> 0 | OI37: =DistPercentileInc(NF37,OI$2) -> 0 | OJ37: =DistPercentileInc(MZ37,OJ$2) -> 0 | OK37: =DistPercentileInc(NA37,OK$2) -> 0 | OL37: =DistPercentileInc(NB37,OL$2) -> 0 | OM37: =DistPercentileInc(NC37,OM$2) -> 0 | ON37: =DistPercentileInc(ND37,ON$2) -> 0 | OO37: =DistPercentileInc(NE37,OO$2) -> 0 | OP37: =DistPercentileInc(NF37,OP$2) -> 0 | OQ37: =DistPercentileInc(MZ37,OQ$2) -> 0 | OR37: =DistPercentileInc(NA37,OR$2) -> 0 | OS37: =DistPercentileInc(NB37,OS$2) -> 0 | OT37: =DistPercentileInc(NC37,OT$2) -> 0 | OU37: =DistPercentileInc(ND37,OU$2) -> 0 | OV37: =DistPercentileInc(NE37,OV$2) -> 0 | OW37: =DistPercentileInc(NF37,OW$2) -> 0 | OX37: =DistPercentileInc(MZ37,OX$2) -> 0 | OY37: =DistPercentileInc(NA37,OY$2) -> 0 | OZ37: =DistPercentileInc(NB37,OZ$2) -> 0 | PA37: =DistPercentileInc(NC37,PA$2) -> 0 | PB37: =DistPercentileInc(ND37,PB$2) -> 0 | PC37: =DistPercentileInc(NE37,PC$2) -> 0 | PD37: =DistPercentileInc(NF37,PD$2) -> 0 | PE37: =DistPercentileInc(MZ37,PE$2) -> 0 | PF37: =DistPercentileInc(NA37,PF$2) -> 0 | PG37: =DistPercentileInc(NB37,PG$2) -> 0 | PH37: =DistPercentileInc(NC37,PH$2) -> 0 | PI37: =DistPercentileInc(ND37,PI$2) -> 0 | PJ37: =DistPercentileInc(NE37,PJ$2) -> 0 | PK37: =DistPercentileInc(NF37,PK$2) -> 0
A38: Rollups | B38: Explosives, Underground | C38: =Explosives!C17 -> 0.00041 | J38: =Explosives!C16 -> 0.0473 | K38: =Explosives!C18 -> 4.7875e-07 | CF38: =Explosives!$C$9 -> 6.959112184e-05 | CG38: =Explosives!$C$10 -> 4.05646255e-06 | CH38: =SUMPRODUCT($C38:$CD38, 'TRACI IF'!$C$5:$CD$5) -> 0.05964869875 | CI38: =Explosives!$C$11 -> 6.64581171e-11 | CJ38: =Explosives!$C$12 -> 4.66138327e-06 | CK38: =Explosives!$C$13 -> 0.001789844391 | CL38: =Explosives!$C$14 -> -0.004084010297 | GS38: =Explosives!C6 -> 1 | KD38: =KD6*EK6 -> 0 | KE38: kg | KF38: explosives | KI38: Explosives, Underground | KJ38: =INDEX(Mapping!$A$2:$A$98,MATCH(B38,Mapping!$C$2:$C$98,0)) -> Extraction Underground | KS38: 0 | KT38: 0 | KU38: 0 | KV38: 0 | KW38: 0 | KX38: 0 | KY38: 0 | KZ38: 0 | LA38: 0 | LB38: 0 | LC38: 0 | LD38: 0 | LE38: 0 | LF38: 0 | LG38: 0 | LH38: 0 | LI38: 0 | LJ38: 0 | LK38: 0 | LL38: 0 | LM38: 0 | LN38: 0 | LO38: 0 | LP38: 0 | LQ38: 0 | LR38: 0 | LS38: 0 | LT38: 0 | LU38: 0 | LV38: 0 | LW38: 0 | LX38: 0 | LY38: 0 | LZ38: 0 | MA38: 0 | MB38: 0 | MC38: 0 | MD38: 0 | ME38: 0 | MF38: 0 | MG38: 0 | MH38: 0 | MI38: 0 | MJ38: 0 | MK38: 0 | ML38: 0 | MM38: 0 | MN38: 0 | MO38: 0 | MP38: 0 | MQ38: 0 | MR38: 0 | MS38: 0 | MT38: 0 | MU38: 0 | MV38: 0 | MW38: 0 | MX38: 0 | MY38: 0 | MZ38: =CF38*$KD38+DistOutput() -> 0 | NA38: =CG38*$KD38+DistOutput() -> 0 | NB38: =CH38*$KD38+DistOutput() -> 0 | NC38: =CI38*$KD38+DistOutput() -> 0 | ND38: =CJ38*$KD38+DistOutput() -> 0 | NE38: =CK38*$KD38+DistOutput() -> 0 | NF38: =CL38*$KD38+DistOutput() -> 0 | NH38: =DistAvg($MZ38) -> 0 | NI38: =DistAvg($NA38) -> 0 | NJ38: =DistAvg($NB38) -> 0 | NK38: =DistAvg($NC38) -> 0 | NL38: =DistAvg($ND38) -> 0 | NM38: =DistAvg($NE38) -> 0 | NN38: =DistAvg($NF38) -> 0 | NO38: =DistMin(MZ38) -> 0 | NP38: =DistMin(NA38) -> 0 | NQ38: =DistMin(NB38) -> 0 | NR38: =DistMin(NC38) -> 0 | NS38: =DistMin(ND38) -> 0 | NT38: =DistMin(NE38) -> 0 | NU38: =DistMin(NF38) -> 0 | NV38: =DistMax(MZ38) -> 0 | NW38: =DistMax(NA38) -> 0 | NX38: =DistMax(NB38) -> 0 | NY38: =DistMax(NC38) -> 0 | NZ38: =DistMax(ND38) -> 0 | OA38: =DistMax(NE38) -> 0 | OB38: =DistMax(NF38) -> 0 | OC38: =DistPercentileInc(MZ38,OC$2) -> 0 | OD38: =DistPercentileInc(NA38,OD$2) -> 0 | OE38: =DistPercentileInc(NB38,OE$2) -> 0 | OF38: =DistPercentileInc(NC38,OF$2) -> 0 | OG38: =DistPercentileInc(ND38,OG$2) -> 0 | OH38: =DistPercentileInc(NE38,OH$2) -> 0 | OI38: =DistPercentileInc(NF38,OI$2) -> 0 | OJ38: =DistPercentileInc(MZ38,OJ$2) -> 0 | OK38: =DistPercentileInc(NA38,OK$2) -> 0 | OL38: =DistPercentileInc(NB38,OL$2) -> 0 | OM38: =DistPercentileInc(NC38,OM$2) -> 0 | ON38: =DistPercentileInc(ND38,ON$2) -> 0 | OO38: =DistPercentileInc(NE38,OO$2) -> 0 | OP38: =DistPercentileInc(NF38,OP$2) -> 0 | OQ38: =DistPercentileInc(MZ38,OQ$2) -> 0 | OR38: =DistPercentileInc(NA38,OR$2) -> 0 | OS38: =DistPercentileInc(NB38,OS$2) -> 0 | OT38: =DistPercentileInc(NC38,OT$2) -> 0 | OU38: =DistPercentileInc(ND38,OU$2) -> 0 | OV38: =DistPercentileInc(NE38,OV$2) -> 0 | OW38: =DistPercentileInc(NF38,OW$2) -> 0 | OX38: =DistPercentileInc(MZ38,OX$2) -> 0 | OY38: =DistPercentileInc(NA38,OY$2) -> 0 | OZ38: =DistPercentileInc(NB38,OZ$2) -> 0 | PA38: =DistPercentileInc(NC38,PA$2) -> 0 | PB38: =DistPercentileInc(ND38,PB$2) -> 0 | PC38: =DistPercentileInc(NE38,PC$2) -> 0 | PD38: =DistPercentileInc(NF38,PD$2) -> 0 | PE38: =DistPercentileInc(MZ38,PE$2) -> 0 | PF38: =DistPercentileInc(NA38,PF$2) -> 0 | PG38: =DistPercentileInc(NB38,PG$2) -> 0 | PH38: =DistPercentileInc(NC38,PH$2) -> 0 | PI38: =DistPercentileInc(ND38,PI$2) -> 0 | PJ38: =DistPercentileInc(NE38,PJ$2) -> 0 | PK38: =DistPercentileInc(NF38,PK$2) -> 0
B39: Explosives, Surface | C39: =Explosives!C17 -> 0.00041 | J39: =Explosives!C16 -> 0.0473 | K39: =Explosives!C18 -> 4.7875e-07 | CF39: =Explosives!$C$9 -> 6.959112184e-05 | CG39: =Explosives!$C$10 -> 4.05646255e-06 | CH39: =SUMPRODUCT($C39:$CD39, 'TRACI IF'!$C$5:$CD$5) -> 0.05964869875 | CI39: =Explosives!$C$11 -> 6.64581171e-11 | CJ39: =Explosives!$C$12 -> 4.66138327e-06 | CK39: =Explosives!$C$13 -> 0.001789844391 | CL39: =Explosives!$C$14 -> -0.004084010297 | GT39: =Explosives!C6 -> 1 | KD39: =KD7*EL7 -> 0.001306666667 | KE39: kg | KF39: explosives | KI39: Explosives, Surface | KJ39: =INDEX(Mapping!$A$2:$A$98,MATCH(B39,Mapping!$C$2:$C$98,0)) -> Extraction Surface Mine | KS39: 5.357333333e-07 | KT39: 0 | KU39: 0 | KV39: 0 | KW39: 0 | KX39: 0 | KY39: 0 | KZ39: 6.180533333e-05 | LA39: 6.255666667e-10 | LB39: 0 | LC39: 0 | LD39: 0 | LE39: 0 | LF39: 0 | LG39: 0 | LH39: 0 | LI39: 0 | LJ39: 0 | LK39: 0 | LL39: 0 | LM39: 0 | LN39: 0 | LO39: 0 | LP39: 0 | LQ39: 0 | LR39: 0 | LS39: 0 | LT39: 0 | LU39: 0 | LV39: 0 | LW39: 0 | LX39: 0 | LY39: 0 | LZ39: 0 | MA39: 0 | MB39: 0 | MC39: 0 | MD39: 0 | ME39: 0 | MF39: 0 | MG39: 0 | MH39: 0 | MI39: 0 | MJ39: 0 | MK39: 0 | ML39: 0 | MM39: 0 | MN39: 0 | MO39: 0 | MP39: 0 | MQ39: 0 | MR39: 0 | MS39: 0 | MT39: 0 | MU39: 0 | MV39: 0 | MW39: 0 | MX39: 0 | MY39: 0 | MZ39: =CF39*$KD39+DistOutput() -> 9.093239921e-08 | NA39: =CG39*$KD39+DistOutput() -> 5.300444398e-09 | NB39: =CH39*$KD39+DistOutput() -> 7.794096637e-05 | NC39: =CI39*$KD39+DistOutput() -> 8.683860634e-14 | ND39: =CJ39*$KD39+DistOutput() -> 6.090874139e-09 | NE39: =CK39*$KD39+DistOutput() -> 2.338730005e-06 | NF39: =CL39*$KD39+DistOutput() -> -5.336440121e-06 | NH39: =DistAvg($MZ39) -> 0 | NI39: =DistAvg($NA39) -> 0 | NJ39: =DistAvg($NB39) -> 0 | NK39: =DistAvg($NC39) -> 0 | NL39: =DistAvg($ND39) -> 0 | NM39: =DistAvg($NE39) -> 0 | NN39: =DistAvg($NF39) -> 0 | NO39: =DistMin(MZ39) -> 0 | NP39: =DistMin(NA39) -> 0 | NQ39: =DistMin(NB39) -> 0 | NR39: =DistMin(NC39) -> 0 | NS39: =DistMin(ND39) -> 0 | NT39: =DistMin(NE39) -> 0 | NU39: =DistMin(NF39) -> 0 | NV39: =DistMax(MZ39) -> 0 | NW39: =DistMax(NA39) -> 0 | NX39: =DistMax(NB39) -> 0 | NY39: =DistMax(NC39) -> 0 | NZ39: =DistMax(ND39) -> 0 | OA39: =DistMax(NE39) -> 0 | OB39: =DistMax(NF39) -> 0 | OC39: =DistPercentileInc(MZ39,OC$2) -> 0 | OD39: =DistPercentileInc(NA39,OD$2) -> 0 | OE39: =DistPercentileInc(NB39,OE$2) -> 0 | OF39: =DistPercentileInc(NC39,OF$2) -> 0 | OG39: =DistPercentileInc(ND39,OG$2) -> 0 | OH39: =DistPercentileInc(NE39,OH$2) -> 0 | OI39: =DistPercentileInc(NF39,OI$2) -> 0 | OJ39: =DistPercentileInc(MZ39,OJ$2) -> 0 | OK39: =DistPercentileInc(NA39,OK$2) -> 0 | OL39: =DistPercentileInc(NB39,OL$2) -> 0 | OM39: =DistPercentileInc(NC39,OM$2) -> 0 | ON39: =DistPercentileInc(ND39,ON$2) -> 0 | OO39: =DistPercentileInc(NE39,OO$2) -> 0 | OP39: =DistPercentileInc(NF39,OP$2) -> 0 | OQ39: =DistPercentileInc(MZ39,OQ$2) -> 0 | OR39: =DistPercentileInc(NA39,OR$2) -> 0 | OS39: =DistPercentileInc(NB39,OS$2) -> 0 | OT39: =DistPercentileInc(NC39,OT$2) -> 0 | OU39: =DistPercentileInc(ND39,OU$2) -> 0 | OV39: =DistPercentileInc(NE39,OV$2) -> 0 | OW39: =DistPercentileInc(NF39,OW$2) -> 0 | OX39: =DistPercentileInc(MZ39,OX$2) -> 0 | OY39: =DistPercentileInc(NA39,OY$2) -> 0 | OZ39: =DistPercentileInc(NB39,OZ$2) -> 0 | PA39: =DistPercentileInc(NC39,PA$2) -> 0 | PB39: =DistPercentileInc(ND39,PB$2) -> 0 | PC39: =DistPercentileInc(NE39,PC$2) -> 0 | PD39: =DistPercentileInc(NF39,PD$2) -> 0 | PE39: =DistPercentileInc(MZ39,PE$2) -> 0 | PF39: =DistPercentileInc(NA39,PF$2) -> 0 | PG39: =DistPercentileInc(NB39,PG$2) -> 0 | PH39: =DistPercentileInc(NC39,PH$2) -> 0 | PI39: =DistPercentileInc(ND39,PI$2) -> 0 | PJ39: =DistPercentileInc(NE39,PJ$2) -> 0 | PK39: =DistPercentileInc(NF39,PK$2) -> 0
B40: Underground Mine Construction | C40: ='UndMine Const'!C17 -> 1.076255527e-06 | J40: ='UndMine Const'!C16 -> 0.000633821651 | K40: ='UndMine Const'!C18 -> 1.678534458e-09 | CF40: ='UndMine Const'!C9 -> 1.289986395e-06 | CG40: ='UndMine Const'!C10 -> 4.743961493e-08 | CH40: =SUMPRODUCT($C40:$CD40, 'TRACI IF'!$C$5:$CD$5) -> 0.0006663523055 | CI40: ='UndMine Const'!C11 -> 3.178194267e-14 | CJ40: ='UndMine Const'!C12 -> 5.148242559e-08 | CK40: ='UndMine Const'!C13 -> 1.449039891e-05 | CL40: ='UndMine Const'!C14 -> 0.00462 | GU40: ='UndMine Const'!C6 -> 1 | KD40: =KD6*EZ6 -> 0 | KE40: pcs | KF40: mine construction | KI40: Underground Mine Construction | KJ40: =INDEX(Mapping!$A$2:$A$98,MATCH(B40,Mapping!$C$2:$C$98,0)) -> Extraction Underground | KS40: 0 | KT40: 0 | KU40: 0 | KV40: 0 | KW40: 0 | KX40: 0 | KY40: 0 | KZ40: 0 | LA40: 0 | LB40: 0 | LC40: 0 | LD40: 0 | LE40: 0 | LF40: 0 | LG40: 0 | LH40: 0 | LI40: 0 | LJ40: 0 | LK40: 0 | LL40: 0 | LM40: 0 | LN40: 0 | LO40: 0 | LP40: 0 | LQ40: 0 | LR40: 0 | LS40: 0 | LT40: 0 | LU40: 0 | LV40: 0 | LW40: 0 | LX40: 0 | LY40: 0 | LZ40: 0 | MA40: 0 | MB40: 0 | MC40: 0 | MD40: 0 | ME40: 0 | MF40: 0 | MG40: 0 | MH40: 0 | MI40: 0 | MJ40: 0 | MK40: 0 | ML40: 0 | MM40: 0 | MN40: 0 | MO40: 0 | MP40: 0 | MQ40: 0 | MR40: 0 | MS40: 0 | MT40: 0 | MU40: 0 | MV40: 0 | MW40: 0 | MX40: 0 | MY40: 0 | MZ40: =CF40*$KD40+DistOutput() -> 0 | NA40: =CG40*$KD40+DistOutput() -> 0 | NB40: =CH40*$KD40+DistOutput() -> 0 | NC40: =CI40*$KD40+DistOutput() -> 0 | ND40: =CJ40*$KD40+DistOutput() -> 0 | NE40: =CK40*$KD40+DistOutput() -> 0 | NF40: =CL40*$KD40+DistOutput() -> 0 | NH40: =DistAvg($MZ40) -> 0 | NI40: =DistAvg($NA40) -> 0 | NJ40: =DistAvg($NB40) -> 0 | NK40: =DistAvg($NC40) -> 0 | NL40: =DistAvg($ND40) -> 0 | NM40: =DistAvg($NE40) -> 0 | NN40: =DistAvg($NF40) -> 0 | NO40: =DistMin(MZ40) -> 0 | NP40: =DistMin(NA40) -> 0 | NQ40: =DistMin(NB40) -> 0 | NR40: =DistMin(NC40) -> 0 | NS40: =DistMin(ND40) -> 0 | NT40: =DistMin(NE40) -> 0 | NU40: =DistMin(NF40) -> 0 | NV40: =DistMax(MZ40) -> 0 | NW40: =DistMax(NA40) -> 0 | NX40: =DistMax(NB40) -> 0 | NY40: =DistMax(NC40) -> 0 | NZ40: =DistMax(ND40) -> 0 | OA40: =DistMax(NE40) -> 0 | OB40: =DistMax(NF40) -> 0 | OC40: =DistPercentileInc(MZ40,OC$2) -> 0 | OD40: =DistPercentileInc(NA40,OD$2) -> 0 | OE40: =DistPercentileInc(NB40,OE$2) -> 0 | OF40: =DistPercentileInc(NC40,OF$2) -> 0 | OG40: =DistPercentileInc(ND40,OG$2) -> 0 | OH40: =DistPercentileInc(NE40,OH$2) -> 0 | OI40: =DistPercentileInc(NF40,OI$2) -> 0 | OJ40: =DistPercentileInc(MZ40,OJ$2) -> 0 | OK40: =DistPercentileInc(NA40,OK$2) -> 0 | OL40: =DistPercentileInc(NB40,OL$2) -> 0 | OM40: =DistPercentileInc(NC40,OM$2) -> 0 | ON40: =DistPercentileInc(ND40,ON$2) -> 0 | OO40: =DistPercentileInc(NE40,OO$2) -> 0 | OP40: =DistPercentileInc(NF40,OP$2) -> 0 | OQ40: =DistPercentileInc(MZ40,OQ$2) -> 0 | OR40: =DistPercentileInc(NA40,OR$2) -> 0 | OS40: =DistPercentileInc(NB40,OS$2) -> 0 | OT40: =DistPercentileInc(NC40,OT$2) -> 0 | OU40: =DistPercentileInc(ND40,OU$2) -> 0 | OV40: =DistPercentileInc(NE40,OV$2) -> 0 | OW40: =DistPercentileInc(NF40,OW$2) -> 0 | OX40: =DistPercentileInc(MZ40,OX$2) -> 0 | OY40: =DistPercentileInc(NA40,OY$2) -> 0 | OZ40: =DistPercentileInc(NB40,OZ$2) -> 0 | PA40: =DistPercentileInc(NC40,PA$2) -> 0 | PB40: =DistPercentileInc(ND40,PB$2) -> 0 | PC40: =DistPercentileInc(NE40,PC$2) -> 0 | PD40: =DistPercentileInc(NF40,PD$2) -> 0 | PE40: =DistPercentileInc(MZ40,PE$2) -> 0 | PF40: =DistPercentileInc(NA40,PF$2) -> 0 | PG40: =DistPercentileInc(NB40,PG$2) -> 0 | PH40: =DistPercentileInc(NC40,PH$2) -> 0 | PI40: =DistPercentileInc(ND40,PI$2) -> 0 | PJ40: =DistPercentileInc(NE40,PJ$2) -> 0 | PK40: =DistPercentileInc(NF40,PK$2) -> 0
B41: Coal Preparation Plant Construction | C41: =PrepPlantConst!C17 -> 3.911154992e-08 | J41: =PrepPlantConst!C16 -> 1.867803564e-05 | K41: =PrepPlantConst!C18 -> 2.744597921e-10 | CF41: =PrepPlantConst!C9 -> 6.33746e-08 | CG41: =PrepPlantConst!C10 -> 2.29814e-09 | CH41: =SUMPRODUCT($C41:$CD41, 'TRACI IF'!$C$5:$CD$5) -> 1.991848736e-05 | CI41: =PrepPlantConst!C11 -> 2.8379e-14 | CJ41: =PrepPlantConst!C12 -> 2.62099e-09 | CK41: =PrepPlantConst!C13 -> 8.08302e-07 | CL41: =PrepPlantConst!C14 -> 0.00014 | GV41: =PrepPlantConst!C6 -> 1 | KD41: =KD10*FA10 -> 0 | KE41: pcs | KF41: prep plant | KI41: Coal Preparation Plant Construction | KJ41: =INDEX(Mapping!$A$2:$A$98,MATCH(B41,Mapping!$C$2:$C$98,0)) -> Coal Cleaning | KS41: 0 | KT41: 0 | KU41: 0 | KV41: 0 | KW41: 0 | KX41: 0 | KY41: 0 | KZ41: 0 | LA41: 0 | LB41: 0 | LC41: 0 | LD41: 0 | LE41: 0 | LF41: 0 | LG41: 0 | LH41: 0 | LI41: 0 | LJ41: 0 | LK41: 0 | LL41: 0 | LM41: 0 | LN41: 0 | LO41: 0 | LP41: 0 | LQ41: 0 | LR41: 0 | LS41: 0 | LT41: 0 | LU41: 0 | LV41: 0 | LW41: 0 | LX41: 0 | LY41: 0 | LZ41: 0 | MA41: 0 | MB41: 0 | MC41: 0 | MD41: 0 | ME41: 0 | MF41: 0 | MG41: 0 | MH41: 0 | MI41: 0 | MJ41: 0 | MK41: 0 | ML41: 0 | MM41: 0 | MN41: 0 | MO41: 0 | MP41: 0 | MQ41: 0 | MR41: 0 | MS41: 0 | MT41: 0 | MU41: 0 | MV41: 0 | MW41: 0 | MX41: 0 | MY41: 0 | MZ41: =CF41*$KD41+DistOutput() -> 0 | NA41: =CG41*$KD41+DistOutput() -> 0 | NB41: =CH41*$KD41+DistOutput() -> 0 | NC41: =CI41*$KD41+DistOutput() -> 0 | ND41: =CJ41*$KD41+DistOutput() -> 0 | NE41: =CK41*$KD41+DistOutput() -> 0 | NF41: =CL41*$KD41+DistOutput() -> 0 | NH41: =DistAvg($MZ41) -> 0 | NI41: =DistAvg($NA41) -> 0 | NJ41: =DistAvg($NB41) -> 0 | NK41: =DistAvg($NC41) -> 0 | NL41: =DistAvg($ND41) -> 0 | NM41: =DistAvg($NE41) -> 0 | NN41: =DistAvg($NF41) -> 0 | NO41: =DistMin(MZ41) -> 0 | NP41: =DistMin(NA41) -> 0 | NQ41: =DistMin(NB41) -> 0 | NR41: =DistMin(NC41) -> 0 | NS41: =DistMin(ND41) -> 0 | NT41: =DistMin(NE41) -> 0 | NU41: =DistMin(NF41) -> 0 | NV41: =DistMax(MZ41) -> 0 | NW41: =DistMax(NA41) -> 0 | NX41: =DistMax(NB41) -> 0 | NY41: =DistMax(NC41) -> 0 | NZ41: =DistMax(ND41) -> 0 | OA41: =DistMax(NE41) -> 0 | OB41: =DistMax(NF41) -> 0 | OC41: =DistPercentileInc(MZ41,OC$2) -> 0 | OD41: =DistPercentileInc(NA41,OD$2) -> 0 | OE41: =DistPercentileInc(NB41,OE$2) -> 0 | OF41: =DistPercentileInc(NC41,OF$2) -> 0 | OG41: =DistPercentileInc(ND41,OG$2) -> 0 | OH41: =DistPercentileInc(NE41,OH$2) -> 0 | OI41: =DistPercentileInc(NF41,OI$2) -> 0 | OJ41: =DistPercentileInc(MZ41,OJ$2) -> 0 | OK41: =DistPercentileInc(NA41,OK$2) -> 0 | OL41: =DistPercentileInc(NB41,OL$2) -> 0 | OM41: =DistPercentileInc(NC41,OM$2) -> 0 | ON41: =DistPercentileInc(ND41,ON$2) -> 0 | OO41: =DistPercentileInc(NE41,OO$2) -> 0 | OP41: =DistPercentileInc(NF41,OP$2) -> 0 | OQ41: =DistPercentileInc(MZ41,OQ$2) -> 0 | OR41: =DistPercentileInc(NA41,OR$2) -> 0 | OS41: =DistPercentileInc(NB41,OS$2) -> 0 | OT41: =DistPercentileInc(NC41,OT$2) -> 0 | OU41: =DistPercentileInc(ND41,OU$2) -> 0 | OV41: =DistPercentileInc(NE41,OV$2) -> 0 | OW41: =DistPercentileInc(NF41,OW$2) -> 0 | OX41: =DistPercentileInc(MZ41,OX$2) -> 0 | OY41: =DistPercentileInc(NA41,OY$2) -> 0 | OZ41: =DistPercentileInc(NB41,OZ$2) -> 0 | PA41: =DistPercentileInc(NC41,PA$2) -> 0 | PB41: =DistPercentileInc(ND41,PB$2) -> 0 | PC41: =DistPercentileInc(NE41,PC$2) -> 0 | PD41: =DistPercentileInc(NF41,PD$2) -> 0 | PE41: =DistPercentileInc(MZ41,PE$2) -> 0 | PF41: =DistPercentileInc(NA41,PF$2) -> 0 | PG41: =DistPercentileInc(NB41,PG$2) -> 0 | PH41: =DistPercentileInc(NC41,PH$2) -> 0 | PI41: =DistPercentileInc(ND41,PI$2) -> 0 | PJ41: =DistPercentileInc(NE41,PJ$2) -> 0 | PK41: =DistPercentileInc(NF41,PK$2) -> 0
B42: I6 Commissioning Underground | C42: =UndgI6Commissioning!C17 -> 1.575087872e-08 | J42: =UndgI6Commissioning!C16 -> 1.413255369e-05 | K42: =UndgI6Commissioning!C18 -> 2.491484869e-10 | CF42: =UndgI6Commissioning!C9 -> 7.28074e-08 | CG42: =UndgI6Commissioning!C10 -> 4.59182e-09 | CH42: =SUMPRODUCT($C42:$CD42, 'TRACI IF'!$C$5:$CD$5) -> 1.466994741e-05 | CI42: =UndgI6Commissioning!C11 -> 2.24277e-15 | CJ42: =UndgI6Commissioning!C12 -> 8.889e-10 | CK42: =UndgI6Commissioning!C13 -> 2.57358e-06 | CL42: =UndgI6Commissioning!C14 -> -1.64765e-07 | GW42: =UndgI6Commissioning!C6 -> 1 | KD42: =KD6*FB6 -> 0 | KE42: pcs | KF42: comm/decomm | KI42: I6 Commissioning Underground | KJ42: =INDEX(Mapping!$A$2:$A$98,MATCH(B42,Mapping!$C$2:$C$98,0)) -> Extraction Underground | KS42: 0 | KT42: 0 | KU42: 0 | KV42: 0 | KW42: 0 | KX42: 0 | KY42: 0 | KZ42: 0 | LA42: 0 | LB42: 0 | LC42: 0 | LD42: 0 | LE42: 0 | LF42: 0 | LG42: 0 | LH42: 0 | LI42: 0 | LJ42: 0 | LK42: 0 | LL42: 0 | LM42: 0 | LN42: 0 | LO42: 0 | LP42: 0 | LQ42: 0 | LR42: 0 | LS42: 0 | LT42: 0 | LU42: 0 | LV42: 0 | LW42: 0 | LX42: 0 | LY42: 0 | LZ42: 0 | MA42: 0 | MB42: 0 | MC42: 0 | MD42: 0 | ME42: 0 | MF42: 0 | MG42: 0 | MH42: 0 | MI42: 0 | MJ42: 0 | MK42: 0 | ML42: 0 | MM42: 0 | MN42: 0 | MO42: 0 | MP42: 0 | MQ42: 0 | MR42: 0 | MS42: 0 | MT42: 0 | MU42: 0 | MV42: 0 | MW42: 0 | MX42: 0 | MY42: 0 | MZ42: =CF42*$KD42+DistOutput() -> 0 | NA42: =CG42*$KD42+DistOutput() -> 0 | NB42: =CH42*$KD42+DistOutput() -> 0 | NC42: =CI42*$KD42+DistOutput() -> 0 | ND42: =CJ42*$KD42+DistOutput() -> 0 | NE42: =CK42*$KD42+DistOutput() -> 0 | NF42: =CL42*$KD42+DistOutput() -> 0 | NH42: =DistAvg($MZ42) -> 0 | NI42: =DistAvg($NA42) -> 0 | NJ42: =DistAvg($NB42) -> 0 | NK42: =DistAvg($NC42) -> 0 | NL42: =DistAvg($ND42) -> 0 | NM42: =DistAvg($NE42) -> 0 | NN42: =DistAvg($NF42) -> 0 | NO42: =DistMin(MZ42) -> 0 | NP42: =DistMin(NA42) -> 0 | NQ42: =DistMin(NB42) -> 0 | NR42: =DistMin(NC42) -> 0 | NS42: =DistMin(ND42) -> 0 | NT42: =DistMin(NE42) -> 0 | NU42: =DistMin(NF42) -> 0 | NV42: =DistMax(MZ42) -> 0 | NW42: =DistMax(NA42) -> 0 | NX42: =DistMax(NB42) -> 0 | NY42: =DistMax(NC42) -> 0 | NZ42: =DistMax(ND42) -> 0 | OA42: =DistMax(NE42) -> 0 | OB42: =DistMax(NF42) -> 0 | OC42: =DistPercentileInc(MZ42,OC$2) -> 0 | OD42: =DistPercentileInc(NA42,OD$2) -> 0 | OE42: =DistPercentileInc(NB42,OE$2) -> 0 | OF42: =DistPercentileInc(NC42,OF$2) -> 0 | OG42: =DistPercentileInc(ND42,OG$2) -> 0 | OH42: =DistPercentileInc(NE42,OH$2) -> 0 | OI42: =DistPercentileInc(NF42,OI$2) -> 0 | OJ42: =DistPercentileInc(MZ42,OJ$2) -> 0 | OK42: =DistPercentileInc(NA42,OK$2) -> 0 | OL42: =DistPercentileInc(NB42,OL$2) -> 0 | OM42: =DistPercentileInc(NC42,OM$2) -> 0 | ON42: =DistPercentileInc(ND42,ON$2) -> 0 | OO42: =DistPercentileInc(NE42,OO$2) -> 0 | OP42: =DistPercentileInc(NF42,OP$2) -> 0 | OQ42: =DistPercentileInc(MZ42,OQ$2) -> 0 | OR42: =DistPercentileInc(NA42,OR$2) -> 0 | OS42: =DistPercentileInc(NB42,OS$2) -> 0 | OT42: =DistPercentileInc(NC42,OT$2) -> 0 | OU42: =DistPercentileInc(ND42,OU$2) -> 0 | OV42: =DistPercentileInc(NE42,OV$2) -> 0 | OW42: =DistPercentileInc(NF42,OW$2) -> 0 | OX42: =DistPercentileInc(MZ42,OX$2) -> 0 | OY42: =DistPercentileInc(NA42,OY$2) -> 0 | OZ42: =DistPercentileInc(NB42,OZ$2) -> 0 | PA42: =DistPercentileInc(NC42,PA$2) -> 0 | PB42: =DistPercentileInc(ND42,PB$2) -> 0 | PC42: =DistPercentileInc(NE42,PC$2) -> 0 | PD42: =DistPercentileInc(NF42,PD$2) -> 0 | PE42: =DistPercentileInc(MZ42,PE$2) -> 0 | PF42: =DistPercentileInc(NA42,PF$2) -> 0 | PG42: =DistPercentileInc(NB42,PG$2) -> 0 | PH42: =DistPercentileInc(NC42,PH$2) -> 0 | PI42: =DistPercentileInc(ND42,PI$2) -> 0 | PJ42: =DistPercentileInc(NE42,PJ$2) -> 0 | PK42: =DistPercentileInc(NF42,PK$2) -> 0
B43: Surface Mine Construction | C43: ='Surface Mine Construction'!C17 -> 2.453555308e-07 | J43: ='Surface Mine Construction'!C16 -> 9.624285953e-05 | K43: ='Surface Mine Construction'!C18 -> 3.878111392e-10 | CF43: ='Surface Mine Construction'!C9 -> 3.066200507e-07 | CG43: ='Surface Mine Construction'!C10 -> 1.121761172e-08 | CH43: =SUMPRODUCT($C43:$CD43, 'TRACI IF'!$C$5:$CD$5) -> 0.0001036603268 | CI43: ='Surface Mine Construction'!C11 -> 0 | CJ43: ='Surface Mine Construction'!C12 -> 1.23386457e-08 | CK43: ='Surface Mine Construction'!C13 -> 3.483749143e-06 | CL43: ='Surface Mine Construction'!C14 -> 0.00074 | JN43: ='Surface Mine Construction'!C6 -> 1 | KD43: =KD7*FR7 -> 1 | KE43: pcs | KF43: mine construction | KI43: Surface Mine Construction | KJ43: =INDEX(Mapping!$A$2:$A$98,MATCH(B43,Mapping!$C$2:$C$98,0)) -> Extraction Surface Mine | KS43: 2.453555308e-07 | KT43: 0 | KU43: 0 | KV43: 0 | KW43: 0 | KX43: 0 | KY43: 0 | KZ43: 9.624285953e-05 | LA43: 3.878111392e-10 | LB43: 0 | LC43: 0 | LD43: 0 | LE43: 0 | LF43: 0 | LG43: 0 | LH43: 0 | LI43: 0 | LJ43: 0 | LK43: 0 | LL43: 0 | LM43: 0 | LN43: 0 | LO43: 0 | LP43: 0 | LQ43: 0 | LR43: 0 | LS43: 0 | LT43: 0 | LU43: 0 | LV43: 0 | LW43: 0 | LX43: 0 | LY43: 0 | LZ43: 0 | MA43: 0 | MB43: 0 | MC43: 0 | MD43: 0 | ME43: 0 | MF43: 0 | MG43: 0 | MH43: 0 | MI43: 0 | MJ43: 0 | MK43: 0 | ML43: 0 | MM43: 0 | MN43: 0 | MO43: 0 | MP43: 0 | MQ43: 0 | MR43: 0 | MS43: 0 | MT43: 0 | MU43: 0 | MV43: 0 | MW43: 0 | MX43: 0 | MY43: 0 | MZ43: =CF43*$KD43+DistOutput() -> 3.066200507e-07 | NA43: =CG43*$KD43+DistOutput() -> 1.121761172e-08 | NB43: =CH43*$KD43+DistOutput() -> 0.0001036603268 | NC43: =CI43*$KD43+DistOutput() -> 0 | ND43: =CJ43*$KD43+DistOutput() -> 1.23386457e-08 | NE43: =CK43*$KD43+DistOutput() -> 3.483749143e-06 | NF43: =CL43*$KD43+DistOutput() -> 0.00074 | NH43: =DistAvg($MZ43) -> 0 | NI43: =DistAvg($NA43) -> 0 | NJ43: =DistAvg($NB43) -> 0 | NK43: =DistAvg($NC43) -> 0 | NL43: =DistAvg($ND43) -> 0 | NM43: =DistAvg($NE43) -> 0 | NN43: =DistAvg($NF43) -> 0 | NO43: =DistMin(MZ43) -> 0 | NP43: =DistMin(NA43) -> 0 | NQ43: =DistMin(NB43) -> 0 | NR43: =DistMin(NC43) -> 0 | NS43: =DistMin(ND43) -> 0 | NT43: =DistMin(NE43) -> 0 | NU43: =DistMin(NF43) -> 0 | NV43: =DistMax(MZ43) -> 0 | NW43: =DistMax(NA43) -> 0 | NX43: =DistMax(NB43) -> 0 | NY43: =DistMax(NC43) -> 0 | NZ43: =DistMax(ND43) -> 0 | OA43: =DistMax(NE43) -> 0 | OB43: =DistMax(NF43) -> 0 | OC43: =DistPercentileInc(MZ43,OC$2) -> 0 | OD43: =DistPercentileInc(NA43,OD$2) -> 0 | OE43: =DistPercentileInc(NB43,OE$2) -> 0 | OF43: =DistPercentileInc(NC43,OF$2) -> 0 | OG43: =DistPercentileInc(ND43,OG$2) -> 0 | OH43: =DistPercentileInc(NE43,OH$2) -> 0 | OI43: =DistPercentileInc(NF43,OI$2) -> 0 | OJ43: =DistPercentileInc(MZ43,OJ$2) -> 0 | OK43: =DistPercentileInc(NA43,OK$2) -> 0 | OL43: =DistPercentileInc(NB43,OL$2) -> 0 | OM43: =DistPercentileInc(NC43,OM$2) -> 0 | ON43: =DistPercentileInc(ND43,ON$2) -> 0 | OO43: =DistPercentileInc(NE43,OO$2) -> 0 | OP43: =DistPercentileInc(NF43,OP$2) -> 0 | OQ43: =DistPercentileInc(MZ43,OQ$2) -> 0 | OR43: =DistPercentileInc(NA43,OR$2) -> 0 | OS43: =DistPercentileInc(NB43,OS$2) -> 0 | OT43: =DistPercentileInc(NC43,OT$2) -> 0 | OU43: =DistPercentileInc(ND43,OU$2) -> 0 | OV43: =DistPercentileInc(NE43,OV$2) -> 0 | OW43: =DistPercentileInc(NF43,OW$2) -> 0 | OX43: =DistPercentileInc(MZ43,OX$2) -> 0 | OY43: =DistPercentileInc(NA43,OY$2) -> 0 | OZ43: =DistPercentileInc(NB43,OZ$2) -> 0 | PA43: =DistPercentileInc(NC43,PA$2) -> 0 | PB43: =DistPercentileInc(ND43,PB$2) -> 0 | PC43: =DistPercentileInc(NE43,PC$2) -> 0 | PD43: =DistPercentileInc(NF43,PD$2) -> 0 | PE43: =DistPercentileInc(MZ43,PE$2) -> 0 | PF43: =DistPercentileInc(NA43,PF$2) -> 0 | PG43: =DistPercentileInc(NB43,PG$2) -> 0 | PH43: =DistPercentileInc(NC43,PH$2) -> 0 | PI43: =DistPercentileInc(ND43,PI$2) -> 0 | PJ43: =DistPercentileInc(NE43,PJ$2) -> 0 | PK43: =DistPercentileInc(NF43,PK$2) -> 0
B44: Surface Mine Commissioning/Decom | C44: ='Surface Mine Comm_Decomm'!C17 -> 2.051121713e-07 | J44: ='Surface Mine Comm_Decomm'!C16 -> 2.116773712e-05 | K44: ='Surface Mine Comm_Decomm'!C18 -> 2.333103472e-10 | CF44: ='Surface Mine Comm_Decomm'!C9 -> 3.5199e-08 | CG44: ='Surface Mine Comm_Decomm'!C10 -> 2.0986e-09 | CH44: =SUMPRODUCT($C44:$CD44, 'TRACI IF'!$C$5:$CD$5) -> 2.734377355e-05 | CI44: ='Surface Mine Comm_Decomm'!C11 -> 2.99177e-14 | CJ44: ='Surface Mine Comm_Decomm'!C12 -> 1.98959e-09 | CK44: ='Surface Mine Comm_Decomm'!C13 -> 9.79589e-07 | CL44: ='Surface Mine Comm_Decomm'!C14 -> -2.19791e-06 | JO44: ='Surface Mine Comm_Decomm'!C6 -> 1 | KD44: =KD7*FS7 -> 1 | KE44: pcs | KF44: comm/decomm | KI44: Surface Mine Commissioning/Decom | KJ44: =INDEX(Mapping!$A$2:$A$98,MATCH(B44,Mapping!$C$2:$C$98,0)) -> Extraction Surface Mine | KS44: 2.051121713e-07 | KT44: 0 | KU44: 0 | KV44: 0 | KW44: 0 | KX44: 0 | KY44: 0 | KZ44: 2.116773712e-05 | LA44: 2.333103472e-10 | LB44: 0 | LC44: 0 | LD44: 0 | LE44: 0 | LF44: 0 | LG44: 0 | LH44: 0 | LI44: 0 | LJ44: 0 | LK44: 0 | LL44: 0 | LM44: 0 | LN44: 0 | LO44: 0 | LP44: 0 | LQ44: 0 | LR44: 0 | LS44: 0 | LT44: 0 | LU44: 0 | LV44: 0 | LW44: 0 | LX44: 0 | LY44: 0 | LZ44: 0 | MA44: 0 | MB44: 0 | MC44: 0 | MD44: 0 | ME44: 0 | MF44: 0 | MG44: 0 | MH44: 0 | MI44: 0 | MJ44: 0 | MK44: 0 | ML44: 0 | MM44: 0 | MN44: 0 | MO44: 0 | MP44: 0 | MQ44: 0 | MR44: 0 | MS44: 0 | MT44: 0 | MU44: 0 | MV44: 0 | MW44: 0 | MX44: 0 | MY44: 0 | MZ44: =CF44*$KD44+DistOutput() -> 3.5199e-08 | NA44: =CG44*$KD44+DistOutput() -> 2.0986e-09 | NB44: =CH44*$KD44+DistOutput() -> 2.734377355e-05 | NC44: =CI44*$KD44+DistOutput() -> 2.99177e-14 | ND44: =CJ44*$KD44+DistOutput() -> 1.98959e-09 | NE44: =CK44*$KD44+DistOutput() -> 9.79589e-07 | NF44: =CL44*$KD44+DistOutput() -> -2.19791e-06 | NH44: =DistAvg($MZ44) -> 0 | NI44: =DistAvg($NA44) -> 0 | NJ44: =DistAvg($NB44) -> 0 | NK44: =DistAvg($NC44) -> 0 | NL44: =DistAvg($ND44) -> 0 | NM44: =DistAvg($NE44) -> 0 | NN44: =DistAvg($NF44) -> 0 | NO44: =DistMin(MZ44) -> 0 | NP44: =DistMin(NA44) -> 0 | NQ44: =DistMin(NB44) -> 0 | NR44: =DistMin(NC44) -> 0 | NS44: =DistMin(ND44) -> 0 | NT44: =DistMin(NE44) -> 0 | NU44: =DistMin(NF44) -> 0 | NV44: =DistMax(MZ44) -> 0 | NW44: =DistMax(NA44) -> 0 | NX44: =DistMax(NB44) -> 0 | NY44: =DistMax(NC44) -> 0 | NZ44: =DistMax(ND44) -> 0 | OA44: =DistMax(NE44) -> 0 | OB44: =DistMax(NF44) -> 0 | OC44: =DistPercentileInc(MZ44,OC$2) -> 0 | OD44: =DistPercentileInc(NA44,OD$2) -> 0 | OE44: =DistPercentileInc(NB44,OE$2) -> 0 | OF44: =DistPercentileInc(NC44,OF$2) -> 0 | OG44: =DistPercentileInc(ND44,OG$2) -> 0 | OH44: =DistPercentileInc(NE44,OH$2) -> 0 | OI44: =DistPercentileInc(NF44,OI$2) -> 0 | OJ44: =DistPercentileInc(MZ44,OJ$2) -> 0 | OK44: =DistPercentileInc(NA44,OK$2) -> 0 | OL44: =DistPercentileInc(NB44,OL$2) -> 0 | OM44: =DistPercentileInc(NC44,OM$2) -> 0 | ON44: =DistPercentileInc(ND44,ON$2) -> 0 | OO44: =DistPercentileInc(NE44,OO$2) -> 0 | OP44: =DistPercentileInc(NF44,OP$2) -> 0 | OQ44: =DistPercentileInc(MZ44,OQ$2) -> 0 | OR44: =DistPercentileInc(NA44,OR$2) -> 0 | OS44: =DistPercentileInc(NB44,OS$2) -> 0 | OT44: =DistPercentileInc(NC44,OT$2) -> 0 | OU44: =DistPercentileInc(ND44,OU$2) -> 0 | OV44: =DistPercentileInc(NE44,OV$2) -> 0 | OW44: =DistPercentileInc(NF44,OW$2) -> 0 | OX44: =DistPercentileInc(MZ44,OX$2) -> 0 | OY44: =DistPercentileInc(NA44,OY$2) -> 0 | OZ44: =DistPercentileInc(NB44,OZ$2) -> 0 | PA44: =DistPercentileInc(NC44,PA$2) -> 0 | PB44: =DistPercentileInc(ND44,PB$2) -> 0 | PC44: =DistPercentileInc(NE44,PC$2) -> 0 | PD44: =DistPercentileInc(NF44,PD$2) -> 0 | PE44: =DistPercentileInc(MZ44,PE$2) -> 0 | PF44: =DistPercentileInc(NA44,PF$2) -> 0 | PG44: =DistPercentileInc(NB44,PG$2) -> 0 | PH44: =DistPercentileInc(NC44,PH$2) -> 0 | PI44: =DistPercentileInc(ND44,PI$2) -> 0 | PJ44: =DistPercentileInc(NE44,PJ$2) -> 0 | PK44: =DistPercentileInc(NF44,PK$2) -> 0
B45: Diesel Upstream, Extraction, Underground | C45: ='Diesel Upstream'!$C$17 -> 0.006248766089 | J45: ='Diesel Upstream'!$C$16 -> 0.5989778628 | K45: ='Diesel Upstream'!$C$18 -> 6.259226181e-06 | CF45: ='Diesel Upstream'!$C$9 -> 0.00077 | CG45: ='Diesel Upstream'!$C$10 -> 4.46171e-05 | CH45: =SUMPRODUCT($C45:$CD45, 'TRACI IF'!$C$5:$CD$5) -> 0.786899861 | CI45: ='Diesel Upstream'!$C$11 -> 9.11647e-10 | CJ45: ='Diesel Upstream'!$C12 -> 5.61932e-05 | CK45: ='Diesel Upstream'!$C$13 -> 0.02067 | CL45: ='Diesel Upstream'!$C$14 -> -0.06697 | GZ45: ='Diesel Upstream'!$C$6 -> 1 | KD45: =EM26*KD26 -> 0 | KE45: kg | KF45: diesel, upstream | KI45: Diesel Upstream, Extraction, Underground | KJ45: =INDEX(Mapping!$A$2:$A$98,MATCH(B45,Mapping!$C$2:$C$98,0)) -> Extraction Underground | KS45: 0 | KT45: 0 | KU45: 0 | KV45: 0 | KW45: 0 | KX45: 0 | KY45: 0 | KZ45: 0 | LA45: 0 | LB45: 0 | LC45: 0 | LD45: 0 | LE45: 0 | LF45: 0 | LG45: 0 | LH45: 0 | LI45: 0 | LJ45: 0 | LK45: 0 | LL45: 0 | LM45: 0 | LN45: 0 | LO45: 0 | LP45: 0 | LQ45: 0 | LR45: 0 | LS45: 0 | LT45: 0 | LU45: 0 | LV45: 0 | LW45: 0 | LX45: 0 | LY45: 0 | LZ45: 0 | MA45: 0 | MB45: 0 | MC45: 0 | MD45: 0 | ME45: 0 | MF45: 0 | MG45: 0 | MH45: 0 | MI45: 0 | MJ45: 0 | MK45: 0 | ML45: 0 | MM45: 0 | MN45: 0 | MO45: 0 | MP45: 0 | MQ45: 0 | MR45: 0 | MS45: 0 | MT45: 0 | MU45: 0 | MV45: 0 | MW45: 0 | MX45: 0 | MY45: 0 | MZ45: =CF45*$KD45+DistOutput() -> 0 | NA45: =CG45*$KD45+DistOutput() -> 0 | NB45: =CH45*$KD45+DistOutput() -> 0 | NC45: =CI45*$KD45+DistOutput() -> 0 | ND45: =CJ45*$KD45+DistOutput() -> 0 | NE45: =CK45*$KD45+DistOutput() -> 0 | NF45: =CL45*$KD45+DistOutput() -> 0 | NH45: =DistAvg($MZ45) -> 0 | NI45: =DistAvg($NA45) -> 0 | NJ45: =DistAvg($NB45) -> 0 | NK45: =DistAvg($NC45) -> 0 | NL45: =DistAvg($ND45) -> 0 | NM45: =DistAvg($NE45) -> 0 | NN45: =DistAvg($NF45) -> 0 | NO45: =DistMin(MZ45) -> 0 | NP45: =DistMin(NA45) -> 0 | NQ45: =DistMin(NB45) -> 0 | NR45: =DistMin(NC45) -> 0 | NS45: =DistMin(ND45) -> 0 | NT45: =DistMin(NE45) -> 0 | NU45: =DistMin(NF45) -> 0 | NV45: =DistMax(MZ45) -> 0 | NW45: =DistMax(NA45) -> 0 | NX45: =DistMax(NB45) -> 0 | NY45: =DistMax(NC45) -> 0 | NZ45: =DistMax(ND45) -> 0 | OA45: =DistMax(NE45) -> 0 | OB45: =DistMax(NF45) -> 0 | OC45: =DistPercentileInc(MZ45,OC$2) -> 0 | OD45: =DistPercentileInc(NA45,OD$2) -> 0 | OE45: =DistPercentileInc(NB45,OE$2) -> 0 | OF45: =DistPercentileInc(NC45,OF$2) -> 0 | OG45: =DistPercentileInc(ND45,OG$2) -> 0 | OH45: =DistPercentileInc(NE45,OH$2) -> 0 | OI45: =DistPercentileInc(NF45,OI$2) -> 0 | OJ45: =DistPercentileInc(MZ45,OJ$2) -> 0 | OK45: =DistPercentileInc(NA45,OK$2) -> 0 | OL45: =DistPercentileInc(NB45,OL$2) -> 0 | OM45: =DistPercentileInc(NC45,OM$2) -> 0 | ON45: =DistPercentileInc(ND45,ON$2) -> 0 | OO45: =DistPercentileInc(NE45,OO$2) -> 0 | OP45: =DistPercentileInc(NF45,OP$2) -> 0 | OQ45: =DistPercentileInc(MZ45,OQ$2) -> 0 | OR45: =DistPercentileInc(NA45,OR$2) -> 0 | OS45: =DistPercentileInc(NB45,OS$2) -> 0 | OT45: =DistPercentileInc(NC45,OT$2) -> 0 | OU45: =DistPercentileInc(ND45,OU$2) -> 0 | OV45: =DistPercentileInc(NE45,OV$2) -> 0 | OW45: =DistPercentileInc(NF45,OW$2) -> 0 | OX45: =DistPercentileInc(MZ45,OX$2) -> 0 | OY45: =DistPercentileInc(NA45,OY$2) -> 0 | OZ45: =DistPercentileInc(NB45,OZ$2) -> 0 | PA45: =DistPercentileInc(NC45,PA$2) -> 0 | PB45: =DistPercentileInc(ND45,PB$2) -> 0 | PC45: =DistPercentileInc(NE45,PC$2) -> 0 | PD45: =DistPercentileInc(NF45,PD$2) -> 0 | PE45: =DistPercentileInc(MZ45,PE$2) -> 0 | PF45: =DistPercentileInc(NA45,PF$2) -> 0 | PG45: =DistPercentileInc(NB45,PG$2) -> 0 | PH45: =DistPercentileInc(NC45,PH$2) -> 0 | PI45: =DistPercentileInc(ND45,PI$2) -> 0 | PJ45: =DistPercentileInc(NE45,PJ$2) -> 0 | PK45: =DistPercentileInc(NF45,PK$2) -> 0
B46: Diesel Upstream, Extraction, Surface | C46: ='Diesel Upstream'!$C$17 -> 0.006248766089 | J46: ='Diesel Upstream'!$C$16 -> 0.5989778628 | K46: ='Diesel Upstream'!$C$18 -> 6.259226181e-06 | CF46: ='Diesel Upstream'!$C$9 -> 0.00077 | CG46: ='Diesel Upstream'!$C$10 -> 4.46171e-05 | CH46: =SUMPRODUCT($C46:$CD46, 'TRACI IF'!$C$5:$CD$5) -> 0.786899861 | CI46: ='Diesel Upstream'!$C$11 -> 9.11647e-10 | CJ46: ='Diesel Upstream'!$C$12 -> 5.61932e-05 | CK46: ='Diesel Upstream'!$C$13 -> 0.02067 | CL46: ='Diesel Upstream'!$C$14 -> -0.06697 | HA46: ='Diesel Upstream'!$C$6 -> 1 | KD46: =KD27*EN27 -> 0.0009420909526 | KE46: kg | KF46: diesel, upstream | KI46: Diesel Upstream, Extraction, Surface | KJ46: =INDEX(Mapping!$A$2:$A$98,MATCH(B46,Mapping!$C$2:$C$98,0)) -> Extraction Surface Mine | KS46: 5.886905997e-06 | KT46: 0 | KU46: 0 | KV46: 0 | KW46: 0 | KX46: 0 | KY46: 0 | KZ46: 0.0005642916254 | LA46: 5.896760356e-09 | LB46: 0 | LC46: 0 | LD46: 0 | LE46: 0 | LF46: 0 | LG46: 0 | LH46: 0 | LI46: 0 | LJ46: 0 | LK46: 0 | LL46: 0 | LM46: 0 | LN46: 0 | LO46: 0 | LP46: 0 | LQ46: 0 | LR46: 0 | LS46: 0 | LT46: 0 | LU46: 0 | LV46: 0 | LW46: 0 | LX46: 0 | LY46: 0 | LZ46: 0 | MA46: 0 | MB46: 0 | MC46: 0 | MD46: 0 | ME46: 0 | MF46: 0 | MG46: 0 | MH46: 0 | MI46: 0 | MJ46: 0 | MK46: 0 | ML46: 0 | MM46: 0 | MN46: 0 | MO46: 0 | MP46: 0 | MQ46: 0 | MR46: 0 | MS46: 0 | MT46: 0 | MU46: 0 | MV46: 0 | MW46: 0 | MX46: 0 | MY46: 0 | MZ46: =CF46*$KD46+DistOutput() -> 7.254100335e-07 | NA46: =CG46*$KD46+DistOutput() -> 4.203336624e-08 | NB46: =CH46*$KD46+DistOutput() -> 0.0007413312397 | NC46: =CI46*$KD46+DistOutput() -> 8.588543907e-13 | ND46: =CJ46*$KD46+DistOutput() -> 5.293910532e-08 | NE46: =CK46*$KD46+DistOutput() -> 1.947301999e-05 | NF46: =CL46*$KD46+DistOutput() -> -6.30918311e-05 | NH46: =DistAvg($MZ46) -> 0 | NI46: =DistAvg($NA46) -> 0 | NJ46: =DistAvg($NB46) -> 0 | NK46: =DistAvg($NC46) -> 0 | NL46: =DistAvg($ND46) -> 0 | NM46: =DistAvg($NE46) -> 0 | NN46: =DistAvg($NF46) -> 0 | NO46: =DistMin(MZ46) -> 0 | NP46: =DistMin(NA46) -> 0 | NQ46: =DistMin(NB46) -> 0 | NR46: =DistMin(NC46) -> 0 | NS46: =DistMin(ND46) -> 0 | NT46: =DistMin(NE46) -> 0 | NU46: =DistMin(NF46) -> 0 | NV46: =DistMax(MZ46) -> 0 | NW46: =DistMax(NA46) -> 0 | NX46: =DistMax(NB46) -> 0 | NY46: =DistMax(NC46) -> 0 | NZ46: =DistMax(ND46) -> 0 | OA46: =DistMax(NE46) -> 0 | OB46: =DistMax(NF46) -> 0 | OC46: =DistPercentileInc(MZ46,OC$2) -> 0 | OD46: =DistPercentileInc(NA46,OD$2) -> 0 | OE46: =DistPercentileInc(NB46,OE$2) -> 0 | OF46: =DistPercentileInc(NC46,OF$2) -> 0 | OG46: =DistPercentileInc(ND46,OG$2) -> 0 | OH46: =DistPercentileInc(NE46,OH$2) -> 0 | OI46: =DistPercentileInc(NF46,OI$2) -> 0 | OJ46: =DistPercentileInc(MZ46,OJ$2) -> 0 | OK46: =DistPercentileInc(NA46,OK$2) -> 0 | OL46: =DistPercentileInc(NB46,OL$2) -> 0 | OM46: =DistPercentileInc(NC46,OM$2) -> 0 | ON46: =DistPercentileInc(ND46,ON$2) -> 0 | OO46: =DistPercentileInc(NE46,OO$2) -> 0 | OP46: =DistPercentileInc(NF46,OP$2) -> 0 | OQ46: =DistPercentileInc(MZ46,OQ$2) -> 0 | OR46: =DistPercentileInc(NA46,OR$2) -> 0 | OS46: =DistPercentileInc(NB46,OS$2) -> 0 | OT46: =DistPercentileInc(NC46,OT$2) -> 0 | OU46: =DistPercentileInc(ND46,OU$2) -> 0 | OV46: =DistPercentileInc(NE46,OV$2) -> 0 | OW46: =DistPercentileInc(NF46,OW$2) -> 0 | OX46: =DistPercentileInc(MZ46,OX$2) -> 0 | OY46: =DistPercentileInc(NA46,OY$2) -> 0 | OZ46: =DistPercentileInc(NB46,OZ$2) -> 0 | PA46: =DistPercentileInc(NC46,PA$2) -> 0 | PB46: =DistPercentileInc(ND46,PB$2) -> 0 | PC46: =DistPercentileInc(NE46,PC$2) -> 0 | PD46: =DistPercentileInc(NF46,PD$2) -> 0 | PE46: =DistPercentileInc(MZ46,PE$2) -> 0 | PF46: =DistPercentileInc(NA46,PF$2) -> 0 | PG46: =DistPercentileInc(NB46,PG$2) -> 0 | PH46: =DistPercentileInc(NC46,PH$2) -> 0 | PI46: =DistPercentileInc(ND46,PI$2) -> 0 | PJ46: =DistPercentileInc(NE46,PJ$2) -> 0 | PK46: =DistPercentileInc(NF46,PK$2) -> 0
B47: Diesel Upstream, Transport, Truck | C47: ='Diesel Upstream'!$C$17 -> 0.006248766089 | J47: ='Diesel Upstream'!$C$16 -> 0.5989778628 | K47: ='Diesel Upstream'!$C$18 -> 6.259226181e-06 | CF47: ='Diesel Upstream'!$C$9 -> 0.00077 | CG47: ='Diesel Upstream'!$C$10 -> 4.46171e-05 | CH47: =SUMPRODUCT($C47:$CD47, 'TRACI IF'!$C$5:$CD$5) -> 0.786899861 | CI47: ='Diesel Upstream'!$C$11 -> 9.11647e-10 | CJ47: ='Diesel Upstream'!$C$12 -> 5.61932e-05 | CK47: ='Diesel Upstream'!$C$13 -> 0.02067 | CL47: ='Diesel Upstream'!$C$14 -> -0.06697 | HB47: ='Diesel Upstream'!$C$6 -> 1 | KD47: =KD28*EO28 -> 0.000316851857 | KE47: kg | KF47: diesel, upstream | KI47: Diesel Upstream, Transport, Truck | KJ47: =INDEX(Mapping!$A$2:$A$98,MATCH(B47,Mapping!$C$2:$C$98,0)) -> Truck Transport | KS47: 1.979933139e-06 | KT47: 0 | KU47: 0 | KV47: 0 | KW47: 0 | KX47: 0 | KY47: 0 | KZ47: 0.0001897872481 | LA47: 1.983247439e-09 | LB47: 0 | LC47: 0 | LD47: 0 | LE47: 0 | LF47: 0 | LG47: 0 | LH47: 0 | LI47: 0 | LJ47: 0 | LK47: 0 | LL47: 0 | LM47: 0 | LN47: 0 | LO47: 0 | LP47: 0 | LQ47: 0 | LR47: 0 | LS47: 0 | LT47: 0 | LU47: 0 | LV47: 0 | LW47: 0 | LX47: 0 | LY47: 0 | LZ47: 0 | MA47: 0 | MB47: 0 | MC47: 0 | MD47: 0 | ME47: 0 | MF47: 0 | MG47: 0 | MH47: 0 | MI47: 0 | MJ47: 0 | MK47: 0 | ML47: 0 | MM47: 0 | MN47: 0 | MO47: 0 | MP47: 0 | MQ47: 0 | MR47: 0 | MS47: 0 | MT47: 0 | MU47: 0 | MV47: 0 | MW47: 0 | MX47: 0 | MY47: 0 | MZ47: =CF47*$KD47+DistOutput() -> 2.439759299e-07 | NA47: =CG47*$KD47+DistOutput() -> 1.413701099e-08 | NB47: =CH47*$KD47+DistOutput() -> 0.0002493306822 | NC47: =CI47*$KD47+DistOutput() -> 2.888570449e-13 | ND47: =CJ47*$KD47+DistOutput() -> 1.780491977e-08 | NE47: =CK47*$KD47+DistOutput() -> 6.549327884e-06 | NF47: =CL47*$KD47+DistOutput() -> -2.121956886e-05 | NH47: =DistAvg($MZ47) -> 0 | NI47: =DistAvg($NA47) -> 0 | NJ47: =DistAvg($NB47) -> 0 | NK47: =DistAvg($NC47) -> 0 | NL47: =DistAvg($ND47) -> 0 | NM47: =DistAvg($NE47) -> 0 | NN47: =DistAvg($NF47) -> 0 | NO47: =DistMin(MZ47) -> 0 | NP47: =DistMin(NA47) -> 0 | NQ47: =DistMin(NB47) -> 0 | NR47: =DistMin(NC47) -> 0 | NS47: =DistMin(ND47) -> 0 | NT47: =DistMin(NE47) -> 0 | NU47: =DistMin(NF47) -> 0 | NV47: =DistMax(MZ47) -> 0 | NW47: =DistMax(NA47) -> 0 | NX47: =DistMax(NB47) -> 0 | NY47: =DistMax(NC47) -> 0 | NZ47: =DistMax(ND47) -> 0 | OA47: =DistMax(NE47) -> 0 | OB47: =DistMax(NF47) -> 0 | OC47: =DistPercentileInc(MZ47,OC$2) -> 0 | OD47: =DistPercentileInc(NA47,OD$2) -> 0 | OE47: =DistPercentileInc(NB47,OE$2) -> 0 | OF47: =DistPercentileInc(NC47,OF$2) -> 0 | OG47: =DistPercentileInc(ND47,OG$2) -> 0 | OH47: =DistPercentileInc(NE47,OH$2) -> 0 | OI47: =DistPercentileInc(NF47,OI$2) -> 0 | OJ47: =DistPercentileInc(MZ47,OJ$2) -> 0 | OK47: =DistPercentileInc(NA47,OK$2) -> 0 | OL47: =DistPercentileInc(NB47,OL$2) -> 0 | OM47: =DistPercentileInc(NC47,OM$2) -> 0 | ON47: =DistPercentileInc(ND47,ON$2) -> 0 | OO47: =DistPercentileInc(NE47,OO$2) -> 0 | OP47: =DistPercentileInc(NF47,OP$2) -> 0 | OQ47: =DistPercentileInc(MZ47,OQ$2) -> 0 | OR47: =DistPercentileInc(NA47,OR$2) -> 0 | OS47: =DistPercentileInc(NB47,OS$2) -> 0 | OT47: =DistPercentileInc(NC47,OT$2) -> 0 | OU47: =DistPercentileInc(ND47,OU$2) -> 0 | OV47: =DistPercentileInc(NE47,OV$2) -> 0 | OW47: =DistPercentileInc(NF47,OW$2) -> 0 | OX47: =DistPercentileInc(MZ47,OX$2) -> 0 | OY47: =DistPercentileInc(NA47,OY$2) -> 0 | OZ47: =DistPercentileInc(NB47,OZ$2) -> 0 | PA47: =DistPercentileInc(NC47,PA$2) -> 0 | PB47: =DistPercentileInc(ND47,PB$2) -> 0 | PC47: =DistPercentileInc(NE47,PC$2) -> 0 | PD47: =DistPercentileInc(NF47,PD$2) -> 0 | PE47: =DistPercentileInc(MZ47,PE$2) -> 0 | PF47: =DistPercentileInc(NA47,PF$2) -> 0 | PG47: =DistPercentileInc(NB47,PG$2) -> 0 | PH47: =DistPercentileInc(NC47,PH$2) -> 0 | PI47: =DistPercentileInc(ND47,PI$2) -> 0 | PJ47: =DistPercentileInc(NE47,PJ$2) -> 0 | PK47: =DistPercentileInc(NF47,PK$2) -> 0
B48: Diesel Upstream, Transport, Ocean Vessel | C48: ='Diesel Upstream'!$C$17 -> 0.006248766089 | J48: ='Diesel Upstream'!$C$16 -> 0.5989778628 | K48: ='Diesel Upstream'!$C$18 -> 6.259226181e-06 | CF48: ='Diesel Upstream'!$C$9 -> 0.00077 | CG48: ='Diesel Upstream'!$C$10 -> 4.46171e-05 | CH48: =SUMPRODUCT($C48:$CD48, 'TRACI IF'!$C$5:$CD$5) -> 0.786899861 | CI48: ='Diesel Upstream'!$C$11 -> 9.11647e-10 | CJ48: ='Diesel Upstream'!$C$12 -> 5.61932e-05 | CK48: ='Diesel Upstream'!$C$13 -> 0.02067 | CL48: ='Diesel Upstream'!$C$14 -> -0.06697 | HC48: ='Diesel Upstream'!$C$6 -> 1 | KD48: =KD29*EP29 -> 2.027327011e-06 | KE48: kg | KF48: diesel, upstream | KI48: Diesel Upstream, Transport, Ocean Vessel | KJ48: =INDEX(Mapping!$A$2:$A$98,MATCH(B48,Mapping!$C$2:$C$98,0)) -> Ocean Vessel Transport | KS48: 1.266829228e-08 | KT48: 0 | KU48: 0 | KV48: 0 | KW48: 0 | KX48: 0 | KY48: 0 | KZ48: 1.214324e-06 | LA48: 1.268949831e-11 | LB48: 0 | LC48: 0 | LD48: 0 | LE48: 0 | LF48: 0 | LG48: 0 | LH48: 0 | LI48: 0 | LJ48: 0 | LK48: 0 | LL48: 0 | LM48: 0 | LN48: 0 | LO48: 0 | LP48: 0 | LQ48: 0 | LR48: 0 | LS48: 0 | LT48: 0 | LU48: 0 | LV48: 0 | LW48: 0 | LX48: 0 | LY48: 0 | LZ48: 0 | MA48: 0 | MB48: 0 | MC48: 0 | MD48: 0 | ME48: 0 | MF48: 0 | MG48: 0 | MH48: 0 | MI48: 0 | MJ48: 0 | MK48: 0 | ML48: 0 | MM48: 0 | MN48: 0 | MO48: 0 | MP48: 0 | MQ48: 0 | MR48: 0 | MS48: 0 | MT48: 0 | MU48: 0 | MV48: 0 | MW48: 0 | MX48: 0 | MY48: 0 | MZ48: =CF48*$KD48+DistOutput() -> 1.561041799e-09 | NA48: =CG48*$KD48+DistOutput() -> 9.045345199e-11 | NB48: =CH48*$KD48+DistOutput() -> 1.595303343e-06 | NC48: =CI48*$KD48+DistOutput() -> 1.848206588e-15 | ND48: =CJ48*$KD48+DistOutput() -> 1.139219922e-10 | NE48: =CK48*$KD48+DistOutput() -> 4.190484932e-08 | NF48: =CL48*$KD48+DistOutput() -> -1.357700899e-07 | NH48: =DistAvg($MZ48) -> 0 | NI48: =DistAvg($NA48) -> 0 | NJ48: =DistAvg($NB48) -> 0 | NK48: =DistAvg($NC48) -> 0 | NL48: =DistAvg($ND48) -> 0 | NM48: =DistAvg($NE48) -> 0 | NN48: =DistAvg($NF48) -> 0 | NO48: =DistMin(MZ48) -> 0 | NP48: =DistMin(NA48) -> 0 | NQ48: =DistMin(NB48) -> 0 | NR48: =DistMin(NC48) -> 0 | NS48: =DistMin(ND48) -> 0 | NT48: =DistMin(NE48) -> 0 | NU48: =DistMin(NF48) -> 0 | NV48: =DistMax(MZ48) -> 0 | NW48: =DistMax(NA48) -> 0 | NX48: =DistMax(NB48) -> 0 | NY48: =DistMax(NC48) -> 0 | NZ48: =DistMax(ND48) -> 0 | OA48: =DistMax(NE48) -> 0 | OB48: =DistMax(NF48) -> 0 | OC48: =DistPercentileInc(MZ48,OC$2) -> 0 | OD48: =DistPercentileInc(NA48,OD$2) -> 0 | OE48: =DistPercentileInc(NB48,OE$2) -> 0 | OF48: =DistPercentileInc(NC48,OF$2) -> 0 | OG48: =DistPercentileInc(ND48,OG$2) -> 0 | OH48: =DistPercentileInc(NE48,OH$2) -> 0 | OI48: =DistPercentileInc(NF48,OI$2) -> 0 | OJ48: =DistPercentileInc(MZ48,OJ$2) -> 0 | OK48: =DistPercentileInc(NA48,OK$2) -> 0 | OL48: =DistPercentileInc(NB48,OL$2) -> 0 | OM48: =DistPercentileInc(NC48,OM$2) -> 0 | ON48: =DistPercentileInc(ND48,ON$2) -> 0 | OO48: =DistPercentileInc(NE48,OO$2) -> 0 | OP48: =DistPercentileInc(NF48,OP$2) -> 0 | OQ48: =DistPercentileInc(MZ48,OQ$2) -> 0 | OR48: =DistPercentileInc(NA48,OR$2) -> 0 | OS48: =DistPercentileInc(NB48,OS$2) -> 0 | OT48: =DistPercentileInc(NC48,OT$2) -> 0 | OU48: =DistPercentileInc(ND48,OU$2) -> 0 | OV48: =DistPercentileInc(NE48,OV$2) -> 0 | OW48: =DistPercentileInc(NF48,OW$2) -> 0 | OX48: =DistPercentileInc(MZ48,OX$2) -> 0 | OY48: =DistPercentileInc(NA48,OY$2) -> 0 | OZ48: =DistPercentileInc(NB48,OZ$2) -> 0 | PA48: =DistPercentileInc(NC48,PA$2) -> 0 | PB48: =DistPercentileInc(ND48,PB$2) -> 0 | PC48: =DistPercentileInc(NE48,PC$2) -> 0 | PD48: =DistPercentileInc(NF48,PD$2) -> 0 | PE48: =DistPercentileInc(MZ48,PE$2) -> 0 | PF48: =DistPercentileInc(NA48,PF$2) -> 0 | PG48: =DistPercentileInc(NB48,PG$2) -> 0 | PH48: =DistPercentileInc(NC48,PH$2) -> 0 | PI48: =DistPercentileInc(ND48,PI$2) -> 0 | PJ48: =DistPercentileInc(NE48,PJ$2) -> 0 | PK48: =DistPercentileInc(NF48,PK$2) -> 0
B49: Diesel Upstream, Transport, Barge | C49: ='Diesel Upstream'!$C$17 -> 0.006248766089 | J49: ='Diesel Upstream'!$C$16 -> 0.5989778628 | K49: ='Diesel Upstream'!$C$18 -> 6.259226181e-06 | CF49: ='Diesel Upstream'!$C$9 -> 0.00077 | CG49: ='Diesel Upstream'!$C$10 -> 4.46171e-05 | CH49: =SUMPRODUCT($C49:$CD49, 'TRACI IF'!$C$5:$CD$5) -> 0.786899861 | CI49: ='Diesel Upstream'!$C$11 -> 9.11647e-10 | CJ49: ='Diesel Upstream'!$C$12 -> 5.61932e-05 | CK49: ='Diesel Upstream'!$C$13 -> 0.02067 | CL49: ='Diesel Upstream'!$C$14 -> -0.06697 | HD49: ='Diesel Upstream'!$C$6 -> 1 | KD49: =KD30*EQ30 -> 0.0001516143939 | KE49: kg | KF49: diesel, upstream | KI49: Diesel Upstream, Transport, Barge | KJ49: =INDEX(Mapping!$A$2:$A$98,MATCH(B49,Mapping!$C$2:$C$98,0)) -> Barge Transport | KS49: 9.474028835e-07 | KT49: 0 | KU49: 0 | KV49: 0 | KW49: 0 | KX49: 0 | KY49: 0 | KZ49: 9.081366566e-05 | LA49: 9.489887841e-10 | LB49: 0 | LC49: 0 | LD49: 0 | LE49: 0 | LF49: 0 | LG49: 0 | LH49: 0 | LI49: 0 | LJ49: 0 | LK49: 0 | LL49: 0 | LM49: 0 | LN49: 0 | LO49: 0 | LP49: 0 | LQ49: 0 | LR49: 0 | LS49: 0 | LT49: 0 | LU49: 0 | LV49: 0 | LW49: 0 | LX49: 0 | LY49: 0 | LZ49: 0 | MA49: 0 | MB49: 0 | MC49: 0 | MD49: 0 | ME49: 0 | MF49: 0 | MG49: 0 | MH49: 0 | MI49: 0 | MJ49: 0 | MK49: 0 | ML49: 0 | MM49: 0 | MN49: 0 | MO49: 0 | MP49: 0 | MQ49: 0 | MR49: 0 | MS49: 0 | MT49: 0 | MU49: 0 | MV49: 0 | MW49: 0 | MX49: 0 | MY49: 0 | MZ49: =CF49*$KD49+DistOutput() -> 1.167430833e-07 | NA49: =CG49*$KD49+DistOutput() -> 6.764594576e-09 | NB49: =CH49*$KD49+DistOutput() -> 0.0001193053455 | NC49: =CI49*$KD49+DistOutput() -> 1.382188074e-13 | ND49: =CJ49*$KD49+DistOutput() -> 8.519697962e-09 | NE49: =CK49*$KD49+DistOutput() -> 3.133869523e-06 | NF49: =CL49*$KD49+DistOutput() -> -1.015361596e-05 | NH49: =DistAvg($MZ49) -> 0 | NI49: =DistAvg($NA49) -> 0 | NJ49: =DistAvg($NB49) -> 0 | NK49: =DistAvg($NC49) -> 0 | NL49: =DistAvg($ND49) -> 0 | NM49: =DistAvg($NE49) -> 0 | NN49: =DistAvg($NF49) -> 0 | NO49: =DistMin(MZ49) -> 0 | NP49: =DistMin(NA49) -> 0 | NQ49: =DistMin(NB49) -> 0 | NR49: =DistMin(NC49) -> 0 | NS49: =DistMin(ND49) -> 0 | NT49: =DistMin(NE49) -> 0 | NU49: =DistMin(NF49) -> 0 | NV49: =DistMax(MZ49) -> 0 | NW49: =DistMax(NA49) -> 0 | NX49: =DistMax(NB49) -> 0 | NY49: =DistMax(NC49) -> 0 | NZ49: =DistMax(ND49) -> 0 | OA49: =DistMax(NE49) -> 0 | OB49: =DistMax(NF49) -> 0 | OC49: =DistPercentileInc(MZ49,OC$2) -> 0 | OD49: =DistPercentileInc(NA49,OD$2) -> 0 | OE49: =DistPercentileInc(NB49,OE$2) -> 0 | OF49: =DistPercentileInc(NC49,OF$2) -> 0 | OG49: =DistPercentileInc(ND49,OG$2) -> 0 | OH49: =DistPercentileInc(NE49,OH$2) -> 0 | OI49: =DistPercentileInc(NF49,OI$2) -> 0 | OJ49: =DistPercentileInc(MZ49,OJ$2) -> 0 | OK49: =DistPercentileInc(NA49,OK$2) -> 0 | OL49: =DistPercentileInc(NB49,OL$2) -> 0 | OM49: =DistPercentileInc(NC49,OM$2) -> 0 | ON49: =DistPercentileInc(ND49,ON$2) -> 0 | OO49: =DistPercentileInc(NE49,OO$2) -> 0 | OP49: =DistPercentileInc(NF49,OP$2) -> 0 | OQ49: =DistPercentileInc(MZ49,OQ$2) -> 0 | OR49: =DistPercentileInc(NA49,OR$2) -> 0 | OS49: =DistPercentileInc(NB49,OS$2) -> 0 | OT49: =DistPercentileInc(NC49,OT$2) -> 0 | OU49: =DistPercentileInc(ND49,OU$2) -> 0 | OV49: =DistPercentileInc(NE49,OV$2) -> 0 | OW49: =DistPercentileInc(NF49,OW$2) -> 0 | OX49: =DistPercentileInc(MZ49,OX$2) -> 0 | OY49: =DistPercentileInc(NA49,OY$2) -> 0 | OZ49: =DistPercentileInc(NB49,OZ$2) -> 0 | PA49: =DistPercentileInc(NC49,PA$2) -> 0 | PB49: =DistPercentileInc(ND49,PB$2) -> 0 | PC49: =DistPercentileInc(NE49,PC$2) -> 0 | PD49: =DistPercentileInc(NF49,PD$2) -> 0 | PE49: =DistPercentileInc(MZ49,PE$2) -> 0 | PF49: =DistPercentileInc(NA49,PF$2) -> 0 | PG49: =DistPercentileInc(NB49,PG$2) -> 0 | PH49: =DistPercentileInc(NC49,PH$2) -> 0 | PI49: =DistPercentileInc(ND49,PI$2) -> 0 | PJ49: =DistPercentileInc(NE49,PJ$2) -> 0 | PK49: =DistPercentileInc(NF49,PK$2) -> 0
B50: Diesel Upstream, Transport, Train | C50: ='Diesel Upstream'!$C$17 -> 0.006248766089 | J50: ='Diesel Upstream'!$C$16 -> 0.5989778628 | K50: ='Diesel Upstream'!$C$18 -> 6.259226181e-06 | CF50: ='Diesel Upstream'!$C$9 -> 0.00077 | CG50: ='Diesel Upstream'!$C$10 -> 4.46171e-05 | CH50: =SUMPRODUCT($C50:$CD50, 'TRACI IF'!$C$5:$CD$5) -> 0.786899861 | CI50: ='Diesel Upstream'!$C$11 -> 9.11647e-10 | CJ50: ='Diesel Upstream'!$C$12 -> 5.61932e-05 | CK50: ='Diesel Upstream'!$C$13 -> 0.02067 | CL50: ='Diesel Upstream'!$C$14 -> -0.06697 | HE50: ='Diesel Upstream'!$C$6 -> 1 | KD50: =KD31*ER31 -> 0.0006481940174 | KE50: kg | KF50: diesel, upstream | KI50: Diesel Upstream, Transport, Train | KJ50: =INDEX(Mapping!$A$2:$A$98,MATCH(B50,Mapping!$C$2:$C$98,0)) -> Train Transport | KS50: 4.050412795e-06 | KT50: 0 | KU50: 0 | KV50: 0 | KW50: 0 | KX50: 0 | KY50: 0 | KZ50: 0.0003882538673 | LA50: 4.057192965e-09 | LB50: 0 | LC50: 0 | LD50: 0 | LE50: 0 | LF50: 0 | LG50: 0 | LH50: 0 | LI50: 0 | LJ50: 0 | LK50: 0 | LL50: 0 | LM50: 0 | LN50: 0 | LO50: 0 | LP50: 0 | LQ50: 0 | LR50: 0 | LS50: 0 | LT50: 0 | LU50: 0 | LV50: 0 | LW50: 0 | LX50: 0 | LY50: 0 | LZ50: 0 | MA50: 0 | MB50: 0 | MC50: 0 | MD50: 0 | ME50: 0 | MF50: 0 | MG50: 0 | MH50: 0 | MI50: 0 | MJ50: 0 | MK50: 0 | ML50: 0 | MM50: 0 | MN50: 0 | MO50: 0 | MP50: 0 | MQ50: 0 | MR50: 0 | MS50: 0 | MT50: 0 | MU50: 0 | MV50: 0 | MW50: 0 | MX50: 0 | MY50: 0 | MZ50: =CF50*$KD50+DistOutput() -> 4.991093934e-07 | NA50: =CG50*$KD50+DistOutput() -> 2.89205373e-08 | NB50: =CH50*$KD50+DistOutput() -> 0.0005100637822 | NC50: =CI50*$KD50+DistOutput() -> 5.909241314e-13 | ND50: =CJ50*$KD50+DistOutput() -> 3.642409606e-08 | NE50: =CK50*$KD50+DistOutput() -> 1.339817034e-05 | NF50: =CL50*$KD50+DistOutput() -> -4.340955335e-05 | NH50: =DistAvg($MZ50) -> 0 | NI50: =DistAvg($NA50) -> 0 | NJ50: =DistAvg($NB50) -> 0 | NK50: =DistAvg($NC50) -> 0 | NL50: =DistAvg($ND50) -> 0 | NM50: =DistAvg($NE50) -> 0 | NN50: =DistAvg($NF50) -> 0 | NO50: =DistMin(MZ50) -> 0 | NP50: =DistMin(NA50) -> 0 | NQ50: =DistMin(NB50) -> 0 | NR50: =DistMin(NC50) -> 0 | NS50: =DistMin(ND50) -> 0 | NT50: =DistMin(NE50) -> 0 | NU50: =DistMin(NF50) -> 0 | NV50: =DistMax(MZ50) -> 0 | NW50: =DistMax(NA50) -> 0 | NX50: =DistMax(NB50) -> 0 | NY50: =DistMax(NC50) -> 0 | NZ50: =DistMax(ND50) -> 0 | OA50: =DistMax(NE50) -> 0 | OB50: =DistMax(NF50) -> 0 | OC50: =DistPercentileInc(MZ50,OC$2) -> 0 | OD50: =DistPercentileInc(NA50,OD$2) -> 0 | OE50: =DistPercentileInc(NB50,OE$2) -> 0 | OF50: =DistPercentileInc(NC50,OF$2) -> 0 | OG50: =DistPercentileInc(ND50,OG$2) -> 0 | OH50: =DistPercentileInc(NE50,OH$2) -> 0 | OI50: =DistPercentileInc(NF50,OI$2) -> 0 | OJ50: =DistPercentileInc(MZ50,OJ$2) -> 0 | OK50: =DistPercentileInc(NA50,OK$2) -> 0 | OL50: =DistPercentileInc(NB50,OL$2) -> 0 | OM50: =DistPercentileInc(NC50,OM$2) -> 0 | ON50: =DistPercentileInc(ND50,ON$2) -> 0 | OO50: =DistPercentileInc(NE50,OO$2) -> 0 | OP50: =DistPercentileInc(NF50,OP$2) -> 0 | OQ50: =DistPercentileInc(MZ50,OQ$2) -> 0 | OR50: =DistPercentileInc(NA50,OR$2) -> 0 | OS50: =DistPercentileInc(NB50,OS$2) -> 0 | OT50: =DistPercentileInc(NC50,OT$2) -> 0 | OU50: =DistPercentileInc(ND50,OU$2) -> 0 | OV50: =DistPercentileInc(NE50,OV$2) -> 0 | OW50: =DistPercentileInc(NF50,OW$2) -> 0 | OX50: =DistPercentileInc(MZ50,OX$2) -> 0 | OY50: =DistPercentileInc(NA50,OY$2) -> 0 | OZ50: =DistPercentileInc(NB50,OZ$2) -> 0 | PA50: =DistPercentileInc(NC50,PA$2) -> 0 | PB50: =DistPercentileInc(ND50,PB$2) -> 0 | PC50: =DistPercentileInc(NE50,PC$2) -> 0 | PD50: =DistPercentileInc(NF50,PD$2) -> 0 | PE50: =DistPercentileInc(MZ50,PE$2) -> 0 | PF50: =DistPercentileInc(NA50,PF$2) -> 0 | PG50: =DistPercentileInc(NB50,PG$2) -> 0 | PH50: =DistPercentileInc(NC50,PH$2) -> 0 | PI50: =DistPercentileInc(ND50,PI$2) -> 0 | PJ50: =DistPercentileInc(NE50,PJ$2) -> 0 | PK50: =DistPercentileInc(NF50,PK$2) -> 0
B51: Diesel Upstream, Coal Handling, Underground | C51: ='Diesel Upstream'!$C$17 -> 0.006248766089 | J51: ='Diesel Upstream'!$C$16 -> 0.5989778628 | K51: ='Diesel Upstream'!$C$18 -> 6.259226181e-06 | CF51: ='Diesel Upstream'!$C$9 -> 0.00077 | CG51: ='Diesel Upstream'!$C$10 -> 4.46171e-05 | CH51: =SUMPRODUCT($C51:$CD51, 'TRACI IF'!$C$5:$CD$5) -> 0.786899861 | CI51: ='Diesel Upstream'!$C$11 -> 9.11647e-10 | CJ51: ='Diesel Upstream'!$C$12 -> 5.61932e-05 | CK51: ='Diesel Upstream'!$C$13 -> 0.02067 | CL51: ='Diesel Upstream'!$C$14 -> -0.06697 | HF51: ='Diesel Upstream'!$C$6 -> 1 | KD51: =KD32*ES32 -> 0 | KE51: kg | KF51: diesel, upstream | KI51: Diesel Upstream, Coal Handling, Underground | KJ51: =INDEX(Mapping!$A$2:$A$98,MATCH(B51,Mapping!$C$2:$C$98,0)) -> Extraction Underground | KS51: 0 | KT51: 0 | KU51: 0 | KV51: 0 | KW51: 0 | KX51: 0 | KY51: 0 | KZ51: 0 | LA51: 0 | LB51: 0 | LC51: 0 | LD51: 0 | LE51: 0 | LF51: 0 | LG51: 0 | LH51: 0 | LI51: 0 | LJ51: 0 | LK51: 0 | LL51: 0 | LM51: 0 | LN51: 0 | LO51: 0 | LP51: 0 | LQ51: 0 | LR51: 0 | LS51: 0 | LT51: 0 | LU51: 0 | LV51: 0 | LW51: 0 | LX51: 0 | LY51: 0 | LZ51: 0 | MA51: 0 | MB51: 0 | MC51: 0 | MD51: 0 | ME51: 0 | MF51: 0 | MG51: 0 | MH51: 0 | MI51: 0 | MJ51: 0 | MK51: 0 | ML51: 0 | MM51: 0 | MN51: 0 | MO51: 0 | MP51: 0 | MQ51: 0 | MR51: 0 | MS51: 0 | MT51: 0 | MU51: 0 | MV51: 0 | MW51: 0 | MX51: 0 | MY51: 0 | MZ51: =CF51*$KD51+DistOutput() -> 0 | NA51: =CG51*$KD51+DistOutput() -> 0 | NB51: =CH51*$KD51+DistOutput() -> 0 | NC51: =CI51*$KD51+DistOutput() -> 0 | ND51: =CJ51*$KD51+DistOutput() -> 0 | NE51: =CK51*$KD51+DistOutput() -> 0 | NF51: =CL51*$KD51+DistOutput() -> 0 | NH51: =DistAvg($MZ51) -> 0 | NI51: =DistAvg($NA51) -> 0 | NJ51: =DistAvg($NB51) -> 0 | NK51: =DistAvg($NC51) -> 0 | NL51: =DistAvg($ND51) -> 0 | NM51: =DistAvg($NE51) -> 0 | NN51: =DistAvg($NF51) -> 0 | NO51: =DistMin(MZ51) -> 0 | NP51: =DistMin(NA51) -> 0 | NQ51: =DistMin(NB51) -> 0 | NR51: =DistMin(NC51) -> 0 | NS51: =DistMin(ND51) -> 0 | NT51: =DistMin(NE51) -> 0 | NU51: =DistMin(NF51) -> 0 | NV51: =DistMax(MZ51) -> 0 | NW51: =DistMax(NA51) -> 0 | NX51: =DistMax(NB51) -> 0 | NY51: =DistMax(NC51) -> 0 | NZ51: =DistMax(ND51) -> 0 | OA51: =DistMax(NE51) -> 0 | OB51: =DistMax(NF51) -> 0 | OC51: =DistPercentileInc(MZ51,OC$2) -> 0 | OD51: =DistPercentileInc(NA51,OD$2) -> 0 | OE51: =DistPercentileInc(NB51,OE$2) -> 0 | OF51: =DistPercentileInc(NC51,OF$2) -> 0 | OG51: =DistPercentileInc(ND51,OG$2) -> 0 | OH51: =DistPercentileInc(NE51,OH$2) -> 0 | OI51: =DistPercentileInc(NF51,OI$2) -> 0 | OJ51: =DistPercentileInc(MZ51,OJ$2) -> 0 | OK51: =DistPercentileInc(NA51,OK$2) -> 0 | OL51: =DistPercentileInc(NB51,OL$2) -> 0 | OM51: =DistPercentileInc(NC51,OM$2) -> 0 | ON51: =DistPercentileInc(ND51,ON$2) -> 0 | OO51: =DistPercentileInc(NE51,OO$2) -> 0 | OP51: =DistPercentileInc(NF51,OP$2) -> 0 | OQ51: =DistPercentileInc(MZ51,OQ$2) -> 0 | OR51: =DistPercentileInc(NA51,OR$2) -> 0 | OS51: =DistPercentileInc(NB51,OS$2) -> 0 | OT51: =DistPercentileInc(NC51,OT$2) -> 0 | OU51: =DistPercentileInc(ND51,OU$2) -> 0 | OV51: =DistPercentileInc(NE51,OV$2) -> 0 | OW51: =DistPercentileInc(NF51,OW$2) -> 0 | OX51: =DistPercentileInc(MZ51,OX$2) -> 0 | OY51: =DistPercentileInc(NA51,OY$2) -> 0 | OZ51: =DistPercentileInc(NB51,OZ$2) -> 0 | PA51: =DistPercentileInc(NC51,PA$2) -> 0 | PB51: =DistPercentileInc(ND51,PB$2) -> 0 | PC51: =DistPercentileInc(NE51,PC$2) -> 0 | PD51: =DistPercentileInc(NF51,PD$2) -> 0 | PE51: =DistPercentileInc(MZ51,PE$2) -> 0 | PF51: =DistPercentileInc(NA51,PF$2) -> 0 | PG51: =DistPercentileInc(NB51,PG$2) -> 0 | PH51: =DistPercentileInc(NC51,PH$2) -> 0 | PI51: =DistPercentileInc(ND51,PI$2) -> 0 | PJ51: =DistPercentileInc(NE51,PJ$2) -> 0 | PK51: =DistPercentileInc(NF51,PK$2) -> 0
B52: Diesel Upstream, Coal Handling, Surface | C52: ='Diesel Upstream'!$C$17 -> 0.006248766089 | J52: ='Diesel Upstream'!$C$16 -> 0.5989778628 | K52: ='Diesel Upstream'!$C$18 -> 6.259226181e-06 | CF52: ='Diesel Upstream'!$C$9 -> 0.00077 | CG52: ='Diesel Upstream'!$C$10 -> 4.46171e-05 | CH52: =SUMPRODUCT($C52:$CD52, 'TRACI IF'!$C$5:$CD$5) -> 0.786899861 | CI52: ='Diesel Upstream'!$C$11 -> 9.11647e-10 | CJ52: ='Diesel Upstream'!$C$12 -> 5.61932e-05 | CK52: ='Diesel Upstream'!$C$13 -> 0.02067 | CL52: ='Diesel Upstream'!$C$14 -> -0.06697 | HG52: ='Diesel Upstream'!$C$6 -> 1 | KD52: =KD33*ET33 -> 0.001428065974 | KE52: kg | KF52: diesel, upstream | KI52: Diesel Upstream, Coal Handling, Surface | KJ52: =INDEX(Mapping!$A$2:$A$98,MATCH(B52,Mapping!$C$2:$C$98,0)) -> Extraction Surface Mine | KS52: 8.923650232e-06 | KT52: 0 | KU52: 0 | KV52: 0 | KW52: 0 | KX52: 0 | KY52: 0 | KZ52: 0.0008553799052 | LA52: 8.938587935e-09 | LB52: 0 | LC52: 0 | LD52: 0 | LE52: 0 | LF52: 0 | LG52: 0 | LH52: 0 | LI52: 0 | LJ52: 0 | LK52: 0 | LL52: 0 | LM52: 0 | LN52: 0 | LO52: 0 | LP52: 0 | LQ52: 0 | LR52: 0 | LS52: 0 | LT52: 0 | LU52: 0 | LV52: 0 | LW52: 0 | LX52: 0 | LY52: 0 | LZ52: 0 | MA52: 0 | MB52: 0 | MC52: 0 | MD52: 0 | ME52: 0 | MF52: 0 | MG52: 0 | MH52: 0 | MI52: 0 | MJ52: 0 | MK52: 0 | ML52: 0 | MM52: 0 | MN52: 0 | MO52: 0 | MP52: 0 | MQ52: 0 | MR52: 0 | MS52: 0 | MT52: 0 | MU52: 0 | MV52: 0 | MW52: 0 | MX52: 0 | MY52: 0 | MZ52: =CF52*$KD52+DistOutput() -> 1.0996108e-06 | NA52: =CG52*$KD52+DistOutput() -> 6.371616238e-08 | NB52: =CH52*$KD52+DistOutput() -> 0.001123744917 | NC52: =CI52*$KD52+DistOutput() -> 1.301892061e-12 | ND52: =CJ52*$KD52+DistOutput() -> 8.02475969e-08 | NE52: =CK52*$KD52+DistOutput() -> 2.951812369e-05 | NF52: =CL52*$KD52+DistOutput() -> -9.56375783e-05 | NH52: =DistAvg($MZ52) -> 0 | NI52: =DistAvg($NA52) -> 0 | NJ52: =DistAvg($NB52) -> 0 | NK52: =DistAvg($NC52) -> 0 | NL52: =DistAvg($ND52) -> 0 | NM52: =DistAvg($NE52) -> 0 | NN52: =DistAvg($NF52) -> 0 | NO52: =DistMin(MZ52) -> 0 | NP52: =DistMin(NA52) -> 0 | NQ52: =DistMin(NB52) -> 0 | NR52: =DistMin(NC52) -> 0 | NS52: =DistMin(ND52) -> 0 | NT52: =DistMin(NE52) -> 0 | NU52: =DistMin(NF52) -> 0 | NV52: =DistMax(MZ52) -> 0 | NW52: =DistMax(NA52) -> 0 | NX52: =DistMax(NB52) -> 0 | NY52: =DistMax(NC52) -> 0 | NZ52: =DistMax(ND52) -> 0 | OA52: =DistMax(NE52) -> 0 | OB52: =DistMax(NF52) -> 0 | OC52: =DistPercentileInc(MZ52,OC$2) -> 0 | OD52: =DistPercentileInc(NA52,OD$2) -> 0 | OE52: =DistPercentileInc(NB52,OE$2) -> 0 | OF52: =DistPercentileInc(NC52,OF$2) -> 0 | OG52: =DistPercentileInc(ND52,OG$2) -> 0 | OH52: =DistPercentileInc(NE52,OH$2) -> 0 | OI52: =DistPercentileInc(NF52,OI$2) -> 0 | OJ52: =DistPercentileInc(MZ52,OJ$2) -> 0 | OK52: =DistPercentileInc(NA52,OK$2) -> 0 | OL52: =DistPercentileInc(NB52,OL$2) -> 0 | OM52: =DistPercentileInc(NC52,OM$2) -> 0 | ON52: =DistPercentileInc(ND52,ON$2) -> 0 | OO52: =DistPercentileInc(NE52,OO$2) -> 0 | OP52: =DistPercentileInc(NF52,OP$2) -> 0 | OQ52: =DistPercentileInc(MZ52,OQ$2) -> 0 | OR52: =DistPercentileInc(NA52,OR$2) -> 0 | OS52: =DistPercentileInc(NB52,OS$2) -> 0 | OT52: =DistPercentileInc(NC52,OT$2) -> 0 | OU52: =DistPercentileInc(ND52,OU$2) -> 0 | OV52: =DistPercentileInc(NE52,OV$2) -> 0 | OW52: =DistPercentileInc(NF52,OW$2) -> 0 | OX52: =DistPercentileInc(MZ52,OX$2) -> 0 | OY52: =DistPercentileInc(NA52,OY$2) -> 0 | OZ52: =DistPercentileInc(NB52,OZ$2) -> 0 | PA52: =DistPercentileInc(NC52,PA$2) -> 0 | PB52: =DistPercentileInc(ND52,PB$2) -> 0 | PC52: =DistPercentileInc(NE52,PC$2) -> 0 | PD52: =DistPercentileInc(NF52,PD$2) -> 0 | PE52: =DistPercentileInc(MZ52,PE$2) -> 0 | PF52: =DistPercentileInc(NA52,PF$2) -> 0 | PG52: =DistPercentileInc(NB52,PG$2) -> 0 | PH52: =DistPercentileInc(NC52,PH$2) -> 0 | PI52: =DistPercentileInc(ND52,PI$2) -> 0 | PJ52: =DistPercentileInc(NE52,PJ$2) -> 0 | PK52: =DistPercentileInc(NF52,PK$2) -> 0
B53: ERCOT Upstream, Extraction, Underground | C53: ='ERCOT Upstream'!$C$17 -> 0.0013 | J53: ='ERCOT Upstream'!$C$16 -> 0.61393 | K53: ='ERCOT Upstream'!$C$18 -> 6.04027e-06 | CF53: ='ERCOT Upstream'!$C$9 -> 0.00184 | CG53: ='ERCOT Upstream'!$C$10 -> 8.9736e-05 | CH53: =SUMPRODUCT($C53:$CD53, 'TRACI IF'!$C$5:$CD$5) -> 0.6543189937 | CI53: ='ERCOT Upstream'!$C$11 -> 1.55277e-08 | CJ53: ='ERCOT Upstream'!$C$12 -> 0.00013 | CK53: ='ERCOT Upstream'!$C$13 -> 0.0423 | CL53: ='ERCOT Upstream'!$C$14 -> 53.55725 | HN53: ='ERCOT Upstream'!$C$6 -> 1 | KD53: =KD15*CM15 -> 0 | KE53: kWh | KF53: electricity | KI53: ERCOT Upstream, Extraction, Underground | KJ53: =INDEX(Mapping!$A$2:$A$98,MATCH(B53,Mapping!$C$2:$C$98,0)) -> Extraction Underground | KS53: 0 | KT53: 0 | KU53: 0 | KV53: 0 | KW53: 0 | KX53: 0 | KY53: 0 | KZ53: 0 | LA53: 0 | LB53: 0 | LC53: 0 | LD53: 0 | LE53: 0 | LF53: 0 | LG53: 0 | LH53: 0 | LI53: 0 | LJ53: 0 | LK53: 0 | LL53: 0 | LM53: 0 | LN53: 0 | LO53: 0 | LP53: 0 | LQ53: 0 | LR53: 0 | LS53: 0 | LT53: 0 | LU53: 0 | LV53: 0 | LW53: 0 | LX53: 0 | LY53: 0 | LZ53: 0 | MA53: 0 | MB53: 0 | MC53: 0 | MD53: 0 | ME53: 0 | MF53: 0 | MG53: 0 | MH53: 0 | MI53: 0 | MJ53: 0 | MK53: 0 | ML53: 0 | MM53: 0 | MN53: 0 | MO53: 0 | MP53: 0 | MQ53: 0 | MR53: 0 | MS53: 0 | MT53: 0 | MU53: 0 | MV53: 0 | MW53: 0 | MX53: 0 | MY53: 0 | MZ53: =CF53*$KD53+DistOutput() -> 0 | NA53: =CG53*$KD53+DistOutput() -> 0 | NB53: =CH53*$KD53+DistOutput() -> 0 | NC53: =CI53*$KD53+DistOutput() -> 0 | ND53: =CJ53*$KD53+DistOutput() -> 0 | NE53: =CK53*$KD53+DistOutput() -> 0 | NF53: =CL53*$KD53+DistOutput() -> 0 | NH53: =DistAvg($MZ53) -> 0 | NI53: =DistAvg($NA53) -> 0 | NJ53: =DistAvg($NB53) -> 0 | NK53: =DistAvg($NC53) -> 0 | NL53: =DistAvg($ND53) -> 0 | NM53: =DistAvg($NE53) -> 0 | NN53: =DistAvg($NF53) -> 0 | NO53: =DistMin(MZ53) -> 0 | NP53: =DistMin(NA53) -> 0 | NQ53: =DistMin(NB53) -> 0 | NR53: =DistMin(NC53) -> 0 | NS53: =DistMin(ND53) -> 0 | NT53: =DistMin(NE53) -> 0 | NU53: =DistMin(NF53) -> 0 | NV53: =DistMax(MZ53) -> 0 | NW53: =DistMax(NA53) -> 0 | NX53: =DistMax(NB53) -> 0 | NY53: =DistMax(NC53) -> 0 | NZ53: =DistMax(ND53) -> 0 | OA53: =DistMax(NE53) -> 0 | OB53: =DistMax(NF53) -> 0 | OC53: =DistPercentileInc(MZ53,OC$2) -> 0 | OD53: =DistPercentileInc(NA53,OD$2) -> 0 | OE53: =DistPercentileInc(NB53,OE$2) -> 0 | OF53: =DistPercentileInc(NC53,OF$2) -> 0 | OG53: =DistPercentileInc(ND53,OG$2) -> 0 | OH53: =DistPercentileInc(NE53,OH$2) -> 0 | OI53: =DistPercentileInc(NF53,OI$2) -> 0 | OJ53: =DistPercentileInc(MZ53,OJ$2) -> 0 | OK53: =DistPercentileInc(NA53,OK$2) -> 0 | OL53: =DistPercentileInc(NB53,OL$2) -> 0 | OM53: =DistPercentileInc(NC53,OM$2) -> 0 | ON53: =DistPercentileInc(ND53,ON$2) -> 0 | OO53: =DistPercentileInc(NE53,OO$2) -> 0 | OP53: =DistPercentileInc(NF53,OP$2) -> 0 | OQ53: =DistPercentileInc(MZ53,OQ$2) -> 0 | OR53: =DistPercentileInc(NA53,OR$2) -> 0 | OS53: =DistPercentileInc(NB53,OS$2) -> 0 | OT53: =DistPercentileInc(NC53,OT$2) -> 0 | OU53: =DistPercentileInc(ND53,OU$2) -> 0 | OV53: =DistPercentileInc(NE53,OV$2) -> 0 | OW53: =DistPercentileInc(NF53,OW$2) -> 0 | OX53: =DistPercentileInc(MZ53,OX$2) -> 0 | OY53: =DistPercentileInc(NA53,OY$2) -> 0 | OZ53: =DistPercentileInc(NB53,OZ$2) -> 0 | PA53: =DistPercentileInc(NC53,PA$2) -> 0 | PB53: =DistPercentileInc(ND53,PB$2) -> 0 | PC53: =DistPercentileInc(NE53,PC$2) -> 0 | PD53: =DistPercentileInc(NF53,PD$2) -> 0 | PE53: =DistPercentileInc(MZ53,PE$2) -> 0 | PF53: =DistPercentileInc(NA53,PF$2) -> 0 | PG53: =DistPercentileInc(NB53,PG$2) -> 0 | PH53: =DistPercentileInc(NC53,PH$2) -> 0 | PI53: =DistPercentileInc(ND53,PI$2) -> 0 | PJ53: =DistPercentileInc(NE53,PJ$2) -> 0 | PK53: =DistPercentileInc(NF53,PK$2) -> 0
B54: ERCOT Upstream, Extraction, Surface | C54: ='ERCOT Upstream'!$C$17 -> 0.0013 | J54: ='ERCOT Upstream'!$C$16 -> 0.61393 | K54: ='ERCOT Upstream'!$C$18 -> 6.04027e-06 | CF54: ='ERCOT Upstream'!$C$9 -> 0.00184 | CG54: ='ERCOT Upstream'!$C$10 -> 8.9736e-05 | CH54: =SUMPRODUCT($C54:$CD54, 'TRACI IF'!$C$5:$CD$5) -> 0.6543189937 | CI54: ='ERCOT Upstream'!$C$11 -> 1.55277e-08 | CJ54: ='ERCOT Upstream'!$C$12 -> 0.00013 | CK54: ='ERCOT Upstream'!$C$13 -> 0.0423 | CL54: ='ERCOT Upstream'!$C$14 -> 53.55725 | HO54: ='ERCOT Upstream'!$C$6 -> 1 | KD54: =KD16*CN16 -> 0 | KE54: kWh | KF54: electricity | KI54: ERCOT Upstream, Extraction, Surface | KJ54: =INDEX(Mapping!$A$2:$A$98,MATCH(B54,Mapping!$C$2:$C$98,0)) -> Extraction Surface Mine | KS54: 0 | KT54: 0 | KU54: 0 | KV54: 0 | KW54: 0 | KX54: 0 | KY54: 0 | KZ54: 0 | LA54: 0 | LB54: 0 | LC54: 0 | LD54: 0 | LE54: 0 | LF54: 0 | LG54: 0 | LH54: 0 | LI54: 0 | LJ54: 0 | LK54: 0 | LL54: 0 | LM54: 0 | LN54: 0 | LO54: 0 | LP54: 0 | LQ54: 0 | LR54: 0 | LS54: 0 | LT54: 0 | LU54: 0 | LV54: 0 | LW54: 0 | LX54: 0 | LY54: 0 | LZ54: 0 | MA54: 0 | MB54: 0 | MC54: 0 | MD54: 0 | ME54: 0 | MF54: 0 | MG54: 0 | MH54: 0 | MI54: 0 | MJ54: 0 | MK54: 0 | ML54: 0 | MM54: 0 | MN54: 0 | MO54: 0 | MP54: 0 | MQ54: 0 | MR54: 0 | MS54: 0 | MT54: 0 | MU54: 0 | MV54: 0 | MW54: 0 | MX54: 0 | MY54: 0 | MZ54: =CF54*$KD54+DistOutput() -> 0 | NA54: =CG54*$KD54+DistOutput() -> 0 | NB54: =CH54*$KD54+DistOutput() -> 0 | NC54: =CI54*$KD54+DistOutput() -> 0 | ND54: =CJ54*$KD54+DistOutput() -> 0 | NE54: =CK54*$KD54+DistOutput() -> 0 | NF54: =CL54*$KD54+DistOutput() -> 0 | NH54: =DistAvg($MZ54) -> 0 | NI54: =DistAvg($NA54) -> 0 | NJ54: =DistAvg($NB54) -> 0 | NK54: =DistAvg($NC54) -> 0 | NL54: =DistAvg($ND54) -> 0 | NM54: =DistAvg($NE54) -> 0 | NN54: =DistAvg($NF54) -> 0 | NO54: =DistMin(MZ54) -> 0 | NP54: =DistMin(NA54) -> 0 | NQ54: =DistMin(NB54) -> 0 | NR54: =DistMin(NC54) -> 0 | NS54: =DistMin(ND54) -> 0 | NT54: =DistMin(NE54) -> 0 | NU54: =DistMin(NF54) -> 0 | NV54: =DistMax(MZ54) -> 0 | NW54: =DistMax(NA54) -> 0 | NX54: =DistMax(NB54) -> 0 | NY54: =DistMax(NC54) -> 0 | NZ54: =DistMax(ND54) -> 0 | OA54: =DistMax(NE54) -> 0 | OB54: =DistMax(NF54) -> 0 | OC54: =DistPercentileInc(MZ54,OC$2) -> 0 | OD54: =DistPercentileInc(NA54,OD$2) -> 0 | OE54: =DistPercentileInc(NB54,OE$2) -> 0 | OF54: =DistPercentileInc(NC54,OF$2) -> 0 | OG54: =DistPercentileInc(ND54,OG$2) -> 0 | OH54: =DistPercentileInc(NE54,OH$2) -> 0 | OI54: =DistPercentileInc(NF54,OI$2) -> 0 | OJ54: =DistPercentileInc(MZ54,OJ$2) -> 0 | OK54: =DistPercentileInc(NA54,OK$2) -> 0 | OL54: =DistPercentileInc(NB54,OL$2) -> 0 | OM54: =DistPercentileInc(NC54,OM$2) -> 0 | ON54: =DistPercentileInc(ND54,ON$2) -> 0 | OO54: =DistPercentileInc(NE54,OO$2) -> 0 | OP54: =DistPercentileInc(NF54,OP$2) -> 0 | OQ54: =DistPercentileInc(MZ54,OQ$2) -> 0 | OR54: =DistPercentileInc(NA54,OR$2) -> 0 | OS54: =DistPercentileInc(NB54,OS$2) -> 0 | OT54: =DistPercentileInc(NC54,OT$2) -> 0 | OU54: =DistPercentileInc(ND54,OU$2) -> 0 | OV54: =DistPercentileInc(NE54,OV$2) -> 0 | OW54: =DistPercentileInc(NF54,OW$2) -> 0 | OX54: =DistPercentileInc(MZ54,OX$2) -> 0 | OY54: =DistPercentileInc(NA54,OY$2) -> 0 | OZ54: =DistPercentileInc(NB54,OZ$2) -> 0 | PA54: =DistPercentileInc(NC54,PA$2) -> 0 | PB54: =DistPercentileInc(ND54,PB$2) -> 0 | PC54: =DistPercentileInc(NE54,PC$2) -> 0 | PD54: =DistPercentileInc(NF54,PD$2) -> 0 | PE54: =DistPercentileInc(MZ54,PE$2) -> 0 | PF54: =DistPercentileInc(NA54,PF$2) -> 0 | PG54: =DistPercentileInc(NB54,PG$2) -> 0 | PH54: =DistPercentileInc(NC54,PH$2) -> 0 | PI54: =DistPercentileInc(ND54,PI$2) -> 0 | PJ54: =DistPercentileInc(NE54,PJ$2) -> 0 | PK54: =DistPercentileInc(NF54,PK$2) -> 0
B55: ERCOT Upstream, Coal Cleaning | C55: ='ERCOT Upstream'!$C$17 -> 0.0013 | J55: ='ERCOT Upstream'!$C$16 -> 0.61393 | K55: ='ERCOT Upstream'!$C$18 -> 6.04027e-06 | CF55: ='ERCOT Upstream'!$C$9 -> 0.00184 | CG55: ='ERCOT Upstream'!$C$10 -> 8.9736e-05 | CH55: =SUMPRODUCT($C55:$CD55, 'TRACI IF'!$C$5:$CD$5) -> 0.6543189937 | CI55: ='ERCOT Upstream'!$C$11 -> 1.55277e-08 | CJ55: ='ERCOT Upstream'!$C$12 -> 0.00013 | CK55: ='ERCOT Upstream'!$C$13 -> 0.0423 | CL55: ='ERCOT Upstream'!$C$14 -> 53.55725 | HP55: ='ERCOT Upstream'!$C$6 -> 1 | KD55: =KD17*CO17 -> 0 | KE55: kWh | KF55: electricity | KI55: ERCOT Upstream, Coal Cleaning | KJ55: =INDEX(Mapping!$A$2:$A$98,MATCH(B55,Mapping!$C$2:$C$98,0)) -> Coal Cleaning | KS55: 0 | KT55: 0 | KU55: 0 | KV55: 0 | KW55: 0 | KX55: 0 | KY55: 0 | KZ55: 0 | LA55: 0 | LB55: 0 | LC55: 0 | LD55: 0 | LE55: 0 | LF55: 0 | LG55: 0 | LH55: 0 | LI55: 0 | LJ55: 0 | LK55: 0 | LL55: 0 | LM55: 0 | LN55: 0 | LO55: 0 | LP55: 0 | LQ55: 0 | LR55: 0 | LS55: 0 | LT55: 0 | LU55: 0 | LV55: 0 | LW55: 0 | LX55: 0 | LY55: 0 | LZ55: 0 | MA55: 0 | MB55: 0 | MC55: 0 | MD55: 0 | ME55: 0 | MF55: 0 | MG55: 0 | MH55: 0 | MI55: 0 | MJ55: 0 | MK55: 0 | ML55: 0 | MM55: 0 | MN55: 0 | MO55: 0 | MP55: 0 | MQ55: 0 | MR55: 0 | MS55: 0 | MT55: 0 | MU55: 0 | MV55: 0 | MW55: 0 | MX55: 0 | MY55: 0 | MZ55: =CF55*$KD55+DistOutput() -> 0 | NA55: =CG55*$KD55+DistOutput() -> 0 | NB55: =CH55*$KD55+DistOutput() -> 0 | NC55: =CI55*$KD55+DistOutput() -> 0 | ND55: =CJ55*$KD55+DistOutput() -> 0 | NE55: =CK55*$KD55+DistOutput() -> 0 | NF55: =CL55*$KD55+DistOutput() -> 0 | NH55: =DistAvg($MZ55) -> 0 | NI55: =DistAvg($NA55) -> 0 | NJ55: =DistAvg($NB55) -> 0 | NK55: =DistAvg($NC55) -> 0 | NL55: =DistAvg($ND55) -> 0 | NM55: =DistAvg($NE55) -> 0 | NN55: =DistAvg($NF55) -> 0 | NO55: =DistMin(MZ55) -> 0 | NP55: =DistMin(NA55) -> 0 | NQ55: =DistMin(NB55) -> 0 | NR55: =DistMin(NC55) -> 0 | NS55: =DistMin(ND55) -> 0 | NT55: =DistMin(NE55) -> 0 | NU55: =DistMin(NF55) -> 0 | NV55: =DistMax(MZ55) -> 0 | NW55: =DistMax(NA55) -> 0 | NX55: =DistMax(NB55) -> 0 | NY55: =DistMax(NC55) -> 0 | NZ55: =DistMax(ND55) -> 0 | OA55: =DistMax(NE55) -> 0 | OB55: =DistMax(NF55) -> 0 | OC55: =DistPercentileInc(MZ55,OC$2) -> 0 | OD55: =DistPercentileInc(NA55,OD$2) -> 0 | OE55: =DistPercentileInc(NB55,OE$2) -> 0 | OF55: =DistPercentileInc(NC55,OF$2) -> 0 | OG55: =DistPercentileInc(ND55,OG$2) -> 0 | OH55: =DistPercentileInc(NE55,OH$2) -> 0 | OI55: =DistPercentileInc(NF55,OI$2) -> 0 | OJ55: =DistPercentileInc(MZ55,OJ$2) -> 0 | OK55: =DistPercentileInc(NA55,OK$2) -> 0 | OL55: =DistPercentileInc(NB55,OL$2) -> 0 | OM55: =DistPercentileInc(NC55,OM$2) -> 0 | ON55: =DistPercentileInc(ND55,ON$2) -> 0 | OO55: =DistPercentileInc(NE55,OO$2) -> 0 | OP55: =DistPercentileInc(NF55,OP$2) -> 0 | OQ55: =DistPercentileInc(MZ55,OQ$2) -> 0 | OR55: =DistPercentileInc(NA55,OR$2) -> 0 | OS55: =DistPercentileInc(NB55,OS$2) -> 0 | OT55: =DistPercentileInc(NC55,OT$2) -> 0 | OU55: =DistPercentileInc(ND55,OU$2) -> 0 | OV55: =DistPercentileInc(NE55,OV$2) -> 0 | OW55: =DistPercentileInc(NF55,OW$2) -> 0 | OX55: =DistPercentileInc(MZ55,OX$2) -> 0 | OY55: =DistPercentileInc(NA55,OY$2) -> 0 | OZ55: =DistPercentileInc(NB55,OZ$2) -> 0 | PA55: =DistPercentileInc(NC55,PA$2) -> 0 | PB55: =DistPercentileInc(ND55,PB$2) -> 0 | PC55: =DistPercentileInc(NE55,PC$2) -> 0 | PD55: =DistPercentileInc(NF55,PD$2) -> 0 | PE55: =DistPercentileInc(MZ55,PE$2) -> 0 | PF55: =DistPercentileInc(NA55,PF$2) -> 0 | PG55: =DistPercentileInc(NB55,PG$2) -> 0 | PH55: =DistPercentileInc(NC55,PH$2) -> 0 | PI55: =DistPercentileInc(ND55,PI$2) -> 0 | PJ55: =DistPercentileInc(NE55,PJ$2) -> 0 | PK55: =DistPercentileInc(NF55,PK$2) -> 0
B56: ERCOT Upstream, Ventilation | C56: ='ERCOT Upstream'!$C$17 -> 0.0013 | J56: ='ERCOT Upstream'!$C$16 -> 0.61393 | K56: ='ERCOT Upstream'!$C$18 -> 6.04027e-06 | CF56: ='ERCOT Upstream'!$C$9 -> 0.00184 | CG56: ='ERCOT Upstream'!$C$10 -> 8.9736e-05 | CH56: =SUMPRODUCT($C56:$CD56, 'TRACI IF'!$C$5:$CD$5) -> 0.6543189937 | CI56: ='ERCOT Upstream'!$C$11 -> 1.55277e-08 | CJ56: ='ERCOT Upstream'!$C$12 -> 0.00013 | CK56: ='ERCOT Upstream'!$C$13 -> 0.0423 | CL56: ='ERCOT Upstream'!$C$14 -> 53.55725 | HQ56: ='ERCOT Upstream'!$C$6 -> 1 | KD56: =KD18*CP18 -> 0 | KE56: kWh | KF56: electricity | KI56: ERCOT Upstream, Ventilation | KJ56: =INDEX(Mapping!$A$2:$A$98,MATCH(B56,Mapping!$C$2:$C$98,0)) -> Ventilation | KS56: 0 | KT56: 0 | KU56: 0 | KV56: 0 | KW56: 0 | KX56: 0 | KY56: 0 | KZ56: 0 | LA56: 0 | LB56: 0 | LC56: 0 | LD56: 0 | LE56: 0 | LF56: 0 | LG56: 0 | LH56: 0 | LI56: 0 | LJ56: 0 | LK56: 0 | LL56: 0 | LM56: 0 | LN56: 0 | LO56: 0 | LP56: 0 | LQ56: 0 | LR56: 0 | LS56: 0 | LT56: 0 | LU56: 0 | LV56: 0 | LW56: 0 | LX56: 0 | LY56: 0 | LZ56: 0 | MA56: 0 | MB56: 0 | MC56: 0 | MD56: 0 | ME56: 0 | MF56: 0 | MG56: 0 | MH56: 0 | MI56: 0 | MJ56: 0 | MK56: 0 | ML56: 0 | MM56: 0 | MN56: 0 | MO56: 0 | MP56: 0 | MQ56: 0 | MR56: 0 | MS56: 0 | MT56: 0 | MU56: 0 | MV56: 0 | MW56: 0 | MX56: 0 | MY56: 0 | MZ56: =CF56*$KD56+DistOutput() -> 0 | NA56: =CG56*$KD56+DistOutput() -> 0 | NB56: =CH56*$KD56+DistOutput() -> 0 | NC56: =CI56*$KD56+DistOutput() -> 0 | ND56: =CJ56*$KD56+DistOutput() -> 0 | NE56: =CK56*$KD56+DistOutput() -> 0 | NF56: =CL56*$KD56+DistOutput() -> 0 | NH56: =DistAvg($MZ56) -> 0 | NI56: =DistAvg($NA56) -> 0 | NJ56: =DistAvg($NB56) -> 0 | NK56: =DistAvg($NC56) -> 0 | NL56: =DistAvg($ND56) -> 0 | NM56: =DistAvg($NE56) -> 0 | NN56: =DistAvg($NF56) -> 0 | NO56: =DistMin(MZ56) -> 0 | NP56: =DistMin(NA56) -> 0 | NQ56: =DistMin(NB56) -> 0 | NR56: =DistMin(NC56) -> 0 | NS56: =DistMin(ND56) -> 0 | NT56: =DistMin(NE56) -> 0 | NU56: =DistMin(NF56) -> 0 | NV56: =DistMax(MZ56) -> 0 | NW56: =DistMax(NA56) -> 0 | NX56: =DistMax(NB56) -> 0 | NY56: =DistMax(NC56) -> 0 | NZ56: =DistMax(ND56) -> 0 | OA56: =DistMax(NE56) -> 0 | OB56: =DistMax(NF56) -> 0 | OC56: =DistPercentileInc(MZ56,OC$2) -> 0 | OD56: =DistPercentileInc(NA56,OD$2) -> 0 | OE56: =DistPercentileInc(NB56,OE$2) -> 0 | OF56: =DistPercentileInc(NC56,OF$2) -> 0 | OG56: =DistPercentileInc(ND56,OG$2) -> 0 | OH56: =DistPercentileInc(NE56,OH$2) -> 0 | OI56: =DistPercentileInc(NF56,OI$2) -> 0 | OJ56: =DistPercentileInc(MZ56,OJ$2) -> 0 | OK56: =DistPercentileInc(NA56,OK$2) -> 0 | OL56: =DistPercentileInc(NB56,OL$2) -> 0 | OM56: =DistPercentileInc(NC56,OM$2) -> 0 | ON56: =DistPercentileInc(ND56,ON$2) -> 0 | OO56: =DistPercentileInc(NE56,OO$2) -> 0 | OP56: =DistPercentileInc(NF56,OP$2) -> 0 | OQ56: =DistPercentileInc(MZ56,OQ$2) -> 0 | OR56: =DistPercentileInc(NA56,OR$2) -> 0 | OS56: =DistPercentileInc(NB56,OS$2) -> 0 | OT56: =DistPercentileInc(NC56,OT$2) -> 0 | OU56: =DistPercentileInc(ND56,OU$2) -> 0 | OV56: =DistPercentileInc(NE56,OV$2) -> 0 | OW56: =DistPercentileInc(NF56,OW$2) -> 0 | OX56: =DistPercentileInc(MZ56,OX$2) -> 0 | OY56: =DistPercentileInc(NA56,OY$2) -> 0 | OZ56: =DistPercentileInc(NB56,OZ$2) -> 0 | PA56: =DistPercentileInc(NC56,PA$2) -> 0 | PB56: =DistPercentileInc(ND56,PB$2) -> 0 | PC56: =DistPercentileInc(NE56,PC$2) -> 0 | PD56: =DistPercentileInc(NF56,PD$2) -> 0 | PE56: =DistPercentileInc(MZ56,PE$2) -> 0 | PF56: =DistPercentileInc(NA56,PF$2) -> 0 | PG56: =DistPercentileInc(NB56,PG$2) -> 0 | PH56: =DistPercentileInc(NC56,PH$2) -> 0 | PI56: =DistPercentileInc(ND56,PI$2) -> 0 | PJ56: =DistPercentileInc(NE56,PJ$2) -> 0 | PK56: =DistPercentileInc(NF56,PK$2) -> 0
B57: ERCOT Upstream, Transport, Conveyor | C57: ='ERCOT Upstream'!$C$17 -> 0.0013 | J57: ='ERCOT Upstream'!$C$16 -> 0.61393 | K57: ='ERCOT Upstream'!$C$18 -> 6.04027e-06 | CF57: ='ERCOT Upstream'!$C$9 -> 0.00184 | CG57: ='ERCOT Upstream'!$C$10 -> 8.9736e-05 | CH57: =SUMPRODUCT($C57:$CD57, 'TRACI IF'!$C$5:$CD$5) -> 0.6543189937 | CI57: ='ERCOT Upstream'!$C$11 -> 1.55277e-08 | CJ57: ='ERCOT Upstream'!$C$12 -> 0.00013 | CK57: ='ERCOT Upstream'!$C$13 -> 0.0423 | CL57: ='ERCOT Upstream'!$C$14 -> 53.55725 | HR57: ='ERCOT Upstream'!$C$6 -> 1 | KD57: =KD19*CQ19 -> 0 | KE57: kWh | KF57: electricity | KI57: ERCOT Upstream, Transport, Conveyor | KJ57: =INDEX(Mapping!$A$2:$A$98,MATCH(B57,Mapping!$C$2:$C$98,0)) -> Conveyor Belt Transport | KS57: 0 | KT57: 0 | KU57: 0 | KV57: 0 | KW57: 0 | KX57: 0 | KY57: 0 | KZ57: 0 | LA57: 0 | LB57: 0 | LC57: 0 | LD57: 0 | LE57: 0 | LF57: 0 | LG57: 0 | LH57: 0 | LI57: 0 | LJ57: 0 | LK57: 0 | LL57: 0 | LM57: 0 | LN57: 0 | LO57: 0 | LP57: 0 | LQ57: 0 | LR57: 0 | LS57: 0 | LT57: 0 | LU57: 0 | LV57: 0 | LW57: 0 | LX57: 0 | LY57: 0 | LZ57: 0 | MA57: 0 | MB57: 0 | MC57: 0 | MD57: 0 | ME57: 0 | MF57: 0 | MG57: 0 | MH57: 0 | MI57: 0 | MJ57: 0 | MK57: 0 | ML57: 0 | MM57: 0 | MN57: 0 | MO57: 0 | MP57: 0 | MQ57: 0 | MR57: 0 | MS57: 0 | MT57: 0 | MU57: 0 | MV57: 0 | MW57: 0 | MX57: 0 | MY57: 0 | MZ57: =CF57*$KD57+DistOutput() -> 0 | NA57: =CG57*$KD57+DistOutput() -> 0 | NB57: =CH57*$KD57+DistOutput() -> 0 | NC57: =CI57*$KD57+DistOutput() -> 0 | ND57: =CJ57*$KD57+DistOutput() -> 0 | NE57: =CK57*$KD57+DistOutput() -> 0 | NF57: =CL57*$KD57+DistOutput() -> 0 | NH57: =DistAvg($MZ57) -> 0 | NI57: =DistAvg($NA57) -> 0 | NJ57: =DistAvg($NB57) -> 0 | NK57: =DistAvg($NC57) -> 0 | NL57: =DistAvg($ND57) -> 0 | NM57: =DistAvg($NE57) -> 0 | NN57: =DistAvg($NF57) -> 0 | NO57: =DistMin(MZ57) -> 0 | NP57: =DistMin(NA57) -> 0 | NQ57: =DistMin(NB57) -> 0 | NR57: =DistMin(NC57) -> 0 | NS57: =DistMin(ND57) -> 0 | NT57: =DistMin(NE57) -> 0 | NU57: =DistMin(NF57) -> 0 | NV57: =DistMax(MZ57) -> 0 | NW57: =DistMax(NA57) -> 0 | NX57: =DistMax(NB57) -> 0 | NY57: =DistMax(NC57) -> 0 | NZ57: =DistMax(ND57) -> 0 | OA57: =DistMax(NE57) -> 0 | OB57: =DistMax(NF57) -> 0 | OC57: =DistPercentileInc(MZ57,OC$2) -> 0 | OD57: =DistPercentileInc(NA57,OD$2) -> 0 | OE57: =DistPercentileInc(NB57,OE$2) -> 0 | OF57: =DistPercentileInc(NC57,OF$2) -> 0 | OG57: =DistPercentileInc(ND57,OG$2) -> 0 | OH57: =DistPercentileInc(NE57,OH$2) -> 0 | OI57: =DistPercentileInc(NF57,OI$2) -> 0 | OJ57: =DistPercentileInc(MZ57,OJ$2) -> 0 | OK57: =DistPercentileInc(NA57,OK$2) -> 0 | OL57: =DistPercentileInc(NB57,OL$2) -> 0 | OM57: =DistPercentileInc(NC57,OM$2) -> 0 | ON57: =DistPercentileInc(ND57,ON$2) -> 0 | OO57: =DistPercentileInc(NE57,OO$2) -> 0 | OP57: =DistPercentileInc(NF57,OP$2) -> 0 | OQ57: =DistPercentileInc(MZ57,OQ$2) -> 0 | OR57: =DistPercentileInc(NA57,OR$2) -> 0 | OS57: =DistPercentileInc(NB57,OS$2) -> 0 | OT57: =DistPercentileInc(NC57,OT$2) -> 0 | OU57: =DistPercentileInc(ND57,OU$2) -> 0 | OV57: =DistPercentileInc(NE57,OV$2) -> 0 | OW57: =DistPercentileInc(NF57,OW$2) -> 0 | OX57: =DistPercentileInc(MZ57,OX$2) -> 0 | OY57: =DistPercentileInc(NA57,OY$2) -> 0 | OZ57: =DistPercentileInc(NB57,OZ$2) -> 0 | PA57: =DistPercentileInc(NC57,PA$2) -> 0 | PB57: =DistPercentileInc(ND57,PB$2) -> 0 | PC57: =DistPercentileInc(NE57,PC$2) -> 0 | PD57: =DistPercentileInc(NF57,PD$2) -> 0 | PE57: =DistPercentileInc(MZ57,PE$2) -> 0 | PF57: =DistPercentileInc(NA57,PF$2) -> 0 | PG57: =DistPercentileInc(NB57,PG$2) -> 0 | PH57: =DistPercentileInc(NC57,PH$2) -> 0 | PI57: =DistPercentileInc(ND57,PI$2) -> 0 | PJ57: =DistPercentileInc(NE57,PJ$2) -> 0 | PK57: =DistPercentileInc(NF57,PK$2) -> 0
B58: ERCOT Upstream, Coal Handling, Underground | C58: ='ERCOT Upstream'!$C$17 -> 0.0013 | J58: ='ERCOT Upstream'!$C$16 -> 0.61393 | K58: ='ERCOT Upstream'!$C$18 -> 6.04027e-06 | CF58: ='ERCOT Upstream'!$C$9 -> 0.00184 | CG58: ='ERCOT Upstream'!$C$10 -> 8.9736e-05 | CH58: =SUMPRODUCT($C58:$CD58, 'TRACI IF'!$C$5:$CD$5) -> 0.6543189937 | CI58: ='ERCOT Upstream'!$C$11 -> 1.55277e-08 | CJ58: ='ERCOT Upstream'!$C$12 -> 0.00013 | CK58: ='ERCOT Upstream'!$C$13 -> 0.0423 | CL58: ='ERCOT Upstream'!$C$14 -> 53.55725 | HS58: ='ERCOT Upstream'!$C$6 -> 1 | KD58: =KD20*CR20 -> 0 | KE58: kWh | KF58: electricity | KI58: ERCOT Upstream, Coal Handling, Underground | KJ58: =INDEX(Mapping!$A$2:$A$98,MATCH(B58,Mapping!$C$2:$C$98,0)) -> Coal Handling - Underground | KS58: 0 | KT58: 0 | KU58: 0 | KV58: 0 | KW58: 0 | KX58: 0 | KY58: 0 | KZ58: 0 | LA58: 0 | LB58: 0 | LC58: 0 | LD58: 0 | LE58: 0 | LF58: 0 | LG58: 0 | LH58: 0 | LI58: 0 | LJ58: 0 | LK58: 0 | LL58: 0 | LM58: 0 | LN58: 0 | LO58: 0 | LP58: 0 | LQ58: 0 | LR58: 0 | LS58: 0 | LT58: 0 | LU58: 0 | LV58: 0 | LW58: 0 | LX58: 0 | LY58: 0 | LZ58: 0 | MA58: 0 | MB58: 0 | MC58: 0 | MD58: 0 | ME58: 0 | MF58: 0 | MG58: 0 | MH58: 0 | MI58: 0 | MJ58: 0 | MK58: 0 | ML58: 0 | MM58: 0 | MN58: 0 | MO58: 0 | MP58: 0 | MQ58: 0 | MR58: 0 | MS58: 0 | MT58: 0 | MU58: 0 | MV58: 0 | MW58: 0 | MX58: 0 | MY58: 0 | MZ58: =CF58*$KD58+DistOutput() -> 0 | NA58: =CG58*$KD58+DistOutput() -> 0 | NB58: =CH58*$KD58+DistOutput() -> 0 | NC58: =CI58*$KD58+DistOutput() -> 0 | ND58: =CJ58*$KD58+DistOutput() -> 0 | NE58: =CK58*$KD58+DistOutput() -> 0 | NF58: =CL58*$KD58+DistOutput() -> 0 | NH58: =DistAvg($MZ58) -> 0 | NI58: =DistAvg($NA58) -> 0 | NJ58: =DistAvg($NB58) -> 0 | NK58: =DistAvg($NC58) -> 0 | NL58: =DistAvg($ND58) -> 0 | NM58: =DistAvg($NE58) -> 0 | NN58: =DistAvg($NF58) -> 0 | NO58: =DistMin(MZ58) -> 0 | NP58: =DistMin(NA58) -> 0 | NQ58: =DistMin(NB58) -> 0 | NR58: =DistMin(NC58) -> 0 | NS58: =DistMin(ND58) -> 0 | NT58: =DistMin(NE58) -> 0 | NU58: =DistMin(NF58) -> 0 | NV58: =DistMax(MZ58) -> 0 | NW58: =DistMax(NA58) -> 0 | NX58: =DistMax(NB58) -> 0 | NY58: =DistMax(NC58) -> 0 | NZ58: =DistMax(ND58) -> 0 | OA58: =DistMax(NE58) -> 0 | OB58: =DistMax(NF58) -> 0 | OC58: =DistPercentileInc(MZ58,OC$2) -> 0 | OD58: =DistPercentileInc(NA58,OD$2) -> 0 | OE58: =DistPercentileInc(NB58,OE$2) -> 0 | OF58: =DistPercentileInc(NC58,OF$2) -> 0 | OG58: =DistPercentileInc(ND58,OG$2) -> 0 | OH58: =DistPercentileInc(NE58,OH$2) -> 0 | OI58: =DistPercentileInc(NF58,OI$2) -> 0 | OJ58: =DistPercentileInc(MZ58,OJ$2) -> 0 | OK58: =DistPercentileInc(NA58,OK$2) -> 0 | OL58: =DistPercentileInc(NB58,OL$2) -> 0 | OM58: =DistPercentileInc(NC58,OM$2) -> 0 | ON58: =DistPercentileInc(ND58,ON$2) -> 0 | OO58: =DistPercentileInc(NE58,OO$2) -> 0 | OP58: =DistPercentileInc(NF58,OP$2) -> 0 | OQ58: =DistPercentileInc(MZ58,OQ$2) -> 0 | OR58: =DistPercentileInc(NA58,OR$2) -> 0 | OS58: =DistPercentileInc(NB58,OS$2) -> 0 | OT58: =DistPercentileInc(NC58,OT$2) -> 0 | OU58: =DistPercentileInc(ND58,OU$2) -> 0 | OV58: =DistPercentileInc(NE58,OV$2) -> 0 | OW58: =DistPercentileInc(NF58,OW$2) -> 0 | OX58: =DistPercentileInc(MZ58,OX$2) -> 0 | OY58: =DistPercentileInc(NA58,OY$2) -> 0 | OZ58: =DistPercentileInc(NB58,OZ$2) -> 0 | PA58: =DistPercentileInc(NC58,PA$2) -> 0 | PB58: =DistPercentileInc(ND58,PB$2) -> 0 | PC58: =DistPercentileInc(NE58,PC$2) -> 0 | PD58: =DistPercentileInc(NF58,PD$2) -> 0 | PE58: =DistPercentileInc(MZ58,PE$2) -> 0 | PF58: =DistPercentileInc(NA58,PF$2) -> 0 | PG58: =DistPercentileInc(NB58,PG$2) -> 0 | PH58: =DistPercentileInc(NC58,PH$2) -> 0 | PI58: =DistPercentileInc(ND58,PI$2) -> 0 | PJ58: =DistPercentileInc(NE58,PJ$2) -> 0 | PK58: =DistPercentileInc(NF58,PK$2) -> 0
B59: MISO Upstream, Extraction, Underground | C59: ='MISO Upstream'!$C$17 -> 0.00099 | J59: ='MISO Upstream'!$C$16 -> 0.72713 | K59: ='MISO Upstream'!$C$18 -> 9.77118e-06 | CF59: ='MISO Upstream'!$C$9 -> 0.00192 | CG59: ='MISO Upstream'!$C$10 -> 8.42274e-05 | CH59: =SUMPRODUCT($C59:$CD59, 'TRACI IF'!$C$5:$CD$5) -> 0.7592995321 | CI59: ='MISO Upstream'!$C$11 -> 2.89369e-08 | CJ59: ='MISO Upstream'!$C$12 -> 0.00016 | CK59: ='MISO Upstream'!$C$13 -> 0.03573 | CL59: ='MISO Upstream'!$C$14 -> -4.23628 | HT59: ='MISO Upstream'!$C$6 -> 1 | KD59: =KD15*CS15 -> 0 | KE59: kWh | KF59: electricity | KI59: MISO Upstream, Extraction, Underground | KJ59: =INDEX(Mapping!$A$2:$A$98,MATCH(B59,Mapping!$C$2:$C$98,0)) -> Extraction Underground | KS59: 0 | KT59: 0 | KU59: 0 | KV59: 0 | KW59: 0 | KX59: 0 | KY59: 0 | KZ59: 0 | LA59: 0 | LB59: 0 | LC59: 0 | LD59: 0 | LE59: 0 | LF59: 0 | LG59: 0 | LH59: 0 | LI59: 0 | LJ59: 0 | LK59: 0 | LL59: 0 | LM59: 0 | LN59: 0 | LO59: 0 | LP59: 0 | LQ59: 0 | LR59: 0 | LS59: 0 | LT59: 0 | LU59: 0 | LV59: 0 | LW59: 0 | LX59: 0 | LY59: 0 | LZ59: 0 | MA59: 0 | MB59: 0 | MC59: 0 | MD59: 0 | ME59: 0 | MF59: 0 | MG59: 0 | MH59: 0 | MI59: 0 | MJ59: 0 | MK59: 0 | ML59: 0 | MM59: 0 | MN59: 0 | MO59: 0 | MP59: 0 | MQ59: 0 | MR59: 0 | MS59: 0 | MT59: 0 | MU59: 0 | MV59: 0 | MW59: 0 | MX59: 0 | MY59: 0 | MZ59: =CF59*$KD59+DistOutput() -> 0 | NA59: =CG59*$KD59+DistOutput() -> 0 | NB59: =CH59*$KD59+DistOutput() -> 0 | NC59: =CI59*$KD59+DistOutput() -> 0 | ND59: =CJ59*$KD59+DistOutput() -> 0 | NE59: =CK59*$KD59+DistOutput() -> 0 | NF59: =CL59*$KD59+DistOutput() -> 0 | NH59: =DistAvg($MZ59) -> 0 | NI59: =DistAvg($NA59) -> 0 | NJ59: =DistAvg($NB59) -> 0 | NK59: =DistAvg($NC59) -> 0 | NL59: =DistAvg($ND59) -> 0 | NM59: =DistAvg($NE59) -> 0 | NN59: =DistAvg($NF59) -> 0 | NO59: =DistMin(MZ59) -> 0 | NP59: =DistMin(NA59) -> 0 | NQ59: =DistMin(NB59) -> 0 | NR59: =DistMin(NC59) -> 0 | NS59: =DistMin(ND59) -> 0 | NT59: =DistMin(NE59) -> 0 | NU59: =DistMin(NF59) -> 0 | NV59: =DistMax(MZ59) -> 0 | NW59: =DistMax(NA59) -> 0 | NX59: =DistMax(NB59) -> 0 | NY59: =DistMax(NC59) -> 0 | NZ59: =DistMax(ND59) -> 0 | OA59: =DistMax(NE59) -> 0 | OB59: =DistMax(NF59) -> 0 | OC59: =DistPercentileInc(MZ59,OC$2) -> 0 | OD59: =DistPercentileInc(NA59,OD$2) -> 0 | OE59: =DistPercentileInc(NB59,OE$2) -> 0 | OF59: =DistPercentileInc(NC59,OF$2) -> 0 | OG59: =DistPercentileInc(ND59,OG$2) -> 0 | OH59: =DistPercentileInc(NE59,OH$2) -> 0 | OI59: =DistPercentileInc(NF59,OI$2) -> 0 | OJ59: =DistPercentileInc(MZ59,OJ$2) -> 0 | OK59: =DistPercentileInc(NA59,OK$2) -> 0 | OL59: =DistPercentileInc(NB59,OL$2) -> 0 | OM59: =DistPercentileInc(NC59,OM$2) -> 0 | ON59: =DistPercentileInc(ND59,ON$2) -> 0 | OO59: =DistPercentileInc(NE59,OO$2) -> 0 | OP59: =DistPercentileInc(NF59,OP$2) -> 0 | OQ59: =DistPercentileInc(MZ59,OQ$2) -> 0 | OR59: =DistPercentileInc(NA59,OR$2) -> 0 | OS59: =DistPercentileInc(NB59,OS$2) -> 0 | OT59: =DistPercentileInc(NC59,OT$2) -> 0 | OU59: =DistPercentileInc(ND59,OU$2) -> 0 | OV59: =DistPercentileInc(NE59,OV$2) -> 0 | OW59: =DistPercentileInc(NF59,OW$2) -> 0 | OX59: =DistPercentileInc(MZ59,OX$2) -> 0 | OY59: =DistPercentileInc(NA59,OY$2) -> 0 | OZ59: =DistPercentileInc(NB59,OZ$2) -> 0 | PA59: =DistPercentileInc(NC59,PA$2) -> 0 | PB59: =DistPercentileInc(ND59,PB$2) -> 0 | PC59: =DistPercentileInc(NE59,PC$2) -> 0 | PD59: =DistPercentileInc(NF59,PD$2) -> 0 | PE59: =DistPercentileInc(MZ59,PE$2) -> 0 | PF59: =DistPercentileInc(NA59,PF$2) -> 0 | PG59: =DistPercentileInc(NB59,PG$2) -> 0 | PH59: =DistPercentileInc(NC59,PH$2) -> 0 | PI59: =DistPercentileInc(ND59,PI$2) -> 0 | PJ59: =DistPercentileInc(NE59,PJ$2) -> 0 | PK59: =DistPercentileInc(NF59,PK$2) -> 0
B60: MISO Upstream, Extraction, Surface | C60: ='MISO Upstream'!$C$17 -> 0.00099 | J60: ='MISO Upstream'!$C$16 -> 0.72713 | K60: ='MISO Upstream'!$C$18 -> 9.77118e-06 | CF60: ='MISO Upstream'!$C$9 -> 0.00192 | CG60: ='MISO Upstream'!$C$10 -> 8.42274e-05 | CH60: =SUMPRODUCT($C60:$CD60, 'TRACI IF'!$C$5:$CD$5) -> 0.7592995321 | CI60: ='MISO Upstream'!$C$11 -> 2.89369e-08 | CJ60: ='MISO Upstream'!$C$12 -> 0.00016 | CK60: ='MISO Upstream'!$C$13 -> 0.03573 | CL60: ='MISO Upstream'!$C$14 -> -4.23628 | HU60: ='MISO Upstream'!$C$6 -> 1 | KD60: =KD16*CT16 -> 0 | KE60: kWh | KF60: electricity | KI60: MISO Upstream, Extraction, Surface | KJ60: =INDEX(Mapping!$A$2:$A$98,MATCH(B60,Mapping!$C$2:$C$98,0)) -> Extraction Surface Mine | KS60: 0 | KT60: 0 | KU60: 0 | KV60: 0 | KW60: 0 | KX60: 0 | KY60: 0 | KZ60: 0 | LA60: 0 | LB60: 0 | LC60: 0 | LD60: 0 | LE60: 0 | LF60: 0 | LG60: 0 | LH60: 0 | LI60: 0 | LJ60: 0 | LK60: 0 | LL60: 0 | LM60: 0 | LN60: 0 | LO60: 0 | LP60: 0 | LQ60: 0 | LR60: 0 | LS60: 0 | LT60: 0 | LU60: 0 | LV60: 0 | LW60: 0 | LX60: 0 | LY60: 0 | LZ60: 0 | MA60: 0 | MB60: 0 | MC60: 0 | MD60: 0 | ME60: 0 | MF60: 0 | MG60: 0 | MH60: 0 | MI60: 0 | MJ60: 0 | MK60: 0 | ML60: 0 | MM60: 0 | MN60: 0 | MO60: 0 | MP60: 0 | MQ60: 0 | MR60: 0 | MS60: 0 | MT60: 0 | MU60: 0 | MV60: 0 | MW60: 0 | MX60: 0 | MY60: 0 | MZ60: =CF60*$KD60+DistOutput() -> 0 | NA60: =CG60*$KD60+DistOutput() -> 0 | NB60: =CH60*$KD60+DistOutput() -> 0 | NC60: =CI60*$KD60+DistOutput() -> 0 | ND60: =CJ60*$KD60+DistOutput() -> 0 | NE60: =CK60*$KD60+DistOutput() -> 0 | NF60: =CL60*$KD60+DistOutput() -> 0 | NH60: =DistAvg($MZ60) -> 0 | NI60: =DistAvg($NA60) -> 0 | NJ60: =DistAvg($NB60) -> 0 | NK60: =DistAvg($NC60) -> 0 | NL60: =DistAvg($ND60) -> 0 | NM60: =DistAvg($NE60) -> 0 | NN60: =DistAvg($NF60) -> 0 | NO60: =DistMin(MZ60) -> 0 | NP60: =DistMin(NA60) -> 0 | NQ60: =DistMin(NB60) -> 0 | NR60: =DistMin(NC60) -> 0 | NS60: =DistMin(ND60) -> 0 | NT60: =DistMin(NE60) -> 0 | NU60: =DistMin(NF60) -> 0 | NV60: =DistMax(MZ60) -> 0 | NW60: =DistMax(NA60) -> 0 | NX60: =DistMax(NB60) -> 0 | NY60: =DistMax(NC60) -> 0 | NZ60: =DistMax(ND60) -> 0 | OA60: =DistMax(NE60) -> 0 | OB60: =DistMax(NF60) -> 0 | OC60: =DistPercentileInc(MZ60,OC$2) -> 0 | OD60: =DistPercentileInc(NA60,OD$2) -> 0 | OE60: =DistPercentileInc(NB60,OE$2) -> 0 | OF60: =DistPercentileInc(NC60,OF$2) -> 0 | OG60: =DistPercentileInc(ND60,OG$2) -> 0 | OH60: =DistPercentileInc(NE60,OH$2) -> 0 | OI60: =DistPercentileInc(NF60,OI$2) -> 0 | OJ60: =DistPercentileInc(MZ60,OJ$2) -> 0 | OK60: =DistPercentileInc(NA60,OK$2) -> 0 | OL60: =DistPercentileInc(NB60,OL$2) -> 0 | OM60: =DistPercentileInc(NC60,OM$2) -> 0 | ON60: =DistPercentileInc(ND60,ON$2) -> 0 | OO60: =DistPercentileInc(NE60,OO$2) -> 0 | OP60: =DistPercentileInc(NF60,OP$2) -> 0 | OQ60: =DistPercentileInc(MZ60,OQ$2) -> 0 | OR60: =DistPercentileInc(NA60,OR$2) -> 0 | OS60: =DistPercentileInc(NB60,OS$2) -> 0 | OT60: =DistPercentileInc(NC60,OT$2) -> 0 | OU60: =DistPercentileInc(ND60,OU$2) -> 0 | OV60: =DistPercentileInc(NE60,OV$2) -> 0 | OW60: =DistPercentileInc(NF60,OW$2) -> 0 | OX60: =DistPercentileInc(MZ60,OX$2) -> 0 | OY60: =DistPercentileInc(NA60,OY$2) -> 0 | OZ60: =DistPercentileInc(NB60,OZ$2) -> 0 | PA60: =DistPercentileInc(NC60,PA$2) -> 0 | PB60: =DistPercentileInc(ND60,PB$2) -> 0 | PC60: =DistPercentileInc(NE60,PC$2) -> 0 | PD60: =DistPercentileInc(NF60,PD$2) -> 0 | PE60: =DistPercentileInc(MZ60,PE$2) -> 0 | PF60: =DistPercentileInc(NA60,PF$2) -> 0 | PG60: =DistPercentileInc(NB60,PG$2) -> 0 | PH60: =DistPercentileInc(NC60,PH$2) -> 0 | PI60: =DistPercentileInc(ND60,PI$2) -> 0 | PJ60: =DistPercentileInc(NE60,PJ$2) -> 0 | PK60: =DistPercentileInc(NF60,PK$2) -> 0
B61: MISO Upstream, Coal Cleaning | C61: ='MISO Upstream'!$C$17 -> 0.00099 | J61: ='MISO Upstream'!$C$16 -> 0.72713 | K61: ='MISO Upstream'!$C$18 -> 9.77118e-06 | CF61: ='MISO Upstream'!$C$9 -> 0.00192 | CG61: ='MISO Upstream'!$C$10 -> 8.42274e-05 | CH61: =SUMPRODUCT($C61:$CD61, 'TRACI IF'!$C$5:$CD$5) -> 0.7592995321 | CI61: ='MISO Upstream'!$C$11 -> 2.89369e-08 | CJ61: ='MISO Upstream'!$C$12 -> 0.00016 | CK61: ='MISO Upstream'!$C$13 -> 0.03573 | CL61: ='MISO Upstream'!$C$14 -> -4.23628 | HV61: ='MISO Upstream'!$C$6 -> 1 | KD61: =KD17*CU17 -> 0 | KE61: kWh | KF61: electricity | KI61: MISO Upstream, Coal Cleaning | KJ61: =INDEX(Mapping!$A$2:$A$98,MATCH(B61,Mapping!$C$2:$C$98,0)) -> Coal Cleaning | KS61: 0 | KT61: 0 | KU61: 0 | KV61: 0 | KW61: 0 | KX61: 0 | KY61: 0 | KZ61: 0 | LA61: 0 | LB61: 0 | LC61: 0 | LD61: 0 | LE61: 0 | LF61: 0 | LG61: 0 | LH61: 0 | LI61: 0 | LJ61: 0 | LK61: 0 | LL61: 0 | LM61: 0 | LN61: 0 | LO61: 0 | LP61: 0 | LQ61: 0 | LR61: 0 | LS61: 0 | LT61: 0 | LU61: 0 | LV61: 0 | LW61: 0 | LX61: 0 | LY61: 0 | LZ61: 0 | MA61: 0 | MB61: 0 | MC61: 0 | MD61: 0 | ME61: 0 | MF61: 0 | MG61: 0 | MH61: 0 | MI61: 0 | MJ61: 0 | MK61: 0 | ML61: 0 | MM61: 0 | MN61: 0 | MO61: 0 | MP61: 0 | MQ61: 0 | MR61: 0 | MS61: 0 | MT61: 0 | MU61: 0 | MV61: 0 | MW61: 0 | MX61: 0 | MY61: 0 | MZ61: =CF61*$KD61+DistOutput() -> 0 | NA61: =CG61*$KD61+DistOutput() -> 0 | NB61: =CH61*$KD61+DistOutput() -> 0 | NC61: =CI61*$KD61+DistOutput() -> 0 | ND61: =CJ61*$KD61+DistOutput() -> 0 | NE61: =CK61*$KD61+DistOutput() -> 0 | NF61: =CL61*$KD61+DistOutput() -> 0 | NH61: =DistAvg($MZ61) -> 0 | NI61: =DistAvg($NA61) -> 0 | NJ61: =DistAvg($NB61) -> 0 | NK61: =DistAvg($NC61) -> 0 | NL61: =DistAvg($ND61) -> 0 | NM61: =DistAvg($NE61) -> 0 | NN61: =DistAvg($NF61) -> 0 | NO61: =DistMin(MZ61) -> 0 | NP61: =DistMin(NA61) -> 0 | NQ61: =DistMin(NB61) -> 0 | NR61: =DistMin(NC61) -> 0 | NS61: =DistMin(ND61) -> 0 | NT61: =DistMin(NE61) -> 0 | NU61: =DistMin(NF61) -> 0 | NV61: =DistMax(MZ61) -> 0 | NW61: =DistMax(NA61) -> 0 | NX61: =DistMax(NB61) -> 0 | NY61: =DistMax(NC61) -> 0 | NZ61: =DistMax(ND61) -> 0 | OA61: =DistMax(NE61) -> 0 | OB61: =DistMax(NF61) -> 0 | OC61: =DistPercentileInc(MZ61,OC$2) -> 0 | OD61: =DistPercentileInc(NA61,OD$2) -> 0 | OE61: =DistPercentileInc(NB61,OE$2) -> 0 | OF61: =DistPercentileInc(NC61,OF$2) -> 0 | OG61: =DistPercentileInc(ND61,OG$2) -> 0 | OH61: =DistPercentileInc(NE61,OH$2) -> 0 | OI61: =DistPercentileInc(NF61,OI$2) -> 0 | OJ61: =DistPercentileInc(MZ61,OJ$2) -> 0 | OK61: =DistPercentileInc(NA61,OK$2) -> 0 | OL61: =DistPercentileInc(NB61,OL$2) -> 0 | OM61: =DistPercentileInc(NC61,OM$2) -> 0 | ON61: =DistPercentileInc(ND61,ON$2) -> 0 | OO61: =DistPercentileInc(NE61,OO$2) -> 0 | OP61: =DistPercentileInc(NF61,OP$2) -> 0 | OQ61: =DistPercentileInc(MZ61,OQ$2) -> 0 | OR61: =DistPercentileInc(NA61,OR$2) -> 0 | OS61: =DistPercentileInc(NB61,OS$2) -> 0 | OT61: =DistPercentileInc(NC61,OT$2) -> 0 | OU61: =DistPercentileInc(ND61,OU$2) -> 0 | OV61: =DistPercentileInc(NE61,OV$2) -> 0 | OW61: =DistPercentileInc(NF61,OW$2) -> 0 | OX61: =DistPercentileInc(MZ61,OX$2) -> 0 | OY61: =DistPercentileInc(NA61,OY$2) -> 0 | OZ61: =DistPercentileInc(NB61,OZ$2) -> 0 | PA61: =DistPercentileInc(NC61,PA$2) -> 0 | PB61: =DistPercentileInc(ND61,PB$2) -> 0 | PC61: =DistPercentileInc(NE61,PC$2) -> 0 | PD61: =DistPercentileInc(NF61,PD$2) -> 0 | PE61: =DistPercentileInc(MZ61,PE$2) -> 0 | PF61: =DistPercentileInc(NA61,PF$2) -> 0 | PG61: =DistPercentileInc(NB61,PG$2) -> 0 | PH61: =DistPercentileInc(NC61,PH$2) -> 0 | PI61: =DistPercentileInc(ND61,PI$2) -> 0 | PJ61: =DistPercentileInc(NE61,PJ$2) -> 0 | PK61: =DistPercentileInc(NF61,PK$2) -> 0
B62: MISO Upstream, Ventilation | C62: ='MISO Upstream'!$C$17 -> 0.00099 | J62: ='MISO Upstream'!$C$16 -> 0.72713 | K62: ='MISO Upstream'!$C$18 -> 9.77118e-06 | CF62: ='MISO Upstream'!$C$9 -> 0.00192 | CG62: ='MISO Upstream'!$C$10 -> 8.42274e-05 | CH62: =SUMPRODUCT($C62:$CD62, 'TRACI IF'!$C$5:$CD$5) -> 0.7592995321 | CI62: ='MISO Upstream'!$C$11 -> 2.89369e-08 | CJ62: ='MISO Upstream'!$C$12 -> 0.00016 | CK62: ='MISO Upstream'!$C$13 -> 0.03573 | CL62: ='MISO Upstream'!$C$14 -> -4.23628 | HW62: ='MISO Upstream'!$C$6 -> 1 | KD62: =KD18*CV18 -> 0 | KE62: kWh | KF62: electricity | KI62: MISO Upstream, Ventilation | KJ62: =INDEX(Mapping!$A$2:$A$98,MATCH(B62,Mapping!$C$2:$C$98,0)) -> Ventilation | KS62: 0 | KT62: 0 | KU62: 0 | KV62: 0 | KW62: 0 | KX62: 0 | KY62: 0 | KZ62: 0 | LA62: 0 | LB62: 0 | LC62: 0 | LD62: 0 | LE62: 0 | LF62: 0 | LG62: 0 | LH62: 0 | LI62: 0 | LJ62: 0 | LK62: 0 | LL62: 0 | LM62: 0 | LN62: 0 | LO62: 0 | LP62: 0 | LQ62: 0 | LR62: 0 | LS62: 0 | LT62: 0 | LU62: 0 | LV62: 0 | LW62: 0 | LX62: 0 | LY62: 0 | LZ62: 0 | MA62: 0 | MB62: 0 | MC62: 0 | MD62: 0 | ME62: 0 | MF62: 0 | MG62: 0 | MH62: 0 | MI62: 0 | MJ62: 0 | MK62: 0 | ML62: 0 | MM62: 0 | MN62: 0 | MO62: 0 | MP62: 0 | MQ62: 0 | MR62: 0 | MS62: 0 | MT62: 0 | MU62: 0 | MV62: 0 | MW62: 0 | MX62: 0 | MY62: 0 | MZ62: =CF62*$KD62+DistOutput() -> 0 | NA62: =CG62*$KD62+DistOutput() -> 0 | NB62: =CH62*$KD62+DistOutput() -> 0 | NC62: =CI62*$KD62+DistOutput() -> 0 | ND62: =CJ62*$KD62+DistOutput() -> 0 | NE62: =CK62*$KD62+DistOutput() -> 0 | NF62: =CL62*$KD62+DistOutput() -> 0 | NH62: =DistAvg($MZ62) -> 0 | NI62: =DistAvg($NA62) -> 0 | NJ62: =DistAvg($NB62) -> 0 | NK62: =DistAvg($NC62) -> 0 | NL62: =DistAvg($ND62) -> 0 | NM62: =DistAvg($NE62) -> 0 | NN62: =DistAvg($NF62) -> 0 | NO62: =DistMin(MZ62) -> 0 | NP62: =DistMin(NA62) -> 0 | NQ62: =DistMin(NB62) -> 0 | NR62: =DistMin(NC62) -> 0 | NS62: =DistMin(ND62) -> 0 | NT62: =DistMin(NE62) -> 0 | NU62: =DistMin(NF62) -> 0 | NV62: =DistMax(MZ62) -> 0 | NW62: =DistMax(NA62) -> 0 | NX62: =DistMax(NB62) -> 0 | NY62: =DistMax(NC62) -> 0 | NZ62: =DistMax(ND62) -> 0 | OA62: =DistMax(NE62) -> 0 | OB62: =DistMax(NF62) -> 0 | OC62: =DistPercentileInc(MZ62,OC$2) -> 0 | OD62: =DistPercentileInc(NA62,OD$2) -> 0 | OE62: =DistPercentileInc(NB62,OE$2) -> 0 | OF62: =DistPercentileInc(NC62,OF$2) -> 0 | OG62: =DistPercentileInc(ND62,OG$2) -> 0 | OH62: =DistPercentileInc(NE62,OH$2) -> 0 | OI62: =DistPercentileInc(NF62,OI$2) -> 0 | OJ62: =DistPercentileInc(MZ62,OJ$2) -> 0 | OK62: =DistPercentileInc(NA62,OK$2) -> 0 | OL62: =DistPercentileInc(NB62,OL$2) -> 0 | OM62: =DistPercentileInc(NC62,OM$2) -> 0 | ON62: =DistPercentileInc(ND62,ON$2) -> 0 | OO62: =DistPercentileInc(NE62,OO$2) -> 0 | OP62: =DistPercentileInc(NF62,OP$2) -> 0 | OQ62: =DistPercentileInc(MZ62,OQ$2) -> 0 | OR62: =DistPercentileInc(NA62,OR$2) -> 0 | OS62: =DistPercentileInc(NB62,OS$2) -> 0 | OT62: =DistPercentileInc(NC62,OT$2) -> 0 | OU62: =DistPercentileInc(ND62,OU$2) -> 0 | OV62: =DistPercentileInc(NE62,OV$2) -> 0 | OW62: =DistPercentileInc(NF62,OW$2) -> 0 | OX62: =DistPercentileInc(MZ62,OX$2) -> 0 | OY62: =DistPercentileInc(NA62,OY$2) -> 0 | OZ62: =DistPercentileInc(NB62,OZ$2) -> 0 | PA62: =DistPercentileInc(NC62,PA$2) -> 0 | PB62: =DistPercentileInc(ND62,PB$2) -> 0 | PC62: =DistPercentileInc(NE62,PC$2) -> 0 | PD62: =DistPercentileInc(NF62,PD$2) -> 0 | PE62: =DistPercentileInc(MZ62,PE$2) -> 0 | PF62: =DistPercentileInc(NA62,PF$2) -> 0 | PG62: =DistPercentileInc(NB62,PG$2) -> 0 | PH62: =DistPercentileInc(NC62,PH$2) -> 0 | PI62: =DistPercentileInc(ND62,PI$2) -> 0 | PJ62: =DistPercentileInc(NE62,PJ$2) -> 0 | PK62: =DistPercentileInc(NF62,PK$2) -> 0
B63: MISO Upstream, Transport, Conveyor | C63: ='MISO Upstream'!$C$17 -> 0.00099 | J63: ='MISO Upstream'!$C$16 -> 0.72713 | K63: ='MISO Upstream'!$C$18 -> 9.77118e-06 | CF63: ='MISO Upstream'!$C$9 -> 0.00192 | CG63: ='MISO Upstream'!$C$10 -> 8.42274e-05 | CH63: =SUMPRODUCT($C63:$CD63, 'TRACI IF'!$C$5:$CD$5) -> 0.7592995321 | CI63: ='MISO Upstream'!$C$11 -> 2.89369e-08 | CJ63: ='MISO Upstream'!$C$12 -> 0.00016 | CK63: ='MISO Upstream'!$C$13 -> 0.03573 | CL63: ='MISO Upstream'!$C$14 -> -4.23628 | HX63: ='MISO Upstream'!$C$6 -> 1 | KD63: =KD19*CW19 -> 0 | KE63: kWh | KF63: electricity | KI63: MISO Upstream, Transport, Conveyor | KJ63: =INDEX(Mapping!$A$2:$A$98,MATCH(B63,Mapping!$C$2:$C$98,0)) -> Conveyor Belt Transport | KS63: 0 | KT63: 0 | KU63: 0 | KV63: 0 | KW63: 0 | KX63: 0 | KY63: 0 | KZ63: 0 | LA63: 0 | LB63: 0 | LC63: 0 | LD63: 0 | LE63: 0 | LF63: 0 | LG63: 0 | LH63: 0 | LI63: 0 | LJ63: 0 | LK63: 0 | LL63: 0 | LM63: 0 | LN63: 0 | LO63: 0 | LP63: 0 | LQ63: 0 | LR63: 0 | LS63: 0 | LT63: 0 | LU63: 0 | LV63: 0 | LW63: 0 | LX63: 0 | LY63: 0 | LZ63: 0 | MA63: 0 | MB63: 0 | MC63: 0 | MD63: 0 | ME63: 0 | MF63: 0 | MG63: 0 | MH63: 0 | MI63: 0 | MJ63: 0 | MK63: 0 | ML63: 0 | MM63: 0 | MN63: 0 | MO63: 0 | MP63: 0 | MQ63: 0 | MR63: 0 | MS63: 0 | MT63: 0 | MU63: 0 | MV63: 0 | MW63: 0 | MX63: 0 | MY63: 0 | MZ63: =CF63*$KD63+DistOutput() -> 0 | NA63: =CG63*$KD63+DistOutput() -> 0 | NB63: =CH63*$KD63+DistOutput() -> 0 | NC63: =CI63*$KD63+DistOutput() -> 0 | ND63: =CJ63*$KD63+DistOutput() -> 0 | NE63: =CK63*$KD63+DistOutput() -> 0 | NF63: =CL63*$KD63+DistOutput() -> 0 | NH63: =DistAvg($MZ63) -> 0 | NI63: =DistAvg($NA63) -> 0 | NJ63: =DistAvg($NB63) -> 0 | NK63: =DistAvg($NC63) -> 0 | NL63: =DistAvg($ND63) -> 0 | NM63: =DistAvg($NE63) -> 0 | NN63: =DistAvg($NF63) -> 0 | NO63: =DistMin(MZ63) -> 0 | NP63: =DistMin(NA63) -> 0 | NQ63: =DistMin(NB63) -> 0 | NR63: =DistMin(NC63) -> 0 | NS63: =DistMin(ND63) -> 0 | NT63: =DistMin(NE63) -> 0 | NU63: =DistMin(NF63) -> 0 | NV63: =DistMax(MZ63) -> 0 | NW63: =DistMax(NA63) -> 0 | NX63: =DistMax(NB63) -> 0 | NY63: =DistMax(NC63) -> 0 | NZ63: =DistMax(ND63) -> 0 | OA63: =DistMax(NE63) -> 0 | OB63: =DistMax(NF63) -> 0 | OC63: =DistPercentileInc(MZ63,OC$2) -> 0 | OD63: =DistPercentileInc(NA63,OD$2) -> 0 | OE63: =DistPercentileInc(NB63,OE$2) -> 0 | OF63: =DistPercentileInc(NC63,OF$2) -> 0 | OG63: =DistPercentileInc(ND63,OG$2) -> 0 | OH63: =DistPercentileInc(NE63,OH$2) -> 0 | OI63: =DistPercentileInc(NF63,OI$2) -> 0 | OJ63: =DistPercentileInc(MZ63,OJ$2) -> 0 | OK63: =DistPercentileInc(NA63,OK$2) -> 0 | OL63: =DistPercentileInc(NB63,OL$2) -> 0 | OM63: =DistPercentileInc(NC63,OM$2) -> 0 | ON63: =DistPercentileInc(ND63,ON$2) -> 0 | OO63: =DistPercentileInc(NE63,OO$2) -> 0 | OP63: =DistPercentileInc(NF63,OP$2) -> 0 | OQ63: =DistPercentileInc(MZ63,OQ$2) -> 0 | OR63: =DistPercentileInc(NA63,OR$2) -> 0 | OS63: =DistPercentileInc(NB63,OS$2) -> 0 | OT63: =DistPercentileInc(NC63,OT$2) -> 0 | OU63: =DistPercentileInc(ND63,OU$2) -> 0 | OV63: =DistPercentileInc(NE63,OV$2) -> 0 | OW63: =DistPercentileInc(NF63,OW$2) -> 0 | OX63: =DistPercentileInc(MZ63,OX$2) -> 0 | OY63: =DistPercentileInc(NA63,OY$2) -> 0 | OZ63: =DistPercentileInc(NB63,OZ$2) -> 0 | PA63: =DistPercentileInc(NC63,PA$2) -> 0 | PB63: =DistPercentileInc(ND63,PB$2) -> 0 | PC63: =DistPercentileInc(NE63,PC$2) -> 0 | PD63: =DistPercentileInc(NF63,PD$2) -> 0 | PE63: =DistPercentileInc(MZ63,PE$2) -> 0 | PF63: =DistPercentileInc(NA63,PF$2) -> 0 | PG63: =DistPercentileInc(NB63,PG$2) -> 0 | PH63: =DistPercentileInc(NC63,PH$2) -> 0 | PI63: =DistPercentileInc(ND63,PI$2) -> 0 | PJ63: =DistPercentileInc(NE63,PJ$2) -> 0 | PK63: =DistPercentileInc(NF63,PK$2) -> 0
B64: MISO Upstream, Coal Handling, Underground | C64: ='MISO Upstream'!$C$17 -> 0.00099 | J64: ='MISO Upstream'!$C$16 -> 0.72713 | K64: ='MISO Upstream'!$C$18 -> 9.77118e-06 | CF64: ='MISO Upstream'!$C$9 -> 0.00192 | CG64: ='MISO Upstream'!$C$10 -> 8.42274e-05 | CH64: =SUMPRODUCT($C64:$CD64, 'TRACI IF'!$C$5:$CD$5) -> 0.7592995321 | CI64: ='MISO Upstream'!$C$11 -> 2.89369e-08 | CJ64: ='MISO Upstream'!$C$12 -> 0.00016 | CK64: ='MISO Upstream'!$C$13 -> 0.03573 | CL64: ='MISO Upstream'!$C$14 -> -4.23628 | HY64: ='MISO Upstream'!$C$6 -> 1 | KD64: =KD20*CX20 -> 0 | KE64: kWh | KF64: electricity | KI64: MISO Upstream, Coal Handling, Underground | KJ64: =INDEX(Mapping!$A$2:$A$98,MATCH(B64,Mapping!$C$2:$C$98,0)) -> Coal Handling - Underground | KS64: 0 | KT64: 0 | KU64: 0 | KV64: 0 | KW64: 0 | KX64: 0 | KY64: 0 | KZ64: 0 | LA64: 0 | LB64: 0 | LC64: 0 | LD64: 0 | LE64: 0 | LF64: 0 | LG64: 0 | LH64: 0 | LI64: 0 | LJ64: 0 | LK64: 0 | LL64: 0 | LM64: 0 | LN64: 0 | LO64: 0 | LP64: 0 | LQ64: 0 | LR64: 0 | LS64: 0 | LT64: 0 | LU64: 0 | LV64: 0 | LW64: 0 | LX64: 0 | LY64: 0 | LZ64: 0 | MA64: 0 | MB64: 0 | MC64: 0 | MD64: 0 | ME64: 0 | MF64: 0 | MG64: 0 | MH64: 0 | MI64: 0 | MJ64: 0 | MK64: 0 | ML64: 0 | MM64: 0 | MN64: 0 | MO64: 0 | MP64: 0 | MQ64: 0 | MR64: 0 | MS64: 0 | MT64: 0 | MU64: 0 | MV64: 0 | MW64: 0 | MX64: 0 | MY64: 0 | MZ64: =CF64*$KD64+DistOutput() -> 0 | NA64: =CG64*$KD64+DistOutput() -> 0 | NB64: =CH64*$KD64+DistOutput() -> 0 | NC64: =CI64*$KD64+DistOutput() -> 0 | ND64: =CJ64*$KD64+DistOutput() -> 0 | NE64: =CK64*$KD64+DistOutput() -> 0 | NF64: =CL64*$KD64+DistOutput() -> 0 | NH64: =DistAvg($MZ64) -> 0 | NI64: =DistAvg($NA64) -> 0 | NJ64: =DistAvg($NB64) -> 0 | NK64: =DistAvg($NC64) -> 0 | NL64: =DistAvg($ND64) -> 0 | NM64: =DistAvg($NE64) -> 0 | NN64: =DistAvg($NF64) -> 0 | NO64: =DistMin(MZ64) -> 0 | NP64: =DistMin(NA64) -> 0 | NQ64: =DistMin(NB64) -> 0 | NR64: =DistMin(NC64) -> 0 | NS64: =DistMin(ND64) -> 0 | NT64: =DistMin(NE64) -> 0 | NU64: =DistMin(NF64) -> 0 | NV64: =DistMax(MZ64) -> 0 | NW64: =DistMax(NA64) -> 0 | NX64: =DistMax(NB64) -> 0 | NY64: =DistMax(NC64) -> 0 | NZ64: =DistMax(ND64) -> 0 | OA64: =DistMax(NE64) -> 0 | OB64: =DistMax(NF64) -> 0 | OC64: =DistPercentileInc(MZ64,OC$2) -> 0 | OD64: =DistPercentileInc(NA64,OD$2) -> 0 | OE64: =DistPercentileInc(NB64,OE$2) -> 0 | OF64: =DistPercentileInc(NC64,OF$2) -> 0 | OG64: =DistPercentileInc(ND64,OG$2) -> 0 | OH64: =DistPercentileInc(NE64,OH$2) -> 0 | OI64: =DistPercentileInc(NF64,OI$2) -> 0 | OJ64: =DistPercentileInc(MZ64,OJ$2) -> 0 | OK64: =DistPercentileInc(NA64,OK$2) -> 0 | OL64: =DistPercentileInc(NB64,OL$2) -> 0 | OM64: =DistPercentileInc(NC64,OM$2) -> 0 | ON64: =DistPercentileInc(ND64,ON$2) -> 0 | OO64: =DistPercentileInc(NE64,OO$2) -> 0 | OP64: =DistPercentileInc(NF64,OP$2) -> 0 | OQ64: =DistPercentileInc(MZ64,OQ$2) -> 0 | OR64: =DistPercentileInc(NA64,OR$2) -> 0 | OS64: =DistPercentileInc(NB64,OS$2) -> 0 | OT64: =DistPercentileInc(NC64,OT$2) -> 0 | OU64: =DistPercentileInc(ND64,OU$2) -> 0 | OV64: =DistPercentileInc(NE64,OV$2) -> 0 | OW64: =DistPercentileInc(NF64,OW$2) -> 0 | OX64: =DistPercentileInc(MZ64,OX$2) -> 0 | OY64: =DistPercentileInc(NA64,OY$2) -> 0 | OZ64: =DistPercentileInc(NB64,OZ$2) -> 0 | PA64: =DistPercentileInc(NC64,PA$2) -> 0 | PB64: =DistPercentileInc(ND64,PB$2) -> 0 | PC64: =DistPercentileInc(NE64,PC$2) -> 0 | PD64: =DistPercentileInc(NF64,PD$2) -> 0 | PE64: =DistPercentileInc(MZ64,PE$2) -> 0 | PF64: =DistPercentileInc(NA64,PF$2) -> 0 | PG64: =DistPercentileInc(NB64,PG$2) -> 0 | PH64: =DistPercentileInc(NC64,PH$2) -> 0 | PI64: =DistPercentileInc(ND64,PI$2) -> 0 | PJ64: =DistPercentileInc(NE64,PJ$2) -> 0 | PK64: =DistPercentileInc(NF64,PK$2) -> 0
B65: Northwest Upstream, Extraction, Underground | C65: ='Northwest Upstream'!$C$17 -> 0.00056 | J65: ='Northwest Upstream'!$C$16 -> 0.41692 | K65: ='Northwest Upstream'!$C$18 -> 5.62775e-06 | CF65: ='Northwest Upstream'!$C$9 -> 0.00078 | CG65: ='Northwest Upstream'!$C$10 -> 3.93358e-05 | CH65: =SUMPRODUCT($C65:$CD65, 'TRACI IF'!$C$5:$CD$5) -> 0.4351443757 | CI65: ='Northwest Upstream'!$C$11 -> 1.40124e-08 | CJ65: ='Northwest Upstream'!$C$12 -> 5.86778e-05 | CK65: ='Northwest Upstream'!$C$13 -> 0.01879 | CL65: ='Northwest Upstream'!$C$14 -> 7.58101 | HZ65: ='Northwest Upstream'!$C$6 -> 1 | KD65: =KD15*CY15 -> 0 | KE65: kWh | KF65: electricity | KI65: Northwest Upstream, Extraction, Underground | KJ65: =INDEX(Mapping!$A$2:$A$98,MATCH(B65,Mapping!$C$2:$C$98,0)) -> Extraction Underground | KS65: 0 | KT65: 0 | KU65: 0 | KV65: 0 | KW65: 0 | KX65: 0 | KY65: 0 | KZ65: 0 | LA65: 0 | LB65: 0 | LC65: 0 | LD65: 0 | LE65: 0 | LF65: 0 | LG65: 0 | LH65: 0 | LI65: 0 | LJ65: 0 | LK65: 0 | LL65: 0 | LM65: 0 | LN65: 0 | LO65: 0 | LP65: 0 | LQ65: 0 | LR65: 0 | LS65: 0 | LT65: 0 | LU65: 0 | LV65: 0 | LW65: 0 | LX65: 0 | LY65: 0 | LZ65: 0 | MA65: 0 | MB65: 0 | MC65: 0 | MD65: 0 | ME65: 0 | MF65: 0 | MG65: 0 | MH65: 0 | MI65: 0 | MJ65: 0 | MK65: 0 | ML65: 0 | MM65: 0 | MN65: 0 | MO65: 0 | MP65: 0 | MQ65: 0 | MR65: 0 | MS65: 0 | MT65: 0 | MU65: 0 | MV65: 0 | MW65: 0 | MX65: 0 | MY65: 0 | MZ65: =CF65*$KD65+DistOutput() -> 0 | NA65: =CG65*$KD65+DistOutput() -> 0 | NB65: =CH65*$KD65+DistOutput() -> 0 | NC65: =CI65*$KD65+DistOutput() -> 0 | ND65: =CJ65*$KD65+DistOutput() -> 0 | NE65: =CK65*$KD65+DistOutput() -> 0 | NF65: =CL65*$KD65+DistOutput() -> 0 | NH65: =DistAvg($MZ65) -> 0 | NI65: =DistAvg($NA65) -> 0 | NJ65: =DistAvg($NB65) -> 0 | NK65: =DistAvg($NC65) -> 0 | NL65: =DistAvg($ND65) -> 0 | NM65: =DistAvg($NE65) -> 0 | NN65: =DistAvg($NF65) -> 0 | NO65: =DistMin(MZ65) -> 0 | NP65: =DistMin(NA65) -> 0 | NQ65: =DistMin(NB65) -> 0 | NR65: =DistMin(NC65) -> 0 | NS65: =DistMin(ND65) -> 0 | NT65: =DistMin(NE65) -> 0 | NU65: =DistMin(NF65) -> 0 | NV65: =DistMax(MZ65) -> 0 | NW65: =DistMax(NA65) -> 0 | NX65: =DistMax(NB65) -> 0 | NY65: =DistMax(NC65) -> 0 | NZ65: =DistMax(ND65) -> 0 | OA65: =DistMax(NE65) -> 0 | OB65: =DistMax(NF65) -> 0 | OC65: =DistPercentileInc(MZ65,OC$2) -> 0 | OD65: =DistPercentileInc(NA65,OD$2) -> 0 | OE65: =DistPercentileInc(NB65,OE$2) -> 0 | OF65: =DistPercentileInc(NC65,OF$2) -> 0 | OG65: =DistPercentileInc(ND65,OG$2) -> 0 | OH65: =DistPercentileInc(NE65,OH$2) -> 0 | OI65: =DistPercentileInc(NF65,OI$2) -> 0 | OJ65: =DistPercentileInc(MZ65,OJ$2) -> 0 | OK65: =DistPercentileInc(NA65,OK$2) -> 0 | OL65: =DistPercentileInc(NB65,OL$2) -> 0 | OM65: =DistPercentileInc(NC65,OM$2) -> 0 | ON65: =DistPercentileInc(ND65,ON$2) -> 0 | OO65: =DistPercentileInc(NE65,OO$2) -> 0 | OP65: =DistPercentileInc(NF65,OP$2) -> 0 | OQ65: =DistPercentileInc(MZ65,OQ$2) -> 0 | OR65: =DistPercentileInc(NA65,OR$2) -> 0 | OS65: =DistPercentileInc(NB65,OS$2) -> 0 | OT65: =DistPercentileInc(NC65,OT$2) -> 0 | OU65: =DistPercentileInc(ND65,OU$2) -> 0 | OV65: =DistPercentileInc(NE65,OV$2) -> 0 | OW65: =DistPercentileInc(NF65,OW$2) -> 0 | OX65: =DistPercentileInc(MZ65,OX$2) -> 0 | OY65: =DistPercentileInc(NA65,OY$2) -> 0 | OZ65: =DistPercentileInc(NB65,OZ$2) -> 0 | PA65: =DistPercentileInc(NC65,PA$2) -> 0 | PB65: =DistPercentileInc(ND65,PB$2) -> 0 | PC65: =DistPercentileInc(NE65,PC$2) -> 0 | PD65: =DistPercentileInc(NF65,PD$2) -> 0 | PE65: =DistPercentileInc(MZ65,PE$2) -> 0 | PF65: =DistPercentileInc(NA65,PF$2) -> 0 | PG65: =DistPercentileInc(NB65,PG$2) -> 0 | PH65: =DistPercentileInc(NC65,PH$2) -> 0 | PI65: =DistPercentileInc(ND65,PI$2) -> 0 | PJ65: =DistPercentileInc(NE65,PJ$2) -> 0 | PK65: =DistPercentileInc(NF65,PK$2) -> 0
B66: Northwest Upstream, Extraction, Surface | C66: ='Northwest Upstream'!$C$17 -> 0.00056 | J66: ='Northwest Upstream'!$C$16 -> 0.41692 | K66: ='Northwest Upstream'!$C$18 -> 5.62775e-06 | CF66: ='Northwest Upstream'!$C$9 -> 0.00078 | CG66: ='Northwest Upstream'!$C$10 -> 3.93358e-05 | CH66: =SUMPRODUCT($C66:$CD66, 'TRACI IF'!$C$5:$CD$5) -> 0.4351443757 | CI66: ='Northwest Upstream'!$C$11 -> 1.40124e-08 | CJ66: ='Northwest Upstream'!$C$12 -> 5.86778e-05 | CK66: ='Northwest Upstream'!$C$13 -> 0.01879 | CL66: ='Northwest Upstream'!$C$14 -> 7.58101 | IA66: ='Northwest Upstream'!$C$6 -> 1 | KD66: =KD16*CZ16 -> 0 | KE66: kWh | KF66: electricity | KI66: Northwest Upstream, Extraction, Surface | KJ66: =INDEX(Mapping!$A$2:$A$98,MATCH(B66,Mapping!$C$2:$C$98,0)) -> Extraction Surface Mine | KS66: 0 | KT66: 0 | KU66: 0 | KV66: 0 | KW66: 0 | KX66: 0 | KY66: 0 | KZ66: 0 | LA66: 0 | LB66: 0 | LC66: 0 | LD66: 0 | LE66: 0 | LF66: 0 | LG66: 0 | LH66: 0 | LI66: 0 | LJ66: 0 | LK66: 0 | LL66: 0 | LM66: 0 | LN66: 0 | LO66: 0 | LP66: 0 | LQ66: 0 | LR66: 0 | LS66: 0 | LT66: 0 | LU66: 0 | LV66: 0 | LW66: 0 | LX66: 0 | LY66: 0 | LZ66: 0 | MA66: 0 | MB66: 0 | MC66: 0 | MD66: 0 | ME66: 0 | MF66: 0 | MG66: 0 | MH66: 0 | MI66: 0 | MJ66: 0 | MK66: 0 | ML66: 0 | MM66: 0 | MN66: 0 | MO66: 0 | MP66: 0 | MQ66: 0 | MR66: 0 | MS66: 0 | MT66: 0 | MU66: 0 | MV66: 0 | MW66: 0 | MX66: 0 | MY66: 0 | MZ66: =CF66*$KD66+DistOutput() -> 0 | NA66: =CG66*$KD66+DistOutput() -> 0 | NB66: =CH66*$KD66+DistOutput() -> 0 | NC66: =CI66*$KD66+DistOutput() -> 0 | ND66: =CJ66*$KD66+DistOutput() -> 0 | NE66: =CK66*$KD66+DistOutput() -> 0 | NF66: =CL66*$KD66+DistOutput() -> 0 | NH66: =DistAvg($MZ66) -> 0 | NI66: =DistAvg($NA66) -> 0 | NJ66: =DistAvg($NB66) -> 0 | NK66: =DistAvg($NC66) -> 0 | NL66: =DistAvg($ND66) -> 0 | NM66: =DistAvg($NE66) -> 0 | NN66: =DistAvg($NF66) -> 0 | NO66: =DistMin(MZ66) -> 0 | NP66: =DistMin(NA66) -> 0 | NQ66: =DistMin(NB66) -> 0 | NR66: =DistMin(NC66) -> 0 | NS66: =DistMin(ND66) -> 0 | NT66: =DistMin(NE66) -> 0 | NU66: =DistMin(NF66) -> 0 | NV66: =DistMax(MZ66) -> 0 | NW66: =DistMax(NA66) -> 0 | NX66: =DistMax(NB66) -> 0 | NY66: =DistMax(NC66) -> 0 | NZ66: =DistMax(ND66) -> 0 | OA66: =DistMax(NE66) -> 0 | OB66: =DistMax(NF66) -> 0 | OC66: =DistPercentileInc(MZ66,OC$2) -> 0 | OD66: =DistPercentileInc(NA66,OD$2) -> 0 | OE66: =DistPercentileInc(NB66,OE$2) -> 0 | OF66: =DistPercentileInc(NC66,OF$2) -> 0 | OG66: =DistPercentileInc(ND66,OG$2) -> 0 | OH66: =DistPercentileInc(NE66,OH$2) -> 0 | OI66: =DistPercentileInc(NF66,OI$2) -> 0 | OJ66: =DistPercentileInc(MZ66,OJ$2) -> 0 | OK66: =DistPercentileInc(NA66,OK$2) -> 0 | OL66: =DistPercentileInc(NB66,OL$2) -> 0 | OM66: =DistPercentileInc(NC66,OM$2) -> 0 | ON66: =DistPercentileInc(ND66,ON$2) -> 0 | OO66: =DistPercentileInc(NE66,OO$2) -> 0 | OP66: =DistPercentileInc(NF66,OP$2) -> 0 | OQ66: =DistPercentileInc(MZ66,OQ$2) -> 0 | OR66: =DistPercentileInc(NA66,OR$2) -> 0 | OS66: =DistPercentileInc(NB66,OS$2) -> 0 | OT66: =DistPercentileInc(NC66,OT$2) -> 0 | OU66: =DistPercentileInc(ND66,OU$2) -> 0 | OV66: =DistPercentileInc(NE66,OV$2) -> 0 | OW66: =DistPercentileInc(NF66,OW$2) -> 0 | OX66: =DistPercentileInc(MZ66,OX$2) -> 0 | OY66: =DistPercentileInc(NA66,OY$2) -> 0 | OZ66: =DistPercentileInc(NB66,OZ$2) -> 0 | PA66: =DistPercentileInc(NC66,PA$2) -> 0 | PB66: =DistPercentileInc(ND66,PB$2) -> 0 | PC66: =DistPercentileInc(NE66,PC$2) -> 0 | PD66: =DistPercentileInc(NF66,PD$2) -> 0 | PE66: =DistPercentileInc(MZ66,PE$2) -> 0 | PF66: =DistPercentileInc(NA66,PF$2) -> 0 | PG66: =DistPercentileInc(NB66,PG$2) -> 0 | PH66: =DistPercentileInc(NC66,PH$2) -> 0 | PI66: =DistPercentileInc(ND66,PI$2) -> 0 | PJ66: =DistPercentileInc(NE66,PJ$2) -> 0 | PK66: =DistPercentileInc(NF66,PK$2) -> 0
B67: Northwest Upstream, Coal Cleaning | C67: ='Northwest Upstream'!$C$17 -> 0.00056 | J67: ='Northwest Upstream'!$C$16 -> 0.41692 | K67: ='Northwest Upstream'!$C$18 -> 5.62775e-06 | CF67: ='Northwest Upstream'!$C$9 -> 0.00078 | CG67: ='Northwest Upstream'!$C$10 -> 3.93358e-05 | CH67: =SUMPRODUCT($C67:$CD67, 'TRACI IF'!$C$5:$CD$5) -> 0.4351443757 | CI67: ='Northwest Upstream'!$C$11 -> 1.40124e-08 | CJ67: ='Northwest Upstream'!$C$12 -> 5.86778e-05 | CK67: ='Northwest Upstream'!$C$13 -> 0.01879 | CL67: ='Northwest Upstream'!$C$14 -> 7.58101 | IB67: ='Northwest Upstream'!$C$6 -> 1 | KD67: =KD17*DA17 -> 0 | KE67: kWh | KF67: electricity | KI67: Northwest Upstream, Coal Cleaning | KJ67: =INDEX(Mapping!$A$2:$A$98,MATCH(B67,Mapping!$C$2:$C$98,0)) -> Coal Cleaning | KS67: 0 | KT67: 0 | KU67: 0 | KV67: 0 | KW67: 0 | KX67: 0 | KY67: 0 | KZ67: 0 | LA67: 0 | LB67: 0 | LC67: 0 | LD67: 0 | LE67: 0 | LF67: 0 | LG67: 0 | LH67: 0 | LI67: 0 | LJ67: 0 | LK67: 0 | LL67: 0 | LM67: 0 | LN67: 0 | LO67: 0 | LP67: 0 | LQ67: 0 | LR67: 0 | LS67: 0 | LT67: 0 | LU67: 0 | LV67: 0 | LW67: 0 | LX67: 0 | LY67: 0 | LZ67: 0 | MA67: 0 | MB67: 0 | MC67: 0 | MD67: 0 | ME67: 0 | MF67: 0 | MG67: 0 | MH67: 0 | MI67: 0 | MJ67: 0 | MK67: 0 | ML67: 0 | MM67: 0 | MN67: 0 | MO67: 0 | MP67: 0 | MQ67: 0 | MR67: 0 | MS67: 0 | MT67: 0 | MU67: 0 | MV67: 0 | MW67: 0 | MX67: 0 | MY67: 0 | MZ67: =CF67*$KD67+DistOutput() -> 0 | NA67: =CG67*$KD67+DistOutput() -> 0 | NB67: =CH67*$KD67+DistOutput() -> 0 | NC67: =CI67*$KD67+DistOutput() -> 0 | ND67: =CJ67*$KD67+DistOutput() -> 0 | NE67: =CK67*$KD67+DistOutput() -> 0 | NF67: =CL67*$KD67+DistOutput() -> 0 | NH67: =DistAvg($MZ67) -> 0 | NI67: =DistAvg($NA67) -> 0 | NJ67: =DistAvg($NB67) -> 0 | NK67: =DistAvg($NC67) -> 0 | NL67: =DistAvg($ND67) -> 0 | NM67: =DistAvg($NE67) -> 0 | NN67: =DistAvg($NF67) -> 0 | NO67: =DistMin(MZ67) -> 0 | NP67: =DistMin(NA67) -> 0 | NQ67: =DistMin(NB67) -> 0 | NR67: =DistMin(NC67) -> 0 | NS67: =DistMin(ND67) -> 0 | NT67: =DistMin(NE67) -> 0 | NU67: =DistMin(NF67) -> 0 | NV67: =DistMax(MZ67) -> 0 | NW67: =DistMax(NA67) -> 0 | NX67: =DistMax(NB67) -> 0 | NY67: =DistMax(NC67) -> 0 | NZ67: =DistMax(ND67) -> 0 | OA67: =DistMax(NE67) -> 0 | OB67: =DistMax(NF67) -> 0 | OC67: =DistPercentileInc(MZ67,OC$2) -> 0 | OD67: =DistPercentileInc(NA67,OD$2) -> 0 | OE67: =DistPercentileInc(NB67,OE$2) -> 0 | OF67: =DistPercentileInc(NC67,OF$2) -> 0 | OG67: =DistPercentileInc(ND67,OG$2) -> 0 | OH67: =DistPercentileInc(NE67,OH$2) -> 0 | OI67: =DistPercentileInc(NF67,OI$2) -> 0 | OJ67: =DistPercentileInc(MZ67,OJ$2) -> 0 | OK67: =DistPercentileInc(NA67,OK$2) -> 0 | OL67: =DistPercentileInc(NB67,OL$2) -> 0 | OM67: =DistPercentileInc(NC67,OM$2) -> 0 | ON67: =DistPercentileInc(ND67,ON$2) -> 0 | OO67: =DistPercentileInc(NE67,OO$2) -> 0 | OP67: =DistPercentileInc(NF67,OP$2) -> 0 | OQ67: =DistPercentileInc(MZ67,OQ$2) -> 0 | OR67: =DistPercentileInc(NA67,OR$2) -> 0 | OS67: =DistPercentileInc(NB67,OS$2) -> 0 | OT67: =DistPercentileInc(NC67,OT$2) -> 0 | OU67: =DistPercentileInc(ND67,OU$2) -> 0 | OV67: =DistPercentileInc(NE67,OV$2) -> 0 | OW67: =DistPercentileInc(NF67,OW$2) -> 0 | OX67: =DistPercentileInc(MZ67,OX$2) -> 0 | OY67: =DistPercentileInc(NA67,OY$2) -> 0 | OZ67: =DistPercentileInc(NB67,OZ$2) -> 0 | PA67: =DistPercentileInc(NC67,PA$2) -> 0 | PB67: =DistPercentileInc(ND67,PB$2) -> 0 | PC67: =DistPercentileInc(NE67,PC$2) -> 0 | PD67: =DistPercentileInc(NF67,PD$2) -> 0 | PE67: =DistPercentileInc(MZ67,PE$2) -> 0 | PF67: =DistPercentileInc(NA67,PF$2) -> 0 | PG67: =DistPercentileInc(NB67,PG$2) -> 0 | PH67: =DistPercentileInc(NC67,PH$2) -> 0 | PI67: =DistPercentileInc(ND67,PI$2) -> 0 | PJ67: =DistPercentileInc(NE67,PJ$2) -> 0 | PK67: =DistPercentileInc(NF67,PK$2) -> 0
B68: Northwest Upstream, Ventilation | C68: ='Northwest Upstream'!$C$17 -> 0.00056 | J68: ='Northwest Upstream'!$C$16 -> 0.41692 | K68: ='Northwest Upstream'!$C$18 -> 5.62775e-06 | CF68: ='Northwest Upstream'!$C$9 -> 0.00078 | CG68: ='Northwest Upstream'!$C$10 -> 3.93358e-05 | CH68: =SUMPRODUCT($C68:$CD68, 'TRACI IF'!$C$5:$CD$5) -> 0.4351443757 | CI68: ='Northwest Upstream'!$C$11 -> 1.40124e-08 | CJ68: ='Northwest Upstream'!$C$12 -> 5.86778e-05 | CK68: ='Northwest Upstream'!$C$13 -> 0.01879 | CL68: ='Northwest Upstream'!$C$14 -> 7.58101 | IC68: ='Northwest Upstream'!$C$6 -> 1 | KD68: =KD18*DB18 -> 0 | KE68: kWh | KF68: electricity | KI68: Northwest Upstream, Ventilation | KJ68: =INDEX(Mapping!$A$2:$A$98,MATCH(B68,Mapping!$C$2:$C$98,0)) -> Ventilation | KS68: =C68*$KD68 -> 0 | KT68: =D68*$KD68 -> 0 | KU68: =E68*$KD68 -> 0 | KV68: =F68*$KD68 -> 0 | KW68: =G68*$KD68 -> 0 | KX68: =H68*$KD68 -> 0 | KY68: =I68*$KD68 -> 0 | KZ68: =J68*$KD68 -> 0 | LA68: =K68*$KD68 -> 0 | LB68: =L68*$KD68 -> 0 | LC68: =M68*$KD68 -> 0 | LD68: =N68*$KD68 -> 0 | LE68: =O68*$KD68 -> 0 | LF68: =P68*$KD68 -> 0 | LG68: =Q68*$KD68 -> 0 | LH68: =R68*$KD68 -> 0 | LI68: =S68*$KD68 -> 0 | LJ68: =T68*$KD68 -> 0 | LK68: =AP68*$KD68 -> 0 | LL68: =AQ68*$KD68 -> 0 | LM68: =AR68*$KD68 -> 0 | LN68: =AS68*$KD68 -> 0 | LO68: =AT68*$KD68 -> 0 | LP68: =AU68*$KD68 -> 0 | LQ68: =AV68*$KD68 -> 0 | LR68: =AW68*$KD68 -> 0 | LS68: =AX68*$KD68 -> 0 | LT68: =AY68*$KD68 -> 0 | LU68: =AZ68*$KD68 -> 0 | LV68: =BA68*$KD68 -> 0 | LW68: =BB68*$KD68 -> 0 | LX68: =BC68*$KD68 -> 0 | LY68: =BD68*$KD68 -> 0 | LZ68: =BE68*$KD68 -> 0 | MA68: =BF68*$KD68 -> 0 | MB68: =BG68*$KD68 -> 0 | MC68: =BH68*$KD68 -> 0 | MD68: =BI68*$KD68 -> 0 | ME68: =BJ68*$KD68 -> 0 | MF68: =BK68*$KD68 -> 0 | MG68: =BL68*$KD68 -> 0 | MH68: =BM68*$KD68 -> 0 | MI68: =BN68*$KD68 -> 0 | MJ68: =BO68*$KD68 -> 0 | MK68: =BP68*$KD68 -> 0 | ML68: =BQ68*$KD68 -> 0 | MM68: =BR68*$KD68 -> 0 | MN68: =BS68*$KD68 -> 0 | MO68: =BT68*$KD68 -> 0 | MP68: =BU68*$KD68 -> 0 | MQ68: =BV68*$KD68 -> 0 | MR68: =BW68*$KD68 -> 0 | MS68: =BX68*$KD68 -> 0 | MT68: =BY68*$KD68 -> 0 | MU68: =BZ68*$KD68 -> 0 | MV68: =CA68*$KD68 -> 0 | MW68: =CB68*$KD68 -> 0 | MX68: =CC68*$KD68 -> 0 | MY68: =CD68*$KD68 -> 0 | MZ68: =CF68*$KD68+DistOutput() -> 0 | NA68: =CG68*$KD68+DistOutput() -> 0 | NB68: =CH68*$KD68+DistOutput() -> 0 | NC68: =CI68*$KD68+DistOutput() -> 0 | ND68: =CJ68*$KD68+DistOutput() -> 0 | NE68: =CK68*$KD68+DistOutput() -> 0 | NF68: =CL68*$KD68+DistOutput() -> 0 | NH68: =DistAvg($MZ68) -> 0 | NI68: =DistAvg($NA68) -> 0 | NJ68: =DistAvg($NB68) -> 0 | NK68: =DistAvg($NC68) -> 0 | NL68: =DistAvg($ND68) -> 0 | NM68: =DistAvg($NE68) -> 0 | NN68: =DistAvg($NF68) -> 0 | NO68: =DistMin(MZ68) -> 0 | NP68: =DistMin(NA68) -> 0 | NQ68: =DistMin(NB68) -> 0 | NR68: =DistMin(NC68) -> 0 | NS68: =DistMin(ND68) -> 0 | NT68: =DistMin(NE68) -> 0 | NU68: =DistMin(NF68) -> 0 | NV68: =DistMax(MZ68) -> 0 | NW68: =DistMax(NA68) -> 0 | NX68: =DistMax(NB68) -> 0 | NY68: =DistMax(NC68) -> 0 | NZ68: =DistMax(ND68) -> 0 | OA68: =DistMax(NE68) -> 0 | OB68: =DistMax(NF68) -> 0 | OC68: =DistPercentileInc(MZ68,OC$2) -> 0 | OD68: =DistPercentileInc(NA68,OD$2) -> 0 | OE68: =DistPercentileInc(NB68,OE$2) -> 0 | OF68: =DistPercentileInc(NC68,OF$2) -> 0 | OG68: =DistPercentileInc(ND68,OG$2) -> 0 | OH68: =DistPercentileInc(NE68,OH$2) -> 0 | OI68: =DistPercentileInc(NF68,OI$2) -> 0 | OJ68: =DistPercentileInc(MZ68,OJ$2) -> 0 | OK68: =DistPercentileInc(NA68,OK$2) -> 0 | OL68: =DistPercentileInc(NB68,OL$2) -> 0 | OM68: =DistPercentileInc(NC68,OM$2) -> 0 | ON68: =DistPercentileInc(ND68,ON$2) -> 0 | OO68: =DistPercentileInc(NE68,OO$2) -> 0 | OP68: =DistPercentileInc(NF68,OP$2) -> 0 | OQ68: =DistPercentileInc(MZ68,OQ$2) -> 0 | OR68: =DistPercentileInc(NA68,OR$2) -> 0 | OS68: =DistPercentileInc(NB68,OS$2) -> 0 | OT68: =DistPercentileInc(NC68,OT$2) -> 0 | OU68: =DistPercentileInc(ND68,OU$2) -> 0 | OV68: =DistPercentileInc(NE68,OV$2) -> 0 | OW68: =DistPercentileInc(NF68,OW$2) -> 0 | OX68: =DistPercentileInc(MZ68,OX$2) -> 0 | OY68: =DistPercentileInc(NA68,OY$2) -> 0 | OZ68: =DistPercentileInc(NB68,OZ$2) -> 0 | PA68: =DistPercentileInc(NC68,PA$2) -> 0 | PB68: =DistPercentileInc(ND68,PB$2) -> 0 | PC68: =DistPercentileInc(NE68,PC$2) -> 0 | PD68: =DistPercentileInc(NF68,PD$2) -> 0 | PE68: =DistPercentileInc(MZ68,PE$2) -> 0 | PF68: =DistPercentileInc(NA68,PF$2) -> 0 | PG68: =DistPercentileInc(NB68,PG$2) -> 0 | PH68: =DistPercentileInc(NC68,PH$2) -> 0 | PI68: =DistPercentileInc(ND68,PI$2) -> 0 | PJ68: =DistPercentileInc(NE68,PJ$2) -> 0 | PK68: =DistPercentileInc(NF68,PK$2) -> 0
